Workbook

Sheet Contents
B1: REGULATORY REPORTING STATEMENT
B2: =TradingName -> SA Power Networks
B3: =CONCATENATE("Category Analysis RIN response ",CRY) -> Category Analysis RIN response 2013-14
B4: CONTENTS
E7: 1. Business details | L7: 2. Expenditure
E27: 4. Alternative control services | L27: 5. Network information | S27: 6. Service & quality

Sheet 1.0 Business & other details
B1: =Title -> REGULATORY REPORTING STATEMENT
B2: =TradingName -> SA Power Networks
B3: =CONCATENATE("Category Analysis RIN response ",CRY) -> Category Analysis RIN response 2013-14
B4: 1.0 BUSINESS & OTHER DETAILS
B7: Instructions
B8: Complete the following business details regulatory template before entering data or values in any other regulatory template. This regulatory template is linked to other cells within the spreadsheet and automatically generates column headings.
B10: Table 1.1 - Submission particulars input sheet
B12: Entity details
B14: Trading name | C14: SA Power Networks
B15: ACN / ABN | C15: 13332330749
B18: Business address | C18: Address 1 | E18: 1 Anzac Highway
D19: Address 2
C20: Suburb | E20: Keswick
D21: State | E21: SA | F21: p/code | G21: 5035
B23: Postal address | C23: Address 1 | E23: GPO Box 77
D24: Address 2
C25: Suburb | E25: Adelaide
D26: State | E26: SA | F26: p/code | G26: 5001
B29: Contact name/s | C29: Richard Sibly | F29: Wayne Lissner
B30: Contact phone/s | C30: 08 8404 5613 | F30: 08 8404 5391
B31: Contact email address/s | C31: richard.sibly@sapowernetworks.com.au | F31: wayne.lissner@sapowernetworks.com.au
B34: Regulatory year | C34: Financial / Other | M34: 2009 | N34: 2010 | O34: 2011 | P34: 2012 | Q34: 2013
C35: 2013-14 | M35: 2008/09 | N35: 2009/10 | O35: 2010/11 | P35: 2011/12 | Q35: 2012/13
B44: Sector | C44: Electricity
B45: Segment | C45: Distribution
B46: Source | C46: Reporting
B47: Regulatory year ending | C47: 2014
B48: Reporting period type | C48: Financial Year
B49: RIN Type | C49: CA
B50: Security classification | C50: Public
B51: Estimated, Actual, Consolidated, Consolidated Public | C51: Consolidated Public
B52: RIN response - version no. | C52: 1
B53: RIN response - amendment reason
B54: RIN template - version no. | C54: 2

Sheet 2.1 Expenditure summary
B1: =Title -> REGULATORY REPORTING STATEMENT
B2: =TradingName -> SA Power Networks
B3: =CONCATENATE("Category Analysis RIN response ",CRY) -> Category Analysis RIN response 2013-14
B4: 2.1 EXPENDITURE SUMMARY & RECONCILIATION
B11: TABLE 2.1.1 - STANDARD CONTROL SERVICES CAPEX
C14: Actual ($000's)
C15: =CRY -> 2013-14
A16: ED_EXP211_00001 | B16: Replacement expenditure | C16: ='[1]Capex 2013-14'!$E$27 -> 82535
A17: ED_EXP211_00002 | B17: Connections | C17: ='[1]Capex 2013-14'!$F$27 -> 72868
A18: ED_EXP211_00003 | B18: Augmentation Expenditure | C18: ='[1]Capex 2013-14'!$H$27 -> 83008
A19: ED_EXP211_00004 | B19: Non-network | C19: ='[1]Capex 2013-14'!$I$27 -> 88839
A20: ED_EXP211_00005 | B20: capitalised network overheads | C20: ='[1]Capex 2013-14'!$J$27 -> 11494
A21: ED_EXP211_00006 | B21: capitalised corporate overheads | C21: ='[1]Capex 2013-14'!$K$27 -> -7267
A22: ED_EXP211_00007 | B22: Metering | C22: 0
A23: ED_EXP211_00008 | B23: Public Lighting | C23: 0
A24: ED_EXP211_00002
A25: ED_EXP211_00003
A26: ED_EXP211_00004
A27: ED_EXP211_00005
A28: ED_EXP211_00006
A29: ED_EXP211_00007
A30: ED_EXP211_00008
A31: ED_EXP211_00009 | B31: balancing item | C31: ='[1]Capex 2013-14'!$I$35 -> -1432
B32: TOTAL GROSS CAPEX (includes capcons) | C32: =+SUM(C16:C31) -> 330045
A33: ED_EXP211_00011 | B33: capcons | C33: ='[2]25-JNLS'!$E$24-'[2]25-JNLS'!$D$17 -> 49970
B35: TABLE 2.1.2 - STANDARD CONTROL SERVICES OPEX
C38: Actual ($000's)
C39: =CRY -> 2013-14
A40: ED_EXP212_00001 | B40: Vegetation management | C40: ='[1]Opex 2013-14'!$E$36 -> 34382
A41: ED_EXP212_00002 | B41: Maintenance | C41: ='[1]Opex 2013-14'!$F$36 -> 25848
A42: ED_EXP212_00003 | B42: Emergency response | C42: ='[1]Opex 2013-14'!$H$36 -> 31062
A43: ED_EXP212_00004 | B43: Non-network | C43: ='[1]Opex 2013-14'!$I$36 -> 36122
A44: ED_EXP212_00005 | B44: network overheads | C44: ='[1]Opex 2013-14'!$J$36 -> 84619
A45: ED_EXP212_00006 | B45: corporate overheads | C45: ='[1]Opex 2013-14'!$K$36 -> 63047
A46: ED_EXP212_00007 | B46: Metering | C46: 0
A47: ED_EXP212_00008 | B47: Public Lighting | C47: 0
A48: ED_EXP211_00002
A49: ED_EXP211_00003
A50: ED_EXP211_00004
A51: ED_EXP211_00005
A52: ED_EXP211_00006
A53: ED_EXP211_00007
A54: ED_EXP211_00008
A55: ED_EXP212_00009 | B55: balancing item | C55: ='[1]Opex 2013-14'!$J$48 -> -38308
B56: TOTAL OPEX | C56: =+SUM(C40:C55) -> 236772
B58: TABLE 2.1.3 - ALTERNATIVE CONTROL SERVICES CAPEX
C61: Actual ($000's)
C62: =CRY -> 2013-14
A63: ED_EXP213_00001 | B63: Connections | C63: 0
A64: ED_EXP213_00002 | B64: capitalised network overheads | C64: ='[1]Capex 2013-14'!$Q$27 -> 617
A65: ED_EXP213_00003 | B65: capitalised corporate overheads | C65: ='[1]Capex 2013-14'!$R$27 -> -81
A66: ED_EXP213_00004 | B66: Metering | C66: ='[1]Capex 2013-14'!$P$27 -> 11835
A67: ED_EXP213_00005 | B67: Public lighting | C67: 0
A68: ED_EXP213_00006 | B68: Fee and quoted | C68: 0
A69: ED_EXP211_00002
A70: ED_EXP211_00003
A71: ED_EXP211_00004
A72: ED_EXP211_00005
A73: ED_EXP211_00006
A74: ED_EXP211_00007
A75: ED_EXP211_00008
A76: ED_EXP213_00007 | B76: balancing item | C76: ='[1]Capex 2013-14'!$J$35 -> -8717
B77: TOTAL CAPEX | C77: =+SUM(C63:C76) -> 3654
B79: TABLE 2.1.4 - ALTERNATIVE CONTROL SERVICES OPEX
C82: Actual ($000's)
C83: =CRY -> 2013-14
A84: ED_EXP214_00001 | B84: Connections | C84: 0
A85: ED_EXP214_00002 | B85: network overheads | C85: ='[1]Opex 2013-14'!$Q$36 -> 270
A86: ED_EXP214_00003 | B86: corporate overheads | C86: ='[1]Opex 2013-14'!$R$36 -> 718
A87: ED_EXP214_00004 | B87: Metering | C87: ='[1]Opex 2013-14'!$O$36 -> 6084
A88: ED_EXP214_00005 | B88: Public lighting | C88: 0
A89: ED_EXP214_00006 | B89: Fee and quoted | C89: 0
A90: ED_EXP211_00002 | B90: Non-Network | C90: ='[1]Opex 2013-14'!$P$36 -> 187
A91: ED_EXP211_00003
A92: ED_EXP211_00004
A93: ED_EXP211_00005
A94: ED_EXP211_00006
A95: ED_EXP211_00007
A96: ED_EXP211_00008
A97: ED_EXP214_00007 | B97: balancing item | C97: ='[1]Opex 2013-14'!$K$48 -> -1741
B98: TOTAL OPEX | C98: =+SUM(C84:C97) -> 5518
B100: TABLE 2.1.5 - DUAL FUNCTION ASSETS CAPEX
C103: Actual ($000's)
C104: =CRY -> 2013-14
A105: ED_EXP215_00001 | B105: Replacement expenditure | C105: 0
A106: ED_EXP215_00002 | B106: Connections | C106: 0
A107: ED_EXP215_00003 | B107: Augmentation Expenditure | C107: 0
A108: ED_EXP215_00004 | B108: Non-network | C108: 0
A109: ED_EXP215_00005 | B109: Capitalised network overheads | C109: 0
A110: ED_EXP215_00006 | B110: Capitalised corporate overheads | C110: 0
A111: ED_EXP211_00002
A112: ED_EXP211_00003
A113: ED_EXP211_00004
A114: ED_EXP211_00005
A115: ED_EXP211_00006
A116: ED_EXP211_00007
A117: ED_EXP211_00008
A118: ED_EXP215_00007 | B118: balancing item | C118: 0
B119: TOTAL GROSS CAPEX (includes capcons) | C119: =SUM(C105:C118) -> 0
A120: ED_EXP215_00009 | B120: capcons
B122: TABLE 2.1.6 - DUAL FUNCTION ASSETS OPEX
C125: Actual ($000's)
C126: =CRY -> 2013-14
A127: ED_EXP216_00001 | B127: Vegetation management | C127: 0
A128: ED_EXP216_00002 | B128: Maintenance | C128: 0
A129: ED_EXP216_00003 | B129: Emergency response | C129: 0
A130: ED_EXP216_00004 | B130: Non-network | C130: 0
A131: ED_EXP216_00005 | B131: Network overheads | C131: 0
A132: ED_EXP216_00006 | B132: Corporate overheads | C132: 0
A133: ED_EXP211_00002
A134: ED_EXP211_00003
A135: ED_EXP211_00004
A136: ED_EXP211_00005
A137: ED_EXP211_00006
A138: ED_EXP211_00007
A139: ED_EXP211_00008
A140: ED_EXP216_00007 | B140: balancing item | C140: 0
B141: TOTAL OPEX | C141: =SUM(C127:C140) -> 0

Sheet 2.2 Repex
B1: =Title -> REGULATORY REPORTING STATEMENT
B2: =TradingName -> SA Power Networks
B3: =CONCATENATE("Category Analysis RIN response ",CRY) -> Category Analysis RIN response 2013-14
B4: 2.2 REPEX
B6: TABLE 2.2.1 - REPLACEMENT EXPENDITURE, VOLUMES AND ASSET FAILURES BY ASSET CATEGORY | H6: Table 2.2.2 - SELECTED ASSET CHARACTERISTICS
B7: <<<GROUP-ROW>>>
D9: EXPENDITURE ($000'S) | E9: ASSET REPLACEMENTS | F9: ASSET FAILURES | J9: ASSET VOLUMES CURRENTLY IN COMMISSION | K9: ASSET REPLACEMENTS | L9: ASSET REPLACEMENTS | M9: ASSET REPLACEMENTS | N9: ASSET REPLACEMENTS | O9: ASSET REPLACEMENTS
B10: ASSET GROUP | C10: ASSET CATEGORY | D10: =CRY -> 2013-14 | E10: =CRY -> 2013-14 | F10: =CRY -> 2013-14 | H10: ASSET GROUP | I10: METRIC | J10: =CRY -> 2013-14 | K10: =CRY -> 2013-14
A11: ED_REP221_00001 | B11: POLES BY: HIGHEST OPERATING VOLTAGE ; MATERIAL TYPE; STAKING (IF WOOD) | C11: Staking of a wooden pole | D11: 0 | E11: 0 | F11: 0 | G11: ED_REP222_00001 | H11: TOTAL POLES BY: FEEDER TYPE | I11: Total CBD poles | J11: 252 | K11: 5
A12: ED_REP221_00002 | C12: ˂ = 1 kV; Wood | D12: 0 | E12: 0 | F12: 0 | G12: ED_REP222_00002 | I12: Total urban poles | J12: 250702 | K12: 1550
A13: ED_REP221_00003 | C13: > 1 kV & < = 11 kV; Wood | D13: 0 | E13: 0 | F13: 0 | G13: ED_REP222_00003 | I13: Total rural long poles | J13: 114201 | K13: 361
A14: ED_REP221_00004 | C14: ˃ 11 kV & < = 22 kV; Wood | D14: 0 | E14: 0 | F14: 0 | G14: ED_REP222_00004 | I14: Total rural short poles | J14: 379702 | K14: 328
A15: ED_REP221_00005 | C15: > 22 kV & < = 66 kV; Wood | D15: 0 | E15: 0 | F15: 0 | G15: ED_REP222_00005 | H15: OVERHEAD CONDUCTORS BY: CONDUCTOR LENGTH BY FEEDER TYPE | I15: Conductors CBD (km) | J15: 62 | K15: 0.04
A16: ED_REP221_00006 | C16: > 66 kV & < = 132 kV; Wood | D16: 0 | E16: 0 | F16: 0 | G16: ED_REP222_00006 | I16: Conductors urban (km) | J16: 53897 | K16: 22.47
A17: ED_REP221_00007 | C17: > 132 kV; Wood | D17: 0 | E17: 0 | F17: 0 | G17: ED_REP222_00007 | I17: Conductors rural long (km) | J17: 89113 | K17: 71.095
A18: ED_REP221_00008 | C18: ˂ = 1 kV; Concrete | D18: 0 | E18: 0 | F18: 0 | G18: ED_REP222_00008 | I18: Conductors rural short (km) | J18: 31212 | K18: 50.05
A19: ED_REP221_00009 | C19: > 1 kV & < = 11 kV; Concrete | D19: 0 | E19: 0 | F19: 0 | G19: ED_REP222_00009 | H19: OVERHEAD CONDUCTORS BY: CONDUCTOR LENGTH MATERIAL TYPE | I19: OH conductor LV ABC | J19: 7907 | K19: 0
A20: ED_REP221_00010 | C20: ˃ 11 kV & < = 22 kV; Concrete | D20: 0 | E20: 0 | F20: 0 | G20: ED_REP222_00010 | I20: OH conductor steel | J20: 45046 | K20: 36.4
A21: ED_REP221_00011 | C21: > 22 kV & < = 66 kV; Concrete | D21: 0 | E21: 0 | F21: 0 | G21: ED_REP222_00011 | I21: OH conductor ACSR | J21: 39929 | K21: 67.965
A22: ED_REP221_00012 | C22: > 66 kV & < = 132 kV; Concrete | D22: 0 | E22: 0 | F22: 0 | G22: ED_REP222_00012 | I22: OH conductor AAAC | J22: 6216 | K22: 0
A23: ED_REP221_00013 | C23: > 132 kV; Concrete | D23: 0 | E23: 0 | F23: 0 | G23: ED_REP222_00013 | I23: OH conductor AAC | J23: 30616 | K23: 21.1
A24: ED_REP221_00014 | C24: ˂ = 1 kV; Steel | D24: 0 | E24: 0 | F24: 0 | G24: ED_REP222_00014 | I24: OH conductor HDBC | J24: 44570 | K24: 18.19
A25: ED_REP221_00015 | C25: > 1 kV & < = 11 kV; Steel | D25: 0 | E25: 0 | F25: 0 | G25: ED_REP222_00015 | H25: UNDERGROUND CABLES BY: CABLE LENGTH BY FEEDER TYPE | I25: Cable CBD (km) | J25: 268 | K25: 0.03
A26: ED_REP221_00016 | C26: ˃ 11 kV & < = 22 kV; Steel | D26: 0 | E26: 0 | F26: 0 | G26: ED_REP222_00016 | I26: Cable urban (km) | J26: 10445 | K26: 9.89
A27: ED_REP221_00017 | C27: > 22 kV & < = 66 kV; Steel | D27: 0 | E27: 0 | F27: 0 | G27: ED_REP222_00017 | I27: Cable rural long (km) | J27: 3005 | K27: 1.195
A28: ED_REP221_00018 | C28: > 66 kV & < = 132 kV; Steel | D28: 0 | E28: 0 | F28: 0 | G28: ED_REP222_00018 | I28: Cable rural short (km) | J28: 3205 | K28: 1.075
A29: ED_REP221_00019 | C29: > 132 kV; Steel | D29: 0 | E29: 0 | F29: 0 | G29: ED_REP222_00019 | H29: TRANSFORMERS BY: TOTAL MVA | I29: Total MVA replaced | J29: 40 | K29: 0
A30: ED_REP221_00020 | C30: Other | D30: 0 | E30: 0 | F30: 0 | G30: ED_REP222_00020 | I30: Total MVA disposed of | J30: 29 | K30: 0
A31: ED_REP221_00021 | B31: POLE TOP STRUCTURES BY: HIGHEST OPERATING VOLTAGE | C31: ˂ = 1 kV | D31: 6906.474429 | E31: 3295 | F31: 3218
A32: ED_REP221_00022 | C32: > 1 kV & < = 11 kV | D32: 4372.092666 | E32: 2805 | F32: 773
A33: ED_REP221_00023 | C33: ˃ 11 kV & < = 22 kV | D33: 2565.067103 | E33: 1476 | F33: 407
A34: ED_REP221_00024 | C34: > 22 kV & < = 66 kV | D34: 1010.343223 | E34: 219 | F34: 54
A35: ED_REP221_00025 | C35: > 66 kV & < = 132 kV | D35: 0 | E35: 0 | F35: 0
A36: ED_REP221_00026 | C36: > 132 kV | D36: 0 | E36: 0 | F36: 0
A37: ED_REP221_00027 | C37: Other | D37: 0 | E37: 0 | F37: 0
A38: ED_REP221_00028 | B38: OVERHEAD CONDUCTORS BY: HIGHEST OPERATING VOLTAGE; NUMBER OF PHASES (AT HV) | C38: ˂ = 1 kV | D38: 1796.214318 | E38: 30.79 | F38: 1215
A39: ED_REP221_00029 | C39: > 1 kV & < = 11 kV | D39: 3159.000781 | E39: 77.7 | F39: 195
A40: ED_REP221_00030 | C40: ˃ 11 kV & < = 22 kV ; SWER | D40: 915.2210483 | E40: 15.06 | F40: 89
A41: ED_REP221_00031 | C41: ˃ 11 kV & < = 22 kV ; Single-Phase | D41: 0 | E41: 0 | F41: 0
A42: ED_REP221_00032 | C42: ˃ 11 kV & < = 22 kV ; Multiple-Phase | D42: 0 | E42: 0 | F42: 0
A43: ED_REP221_00033 | C43: > 22 kV & < = 66 kV | D43: 757.1035908 | E43: 20.105 | F43: 4
A44: ED_REP221_00034 | C44: > 66 kV & < = 132 kV | D44: 0 | E44: 0 | F44: 0
A45: ED_REP221_00035 | C45: > 132 kV | D45: 0 | E45: 0 | F45: 0
A46: ED_REP221_00036 | C46: Other | D46: 0 | E46: 0 | F46: 0
A47: ED_REP221_00037 | B47: UNDERGROUND CABLES BY: HIGHEST OPERATING VOLTAGE | C47: ˂ = 1 kV | D47: 987.549117 | E47: 5.41 | F47: 480
A48: ED_REP221_00038 | C48: > 1 kV & < = 11 kV | D48: 7846.194058 | E48: 6.68 | F48: 479
A49: ED_REP221_00039 | C49: > 11 kV & < = 22 kV | D49: 21.73950644 | E49: 0.08 | F49: 8
A50: ED_REP221_00040 | C50: > 22 kV & < = 33 kV | D50: 90.39057939 | E50: 0.02 | F50: 2
A51: ED_REP221_00041 | C51: > 33 kV & < = 66 kV | D51: 0 | E51: 0 | F51: 0
A52: ED_REP221_00042 | C52: > 66 kV & < = 132 kV | D52: 0 | E52: 0 | F52: 0
A53: ED_REP221_00043 | C53: > 132 kV | D53: 0 | E53: 0 | F53: 0
A54: ED_REP221_00044 | C54: Other | D54: 0 | E54: 0 | F54: 0
A55: ED_REP221_00045 | B55: SERVICE LINES BY: CONNECTION VOLTAGE; CUSTOMER TYPE; CONNECTION COMPLEXITY | C55: ˂ = 11 kV ; Residential ; Simple Type | D55: 4060.537957 | E55: 7292 | F55: 6305
A56: ED_REP221_00046 | C56: ˂ = 11 kV ; Commercial & Industrial ; Simple Type | D56: 0 | E56: 0 | F56: 0
A57: ED_REP221_00047 | C57: ˂ = 11 kV ; Residential ; Complex Type | D57: 0 | E57: 0 | F57: 0
A58: ED_REP221_00048 | C58: ˂ = 11 kV ; Commercial & Industrial ; Complex Type | D58: 502.1095323 | E58: 818 | F58: 699
A59: ED_REP221_00049 | C59: ˂ = 11 kV ; Subdivision ; Complex Type | D59: 0 | E59: 0 | F59: 0
A60: ED_REP221_00050 | C60: > 11 kV & < = 22 kV ; Commercial & Industrial | D60: 0 | E60: 0 | F60: 0
A61: ED_REP221_00051 | C61: > 11 kV & < = 22 kV ; Subdivision | D61: 0 | E61: 0 | F61: 0
A62: ED_REP221_00052 | C62: > 22 kV & < = 33 kV ; Commercial & Industrial | D62: 0 | E62: 0 | F62: 0
A63: ED_REP221_00053 | C63: > 22 kV & < = 33 kV ; Subdivision | D63: 0 | E63: 0 | F63: 0
A64: ED_REP221_00054 | C64: > 33 kV & < = 66 kV ; Commercial & Industrial | D64: 0 | E64: 0 | F64: 0
A65: ED_REP221_00055 | C65: > 33 kV & < = 66 kV ; Subdivision | D65: 0 | E65: 0 | F65: 0
A66: ED_REP221_00056 | C66: > 66 kV & < = 132 kV ; Commercial & Industrial | D66: 0 | E66: 0 | F66: 0
A67: ED_REP221_00057 | C67: > 66 kV & < = 132 kV ; Subdivision | D67: 0 | E67: 0 | F67: 0
A68: ED_REP221_00058 | C68: > 132 kV ; Commercial & Industrial | D68: 0 | E68: 0 | F68: 0
A69: ED_REP221_00059 | C69: > 132 kV ; Subdivision | D69: 0 | E69: 0 | F69: 0
A70: ED_REP221_00060 | C70: Other | D70: 0 | E70: 0 | F70: 0
A71: ED_REP221_00061 | B71: TRANSFORMERS BY: MOUNTING TYPE; HIGHEST OPERATING VOLTAGE ; AMPERE RATING; NUMBER OF PHASES (AT LV) | C71: Pole Mounted ; < = 22kV ; < = 60 kVA ; Single Phase | D71: 2275.151547 | E71: 191.5276382 | F71: 118
A72: ED_REP221_00062 | C72: Pole Mounted ; < = 22kV ; > 60 kVA and < = 600 kVA ; Single Phase | D72: 57.84419819 | E72: 4.869346734 | F72: 3
A73: ED_REP221_00063 | C73: Pole Mounted ; < = 22kV ; > 600 kVA ; Single Phase | D73: 0 | E73: 0 | F73: 0
A74: ED_REP221_00064 | C74: Pole Mounted ; < = 22kV ; < = 60 kVA ; Multiple Phase | D74: 578.4296168 | E74: 48.69346734 | F74: 30
A75: ED_REP221_00065 | C75: Pole Mounted ; < = 22kV ; > 60 kVA and < = 600 kVA ; Multiple Phase | D75: 829.0836872 | E75: 69.79396985 | F75: 43
A76: ED_REP221_00066 | C76: Pole Mounted ; < = 22kV ; > 600 kVA ; Multiple Phase | D76: 0 | E76: 0 | F76: 0
A77: ED_REP221_00073 | C77: Kiosk Mounted ; < = 22kV ; < = 60 kVA ; Single Phase | D77: 0 | E77: 0 | F77: 0
A78: ED_REP221_00074 | C78: Kiosk Mounted ; < = 22kV ; > 60 kVA and < = 600 kVA ; Single Phase | D78: 0 | E78: 0 | F78: 0
A79: ED_REP221_00075 | C79: Kiosk Mounted ; < = 22kV ; > 600 kVA ; Single Phase | D79: 0 | E79: 0 | F79: 0
A80: ED_REP221_00076 | C80: Kiosk Mounted ; < = 22kV ; < = 60 kVA ; Multiple Phase | D80: 0 | E80: 0 | F80: 0
A81: ED_REP221_00077 | C81: Kiosk Mounted ; < = 22kV ; > 60 kVA and < = 600 kVA ; Multiple Phase | D81: 417.9422614 | E81: 28 | F81: 12
A82: ED_REP221_00078 | C82: Kiosk Mounted ; < = 22kV ; > 600 kVA ; Multiple Phase | D82: 0 | E82: 0 | F82: 0
A83: ED_REP221_00085 | C83: Ground Outdoor / Indoor Chamber Mounted; ˂ 22 kV ; < = 60 kVA ; Single Phase | D83: 0 | E83: 0 | F83: 0
A84: ED_REP221_00086 | C84: Ground Outdoor / Indoor Chamber Mounted; ˂ 22 kV ; > 60 kVA and < = 600 kVA ; Single Phase | D84: 0 | E84: 0 | F84: 0
A85: ED_REP221_00087 | C85: Ground Outdoor / Indoor Chamber Mounted; ˂ 22 kV ; > 600 kVA ; Single Phase | D85: 0 | E85: 0 | F85: 0
A86: ED_REP221_00088 | C86: Ground Outdoor / Indoor Chamber Mounted; ˂ 22 kV ; < = 60 kVA ; Multiple Phase | D86: 0 | E86: 0 | F86: 0
A87: ED_REP221_00089 | C87: Ground Outdoor / Indoor Chamber Mounted; ˂ 22 kV ; > 60 kVA and < = 600 kVA ; Multiple Phase | D87: 0 | E87: 0 | F87: 0
A88: ED_REP221_00090 | C88: Ground Outdoor / Indoor Chamber Mounted; ˂ 22 kV ; > 600 kVA ; Multiple Phase | D88: 0 | E88: 0 | F88: 0
A89: ED_REP221_00091 | C89: Ground Outdoor / Indoor Chamber Mounted; > = 22 kV & < = 33 kV ; < = 15 MVA | D89: 711.8372812 | E89: 1 | F89: 0
A90: ED_REP221_00092 | C90: Ground Outdoor / Indoor Chamber Mounted; > = 22 kV & < = 33 kV ; > 15 MVA and < = 40 MVA | D90: 0 | E90: 0 | F90: 0
A91: ED_REP221_00093 | C91: Ground Outdoor / Indoor Chamber Mounted; > = 22 kV & < = 33 kV ; > 40 MVA | D91: 0 | E91: 0 | F91: 0
A92: ED_REP221_00094 | C92: Ground Outdoor / Indoor Chamber Mounted; > 33 kV & < = 66 kV ; < = 15 MVA | D92: 758.3549968 | E92: 1 | F92: 0
A93: ED_REP221_00095 | C93: Ground Outdoor / Indoor Chamber Mounted; > 33 kV & < = 66 kV ; > 15 MVA and < = 40 MVA | D93: 1100.498854 | E93: 0 | F93: 0
A94: ED_REP221_00096 | C94: Ground Outdoor / Indoor Chamber Mounted; > 33 kV & < = 66 kV ; > 40 MVA | D94: 0 | E94: 0 | F94: 0
A95: ED_REP221_00097 | C95: Ground Outdoor / Indoor Chamber Mounted; > 66 kV & < = 132 kV ; < = 100 MVA | D95: 0 | E95: 0 | F95: 0
A96: ED_REP221_00098 | C96: Ground Outdoor / Indoor Chamber Mounted; > 66 kV & < = 132 kV ; > 100 MVA | D96: 0 | E96: 0 | F96: 0
A97: ED_REP221_00099 | C97: Ground Outdoor / Indoor Chamber Mounted; > 132 kV ; < = 100 MVA | D97: 0 | E97: 0 | F97: 0
A98: ED_REP221_00100 | C98: Ground Outdoor / Indoor Chamber Mounted; > 132 kV ; > 100 MVA | D98: 0 | E98: 0 | F98: 0
A99: ED_REP221_00101 | C99: Other | D99: 0 | E99: 0 | F99: 0
A100: ED_REP221_00102 | B100: SWITCHGEAR BY: HIGHEST OPERATING VOLTAGE ; SWITCH FUNCTION | C100: ˂ = 11 kV ; FUSE | D100: 0 | E100: 0 | F100: 0
A101: ED_REP221_00103 | C101: ˂ = 11 kV ; Switch | D101: 231.8231065 | E101: 9 | F101: 9
A102: ED_REP221_00104 | C102: ˂ = 11 kV ; Circuit Breaker | D102: 181.3536039 | E102: 2 | F102: 1
A103: ED_REP221_00105 | C103: > 11 kV & < = 22 kV ; Switch | D103: 0 | E103: 0 | F103: 0
A104: ED_REP221_00106 | C104: > 11 kV & < = 22 kV ; Circuit Breaker | D104: 0 | E104: 0 | F104: 0
A105: ED_REP221_00107 | C105: > 22 kV & < = 33 kV ; Switch | D105: 686.3184336 | E105: 13 | F105: 0
A106: ED_REP221_00108 | C106: > 22 kV & < = 33 kV ; Circuit Breaker | D106: 1560.623721 | E106: 4 | F106: 0
A107: ED_REP221_00109 | C107: > 33 kV & < = 66 kV ; Switch | D107: 1333.000065 | E107: 17 | F107: 0
A108: ED_REP221_00110 | C108: > 33 kV & < = 66 kV ; Circuit Breaker | D108: 5333.507125 | E108: 12 | F108: 1
A109: ED_REP221_00111 | C109: > 66 kV & < = 132 kV ; Switch | D109: 0 | E109: 0 | F109: 0
A110: ED_REP221_00112 | C110: > 66 kV & < = 132 kV ; Circuit Breaker | D110: 0 | E110: 0 | F110: 0
A111: ED_REP221_00113 | C111: > 132 kV ; Switch | D111: 0 | E111: 0 | F111: 0
A112: ED_REP221_00114 | C112: > 132 kV ; Circuit Breaker | D112: 0 | E112: 0 | F112: 0
A113: ED_REP221_00115 | C113: Other | D113: 0 | E113: 0 | F113: 0
A114: ED_REP221_00116 | B114: PUBLIC LIGHTING BY: ASSET TYPE ; LIGHTING OBLIGATION | C114: Luminaires ; Major Road | D114: 0 | E114: 0 | F114: 0
A115: ED_REP221_00117 | C115: Luminaires ; Minor Road | D115: 0 | E115: 0 | F115: 0
A116: ED_REP221_00118 | C116: Brackets ; Major Road | D116: 0 | E116: 0 | F116: 0
A117: ED_REP221_00119 | C117: Brackets ; Minor Road | D117: 0 | E117: 0 | F117: 0
A118: ED_REP221_00120 | C118: Lamps ; Major Road | D118: 0 | E118: 0 | F118: 0
A119: ED_REP221_00121 | C119: Lamps ; Minor Road | D119: 0 | E119: 0 | F119: 0
A120: ED_REP221_00122 | C120: Poles / Columns ; Major Road | D120: 0 | E120: 0 | F120: 0
A121: ED_REP221_00123 | C121: Poles / Columns ; Minor Road | D121: 0 | E121: 0 | F121: 0
A122: ED_REP221_00124 | C122: Other | D122: 0 | E122: 0 | F122: 0
A123: ED_REP221_00125 | B123: SCADA, NETWORK CONTROL AND PROTECTION SYSTEMS BY: FUNCTION | C123: Field Devices | D123: 2068.001225 | E123: 16 | F123: 16
A124: ED_REP221_00126 | C124: Local Network Wiring Assets | D124: 0 | E124: 0 | F124: 0
A125: ED_REP221_00127 | C125: Communications Network Assets | D125: 2113.87896 | E125: 95 | F125: 63
A126: ED_REP221_00128 | C126: Master Station Assets | D126: 0 | E126: 0 | F126: 0
A127: ED_REP221_00129 | C127: Communications Site Infrastructure | D127: 0 | E127: 0 | F127: 0
A128: ED_REP221_00130 | C128: Communications Linear Assets | D128: 0 | E128: 0 | F128: 0
A129: ED_REP221_00131 | C129: AFLC | D129: 0 | E129: 0 | F129: 0
A130: ED_REP221_00124 | C130: Other | D130: 394.3634404 | E130: 11 | F130: 0
A131: ED_REP221_00132 | B131: OTHER BY: DNSP DEFINED | C131: ˂ ≈ 11 kV ; STOBIE Pole | D131: 14091.85438 | E131: 2031 | F131: 178
A132: ED_REP221_00133 | C132: > 11 kV & <≈ 33 kV ; STOBIE Pole | D132: 1209.906689 | E132: 196 | F132: 21
A133: ED_REP221_00134 | C133: > 33 kV & <≈ 66 kV ; STOBIE Pole | D133: 154.0093375 | E133: 17 | F133: 0
A134: ED_REP221_00135 | C134: Pole REFURBISHED; STOBIE Pole | D134: 2247.136242 | E134: 2563 | F134: 0
A135: ED_REP221_00136 | C135: POLE MOUNTED ; > 22 kV ; < ≈ 60 kVA | D135: 70.88524788 | E135: 6.492462312 | F135: 4
A136: ED_REP221_00137 | C136: POLE MOUNTED ; > 22 kV ; > 60 kVA and < ≈ 600 kVA | D136: 17.72131197 | E136: 1.623115578 | F136: 1
A137: ED_REP221_00138 | C137: KIOSK MOUNTED TRANSFORMER; > 22 kV ; > 60 kVA and < ≈ 600 kVA | D137: 0 | E137: 0 | F137: 0
A138: ED_REP221_00139 | C138: OTHER - Non Category Substation asset replacement/refurbishment | D138: 7344.825998 | E138: 87 | F138: 4
A139: ED_REP221_00140 | C139: Recloser ;SWITCHGEAR | D139: 1194.455262 | E139: 144 | F139: 71
A140: ED_REP221_00141 | C140: Sectionalizer ;SWITCHGEAR | D140: 79.55458451 | E140: 29 | F140: 29
A141: ED_REP221_00142 | C141: >= 11 kV & < ≈ 22 kV ; LOAD BREAK SWITCH; GROUND LEVEL (Switching Cubical);SWITCHGEAR | D141: 502.2849167 | E141: 41 | F141: 11
A142: ED_REP221_00143 | C142: > 22 kV & < ≈ 33 kV ; LOAD BREAK SWITCH; GROUND LEVEL (Switching Cubical);SWITCHGEAR | D142: 0 | E142: 0 | F142: 0
A143: ED_REP221_00144 | C143: 0 | D143: 0 | E143: 0 | F143: 0
A144: ED_REP221_00145 | C144: 0 | D144: 0 | E144: 0 | F144: 0
A145: ED_REP221_00146 | C145: 0 | D145: 0 | E145: 0 | F145: 0
A146: ED_REP221_00147 | C146: 0 | D146: 0 | E146: 0 | F146: 0

Sheet 2.3 Augex
B1: =Title -> REGULATORY REPORTING STATEMENT | K1: New line on new route - single circuit | L1: New line on new route - dual circuit | O1: Worksheet navigation
B2: =TradingName -> SA Power Networks
B3: =CONCATENATE("Category Analysis RIN response ",CRY) -> Category Analysis RIN response 2013-14
B4: 2.3 AUGEX PROJECT DATA
B7: TABLE 2.3.1 - AUGEX ASSET DATA - SUBTRANSMISSION SUBSTATIONS, SWITCHING STATIONS AND ZONE SUBSTATIONS
B8: NOTE: DNSP MUST PROVIDE EXPENDITURE INFORMATION ON A PROJECT CLOSE BASIS.
A9: AUG231 | B9: AUG231_1 | M9: AUG231_2 | N9: AUG231_3 | O9: AUG231_4 | P9: AUG231_5 | Q9: AUG231_6 | R9: ED_AUG231_00001 | S9: ED_AUG231_00002 | T9: ED_AUG231_00003 | U9: ED_AUG231_00004 | V9: ED_AUG231_00005 | W9: ED_AUG231_00006 | X9: ED_AUG231_00007 | Y9: ED_AUG231_00008 | Z9: ED_AUG231_00009 | AK9: ED_AUG231_00010 | AL9: ED_AUG231_00011 | AM9: ED_AUG231_00012 | AN9: ED_AUG231_00013 | AO9: ED_AUG231_00014 | AP9: ED_AUG231_00015 | AQ9: ED_AUG231_00016 | AR9: ED_AUG231_00017 | AS9: ED_AUG231_00018 | AT9: ED_AUG231_00019 | AU9: ED_AUG231_00020 | AV9: ED_AUG231_00021 | AW9: ED_AUG231_00022 | AX9: ED_AUG231_00023
B10: PROJECT DESCRIPTION AND CHANGES | V10: PLANT AND EQUIPMENT EXPENDITURE AND VOLUME | AP10: OTHER EXPENDITURE | AR10: TOTAL DIRECT EXPENDITURE ($000'S) | AS10: YEARS INCURRED | AT10: ALL RELATED PARTY CONTRACTS | AW10: LAND AND EASEMENTS
B11: SUBSTATION ID | M11: SUBSTATION TYPE | N11: PROJECT ID | O11: PROJECT TYPE | P11: PROJECT TRIGGER | Q11: VOLTAGE (KV) | R11: SUBSTATION RATING NORMAL CYCLIC (MVA) | T11: SUBSTATION RATING N-1 EMERGENCY (MVA) | V11: TRANSFORMERS | Y11: SWITCHGEAR | AK11: CAPACITORS | AM11: OTHER PLANT ITEM | AN11: INSTALLATION (LABOUR) | AP11: CIVIL WORKS | AQ11: OTHER DIRECT | AT11: RELATED PARTY MARGINS | AU11: TOTAL | AV11: ALL NON RELATED PARTYCONTRACTS | AW11: LAND PURCHASE | AX11: EASEMENTS
R12: PRE | S12: POST | T12: PRE | U12: POST | V12: UNITS ADDED | W12: MVA ADDED | X12: EXPENDITURE ($000'S) | Y12: UNITS ADDED | Z12: EXPENDITURE ($000'S) | AK12: MVAR ADDED | AL12: EXPENDITURE ($000'S) | AM12: EXPENDITURE ($000'S) | AN12: VOLUME | AO12: EXPENDITURE ($000'S) | AP12: EXPENDITURE ($000'S) | AT12: EXPENDITURE ($000'S) | AW12: EXPENDITURE ($000'S)
A13: AUG231_1 | B13: Bordertown Substation | M13: Zone substation | N13: NW-010229 | O13: Other | P13: Demand growth | Q13: 33/11kV | S13: 13.4 | U13: 7.2 | V13: 0 | W13: 0 | X13: 0 | Y13: 8 | Z13: 64.59414195 | AK13: 0 | AL13: 0 | AM13: 1225.630844 | AN13: 11789.65 | AO13: 1306.032943 | AP13: 881.2195221 | AQ13: 1707.752369 | AR13: =SUM(X13,Z13,AL13,AM13,AO13,AP13,AQ13) -> 5185.22982 | AS13: ='[3]NW-010229'!N78 -> 2010, 2011, 2012, 2013, 2014 | AV13: 2541.582932 | AW13: ='[3]NW-010229'!M18/1000 -> 0 | AX13: ='[3]NW-010229'!N18/1000 -> 0
A14: AUG231_2 | B14: Northfield Substation | M14: Subtransmission substation | N14: NW-010504 | O14: Other | P14: Demand growth | Q14: 275/66 | S14: 26.5 | U14: 15 | V14: 0 | W14: 0 | X14: 0 | Y14: 0 | Z14: 32.48803157 | AK14: 0 | AL14: 0 | AM14: 190.2360324 | AN14: 2914.636 | AO14: 290.9076259 | AP14: 16.24230264 | AQ14: 396.1205814 | AR14: =SUM(X14,Z14,AL14,AM14,AO14,AP14,AQ14) -> 925.9945739 | AS14: ='[3]NW-010504'!N78 -> 2010, 2011, 2012, 2013, 2014 | AV14: 356.6313922 | AW14: ='[3]NW-010504'!M105 -> 0 | AX14: ='[3]NW-010504'!N105 -> 0
A15: AUG231_3 | B15: Ingle Farm Substation | M15: Zone substation | N15: NW-010504 | O15: Other | P15: Demand growth | Q15: 66/11 | S15: 51.7 | U15: 26 | V15: 0 | W15: 0 | X15: 0 | Y15: 6 | Z15: 129.9521263 | AK15: 0 | AL15: 0 | AM15: 760.9441295 | AN15: 11658.544 | AO15: 1163.630503 | AP15: 64.96921055 | AQ15: 1584.482326 | AR15: 3703.978295 | AS15: ='[3]NW-010504'!N79 -> 2010, 2011, 2012, 2013, 2014 | AV15: 1426.525569 | AW15: ='[3]NW-010504'!M106 -> 0 | AX15: ='[3]NW-010504'!N106 -> 0
A16: AUG231_4 | B16: Mt Gambier North Substation | M16: Zone substation | N16: CP-012034 | O16: New substation establishment | P16: Demand growth | Q16: 33/11kV | S16: 17 | U16: 0 | V16: 1 | W16: 12.5 | X16: 401.0708884 | Y16: 3 | Z16: 184.1908578 | AK16: 0 | AL16: 0 | AM16: 710.1201261 | AN16: 6092.97 | AO16: 686.1627852 | AP16: 1573.245316 | AQ16: 1525.049379 | AR16: 5079.839352 | AS16: ='[3]CP-012034'!N78 -> 2010, 2011,2012,2013,2014 | AV16: 3031.39689 | AW16: ='[3]CP-012034'!M18/1000 -> 0 | AX16: ='[3]CP-012034'!N18/1000 -> 0
A17: AUG231_5 | AR17: 0
A18: AUG231_6 | AR18: 0
A19: AUG231_7 | AR19: 0
A20: AUG231_8 | AR20: 0
A21: AUG231_9 | AR21: 0
A22: AUG231_10 | AR22: 0
A23: AUG231_11 | AR23: 0
A24: AUG231_12 | AR24: 0
A25: AUG231_13 | AR25: 0
A26: AUG231_14 | AR26: 0
A27: AUG231_15 | AR27: 0
A28: AUG231_16 | AR28: 0
A29: AUG231_17 | AR29: 0
A30: AUG231_18 | AR30: 0
A31: AUG231_19 | AR31: 0
A32: AUG231_20 | AR32: 0
A33: AUG231_21 | AR33: 0
A34: AUG231_22 | AR34: 0
A35: AUG231_23 | AR35: 0
A36: AUG231_24 | AR36: 0
A37: AUG231_25 | AR37: 0
A38: AUG231_26 | AR38: 0
A39: AUG231_27 | AR39: 0
A40: AUG231_28 | AR40: 0
A41: AUG231_29 | AR41: 0
A42: AUG231_30 | AR42: 0
A43: AUG231_31 | AR43: 0
A44: AUG231_32 | AR44: 0
A45: AUG231_33 | AR45: 0
A46: AUG231_34 | AR46: 0
A47: AUG231_35 | AR47: 0
A48: AUG231_36 | AR48: 0
A49: AUG231_37 | AR49: 0
A50: AUG231_38 | AR50: 0
A51: AUG231_39 | AR51: 0
A52: AUG231_40 | AR52: 0
A53: AUG231_41 | AR53: 0
A54: AUG231_42 | AR54: 0
A55: AUG231_43 | AR55: 0
A56: AUG231_44 | AR56: 0
A57: AUG231_45 | AR57: 0
A58: AUG231_46 | AR58: 0
A59: AUG231_47 | AR59: 0
A60: AUG231_48 | AR60: 0
A61: AUG231_49 | AR61: 0
A62: AUG231_50 | AR62: 0
A63: AUG231_51 | AR63: 0
A64: AUG231_52 | AR64: 0
N65: Non material projects - [actual] | AQ65: 31626.7309 | AR65: 31627 | AS65: 2013, 2014 | AW65: 1501 | AX65: 0
N66: Non material projects - [forecast]
A68: AUG232 | B68: AUG232_1 | C68: AUG232_2 | D68: AUG232_3 | E68: AUG232_4 | F68: AUG232_5 | G68: AUG232_6 | H68: AUG232_7 | I68: AUG232_8 | J68: AUG232_9 | K68: AUG232_10 | L68: AUG232_11 | M68: AUG232_2 | N68: AUG232_3 | O68: AUG232_4 | P68: AUG232_5 | Q68: AUG232_6 | R68: ED_AUG232_00001 | S68: ED_AUG232_00002 | T68: ED_AUG232_00003 | U68: ED_AUG232_00004 | V68: ED_AUG232_00005 | W68: ED_AUG232_00006 | X68: ED_AUG232_00007 | Y68: ED_AUG232_00008 | Z68: ED_AUG232_00009 | AK68: ED_AUG232_00010 | AL68: ED_AUG232_00011 | AM68: ED_AUG232_00012 | AN68: ED_AUG232_00013 | AO68: ED_AUG232_00014 | AP68: ED_AUG232_00015 | AQ68: ED_AUG232_00016 | AR68: ED_AUG232_00017 | AS68: ED_AUG232_00018 | AT68: ED_AUG232_00019 | AU68: ED_AUG232_00020 | AV68: ED_AUG232_00021
B69: TABLE 2.3.2 - AUGEX ASSET DATA - SUBTRANSMISSION LINES
B70: NOTE: DNSP MUST PROVIDE EXPENDITURE INFORMATION ON A PROJECT CLOSE BASIS.
B71: PROJECT DESCRIPTION AND CHANGES | R71: PLANT AND EQUIPMENT EXPENDITURE AND VOLUME | AN71: OTHER EXPENDITURE | AP71: TOTAL DIRECT EXPENDITURE ($000'S) | AQ71: YEARS INCURRED | AR71: ALL RELATED PARTY CONTRACTS | AU71: LAND AND EASEMENTS
B72: LINE ID | M72: PROJECT ID | N72: PROJECT TYPE | O72: PROJECT TRIGGER | P72: VOLTAGE (KV) | Q72: ROUTE LINE LENGTH ADDED | R72: POLES/TOWERS (INCLUDING STRUCTURES, AND CIVIL WORKS) | U72: OVERHEAD LINES | X72: UNDERGROUND CABLES | AK72: OTHER PLANT ITEM | AL72: INSTALLATION (LABOUR) | AN72: CIVIL WORKS | AO72: OTHER DIRECT | AR72: RELATED PARTY MARGINS | AS72: TOTAL | AT72: ALL NON RELATED PARTYCONTRACTS | AU72: LAND PURCHASE | AV72: EASEMENTS
Q73: KM ADDED | R73: POLES/TOWERS ADDED | S73: POLES/TOWERS UPGRADED | T73: EXPENDITURE ($000'S) | U73: CIRCUIT KM ADDED | V73: CIRCUIT KM UPGRADED | W73: EXPENDITURE ($000'S) | X73: CIRCUIT KM ADDED | Y73: CIRCUIT KM UPGRADED | Z73: EXPENDITURE ($000'S) | AK73: EXPENDITURE ($000'S) | AL73: VOLUME | AM73: EXPENDITURE ($000'S) | AN73: EXPENDITURE ($000'S) | AR73: EXPENDITURE ($000'S) | AU73: EXPENDITURE ($000'S)
A74: AUG232_1 | B74: Northfield-Ingle Farm 66kV #2 | M74: NW-010504 | N74: Other | O74: Demand growth | P74: 66 | Q74: ='[3]NW-010504'!E86 -> 3.999 | R74: 0 | S74: 0 | T74: 206.7690761 | U74: 0 | V74: 0 | W74: 109.0724381 | X74: 0 | Y74: 0 | Z74: 633.4242588 | AK74: 0 | AL74: 6426.48 | AM74: 585.7846752 | AN74: 0 | AO74: 0 | AP74: =SUM(T74,W74,Z74,AK74,AM74,AN74,AO74) -> 1535.050448 | AQ74: ='[3]NW-010504'!N78 -> 2010, 2011, 2012, 2013, 2014 | AT74: ='[3]NW-010504'!L34/1000 -> 0 | AU74: ='[3]NW-010504'!M34/1000 -> 0 | AV74: ='[3]NW-010504'!N34/1000 -> 0 | AX74: New line on new route - single circuit
A75: AUG232_2 | B75: Glencoe Tee to Mt Gambier North to Mt Gambier, SD-481(03) | M75: CP-012034 | N75: Line upgrade - capacity | O75: Demand growth | P75: Other | Q75: 0 | R75: 0 | S75: 0 | T75: 39.21495599 | U75: 0 | V75: 5.2 | W75: 29.47692675 | X75: 0 | Y75: 0 | Z75: 17.89512424 | AK75: 0 | AL75: 2655.15 | AM75: 261.3370269 | AN75: 0 | AO75: 0 | AP75: 347.9240339 | AQ75: ='[3]CP-012034'!N78 -> 2010, 2011,2012,2013,2014 | AT75: ='[3]CP-012034'!L34/1000 -> 0 | AU75: ='[3]CP-012034'!M34/1000 -> 0 | AV75: ='[3]CP-012034'!N34/1000 -> 0 | AX75: New line on new route - dual circuit
A76: AUG232_3 | AP76: 0 | AX76: New line on new route - other
A77: AUG232_4 | AP77: 0 | AX77: Line rebuild over existing route - single circuit
A78: AUG232_5 | AP78: 0 | AX78: Line rebuild over existing route - dual circuit
A79: AUG232_6 | AP79: 0 | AX79: Reconductor - Single circuit
A80: AUG232_7 | AP80: 0 | AX80: Reconductor - Dual circuit
A81: AUG232_8 | AP81: 0 | AX81: Reconductor - Other
A82: AUG232_9 | AP82: 0 | AX82: Line upgrade - raising/retensoring
A83: AUG232_10 | AP83: 0 | AX83: Line upgrade - voltage upgrade
A84: AUG232_11 | AP84: 0 | AX84: Line upgrade - capacity
A85: AUG232_12 | AP85: 0 | AX85: String spare circuit
A86: AUG232_13 | AP86: 0 | AX86: Other
A87: AUG232_14 | AP87: 0
A88: AUG232_15 | AP88: 0
A89: AUG232_16 | AP89: 0
A90: AUG232_17 | AP90: 0
A91: AUG232_18 | AP91: 0
A92: AUG232_19 | AP92: 0
A93: AUG232_20 | AP93: 0
A94: AUG232_21 | AP94: 0
A95: AUG232_22 | AP95: 0
A96: AUG232_23 | AP96: 0
A97: AUG232_24 | AP97: 0
A98: AUG232_25 | AP98: 0
A99: AUG232_26 | AP99: 0
A100: AUG232_27 | AP100: 0
A101: AUG232_28 | AP101: 0
A102: AUG232_29 | AP102: 0
A103: AUG232_30 | AP103: 0
A104: AUG232_31 | AP104: 0
A105: AUG232_32 | AP105: 0
A106: AUG232_33 | AP106: 0
A107: AUG232_34 | AP107: 0
A108: AUG232_35 | AP108: 0
A109: AUG232_36 | AP109: 0
A110: AUG232_37 | AP110: 0
A111: AUG232_38 | AP111: 0
A112: AUG232_39 | AP112: 0
A113: AUG232_40 | AP113: 0
A114: AUG232_41 | AP114: 0
A115: AUG232_42 | AP115: 0
A116: AUG232_43 | AP116: 0
A117: AUG232_44 | AP117: 0
A118: AUG232_45 | AP118: 0
A119: AUG232_46 | AP119: 0
A120: AUG232_47 | AP120: 0
A121: AUG232_48 | AP121: 0
A122: AUG232_49 | AP122: 0
A123: AUG232_50 | AP123: 0
A124: AUG232_51 | AP124: 0
A125: AUG232_52 | AP125: 0
A126: AUG232_53 | AP126: 0
A127: AUG232_54 | AP127: 0
M128: Non material projects - [actual] | AO128: 8426 | AU128: -445 | AV128: 14
M129: Non material projects - [forecast]
B132: TABLE 2.3.3 - AUGEX DATA - HV/LV FEEDERS AND DISTRIBUTION SUBSTATIONS
B133: NOTE: DNSP MUST PROVIDE EXPENDITURE INFORMATION ON AN AS INCURRED BASIS.
B134: Table 2.3.3.1 Descriptor Metrics
M137: UNITS ADDED | N137: UNITS ADDED | O137: UNITS ADDED | P137: UNITS ADDED | Q137: UNITS ADDED | AK137: UNITS UPGRADED | AL137: UNITS UPGRADED | AM137: UNITS UPGRADED | AN137: UNITS UPGRADED | AO137: UNITS UPGRADED
B138: PROJECT TYPE | M138: =Years -> 2013-14 | N138: 0 | O138: 0 | P138: 0 | Q138: 0 | Z138: PROJECT TYPE | AB138: DNSP NAME | AC138: SERVICE CATEGORY | AD138: SERVICE SUB-CATEGORY | AE138: ASSET CATEGORY | AF138: ASSET SUB-CATEGORY | AG138: DATA TYPE | AH138: MEASUREMENT | AI138: DENOMINATION | AK138: =Years -> 2013-14 | AL138: 0 | AM138: 0 | AN138: 0 | AO138: 0
A139: ED_AUG2331_00001 | B139: HV Feeder Augmentations - Overhead Lines (Circuit Line Length in KM) | M139: 0 | Y139: ED_AUG2333_00001 | Z139: HV Feeder Augmentations - Overhead Lines (Circuit Line Length in KM) | AB139: DNSP NAME | AC139: AUGMENTATION | AD139: HV FEEDER PROJECTS | AE139: HV FEEDERS | AF139: OVERHEAD | AG139: DESCRIPTOR METRIC | AH139: KM UPGRADED | AI139: 000'S | AK139: 1.2
A140: ED_AUG2331_00002 | B140: HV Feeder Augmentations - Underground Cables (Circuit Line Length in KM) | M140: 0.2 | Y140: ED_AUG2333_00002 | Z140: HV Feeder Augmentations - Underground Cables (Circuit Line Length in KM) | AB140: DNSP NAME | AC140: AUGMENTATION | AD140: HV FEEDER PROJECTS | AE140: HV FEEDERS | AF140: UNDERGROUND | AG140: DESCRIPTOR METRIC | AH140: KM UPGRADED | AI140: 000'S | AK140: 1
A141: ED_AUG2331_00003 | B141: LV Feeder Augmentations - Overhead Lines (Circuit Line Length in KM) | M141: 0.123 | Y141: ED_AUG2333_00003 | Z141: LV Feeder Augmentations - Overhead Lines (Circuit Line Length in KM) | AB141: DNSP NAME | AC141: AUGMENTATION | AD141: LV FEEDER PROJECTS | AE141: HV FEEDERS | AF141: OVERHEAD | AG141: DESCRIPTOR METRIC | AH141: KM UPGRADED | AI141: 000'S | AK141: 0.699
A142: ED_AUG2331_00004 | B142: LV Feeder Augmentations - Underground Cables (Circuit Line Length in KM) | M142: 0 | Y142: ED_AUG2333_00004 | Z142: LV Feeder Augmentations - Underground Cables (Circuit Line Length in KM) | AB142: DNSP NAME | AC142: AUGMENTATION | AD142: LV FEEDER PROJECTS | AE142: HV FEEDERS | AF142: UNDERGROUND | AG142: DESCRIPTOR METRIC | AH142: KM UPGRADED | AI142: 000'S | AK142: 0
A143: ED_AUG2331_00005 | B143: Distribution Substation Augmentations - Pole Mounted | M143: 78 | Y143: ED_AUG2333_00005 | Z143: Distribution Substation Augmentations - Pole Mounted | AB143: DNSP NAME | AC143: AUGMENTATION | AD143: SUBSTATION AUGMENTATIONS | AE143: SUBSTATIONS | AF143: POLE MOUNTED | AG143: DESCRIPTOR METRIC | AH143: VOLUME UPGRADED | AI143: 000'S | AK143: 108
A144: ED_AUG2331_00006 | B144: Distribution Substation Augmentations - Ground Mounted | M144: 13 | Y144: ED_AUG2333_00006 | Z144: Distribution Substation Augmentations - Ground Mounted | AB144: DNSP NAME | AC144: AUGMENTATION | AD144: SUBSTATION AUGMENTATIONS | AE144: SUBSTATIONS | AF144: GROUND MOUNTED | AG144: DESCRIPTOR METRIC | AH144: VOLUME UPGRADED | AI144: 000'S | AK144: 14
A145: ED_AUG2331_00007 | B145: Distribution Substation Augmentations - Indoor | M145: 0 | Y145: ED_AUG2333_00007 | Z145: Distribution Substation Augmentations - Indoor | AB145: DNSP NAME | AC145: AUGMENTATION | AD145: SUBSTATION AUGMENTATIONS | AE145: SUBSTATIONS | AF145: INDOOR | AG145: DESCRIPTOR METRIC | AH145: VOLUME UPGRADED | AI145: 000'S | AK145: 0
B147: Table 2.3.3.2 Cost Metrics
M150: TOTAL DIRECT EXPENDITURE ($000's) | N150: TOTAL DIRECT EXPENDITURE ($000) | O150: TOTAL DIRECT EXPENDITURE ($000) | P150: TOTAL DIRECT EXPENDITURE ($000) | Q150: TOTAL DIRECT EXPENDITURE ($000)
B151: PROJECT TYPE | M151: =Years -> 2013-14 | N151: 0 | O151: 0 | P151: 0 | Q151: 0
A152: ED_AUG2332_00001 | B152: HV Feeder Augmentations - Overhead Lines | M152: 90.04030692
A153: ED_AUG2332_00002 | B153: HV Feeder Augmentations - Underground Cables | M153: 496.8489225
A154: ED_AUG2332_00003 | B154: HV Feeder Non-Material Projects | M154: 4073.510271
A155: ED_AUG2332_00004 | B155: LV Feeder Augmentations - Overhead Lines | M155: 279.882623
A156: ED_AUG2332_00005 | B156: LV Feeder Augmentations - Underground Cables | M156: 0
A157: ED_AUG2332_00006 | B157: LV Feeder Non-Material Projects | M157: 2425.6494
A158: ED_AUG2332_00007 | B158: Distribution Substation Augmentations - Pole Mounted | M158: 3366.157592
A159: ED_AUG2332_00008 | B159: Distribution Substation Augmentations - Ground Mounted | M159: 513.1139352
A160: ED_AUG2332_00009 | B160: Distribution Substation Augmentations - Indoor | M160: 0
B168: TABLE 2.3.4 - AUGEX DATA - TOTAL EXPENDITURE
B170: AS INCURRED ($000's) | M170: =Years -> 2013-14 | N170: 0 | O170: 0 | P170: 0 | Q170: 0
B171: AUGMENTATION CAPEX | M171: Expenditure ($000's) | N171: Expenditure ($000's) | O171: Expenditure ($000's) | P171: Expenditure ($000's) | Q171: Expenditure ($000's)
A172: ED_AUG234_00001 | B172: Subtransmission Substations, Switching Stations, Zone Substations | M172: 57841.23448 | N172: 71083.88939 | O172: 57955.46557 | P172: 52247.39458 | Q172: 41900.94965
A173: ED_AUG234_00002 | B173: Subtransmission Lines | M173: 10424.00452 | N173: 27358.06424 | O173: 12990.61252 | P173: 10581.1499 | Q173: 9425.253806
A174: ED_AUG234_00003 | B174: HV Feeders | M174: 4660.2535 | N174: 33123.55587 | O174: 32531.51908 | P174: 53870.6688 | Q174: 54323.56439
A175: ED_AUG234_00004 | B175: HV Feeders - Land Purchases and Easements | M175: 0 | N175: 0 | O175: 0 | P175: 0 | Q175: 0
A176: ED_AUG234_00005 | B176: Distribution Substations | M176: 3878.496527 | N176: 11149.89743 | O176: 13130.04214 | P176: 14613.64282 | Q176: 12708.52275
A177: ED_AUG234_00006 | B177: Distribution Substations - Land Purchases And Easements | M177: 0 | N177: 0 | O177: 0 | P177: 0 | Q177: 0
A178: ED_AUG234_00007 | B178: LV Feeders | M178: 2705.253023 | N178: 1905.285112 | O178: 2440.497866 | P178: 2398.729119 | Q178: 3027.248054
A179: ED_AUG234_00008 | B179: LV Feeders - Land Purchases And Easements | M179: 0 | N179: 0 | O179: 0 | P179: 0 | Q179: 0
A180: ED_AUG234_00009 | B180: Other Assets | M180: 3498.869084

Sheet 2.5 Connections
B1: =Title -> REGULATORY REPORTING STATEMENT
B2: =TradingName -> SA Power Networks
B3: =CONCATENATE("Category Analysis RIN response ",CRY) -> Category Analysis RIN response 2013-14
B4: 2.5 CONNECTIONS
B9: TABLE 2.5.1 DESCRIPTOR METRICS | F9: TABLE 2.5.2 COST METRICS BY CONNECTION CLASSIFICATION
B10: <<<GROUP-ROW>>>
D12: VOLUMES AND EXPENDITURE | H12: EXPENDITURE ($000s) | J12: VOLUMES (000s)
B13: CONNECTION SUBCATEGORY | C13: DESCRIPTOR METRIC | D13: =CRY -> 2013-14 | F13: CONNECTION SUBCATEGORY | G13: CONNECTION CLASSICIATION | H13: =CRY -> 2013-14 | J13: =CRY -> 2013-14
A14: ED_CON251_00001 | B14: RESIDENTIAL | C14: Underground connections (000's) | D14: 8.945 | E14: ED_CON252_00001 | F14: RESIDENTIAL | G14: Simple connection LV | H14: 4232 | I14: ED_CON253_00001 | J14: 9.158
A15: ED_CON251_00002 | C15: Overhead connections (000's) | D15: 0.329 | E15: ED_CON252_00002 | G15: Complex connection LV | H15: 2369 | I15: ED_CON253_00002 | J15: 0.116
A16: ED_CON251_00003 | C16: Distribution substation installed (MVA added) | D16: 2.106 | E16: ED_CON252_00003 | G16: Complex connection HV | H16: 0 | I16: ED_CON253_00003 | J16: 0
A17: ED_CON251_00004 | C17: Distribution substations installed (000's) | D17: 0.03 | E17: ED_CON252_00004 | F17: COMMERCIAL/INDUSTRIAL | G17: Simple connection LV | H17: 545 | I17: ED_CON253_00004 | J17: 0.986
A18: ED_CON251_00005 | C18: Distribution substation installed (total spend $000's) | D18: 621 | E18: ED_CON252_00005 | G18: Complex connection HV (customer connected at LV, minor HV works) | H18: 25996 | I18: ED_CON253_00005 | J18: 0.17
A19: ED_CON251_00006 | C19: Augmentation HV (net circuit KM added) | D19: 11.022 | E19: ED_CON252_00006 | G19: Complex connection HV (customer connected at LV, upstream asset works) | H19: 11560 | I19: ED_CON253_00006 | J19: 0.012
A20: ED_CON251_00007 | C20: Augmentation HV (total spend $000's) | D20: 1283.173 | E20: ED_CON252_00007 | G20: Complex connection HV (customer connected at HV) | H20: 2886 | I20: ED_CON253_00007 | J20: 0.005
A21: ED_CON251_00008 | C21: Augmentation LV (net circuit KM added) | D21: 1.66 | E21: ED_CON252_00008 | G21: Complex connection sub-transmission | H21: 11261 | I21: ED_CON253_00008 | J21: 0
A22: ED_CON251_00009 | C22: Augmentation LV (total spend $000's) | D22: 222.193 | E22: ED_CON252_00009 | F22: SUBDIVISION | G22: Complex connection LV | H22: 4224 | I22: ED_CON253_00009 | J22: 0.065
A23: ED_CON251_00010 | C23: Mean days to connect residential customer with LV single phase connection (0's) | D23: 21.6 | E23: ED_CON252_00010 | G23: Complex connection HV (no upstream asset works) | H23: 6629 | I23: ED_CON253_00010 | J23: 0.105
A24: ED_CON251_00011 | C24: Volume of GSL breaches for residential customers (0's) | D24: 122 | E24: ED_CON252_00011 | G24: Complex connection HV (with upstream asset works) | H24: 1254 | I24: ED_CON253_00011 | J24: 0.008
A25: ED_CON251_00012 | C25: Volume of customer complaints relating to connection services (0's) | D25: 76 | E25: ED_CON252_00012 | F25: EMBEDDED GENERATION | G25: Simple connection LV | H25: 0 | I25: ED_CON253_00012 | J25: 24.144
A26: ED_CON251_00013 | C26: GSL payments ($000's) | D26: 30.84 | E26: ED_CON252_00013 | G26: Complex connection HV (small capacity) | H26: 727 | I26: ED_CON253_00013 | J26: 0.061
A27: ED_CON251_00014 | B27: COMMERCIAL/INDUSTRIAL | C27: Underground connections (000's) | D27: 0.998 | E27: ED_CON252_00014 | G27: Complex connection HV (large capacity) | H27: 1186 | I27: ED_CON253_00014 | J27: 0.002
A28: ED_CON251_00015 | C28: Overhead connections (000's) | D28: 0.175
A29: ED_CON251_00016 | C29: Distribution substation installed (MVA added) | D29: 78.961
A30: ED_CON251_00017 | C30: Distribution substations installed (000's) | D30: 0.191
A31: ED_CON251_00018 | C31: Distribution substation installed total spend ($000's) | D31: 8857
A32: ED_CON251_00019 | C32: Augmentation HV (net circuit KM added) | D32: 36.256
A33: ED_CON251_00020 | C33: Augmentation HV (total spend $000's) | D33: 5292.4
A34: ED_CON251_00021 | C34: Augmentation LV (net circuit KM added) | D34: 5.716
A35: ED_CON251_00022 | C35: Augmentation LV (total spend $000's) | D35: 1501
A36: ED_CON251_00023 | B36: SUBDIVISION | C36: Underground connections (000's) | D36: 0.169
A37: ED_CON251_00024 | C37: Overhead connections (000's) | D37: 0.009
A38: ED_CON251_00025 | C38: Distribution substation installed (MVA added) | D38: 21.667
A39: ED_CON251_00026 | C39: Distribution substations installed (000's) | D39: 0.079
A40: ED_CON251_00027 | C40: Distribution substation installed (total spend $000's) | D40: 3060
A41: ED_CON251_00028 | C41: Augmentation HV (net circuit KM added) | D41: 6.343
A42: ED_CON251_00029 | C42: Augmentation HV (total spend $000's) | D42: 865.11
A43: ED_CON251_00030 | C43: Augmentation LV (net circuit KM added) | D43: 7.94
A44: ED_CON251_00031 | C44: Augmentation LV (total spend $000's) | D44: 1690
A45: ED_CON251_00032 | C45: Cost per lot ($) | D45: 2380
A46: ED_CON251_00033 | B46: EMBEDDED GENERATION | C46: Underground connections (000's) | D46: 23.35
A47: ED_CON251_00034 | C47: Overhead connections (000's) | D47: 0.857
A48: ED_CON251_00035 | C48: Distribution substation installed (MVA added) | D48: 0
A49: ED_CON251_00036 | C49: Distribution substations installed (000's) | D49: 0
A50: ED_CON251_00037 | C50: Distribution substation installed (total spend $000's) | D50: 0
A51: ED_CON251_00038 | C51: Augmentation HV (net circuit KM added) | D51: 0
A52: ED_CON251_00039 | C52: Augmentation HV (total spend $000's) | D52: 0
A53: ED_CON251_00040 | C53: Augmentation LV (net circuit KM added) | D53: 0
A54: ED_CON251_00041 | C54: Augmentation LV (total spend $000's) | D54: 0

Sheet 2.6 Non-network
B1: =Title -> REGULATORY REPORTING STATEMENT
B2: =TradingName -> SA Power Networks
B3: =CONCATENATE("Category Analysis RIN response ",CRY) -> Category Analysis RIN response 2013-14
B4: 2.6 NON NETWORK EXPENDITURE
B9: TABLE 2.6.1 NON-NETWORK EXPENDITURE | G9: TABLE 2.6.2 ANNUAL DESCRIPTOR METRICS - IT & COMMUNICATIONS EXPENDITURE | K9: TABLE 2.6.3 ANNUAL DESCRIPTOR METRICS - MOTOR VEHICLES
B10: <<<GROUP-ROW>>>
E12: EXPENDITURE ($000's) | I12: VOLUMES | L12: ASSET REPORTING CATEGORY | N12: VOLUMES / %
A13: ED_NON261_00001 | B13: SERVICE SUBCATEGORY | C13: ASSET CATEGORY | D13: ASSET REPORTING CATEGORY | E13: =CRY -> 2013-14 | G13: NON-NETWORK CATEGORY | H13: DESCRIPTOR METRIC | I13: =CRY -> 2013-14 | K13: NON-NETWORK CATEGORY | L13: ASSET CATEGORY | M13: DESCRIPTOR METRIC | N13: =CRY -> 2013-14
A14: ED_NON261_00002 | B14: IT & COMMUNICATIONS | C14: Client device expenditure | D14: Opex | E14: 1822 | F14: ED_NON262_00001 | G14: IT & COMMUNICATIONS | H14: Employee numbers | I14: 1923.6 | J14: ED_NON263_00001 | K14: MOTOR VEHICLES | L14: CAR | M14: Average kilometres travelled (000's) | N14: 18780
A15: ED_NON261_00003 | D15: Capex | E15: 2131 | F15: ED_NON262_00002 | H15: User numbers | I15: 1807 | J15: ED_NON263_00002 | M15: Number purchased | N15: 37
A16: ED_NON261_00004 | C16: Recurrent expenditure | D16: Opex | E16: 13271 | F16: ED_NON262_00003 | H16: Number of devices | I16: 4505 | J16: ED_NON263_00003 | M16: Number leased | N16: 2
A17: ED_NON261_00005 | D17: Capex | E17: 16080 | J17: ED_NON263_00004 | M17: Number in fleet | N17: 158
A18: ED_NON261_00006 | C18: Non-recurrent expenditure | D18: Opex | E18: 593 | J18: ED_NON263_00005 | M18: Proportion of total fleet expenditure allocated as regulatory expenditure (%) | N18: 0.8876412408
A19: ED_NON261_00007 | D19: Capex | E19: 9427 | J19: ED_NON263_00006 | L19: LIGHT COMMERCIAL VEHICLE | M19: Average kilometres travelled (000's) | N19: 22168
A20: ED_NON261_00008 | B20: MOTOR VEHICLES | C20: Car | D20: Opex | E20: 1039 | J20: ED_NON263_00007 | M20: Number purchased | N20: 128
A21: ED_NON261_00009 | D21: Capex | E21: 1619 | J21: ED_NON263_00008 | M21: Number leased | N21: 23
A22: ED_NON261_00010 | C22: Light commercial vehicle | D22: Opex | E22: 4573 | J22: ED_NON263_00009 | M22: Number in fleet | N22: 440
A23: ED_NON261_00011 | D23: Capex | E23: 4596 | J23: ED_NON263_00010 | M23: Proportion of total fleet expenditure allocated as regulatory expenditure (%) | N23: 0.8611612732
A24: ED_NON261_00012 | C24: Elevated work platform (LCV) | D24: Opex | J24: ED_NON263_00011 | L24: ELEVATED WORK PLATFORM (LCV) | M24: Average kilometres travelled (000's) | N24: 0
A25: ED_NON261_00013 | D25: Capex | J25: ED_NON263_00012 | M25: Number purchased | N25: 0
A26: ED_NON261_00014 | C26: Elevated work platform (HCV) | D26: Opex | E26: 5220 | J26: ED_NON263_00013 | M26: Number leased | N26: 0
A27: ED_NON261_00015 | D27: Capex | E27: 10925 | J27: ED_NON263_00014 | M27: Number in fleet | N27: 0
A28: ED_NON261_00016 | C28: Heavy commercial vehicle | D28: Opex | E28: 1007 | J28: ED_NON263_00015 | M28: Proportion of total fleet expenditure allocated as regulatory expenditure (%) | N28: 0
A29: ED_NON261_00017 | D29: Capex | E29: 1343 | J29: ED_NON263_00016 | L29: ELEVATED WORK PLATFORM (HCV) | M29: Average kilometres travelled (000's) | N29: 17045
A30: ED_NON261_00018 | B30: BUILDINGS AND PROPERTY | C30: Total buildings and property expenditure | D30: Opex | E30: 3332 | J30: ED_NON263_00017 | M30: Number purchased | N30: 20
A31: ED_NON261_00019 | D31: Capex | E31: 10921 | J31: ED_NON263_00018 | M31: Number leased | N31: 2
A32: ED_NON261_00020 | B32: OTHER | C32: Other expenditure | D32: Opex | E32: 5453 | J32: ED_NON263_00019 | M32: Number in fleet | N32: 117
A33: ED_NON261_00021 | D33: Capex | E33: 31798 | J33: ED_NON263_00020 | M33: Proportion of total fleet expenditure allocated as regulatory expenditure (%) | N33: 0.9053966028
A34: ED_NON261_00022 | B34: OTHER - DNSP nominated | C34: Network Telephony (A80) | D34: Opex | E34: 3264 | J34: ED_NON263_00021 | L34: HEAVY COMMERCIAL VEHICLE | M34: Average kilometres travelled (000's) | N34: 35773
A35: ED_NON261_00023 | D35: Capex | J35: ED_NON263_00022 | M35: Number purchased | N35: 7
A36: ED_NON261_00024 | C36: Cranes | D36: Opex | E36: 1382 | J36: ED_NON263_00023 | M36: Number leased | N36: 0
A37: ED_NON261_00025 | D37: Capex | E37: 3285 | J37: ED_NON263_00024 | M37: Number in fleet | N37: 29
A38: ED_NON261_00026 | C38: Trailers | D38: Opex | E38: 650 | J38: ED_NON263_00025 | M38: Proportion of total fleet expenditure allocated as regulatory expenditure (%) | N38: 0.8782551824
A39: ED_NON261_00027 | D39: Capex | E39: 793
A40: ED_NON261_00028 | C40: Other Commercial Vehicles | D40: Opex | E40: 157
A41: ED_NON261_00029 | D41: Capex | E41: 598
A42: ED_NON261_00030 | C42: ADMS | D42: Opex
A43: ED_NON261_00031 | D43: Capex | E43: 8997
A44: ED_NON261_00032 | C44: Feeder Automation | D44: Opex
A45: ED_NON261_00033 | D45: Capex | E45: 2340
A46: ED_NON261_00034 | C46: Vegetation Management Data - Central Region | D46: Opex
A47: ED_NON261_00035 | D47: Capex | E47: 1319
A48: ED_NON261_00036 | C48: Conductor & Other Asset Condition | D48: Opex
A49: ED_NON261_00037 | D49: Capex | E49: 1146
A50: ED_NON261_00038 | C50: Pole Asset Condition | D50: Opex
A51: ED_NON261_00039 | D51: Capex | E51: 1144
A52: ED_NON261_00040 | C52: Other Network Strategic | D52: Opex
A53: ED_NON261_00041 | D53: Capex | E53: 6549
A54: ED_NON261_00042 | C54: Non Network Other & Plant & Tools | D54: Opex
A55: ED_NON261_00043 | D55: Capex | E55: 5627

Sheet 2.7 Vegetation management
B1: =Title -> REGULATORY REPORTING STATEMENT
B2: =TradingName -> SA Power Networks
B3: =CONCATENATE("Category Analysis RIN response ",CRY) -> Category Analysis RIN response 2013-14
B4: 2.7 VEGETATION MANAGEMENT
B6: TABLE 2.7.3 - DESCRIPTOR METRICS ACROSS ALL ZONES - UNPLANNED VEGETATION EVENTS | I6: TABLE 2.7.1 - DESCRIPTOR METRICS BY ZONE | N6: TABLE 2.7.2 - EXPENDITURE METRICS BY ZONE
C9: VOLUMES | D9: VOLUMES | E9: VOLUMES | F9: VOLUMES | G9: VOLUMES | L9: VOLUMES | P9: EXPENDITURE ($000s)
B10: DESCRIPTOR METRIC | C10: =Years -> 2013-14 | D10: 0 | E10: 0 | F10: 0 | G10: 0 | I10: ZONES | J10: ASSET | K10: ASSET SUBCATEGORY | L10: =CRY -> 2013-14 | N10: ZONES | O10: SERVICE SUBCATEGORY | P10: =CRY -> 2013-14
A11: ED_VEG273_00001 | B11: Number of fire starts caused by vegetation grow-ins (NSP responsibility) (0's) | C11: 3 | H11: ED_VEG271_00001 | I11: ZONE (DNSP to nominate) | J11: Route line length within zone (KM) | K11: Urban and CBD | M11: ED_VEG272_00001 | N11: =I11 -> ZONE (DNSP to nominate) | O11: Tree trimming (excluding hazard trees)
A12: ED_VEG273_00002 | B12: Number of fire starts caused by vegetation blow-ins and fall-ins (NSP responsibility) (0's) | C12: 13 | H12: ED_VEG271_00002 | K12: Rural | M12: ED_VEG272_00002 | O12: Hazard tree cutting
A13: ED_VEG273_00003 | B13: Number of fire starts caused by vegetation grow-ins (other party responsibility) (0's) | H13: ED_VEG271_00003 | J13: Number of maintenance spans (0's) | K13: Urban and CBD | M13: ED_VEG272_00003 | O13: Ground clearance
A14: ED_VEG273_00004 | B14: Number of fire starts caused by vegetation blow-ins and fall-ins (other party responsibility) (0's) | H14: ED_VEG271_00004 | K14: Rural | M14: ED_VEG272_00004 | O14: Vegetation corridor clearance
H15: ED_VEG271_00005 | J15: Total length of maintenance spans (KM) | K15: Urban and CBD | M15: ED_VEG272_00005 | O15: Inspection
H16: ED_VEG271_00006 | K16: Rural | M16: ED_VEG272_00006 | O16: Audit
H17: ED_VEG271_00007 | J17: Length of vegetation corridors (KM) | K17: Urban and CBD | M17: ED_VEG272_00007 | O17: Contractor liaison expenditure
H18: ED_VEG271_00008 | K18: Rural | M18: ED_VEG272_00008 | O18: Tree replacement program costs
H19: ED_VEG271_00009 | J19: Average number of trees per maintenance span (0's) | K19: Urban and CBD | M19: ED_VEG272_00009 | O19: Other vegetation management costs not specified in sheet
H20: ED_VEG271_00010 | K20: Rural | M20: ED_VEG272_00010 | N20: =I23 -> ZONE (DNSP to nominate) | O20: Tree trimming (excluding hazard trees)
H21: ED_VEG271_00011 | J21: Average frequency of cutting cycle (years) | K21: Urban and CBD | M21: ED_VEG272_00011 | O21: Hazard tree cutting
H22: ED_VEG271_00012 | K22: Rural | M22: ED_VEG272_00012 | O22: Ground clearance
H23: ED_VEG271_00013 | I23: ZONE (DNSP to nominate) | J23: Route line length within zone (KM) | K23: Urban and CBD | M23: ED_VEG272_00013 | O23: Vegetation corridor clearance
H24: ED_VEG271_00014 | K24: Rural | M24: ED_VEG272_00014 | O24: Inspection
H25: ED_VEG271_00015 | J25: Number of maintenance spans (0's) | K25: Urban and CBD | M25: ED_VEG272_00015 | O25: Audit
H26: ED_VEG271_00016 | K26: Rural | M26: ED_VEG272_00016 | O26: Contractor liaison expenditure
H27: ED_VEG271_00017 | J27: Total length of maintenance spans (KM) | K27: Urban and CBD | M27: ED_VEG272_00017 | O27: Tree replacement program costs
H28: ED_VEG271_00018 | K28: Rural | M28: ED_VEG272_00018 | O28: Other vegetation management costs not specified in sheet
H29: ED_VEG271_00019 | J29: Length of vegetation corridors (KM) | K29: Urban and CBD | M29: ED_VEG272_00019 | N29: =I35 -> ZONE (DNSP to nominate) | O29: Tree trimming (excluding hazard trees)
H30: ED_VEG271_00020 | K30: Rural | M30: ED_VEG272_00020 | O30: Hazard tree cutting
H31: ED_VEG271_00021 | J31: Average number of trees per maintenance span (0's) | K31: Urban and CBD | M31: ED_VEG272_00021 | O31: Ground clearance
H32: ED_VEG271_00022 | K32: Rural | M32: ED_VEG272_00022 | O32: Vegetation corridor clearance
H33: ED_VEG271_00023 | J33: Average frequency of cutting cycle (years) | K33: Urban and CBD | M33: ED_VEG272_00023 | O33: Inspection
H34: ED_VEG271_00024 | K34: Rural | M34: ED_VEG272_00024 | O34: Audit
H35: ED_VEG271_00025 | I35: ZONE (DNSP to nominate) | J35: Route line length within zone (KM) | K35: Urban and CBD | M35: ED_VEG272_00025 | O35: Contractor liaison expenditure
H36: ED_VEG271_00026 | K36: Rural | M36: ED_VEG272_00026 | O36: Tree replacement program costs
H37: ED_VEG271_00027 | J37: Number of maintenance spans (0's) | K37: Urban and CBD | M37: ED_VEG272_00027 | O37: Other vegetation management costs not specified in sheet
H38: ED_VEG271_00028 | K38: Rural | M38: ED_VEG272_00028 | N38: =I47 -> ZONE (DNSP to nominate) | O38: Tree trimming (excluding hazard trees)
H39: ED_VEG271_00029 | J39: Total length of maintenance spans (KM) | K39: Urban and CBD | M39: ED_VEG272_00029 | O39: Hazard tree cutting
H40: ED_VEG271_00030 | K40: Rural | M40: ED_VEG272_00030 | O40: Ground clearance
H41: ED_VEG271_00031 | J41: Length of vegetation corridors (KM) | K41: Urban and CBD | M41: ED_VEG272_00031 | O41: Vegetation corridor clearance
H42: ED_VEG271_00032 | K42: Rural | M42: ED_VEG272_00032 | O42: Inspection
H43: ED_VEG271_00033 | J43: Average number of trees per maintenance span (0's) | K43: Urban and CBD | M43: ED_VEG272_00033 | O43: Audit
H44: ED_VEG271_00034 | K44: Rural | M44: ED_VEG272_00034 | O44: Contractor liaison expenditure
H45: ED_VEG271_00035 | J45: Average frequency of cutting cycle (years) | K45: Urban and CBD | M45: ED_VEG272_00035 | O45: Tree replacement program costs
H46: ED_VEG271_00036 | K46: Rural | M46: ED_VEG272_00036 | O46: Other vegetation management costs not specified in sheet
H47: ED_VEG271_00037 | I47: ZONE (DNSP to nominate) | J47: Route line length within zone (KM) | K47: Urban and CBD | M47: ED_VEG272_00037 | N47: =I59 -> ZONE (DNSP to nominate) | O47: Tree trimming (excluding hazard trees)
H48: ED_VEG271_00038 | K48: Rural | M48: ED_VEG272_00038 | O48: Hazard tree cutting
H49: ED_VEG271_00039 | J49: Number of maintenance spans (0's) | K49: Urban and CBD | M49: ED_VEG272_00039 | O49: Ground clearance
H50: ED_VEG271_00040 | K50: Rural | M50: ED_VEG272_00040 | O50: Vegetation corridor clearance
H51: ED_VEG271_00041 | J51: Total length of maintenance spans (KM) | K51: Urban and CBD | M51: ED_VEG272_00041 | O51: Inspection
H52: ED_VEG271_00042 | K52: Rural | M52: ED_VEG272_00042 | O52: Audit
H53: ED_VEG271_00043 | J53: Length of vegetation corridors (KM) | K53: Urban and CBD | M53: ED_VEG272_00043 | O53: Contractor liaison expenditure
H54: ED_VEG271_00044 | K54: Rural | M54: ED_VEG272_00044 | O54: Tree replacement program costs
H55: ED_VEG271_00045 | J55: Average number of trees per maintenance span (0's) | K55: Urban and CBD | M55: ED_VEG272_00045 | O55: Other vegetation management costs not specified in sheet
H56: ED_VEG271_00046 | K56: Rural | M56: ED_VEG272_00046 | N56: =I71 -> ZONE (DNSP to nominate) | O56: Tree trimming (excluding hazard trees)
H57: ED_VEG271_00047 | J57: Average frequency of cutting cycle (years) | K57: Urban and CBD | M57: ED_VEG272_00047 | O57: Hazard tree cutting
H58: ED_VEG271_00048 | K58: Rural | M58: ED_VEG272_00048 | O58: Ground clearance
H59: ED_VEG271_00049 | I59: ZONE (DNSP to nominate) | J59: Route line length within zone (KM) | K59: Urban and CBD | M59: ED_VEG272_00049 | O59: Vegetation corridor clearance
H60: ED_VEG271_00050 | K60: Rural | M60: ED_VEG272_00050 | O60: Inspection
H61: ED_VEG271_00051 | J61: Number of maintenance spans (0's) | K61: Urban and CBD | M61: ED_VEG272_00051 | O61: Audit
H62: ED_VEG271_00052 | K62: Rural | M62: ED_VEG272_00052 | O62: Contractor liaison expenditure
H63: ED_VEG271_00053 | J63: Total length of maintenance spans (KM) | K63: Urban and CBD | M63: ED_VEG272_00053 | O63: Tree replacement program costs
H64: ED_VEG271_00054 | K64: Rural | M64: ED_VEG272_00054 | O64: Other vegetation management costs not specified in sheet
H65: ED_VEG271_00055 | J65: Length of vegetation corridors (KM) | K65: Urban and CBD | M65: ED_VEG272_00055 | N65: =I83 -> ZONE (DNSP to nominate) | O65: Tree trimming (excluding hazard trees)
H66: ED_VEG271_00056 | K66: Rural | M66: ED_VEG272_00056 | O66: Hazard tree cutting
H67: ED_VEG271_00057 | J67: Average number of trees per maintenance span (0's) | K67: Urban and CBD | M67: ED_VEG272_00057 | O67: Ground clearance
H68: ED_VEG271_00058 | K68: Rural | M68: ED_VEG272_00058 | O68: Vegetation corridor clearance
H69: ED_VEG271_00059 | J69: Average frequency of cutting cycle (years) | K69: Urban and CBD | M69: ED_VEG272_00059 | O69: Inspection
H70: ED_VEG271_00060 | K70: Rural | M70: ED_VEG272_00060 | O70: Audit
H71: ED_VEG271_00061 | I71: ZONE (DNSP to nominate) | J71: Route line length within zone (KM) | K71: Urban and CBD | M71: ED_VEG272_00061 | O71: Contractor liaison expenditure
H72: ED_VEG271_00062 | K72: Rural | M72: ED_VEG272_00062 | O72: Tree replacement program costs
H73: ED_VEG271_00063 | J73: Number of maintenance spans (0's) | K73: Urban and CBD | M73: ED_VEG272_00063 | O73: Other vegetation management costs not specified in sheet
H74: ED_VEG271_00064 | K74: Rural | M74: ED_VEG272_00064 | N74: =I95 -> ZONE (DNSP to nominate) | O74: Tree trimming (excluding hazard trees)
H75: ED_VEG271_00065 | J75: Total length of maintenance spans (KM) | K75: Urban and CBD | M75: ED_VEG272_00065 | O75: Hazard tree cutting
H76: ED_VEG271_00066 | K76: Rural | M76: ED_VEG272_00066 | O76: Ground clearance
H77: ED_VEG271_00067 | J77: Length of vegetation corridors (KM) | K77: Urban and CBD | M77: ED_VEG272_00067 | O77: Vegetation corridor clearance
H78: ED_VEG271_00068 | K78: Rural | M78: ED_VEG272_00068 | O78: Inspection
H79: ED_VEG271_00069 | J79: Average number of trees per maintenance span (0's) | K79: Urban and CBD | M79: ED_VEG272_00069 | O79: Audit
H80: ED_VEG271_00070 | K80: Rural | M80: ED_VEG272_00070 | O80: Contractor liaison expenditure
H81: ED_VEG271_00071 | J81: Average frequency of cutting cycle (years) | K81: Urban and CBD | M81: ED_VEG272_00071 | O81: Tree replacement program costs
H82: ED_VEG271_00072 | K82: Rural | M82: ED_VEG272_00072 | O82: Other vegetation management costs not specified in sheet
H83: ED_VEG271_00073 | I83: ZONE (DNSP to nominate) | J83: Route line length within zone (KM) | K83: Urban and CBD | M83: ED_VEG272_00073 | N83: =I107 -> ZONE (DNSP to nominate) | O83: Tree trimming (excluding hazard trees)
H84: ED_VEG271_00074 | K84: Rural | M84: ED_VEG272_00074 | O84: Hazard tree cutting
H85: ED_VEG271_00075 | J85: Number of maintenance spans (0's) | K85: Urban and CBD | M85: ED_VEG272_00075 | O85: Ground clearance
H86: ED_VEG271_00076 | K86: Rural | M86: ED_VEG272_00076 | O86: Vegetation corridor clearance
H87: ED_VEG271_00077 | J87: Total length of maintenance spans (KM) | K87: Urban and CBD | M87: ED_VEG272_00077 | O87: Inspection
H88: ED_VEG271_00078 | K88: Rural | M88: ED_VEG272_00078 | O88: Audit
H89: ED_VEG271_00079 | J89: Length of vegetation corridors (KM) | K89: Urban and CBD | M89: ED_VEG272_00079 | O89: Contractor liaison expenditure
H90: ED_VEG271_00080 | K90: Rural | M90: ED_VEG272_00080 | O90: Tree replacement program costs
H91: ED_VEG271_00081 | J91: Average number of trees per maintenance span (0's) | K91: Urban and CBD | M91: ED_VEG272_00081 | O91: Other vegetation management costs not specified in sheet
H92: ED_VEG271_00082 | K92: Rural | M92: ED_VEG272_00082 | N92: =I119 -> ZONE (DNSP to nominate) | O92: Tree trimming (excluding hazard trees)
H93: ED_VEG271_00083 | J93: Average frequency of cutting cycle (years) | K93: Urban and CBD | M93: ED_VEG272_00083 | O93: Hazard tree cutting
H94: ED_VEG271_00084 | K94: Rural | M94: ED_VEG272_00084 | O94: Ground clearance
H95: ED_VEG271_00085 | I95: ZONE (DNSP to nominate) | J95: Route line length within zone (KM) | K95: Urban and CBD | M95: ED_VEG272_00085 | O95: Vegetation corridor clearance
H96: ED_VEG271_00086 | K96: Rural | M96: ED_VEG272_00086 | O96: Inspection
H97: ED_VEG271_00087 | J97: Number of maintenance spans (0's) | K97: Urban and CBD | M97: ED_VEG272_00087 | O97: Audit
H98: ED_VEG271_00088 | K98: Rural | M98: ED_VEG272_00088 | O98: Contractor liaison expenditure
H99: ED_VEG271_00089 | J99: Total length of maintenance spans (KM) | K99: Urban and CBD | M99: ED_VEG272_00089 | O99: Tree replacement program costs
H100: ED_VEG271_00090 | K100: Rural | M100: ED_VEG272_00090 | O100: Other vegetation management costs not specified in sheet
H101: ED_VEG271_00091 | J101: Length of vegetation corridors (KM) | K101: Urban and CBD | M101: ED_VEG272_00091 | N101: =I131 -> ZONE (DNSP to nominate) | O101: Tree trimming (excluding hazard trees)
H102: ED_VEG271_00092 | K102: Rural | M102: ED_VEG272_00092 | O102: Hazard tree cutting
H103: ED_VEG271_00093 | J103: Average number of trees per maintenance span (0's) | K103: Urban and CBD | M103: ED_VEG272_00093 | O103: Ground clearance
H104: ED_VEG271_00094 | K104: Rural | M104: ED_VEG272_00094 | O104: Vegetation corridor clearance
H105: ED_VEG271_00095 | J105: Average frequency of cutting cycle (years) | K105: Urban and CBD | M105: ED_VEG272_00095 | O105: Inspection
H106: ED_VEG271_00096 | K106: Rural | M106: ED_VEG272_00096 | O106: Audit
H107: ED_VEG271_00097 | I107: ZONE (DNSP to nominate) | J107: Route line length within zone (KM) | K107: Urban and CBD | M107: ED_VEG272_00097 | O107: Contractor liaison expenditure
H108: ED_VEG271_00098 | K108: Rural | M108: ED_VEG272_00098 | O108: Tree replacement program costs
H109: ED_VEG271_00099 | J109: Number of maintenance spans (0's) | K109: Urban and CBD | M109: ED_VEG272_00099 | O109: Other vegetation management costs not specified in sheet
H110: ED_VEG271_00100 | K110: Rural | M110: ED_VEG272_00100 | N110: =I143 -> ZONE (DNSP to nominate) | O110: Tree trimming (excluding hazard trees)
H111: ED_VEG271_00101 | J111: Total length of maintenance spans (KM) | K111: Urban and CBD | M111: ED_VEG272_00101 | O111: Hazard tree cutting
H112: ED_VEG271_00102 | K112: Rural | M112: ED_VEG272_00102 | O112: Ground clearance
H113: ED_VEG271_00103 | J113: Length of vegetation corridors (KM) | K113: Urban and CBD | M113: ED_VEG272_00103 | O113: Vegetation corridor clearance
H114: ED_VEG271_00104 | K114: Rural | M114: ED_VEG272_00104 | O114: Inspection
H115: ED_VEG271_00105 | J115: Average number of trees per maintenance span (0's) | K115: Urban and CBD | M115: ED_VEG272_00105 | O115: Audit
H116: ED_VEG271_00106 | K116: Rural | M116: ED_VEG272_00106 | O116: Contractor liaison expenditure
H117: ED_VEG271_00107 | J117: Average frequency of cutting cycle (years) | K117: Urban and CBD | M117: ED_VEG272_00107 | O117: Tree replacement program costs
H118: ED_VEG271_00108 | K118: Rural | M118: ED_VEG272_00108 | O118: Other vegetation management costs not specified in sheet
H119: ED_VEG271_00109 | I119: ZONE (DNSP to nominate) | J119: Route line length within zone (KM) | K119: Urban and CBD | M119: ED_VEG272_00109 | N119: =I155 -> ZONE (DNSP to nominate) | O119: Tree trimming (excluding hazard trees)
H120: ED_VEG271_00110 | K120: Rural | M120: ED_VEG272_00110 | O120: Hazard tree cutting
H121: ED_VEG271_00111 | J121: Number of maintenance spans (0's) | K121: Urban and CBD | M121: ED_VEG272_00111 | O121: Ground clearance
H122: ED_VEG271_00112 | K122: Rural | M122: ED_VEG272_00112 | O122: Vegetation corridor clearance
H123: ED_VEG271_00113 | J123: Total length of maintenance spans (KM) | K123: Urban and CBD | M123: ED_VEG272_00113 | O123: Inspection
H124: ED_VEG271_00114 | K124: Rural | M124: ED_VEG272_00114 | O124: Audit
H125: ED_VEG271_00115 | J125: Length of vegetation corridors (KM) | K125: Urban and CBD | M125: ED_VEG272_00115 | O125: Contractor liaison expenditure
H126: ED_VEG271_00116 | K126: Rural | M126: ED_VEG272_00116 | O126: Tree replacement program costs
H127: ED_VEG271_00117 | J127: Average number of trees per maintenance span (0's) | K127: Urban and CBD | M127: ED_VEG272_00117 | O127: Other vegetation management costs not specified in sheet
H128: ED_VEG271_00118 | K128: Rural | M128: ED_VEG272_00118 | N128: =I167 -> ZONE (DNSP to nominate) | O128: Tree trimming (excluding hazard trees)
H129: ED_VEG271_00119 | J129: Average frequency of cutting cycle (years) | K129: Urban and CBD | M129: ED_VEG272_00119 | O129: Hazard tree cutting
H130: ED_VEG271_00120 | K130: Rural | M130: ED_VEG272_00120 | O130: Ground clearance
H131: ED_VEG271_00121 | I131: ZONE (DNSP to nominate) | J131: Route line length within zone (KM) | K131: Urban and CBD | M131: ED_VEG272_00121 | O131: Vegetation corridor clearance
H132: ED_VEG271_00122 | K132: Rural | M132: ED_VEG272_00122 | O132: Inspection
H133: ED_VEG271_00123 | J133: Number of maintenance spans (0's) | K133: Urban and CBD | M133: ED_VEG272_00123 | O133: Audit
H134: ED_VEG271_00124 | K134: Rural | M134: ED_VEG272_00124 | O134: Contractor liaison expenditure
H135: ED_VEG271_00125 | J135: Total length of maintenance spans (KM) | K135: Urban and CBD | M135: ED_VEG272_00125 | O135: Tree replacement program costs
H136: ED_VEG271_00126 | K136: Rural | M136: ED_VEG272_00126 | O136: Other vegetation management costs not specified in sheet
H137: ED_VEG271_00127 | J137: Length of vegetation corridors (KM) | K137: Urban and CBD | M137: ED_VEG272_00127 | N137: =I179 -> ZONE (DNSP to nominate) | O137: Tree trimming (excluding hazard trees)
H138: ED_VEG271_00128 | K138: Rural | M138: ED_VEG272_00128 | O138: Hazard tree cutting
H139: ED_VEG271_00129 | J139: Average number of trees per maintenance span (0's) | K139: Urban and CBD | M139: ED_VEG272_00129 | O139: Ground clearance
H140: ED_VEG271_00130 | K140: Rural | M140: ED_VEG272_00130 | O140: Vegetation corridor clearance
H141: ED_VEG271_00131 | J141: Average frequency of cutting cycle (years) | K141: Urban and CBD | M141: ED_VEG272_00131 | O141: Inspection
H142: ED_VEG271_00132 | K142: Rural | M142: ED_VEG272_00132 | O142: Audit
H143: ED_VEG271_00133 | I143: ZONE (DNSP to nominate) | J143: Route line length within zone (KM) | K143: Urban and CBD | M143: ED_VEG272_00133 | O143: Contractor liaison expenditure
H144: ED_VEG271_00134 | K144: Rural | M144: ED_VEG272_00134 | O144: Tree replacement program costs
H145: ED_VEG271_00135 | J145: Number of maintenance spans (0's) | K145: Urban and CBD | M145: ED_VEG272_00135 | O145: Other vegetation management costs not specified in sheet
H146: ED_VEG271_00136 | K146: Rural | M146: ED_VEG272_00136 | N146: =I191 -> ZONE (DNSP to nominate) | O146: Tree trimming (excluding hazard trees)
H147: ED_VEG271_00137 | J147: Total length of maintenance spans (KM) | K147: Urban and CBD | M147: ED_VEG272_00137 | O147: Hazard tree cutting
H148: ED_VEG271_00138 | K148: Rural | M148: ED_VEG272_00138 | O148: Ground clearance
H149: ED_VEG271_00139 | J149: Length of vegetation corridors (KM) | K149: Urban and CBD | M149: ED_VEG272_00139 | O149: Vegetation corridor clearance
H150: ED_VEG271_00140 | K150: Rural | M150: ED_VEG272_00140 | O150: Inspection
H151: ED_VEG271_00141 | J151: Average number of trees per maintenance span (0's) | K151: Urban and CBD | M151: ED_VEG272_00141 | O151: Audit
H152: ED_VEG271_00142 | K152: Rural | M152: ED_VEG272_00142 | O152: Contractor liaison expenditure
H153: ED_VEG271_00143 | J153: Average frequency of cutting cycle (years) | K153: Urban and CBD | M153: ED_VEG272_00143 | O153: Tree replacement program costs
H154: ED_VEG271_00144 | K154: Rural | M154: ED_VEG272_00144 | O154: Other vegetation management costs not specified in sheet
H155: ED_VEG271_00145 | I155: ZONE (DNSP to nominate) | J155: Route line length within zone (KM) | K155: Urban and CBD | M155: ED_VEG272_00145 | N155: =I203 -> ZONE (DNSP to nominate) | O155: Tree trimming (excluding hazard trees)
H156: ED_VEG271_00146 | K156: Rural | M156: ED_VEG272_00146 | O156: Hazard tree cutting
H157: ED_VEG271_00147 | J157: Number of maintenance spans (0's) | K157: Urban and CBD | M157: ED_VEG272_00147 | O157: Ground clearance
H158: ED_VEG271_00148 | K158: Rural | M158: ED_VEG272_00148 | O158: Vegetation corridor clearance
H159: ED_VEG271_00149 | J159: Total length of maintenance spans (KM) | K159: Urban and CBD | M159: ED_VEG272_00149 | O159: Inspection
H160: ED_VEG271_00150 | K160: Rural | M160: ED_VEG272_00150 | O160: Audit
H161: ED_VEG271_00151 | J161: Length of vegetation corridors (KM) | K161: Urban and CBD | M161: ED_VEG272_00151 | O161: Contractor liaison expenditure
H162: ED_VEG271_00152 | K162: Rural | M162: ED_VEG272_00152 | O162: Tree replacement program costs
H163: ED_VEG271_00153 | J163: Average number of trees per maintenance span (0's) | K163: Urban and CBD | M163: ED_VEG272_00153 | O163: Other vegetation management costs not specified in sheet
H164: ED_VEG271_00154 | K164: Rural | M164: ED_VEG272_00154 | N164: =I215 -> ZONE (DNSP to nominate) | O164: Tree trimming (excluding hazard trees)
H165: ED_VEG271_00155 | J165: Average frequency of cutting cycle (years) | K165: Urban and CBD | M165: ED_VEG272_00155 | O165: Hazard tree cutting
H166: ED_VEG271_00156 | K166: Rural | M166: ED_VEG272_00156 | O166: Ground clearance
H167: ED_VEG271_00157 | I167: ZONE (DNSP to nominate) | J167: Route line length within zone (KM) | K167: Urban and CBD | M167: ED_VEG272_00157 | O167: Vegetation corridor clearance
H168: ED_VEG271_00158 | K168: Rural | M168: ED_VEG272_00158 | O168: Inspection
H169: ED_VEG271_00159 | J169: Number of maintenance spans (0's) | K169: Urban and CBD | M169: ED_VEG272_00159 | O169: Audit
H170: ED_VEG271_00160 | K170: Rural | M170: ED_VEG272_00160 | O170: Contractor liaison expenditure
H171: ED_VEG271_00161 | J171: Total length of maintenance spans (KM) | K171: Urban and CBD | M171: ED_VEG272_00161 | O171: Tree replacement program costs
H172: ED_VEG271_00162 | K172: Rural | M172: ED_VEG272_00162 | O172: Other vegetation management costs not specified in sheet
H173: ED_VEG271_00163 | J173: Length of vegetation corridors (KM) | K173: Urban and CBD
H174: ED_VEG271_00164 | K174: Rural
H175: ED_VEG271_00165 | J175: Average number of trees per maintenance span (0's) | K175: Urban and CBD
H176: ED_VEG271_00166 | K176: Rural
H177: ED_VEG271_00167 | J177: Average frequency of cutting cycle (years) | K177: Urban and CBD
H178: ED_VEG271_00168 | K178: Rural
H179: ED_VEG271_00169 | I179: ZONE (DNSP to nominate) | J179: Route line length within zone (KM) | K179: Urban and CBD
H180: ED_VEG271_00170 | K180: Rural
H181: ED_VEG271_00171 | J181: Number of maintenance spans (0's) | K181: Urban and CBD
H182: ED_VEG271_00172 | K182: Rural
H183: ED_VEG271_00173 | J183: Total length of maintenance spans (KM) | K183: Urban and CBD
H184: ED_VEG271_00174 | K184: Rural
H185: ED_VEG271_00175 | J185: Length of vegetation corridors (KM) | K185: Urban and CBD
H186: ED_VEG271_00176 | K186: Rural
H187: ED_VEG271_00177 | J187: Average number of trees per maintenance span (0's) | K187: Urban and CBD
H188: ED_VEG271_00178 | K188: Rural
H189: ED_VEG271_00179 | J189: Average frequency of cutting cycle (years) | K189: Urban and CBD
H190: ED_VEG271_00180 | K190: Rural
H191: ED_VEG271_00181 | I191: ZONE (DNSP to nominate) | J191: Route line length within zone (KM) | K191: Urban and CBD
H192: ED_VEG271_00182 | K192: Rural
H193: ED_VEG271_00183 | J193: Number of maintenance spans (0's) | K193: Urban and CBD
H194: ED_VEG271_00184 | K194: Rural
H195: ED_VEG271_00185 | J195: Total length of maintenance spans (KM) | K195: Urban and CBD
H196: ED_VEG271_00186 | K196: Rural
H197: ED_VEG271_00187 | J197: Length of vegetation corridors (KM) | K197: Urban and CBD
H198: ED_VEG271_00188 | K198: Rural
H199: ED_VEG271_00189 | J199: Average number of trees per maintenance span (0's) | K199: Urban and CBD
H200: ED_VEG271_00190 | K200: Rural
H201: ED_VEG271_00191 | J201: Average frequency of cutting cycle (years) | K201: Urban and CBD
H202: ED_VEG271_00192 | K202: Rural
H203: ED_VEG271_00193 | I203: ZONE (DNSP to nominate) | J203: Route line length within zone (KM) | K203: Urban and CBD
... 23 more rows

Sheet 2.8 Maintenance
B1: =Title -> REGULATORY REPORTING STATEMENT
B2: =TradingName -> SA Power Networks
B3: =CONCATENATE("Category Analysis RIN response ",CRY) -> Category Analysis RIN response 2013-14
B4: 2.8 MAINTENANCE
B8: TABLE 2.8.1 - DESCRIPTOR METRICS FOR ROUTINE AND NON-ROUTINE MAINTENANCE | K8: TABLE 2.8.2 - COST METRICS FOR ROUTINE AND NON-ROUTINE MAINTENANCE
B9: <<<GROUP-ROW>>>
E11: ASSET QUANTITY - AT YEAR END (000s) | F11: ASSET QUANTITY - INSPECTED/ MAINTAINED | G11: AVERAGE AGE OF ASSET GROUP | H11: INSPECTION CYCLE (YEARS) | I11: MAINTENANCE CYCLE (YEARS) | M11: ROUTINE MAINTENANCE EXPENDITURE ($000'S) | N11: NON-ROUTINE MAINTENANCE EXPENDITURE ($000'S)
B12: MAINTENANCE ACTIVITY | C12: MAINTENANCE ASSET CATEGORY | D12: UNIT OF MEASURE - ASSET QUANTITY | E12: =CRY -> 2013-14 | F12: =CRY -> 2013-14 | G12: =CRY -> 2013-14 | K12: MAINTENANCE ACTIVITY | L12: MAINTENANCE ASSET CATEGORY | M12: =CRY -> 2013-14 | N12: =CRY -> 2013-14
A13: ED_MAI281_00001 | B13: Pole top, overhead line & service line maintenance | C13: Pole tops and overhead lines | D13: Number of poles | E13: 744.856 | F13: 2.802 | G13: 45.2 | H13: 1900-01-05 | I13: 0 | J13: ED_MAI282_00001 | K13: Pole top, overhead line & service line maintenance | L13: Pole tops and overhead lines | M13: 39.256 | N13: 656.248
A14: ED_MAI281_00002 | C14: Service lines | D14: Number of customers | E14: 751.851 | F14: 0 | G14: 29 | H14: 5 | I14: 0 | J14: ED_MAI282_00002 | L14: Service lines | M14: 0 | N14: 0
A15: ED_MAI281_00003 | B15: Pole inspection and treatment | C15: All poles | D15: Number of poles | E15: 744.856 | F15: 88.402 | G15: 0 | H15: 5 | I15: 0 | J15: ED_MAI282_00003 | K15: Pole inspection and treatment | L15: All poles | M15: 4441.131 | N15: 0
A16: ED_MAI281_00004 | B16: Overhead asset inspection | C16: All overhead assets | D16: Line patrolled (route KM) | E16: 65.296 | F16: 49.861 | G16: 0 | H16: 5 | I16: 0 | J16: ED_MAI282_00004 | K16: Overhead asset inspection | L16: All overhead assets | M16: 5395.136 | N16: 0
A17: ED_MAI281_00005 | B17: Network underground cable maintenance: by voltage | C17: LV - 11 to 22 KV | D17: Length (KM) | E17: 16.757 | F17: 0.97 | G17: 37.6 | H17: 0 | I17: 0 | J17: ED_MAI282_00005 | K17: Network underground cable maintenance: by voltage | L17: LV - 11 to 22 KV | M17: 0 | N17: 234.731
A18: ED_MAI281_00006 | C18: 33 KV and above | D18: Length (KM) | E18: 0.164 | F18: 0.15 | G18: 28.7 | H18: 0.5 | I18: 0 | J18: ED_MAI282_00006 | L18: 33 KV and above | M18: 90.359 | N18: 0
A19: ED_MAI281_00007 | B19: Network underground cable maintenance: by location | C19: Cbd | D19: Length (KM) | E19: 0.507 | F19: 0.0012 | G19: 30.6 | H19: 0 | I19: 0 | J19: ED_MAI282_00007 | K19: Network underground cable maintenance: by location | L19: CBD | M19: 90.359 | N19: 234.731
A20: ED_MAI281_00008 | C20: Non-CBD | D20: Length (KM) | E20: 16.413 | F20: 0 | G20: 20.4 | H20: 0 | I20: 0 | J20: ED_MAI282_00008 | L20: Non-CBD
A21: ED_MAI281_00009 | B21: Distribution substation equipment & property maintenance | C21: Distribution substation transformers | D21: Number of installed transformers | E21: 75.559 | F21: 0.653 | G21: 28.8 | H21: 5 | I21: 0 | J21: ED_MAI282_00009 | K21: Distribution substation equipment & property maintenance | L21: Distribution substation transformers | M21: 1.33 | N21: 407.663
A22: ED_MAI281_00010 | C22: Distribution substation switchgear (within-substations and stand-alone switchgear) | D22: Number of switches | E22: 13.971 | F22: 4.82 | G22: 21.7 | H22: 1 | I22: 0 | J22: ED_MAI282_00010 | L22: Distribution substation switchgear (within-substations and stand-alone switchgear) | M22: 202.336 | N22: 29.896
A23: ED_MAI281_00011 | C23: Distribution substation - other equipment | D23: Earth mat | E23: 0 | F23: 0 | G23: 0 | H23: 0 | I23: 0 | J23: ED_MAI282_00011 | L23: Distribution substation - other equipment | M23: 0 | N23: 0
A24: ED_MAI281_00012 | C24: Distribution substation - property | D24: Number of distribution substation properties maintained | E24: 1.419 | F24: 0.141 | G24: 1 | H24: 0 | I24: 0 | J24: ED_MAI282_00012 | L24: Distribution substation - property | M24: 0 | N24: 98.591
A25: ED_MAI281_00013 | B25: Zone substation equipment maintenance | C25: Transformers - zone substation | D25: Number of zone substation transformers | E25: 0.696 | F25: 0.566 | G25: 34.5 | H25: 0 | I25: 6 | J25: ED_MAI282_00013 | K25: Zone substation equipment maintenance | L25: Transformers - zone substation | M25: 582.667 | N25: 1329.203
A26: ED_MAI281_00014 | C26: Transformers - distribution | D26: Number of distribution transformers within zone substations | E26: 0.267 | F26: 0 | G26: 15.2 | H26: 0 | I26: 0 | J26: ED_MAI282_00014 | L26: Transformers - distribution | M26: 0 | N26: 0
A27: ED_MAI281_00015 | C27: Transformers - HV | D27: Number of HV transformers | E27: 0 | F27: 0 | G27: 0 | H27: 0 | I27: 0 | J27: ED_MAI282_00015 | L27: Transformers - HV | M27: 0 | N27: 0
A28: ED_MAI281_00016 | C28: Zone substation - other equipment | D28: DNSP to nominate | E28: 0.332 | F28: 0.737 | G28: 4.3 | H28: 10 | I28: 10 | J28: ED_MAI282_00016 | L28: Zone substation - other equipment | M28: 434.744 | N28: 752.725
A29: ED_MAI281_00017 | B29: Zone substation property maintenance | C29: All zone substation properties | D29: Number of zone substation properties maintained | E29: 0.406 | F29: 1.133 | G29: 40.7 | H29: 0.5 | I29: 0.5 | J29: ED_MAI282_00017 | K29: Zone substation property maintenance | L29: All zone substation properties | M29: 1077.934 | N29: 689.512
A30: ED_MAI281_00018 | B30: Public lighting maintenance | C30: Minor roads | D30: Number of public lights maintained | E30: 0 | F30: 0 | G30: 0 | H30: 0 | I30: 0 | J30: ED_MAI282_00018 | K30: Public lighting maintenance | L30: Minor roads | M30: 0 | N30: 0
A31: ED_MAI281_00019 | C31: Major roads | D31: Number of public lights maintained | E31: 0 | F31: 0 | G31: 0 | H31: 0 | I31: 0 | J31: ED_MAI282_00019 | L31: Major roads | M31: 0 | N31: 0
A32: ED_MAI281_00020 | B32: SCADA & network control maintenance | C32: SCADA & network control maintenance | D32: Number of systems | E32: 0.299 | F32: 0 | G32: 9.3 | H32: 0 | I32: 0 | J32: ED_MAI282_00020 | K32: SCADA & network control maintenance | L32: SCADA & network control maintenance | M32: 0 | N32: 741.202
A33: ED_MAI281_00021 | B33: Protection systems maintenance | C33: Protection systems maintenance | D33: Number of systems | E33: 2.886 | F33: 0.664 | G33: 32.3 | H33: 0 | I33: 4.5 | J33: ED_MAI282_00021 | K33: Protection systems maintenance | L33: Protection systems maintenance | M33: 975.951 | N33: 425.051
A34: ED_MAI281_00022 | B34: Subtransmission asset maintenance - for DNSPs with dual function assets | C34: Subtransmission asset maintenance - for DNSPs with dual function assets | D34: DNSP to nominate | E34: 0 | F34: 0 | G34: 0 | H34: 0 | I34: 0 | J34: ED_MAI282_00022 | K34: Subtransmission asset maintenance - for DNSPs with dual function assets | L34: Subtransmission asset maintenance - for DNSPs with dual function assets | M34: 0 | N34: 0
A35: ED_MAI281_00023 | B35: Various assets | C35: includes rates, electricity, communications equip, metering | D35: Units not quoted as various UOM | E35: 41.5 | F35: 1.4 | G35: 9.61 | H35: 1.5 | I35: 1.5 | J35: ED_MAI282_00023 | K35: Various assets | L35: includes rates, electricity, communications equip, metering | M35: 804 | N35: 1521.318
A36: ED_MAI281_00024 | B36: Ground clearance - access tracks | C36: Ground clearance - access tracks | D36: Units not quoted | E36: 0 | F36: 0 | G36: 0 | H36: 0 | I36: 0 | J36: ED_MAI282_00024 | K36: Ground clearance - access tracks | L36: Ground clearance - access tracks | M36: 0 | N36: 0
A37: ED_MAI281_00025 | B37: Other | C37: < DNSP to nominate > | D37: (1) No. of sites (000's) for Substation Asset Inspection ; (2) No. of CBs and disconnectors (000's) for Switchgears; (3) No. of signages and IDs replaced; | E37: 0 | F37: 0 | G37: 0 | H37: 0 | I37: 0 | J37: ED_MAI282_00025 | K37: Other | L37: (1) Substation asset inspection; (2) Zone substation equipment maintenance (switchgear); (3) Number of signages and IDs replaced; (4) Power Station Maintenance, Asset Records Feeder Diagram Maintenance, Compliance Auditing, Asset Locations Services, Customer Service Penalties | M37: 3815 | N37: 1101

Sheet 2.9 Emergency Response
B1: =Title -> REGULATORY REPORTING STATEMENT
B2: =TradingName -> SA Power Networks
B3: =CONCATENATE("Category Analysis RIN response ",CRY) -> Category Analysis RIN response 2013-14
B4: 2.9 EMERGENCY RESPONSE
B6: TABLE 2.9.1 - EMERGENCY RESPONSE EXPENDITURE (OPEX)
B7: <<<GROUP-ROW>>>
D9: EXPENDITURE ($000s)
D10: =CRY -> 2013-14
A11: ED_EME291_99999 | B11: (A) TOTAL EMERGENCY RESPONSE EXPENDITURE ($000'S) | C11: Total Expenditure | D11: 31062.48
A12: ED_EME291_00002 | B12: (B) MAJOR EVENTS O&M EXPENDITURE ($000'S) | C12: Major Storm (Enter name of storm)
A13: ED_EME291_00003
A14: ED_EME291_00004
A15: ED_EME291_00005
A16: ED_EME291_00006
A17: ED_EME291_00007
A18: ED_EME291_00008
A19: ED_EME291_00009
A20: ED_EME291_00010
A21: ED_EME291_00011
A22: ED_EME291_00012
A23: ED_EME291_00013
A24: ED_EME291_00014
A25: ED_EME291_00015
A26: ED_EME291_00016
A27: ED_EME291_00017
A28: ED_EME291_00018
A29: ED_EME291_00019
A30: ED_EME291_00020
A31: ED_EME291_00021
A32: ED_EME291_00022
A33: ED_EME291_00023
A34: ED_EME291_00024
A35: ED_EME291_00025
A36: ED_EME291_00026
A37: ED_EME291_00027
A38: ED_EME291_00028
A39: ED_EME291_00029
A40: ED_EME291_00030
A41: ED_EME291_00031
A42: ED_EME291_00032
A43: ED_EME291_00033
A44: ED_EME291_00034
A45: ED_EME291_00035
A46: ED_EME291_00036
A47: ED_EME291_00037
A48: ED_EME291_00038
A49: ED_EME291_00039
A50: ED_EME291_00040
A51: ED_EME291_00041
A52: ED_EME291_00042
A53: ED_EME291_00043
A54: ED_EME291_00044
A55: ED_EME291_00045 | B55: (C) MAJOR EVENT DAYS O&M EXPENDITURE ($000'S) | C55: 2013-07-01
A56: ED_EME291_00046 | C56: 2013-07-02
A57: ED_EME291_00047 | C57: 2013-07-03
A58: ED_EME291_00048 | C58: 2013-07-04
A59: ED_EME291_00049 | C59: 2013-07-05
A60: ED_EME291_00050 | C60: 2013-07-06
A61: ED_EME291_00051 | C61: 2013-07-07
A62: ED_EME291_00052 | C62: 2013-07-08
A63: ED_EME291_00053 | C63: 2013-07-09
A64: ED_EME291_00054 | C64: 2013-07-10
A65: ED_EME291_00055 | C65: 2013-07-11
A66: ED_EME291_00056 | C66: 2013-07-12
A67: ED_EME291_00057 | C67: 2013-07-13
A68: ED_EME291_00058 | C68: 2013-07-14
A69: ED_EME291_00059 | C69: 2013-07-15
A70: ED_EME291_00060 | C70: 2013-07-16
A71: ED_EME291_00061 | C71: 2013-07-17
A72: ED_EME291_00062 | C72: 2013-07-18 | D72: 383.96
A73: ED_EME291_00063 | C73: 2013-07-19
A74: ED_EME291_00064 | C74: 2013-07-20
A75: ED_EME291_00065 | C75: 2013-07-21
A76: ED_EME291_00066 | C76: 2013-07-22
A77: ED_EME291_00067 | C77: 2013-07-23
A78: ED_EME291_00068 | C78: 2013-07-24
A79: ED_EME291_00069 | C79: 2013-07-25
A80: ED_EME291_00070 | C80: 2013-07-26
A81: ED_EME291_00071 | C81: 2013-07-27
A82: ED_EME291_00072 | C82: 2013-07-28
A83: ED_EME291_00073 | C83: 2013-07-29
A84: ED_EME291_00074 | C84: 2013-07-30
A85: ED_EME291_00075 | C85: 2013-07-31
A86: ED_EME291_00076 | C86: 2013-08-01
A87: ED_EME291_00077 | C87: 2013-08-02
A88: ED_EME291_00078 | C88: 2013-08-03
A89: ED_EME291_00079 | C89: 2013-08-04
A90: ED_EME291_00080 | C90: 2013-08-05
A91: ED_EME291_00081 | C91: 2013-08-06
A92: ED_EME291_00082 | C92: 2013-08-07
A93: ED_EME291_00083 | C93: 2013-08-08
A94: ED_EME291_00084 | C94: 2013-08-09
A95: ED_EME291_00085 | C95: 2013-08-10
A96: ED_EME291_00086 | C96: 2013-08-11
A97: ED_EME291_00087 | C97: 2013-08-12
A98: ED_EME291_00088 | C98: 2013-08-13
A99: ED_EME291_00089 | C99: 2013-08-14
A100: ED_EME291_00090 | C100: 2013-08-15
A101: ED_EME291_00091 | C101: 2013-08-16
A102: ED_EME291_00092 | C102: 2013-08-17
A103: ED_EME291_00093 | C103: 2013-08-18
A104: ED_EME291_00094 | C104: 2013-08-19
A105: ED_EME291_00095 | C105: 2013-08-20
A106: ED_EME291_00096 | C106: 2013-08-21
A107: ED_EME291_00097 | C107: 2013-08-22
A108: ED_EME291_00098 | C108: 2013-08-23
A109: ED_EME291_00099 | C109: 2013-08-24
A110: ED_EME291_00100 | C110: 2013-08-25
A111: ED_EME291_00101 | C111: 2013-08-26
A112: ED_EME291_00102 | C112: 2013-08-27
A113: ED_EME291_00103 | C113: 2013-08-28
A114: ED_EME291_00104 | C114: 2013-08-29
A115: ED_EME291_00105 | C115: 2013-08-30
A116: ED_EME291_00106 | C116: 2013-08-31
A117: ED_EME291_00107 | C117: 2013-09-01
A118: ED_EME291_00108 | C118: 2013-09-02
A119: ED_EME291_00109 | C119: 2013-09-03
A120: ED_EME291_00110 | C120: 2013-09-04
A121: ED_EME291_00111 | C121: 2013-09-05
A122: ED_EME291_00112 | C122: 2013-09-06
A123: ED_EME291_00113 | C123: 2013-09-07
A124: ED_EME291_00114 | C124: 2013-09-08
A125: ED_EME291_00115 | C125: 2013-09-09
A126: ED_EME291_00116 | C126: 2013-09-10
A127: ED_EME291_00117 | C127: 2013-09-11
A128: ED_EME291_00118 | C128: 2013-09-12
A129: ED_EME291_00119 | C129: 2013-09-13 | D129: 57.07
A130: ED_EME291_00120 | C130: 2013-09-14
A131: ED_EME291_00121 | C131: 2013-09-15
A132: ED_EME291_00122 | C132: 2013-09-16
A133: ED_EME291_00123 | C133: 2013-09-17
A134: ED_EME291_00124 | C134: 2013-09-18
A135: ED_EME291_00125 | C135: 2013-09-19
A136: ED_EME291_00126 | C136: 2013-09-20
A137: ED_EME291_00127 | C137: 2013-09-21
A138: ED_EME291_00128 | C138: 2013-09-22
A139: ED_EME291_00129 | C139: 2013-09-23
A140: ED_EME291_00130 | C140: 2013-09-24
A141: ED_EME291_00131 | C141: 2013-09-25
A142: ED_EME291_00132 | C142: 2013-09-26
A143: ED_EME291_00133 | C143: 2013-09-27
A144: ED_EME291_00134 | C144: 2013-09-28
A145: ED_EME291_00135 | C145: 2013-09-29
A146: ED_EME291_00136 | C146: 2013-09-30
A147: ED_EME291_00137 | C147: 2013-10-01
A148: ED_EME291_00138 | C148: 2013-10-02
A149: ED_EME291_00139 | C149: 2013-10-03
A150: ED_EME291_00140 | C150: 2013-10-04
A151: ED_EME291_00141 | C151: 2013-10-05
A152: ED_EME291_00142 | C152: 2013-10-06
A153: ED_EME291_00143 | C153: 2013-10-07
A154: ED_EME291_00144 | C154: 2013-10-08
A155: ED_EME291_00145 | C155: 2013-10-09
A156: ED_EME291_00146 | C156: 2013-10-10
A157: ED_EME291_00147 | C157: 2013-10-11
A158: ED_EME291_00148 | C158: 2013-10-12
A159: ED_EME291_00149 | C159: 2013-10-13
A160: ED_EME291_00150 | C160: 2013-10-14
A161: ED_EME291_00151 | C161: 2013-10-15
A162: ED_EME291_00152 | C162: 2013-10-16
A163: ED_EME291_00153 | C163: 2013-10-17
A164: ED_EME291_00154 | C164: 2013-10-18
A165: ED_EME291_00155 | C165: 2013-10-19
A166: ED_EME291_00156 | C166: 2013-10-20
A167: ED_EME291_00157 | C167: 2013-10-21
A168: ED_EME291_00158 | C168: 2013-10-22
A169: ED_EME291_00159 | C169: 2013-10-23
A170: ED_EME291_00160 | C170: 2013-10-24
A171: ED_EME291_00161 | C171: 2013-10-25
A172: ED_EME291_00162 | C172: 2013-10-26
A173: ED_EME291_00163 | C173: 2013-10-27
A174: ED_EME291_00164 | C174: 2013-10-28
A175: ED_EME291_00165 | C175: 2013-10-29
A176: ED_EME291_00166 | C176: 2013-10-30
A177: ED_EME291_00167 | C177: 2013-10-31
A178: ED_EME291_00168 | C178: 2013-11-01
A179: ED_EME291_00169 | C179: 2013-11-02
A180: ED_EME291_00170 | C180: 2013-11-03
A181: ED_EME291_00171 | C181: 2013-11-04
A182: ED_EME291_00172 | C182: 2013-11-05
A183: ED_EME291_00173 | C183: 2013-11-06
A184: ED_EME291_00174 | C184: 2013-11-07
A185: ED_EME291_00175 | C185: 2013-11-08
A186: ED_EME291_00176 | C186: 2013-11-09
A187: ED_EME291_00177 | C187: 2013-11-10
A188: ED_EME291_00178 | C188: 2013-11-11
A189: ED_EME291_00179 | C189: 2013-11-12
A190: ED_EME291_00180 | C190: 2013-11-13
A191: ED_EME291_00181 | C191: 2013-11-14
A192: ED_EME291_00182 | C192: 2013-11-15
A193: ED_EME291_00183 | C193: 2013-11-16
A194: ED_EME291_00184 | C194: 2013-11-17
A195: ED_EME291_00185 | C195: 2013-11-18
A196: ED_EME291_00186 | C196: 2013-11-19
A197: ED_EME291_00187 | C197: 2013-11-20
A198: ED_EME291_00188 | C198: 2013-11-21
A199: ED_EME291_00189 | C199: 2013-11-22
A200: ED_EME291_00190 | C200: 2013-11-23
A201: ED_EME291_00191 | C201: 2013-11-24
A202: ED_EME291_00192 | C202: 2013-11-25
... 401 more rows

Sheet 2.10 Overheads
B1: =Title -> REGULATORY REPORTING STATEMENT
B2: =TradingName -> SA Power Networks
B3: =CONCATENATE("Category Analysis RIN response ",CRY) -> Category Analysis RIN response 2013-14
B4: 2.10 OVERHEADS
B8: TABLE 2.10.1 - NETWORK OVERHEADS EXPENDITURE
E10: EXPENDITURE ($000s)
A11: OVE2101 | E11: =CRY -> 2013-14
A12: ED_OVE2101_00001 | B12: NETWORK OVERHEADS | C12: Total Overhead Expenditure - Standard Control Services | D12: Expenditure categories currently reported under annual RIN
A13: ED_OVE2101_00002 | D13: Network management | E13: ='[4]STANDARD CONTROL OH'!$J$12 -> 4105
A14: ED_OVE2101_00003 | D14: Network planning | E14: ='[4]STANDARD CONTROL OH'!$J$18 -> 533
A15: ED_OVE2101_00004 | D15: Network control and operational switching | E15: ='[4]STANDARD CONTROL OH'!$J$25 -> 10113
A16: ED_OVE2101_00005 | D16: Quality and standard functions | E16: ='[4]STANDARD CONTROL OH'!$J$40 -> 8179
A17: ED_OVE2101_00006 | D17: Project governance and related functions | E17: ='[4]STANDARD CONTROL OH'!$J$44 -> 0
A18: ED_OVE2101_00007 | D18: Other -- [Enter expenditure category currently reported under annual RIN] - DNSP to nominate
A19: ED_OVE2101_00008 | D19: Other Network Overheads | E19: ='[4]STANDARD CONTROL OH'!$J$52 -> 2800
A20: ED_OVE2101_00009 | D20: Network Telephony | E20: ='[4]STANDARD CONTROL OH'!$J$61 -> 5711
A21: ED_OVE2101_00010 | D21: Demand Management | E21: ='[4]STANDARD CONTROL OH'!$J$68 -> 2616
A22: ED_OVE2101_00011 | D22: Guaranteed Service Level Payments | E22: ='[4]STANDARD CONTROL OH'!$J$71 -> 9924
A23: ED_OVE2101_00012 | D23: Call Centre | E23: ='[4]STANDARD CONTROL OH'!$J$74 -> 2887
A24: ED_OVE2101_00013 | D24: Full Retail Contestability | E24: ='[4]STANDARD CONTROL OH'!$J$77 -> 16596
A25: ED_OVE2101_00014 | D25: Network Insurance | E25: ='[4]STANDARD CONTROL OH'!$J$80 -> 2903
A26: ED_OVE2101_00015 | D26: Distribution Licence Fee | E26: ='[4]STANDARD CONTROL OH'!$J$83 -> 3324
A27: ED_OVE2101_00016 | D27: Substation Property Maintenance | E27: ='[4]STANDARD CONTROL OH'!$J$86 -> 6560
A28: ED_OVE2101_00017 | D28: Other Network Operation Costs | E28: ='[4]STANDARD CONTROL OH'!$J$89 -> 1877
A29: ED_OVE2101_00018 | D29: Other Customer Services | E29: ='[4]STANDARD CONTROL OH'!$J$91 -> 6491
A30: ED_OVE2101_00019
A31: ED_OVE2101_00020
A32: ED_OVE2101_00021
A33: ED_OVE2101_00022
A34: ED_OVE2101_00023
A35: ED_OVE2101_00024
A36: ED_OVE2101_00025
A37: ED_OVE2101_00026
A38: ED_OVE2101_00027
A39: ED_OVE2101_00028
A40: ED_OVE2101_00029 | B40: NETWORK OVERHEADS | C40: Total Overhead Expenditure - Alternative Control Services | D40: Expenditure categories currently reported under annual RIN
A41: ED_OVE2101_00030 | D41: Network management | E41: ='[4]ALTERNATIVE CONTROL OH'!$J$9 -> 138
A42: ED_OVE2101_00031 | D42: Network planning | E42: 0
A43: ED_OVE2101_00032 | D43: Network control and operational switching | E43: 0
A44: ED_OVE2101_00033 | D44: Quality and standard functions | E44: 0
A45: ED_OVE2101_00034 | D45: Project governance and related functions | E45: 0
A46: ED_OVE2101_00035 | D46: Other -- [expenditure category currently reported under annual RIN] - DNSP to nominate
A47: ED_OVE2101_00036 | D47: Other Customer Services | E47: ='[4]ALTERNATIVE CONTROL OH'!$J$17 -> 132
A48: ED_OVE2101_00037
A49: ED_OVE2101_00038
A50: ED_OVE2101_00039
A51: ED_OVE2101_00040
A52: ED_OVE2101_00041
A53: ED_OVE2101_00042
A54: ED_OVE2101_00043
A55: ED_OVE2101_00044
A56: ED_OVE2101_00045
A57: ED_OVE2101_00046
A58: ED_OVE2101_00047
A59: ED_OVE2101_00048
A60: ED_OVE2101_00049
A61: ED_OVE2101_00050
A62: ED_OVE2101_00051
A63: ED_OVE2101_00052
A64: ED_OVE2101_00053
A65: ED_OVE2101_00054
A66: ED_OVE2101_00055
A67: ED_OVE2101_00056
A68: ED_OVE2101_00057 | B68: NETWORK OVERHEADS | C68: Total Overhead Expenditure - Negotiated Services | D68: Total | E68: =ROUND('[5]2.10 Summary'!$C$37/1000,0) -> 1070
A69: ED_OVE2101_00058 | B69: NETWORK OVERHEADS | C69: Total Overhead Expenditure - Unregulated Services | D69: Total | E69: =ROUND('[6]2.10 Summary'!$C$37/1000,0) -> 1317
A70: ED_OVE2101_00059 | B70: NETWORK OVERHEADS | C70: Capitalised Overheads - Standard Control Services | D70: Expenditure categories currently reported under annual RIN
A71: ED_OVE2101_00060 | D71: Network management | E71: ='[4]STANDARD CONTROL OH'!$J$164 -> 12111
A72: ED_OVE2101_00061 | D72: Network planning | E72: 0
A73: ED_OVE2101_00062 | D73: Network control and operational switching | E73: 0
A74: ED_OVE2101_00063 | D74: Quality and standard functions | E74: 0
A75: ED_OVE2101_00064 | D75: Project governance and related functions | E75: 0
A76: ED_OVE2101_00065 | D76: Other -- [expenditure category currently reported under annual RIN] - DNSP to nominate
A77: ED_OVE2101_00066
A78: ED_OVE2101_00067
A79: ED_OVE2101_00068
A80: ED_OVE2101_00069
A81: ED_OVE2101_00070
A82: ED_OVE2101_00071
A83: ED_OVE2101_00072
A84: ED_OVE2101_00073
A85: ED_OVE2101_00074
A86: ED_OVE2101_00075
A87: ED_OVE2101_00076
A88: ED_OVE2101_00077
A89: ED_OVE2101_00078
A90: ED_OVE2101_00079
A91: ED_OVE2101_00080
A92: ED_OVE2101_00081
A93: ED_OVE2101_00082
A94: ED_OVE2101_00083
A95: ED_OVE2101_00084
A96: ED_OVE2101_00085
A97: ED_OVE2101_00086
B105: TABLE 2.10.2 - CORPORATE OVERHEADS EXPENDITURE
E107: EXPENDITURE ($000s)
A108: OVE2102 | E108: =CRY -> 2013-14
A109: ED_OVE2102_00002 | B109: CORPORATE OVERHEADS | C109: Total Overhead Expenditure - Standard Control Services | D109: Expenditure categories currently reported under annual RIN
A110: ED_OVE2102_00003 | D110: [expenditure category currently reported under annual RIN] - DNSP to nominate
A111: ED_OVE2102_00004 | D111: CEO, Planning and Audit | E111: ='[4]STANDARD CONTROL OH'!$J$99 -> 3241
A112: ED_OVE2102_00005 | D112: Communications | E112: ='[4]STANDARD CONTROL OH'!$J$101 -> 2129
A113: ED_OVE2102_00006 | D113: Regulation and Company Secretary | E113: ='[4]STANDARD CONTROL OH'!$J$103 -> 7092
A114: ED_OVE2102_00007 | D114: Finance | E114: ='[4]STANDARD CONTROL OH'!$J$108 -> 12168
A115: ED_OVE2102_00008 | D115: HR and Training | E115: ='[4]STANDARD CONTROL OH'!$J$113 -> 8973
A116: ED_OVE2102_00009 | D116: Property | E116: ='[4]STANDARD CONTROL OH'!$J$118 -> 5739
A117: ED_OVE2102_00010 | D117: Information Systems | E117: ='[4]STANDARD CONTROL OH'!$J$120 -> 15531
A118: ED_OVE2102_00011 | D118: Risk Management | E118: ='[4]STANDARD CONTROL OH'!$J$122 -> 7426
A119: ED_OVE2102_00012 | D119: Other Allocated Costs | E119: ='[4]STANDARD CONTROL OH'!$J$127 -> 748
A120: ED_OVE2102_00013
A121: ED_OVE2102_00014
A122: ED_OVE2102_00015
A123: ED_OVE2102_00016
A124: ED_OVE2102_00017
A125: ED_OVE2102_00018
A126: ED_OVE2102_00019
A127: ED_OVE2102_00020
A128: ED_OVE2102_00021
A129: ED_OVE2102_00022
A130: ED_OVE2102_00023 | B130: CORPORATE OVERHEADS | C130: Total Overhead Expenditure - Alternative Control Services | D130: Expenditure categories currently reported under annual RIN
A131: ED_OVE2102_00024 | D131: [expenditure category currently reported under annual RIN] - DNSP to nominate
A132: ED_OVE2102_00025 | D132: CEO, Planning and Audit | E132: ='[4]ALTERNATIVE CONTROL OH'!$J$22 -> 43
A133: ED_OVE2102_00026 | D133: Communications | E133: ='[4]ALTERNATIVE CONTROL OH'!$J$24 -> 44
A134: ED_OVE2102_00027 | D134: Regulation and Company Secretary | E134: ='[4]ALTERNATIVE CONTROL OH'!$J$26 -> 110
A135: ED_OVE2102_00028 | D135: Finance | E135: ='[4]ALTERNATIVE CONTROL OH'!$J$31 -> 291
A136: ED_OVE2102_00029 | D136: HR and Training | E136: ='[4]ALTERNATIVE CONTROL OH'!$J$36 -> 89
A137: ED_OVE2102_00030 | D137: Property | E137: ='[4]ALTERNATIVE CONTROL OH'!$J$41 -> 33
A138: ED_OVE2102_00031 | D138: Information Systems | E138: ='[4]ALTERNATIVE CONTROL OH'!$J$43 -> 154
A139: ED_OVE2102_00032 | D139: Risk Management | E139: ='[4]ALTERNATIVE CONTROL OH'!$J$45 -> 54
A140: ED_OVE2102_00033 | D140: Other Allocated Costs | E140: ='[4]ALTERNATIVE CONTROL OH'!$J$50 -> -100
A141: ED_OVE2102_00034
A142: ED_OVE2102_00035
A143: ED_OVE2102_00036
A144: ED_OVE2102_00037
A145: ED_OVE2102_00038
A146: ED_OVE2102_00039
A147: ED_OVE2102_00040
A148: ED_OVE2102_00041
A149: ED_OVE2102_00042
A150: ED_OVE2102_00043
A151: ED_OVE2102_00044 | B151: CORPORATE OVERHEADS | C151: Total Overhead Expenditure - Negotiated Services | D151: Total | E151: ='[2]20-O&Ma'!$F$83+'[2]28-CAPEX'!$F$45 -> 4119
A152: ED_OVE2102_00045 | B152: CORPORATE OVERHEADS | C152: Total Overhead Expenditure - Unregulated Services | D152: Total | E152: ='[2]20-O&Ma'!$G$83+'[2]28-CAPEX'!$G$45 -> 3175
A153: ED_OVE2102_00046 | B153: CORPORATE OVERHEADS | C153: Capitalised Overheads - Standard Control Services | D153: Expenditure categories currently reported under annual RIN
A154: ED_OVE2102_00047 | D154: [expenditure category currently reported under annual RIN] - DNSP to nominate
A155: ED_OVE2102_00048 | D155: Other Allocated Costs - Standard Control | E155: ='[4]STANDARD CONTROL OH'!$J$173 -> -7267
A156: ED_OVE2102_00049 | D156: Other Allocated Costs - Alternative Control | E156: ='[4]ALTERNATIVE CONTROL OH'!$J$74 -> -81
A157: ED_OVE2102_00050
A158: ED_OVE2102_00051
A159: ED_OVE2102_00052
A160: ED_OVE2102_00053
A161: ED_OVE2102_00054
A162: ED_OVE2102_00055
A163: ED_OVE2102_00056
A164: ED_OVE2102_00057
A165: ED_OVE2102_00058
A166: ED_OVE2102_00059
A167: ED_OVE2102_00060
A168: ED_OVE2102_00061
A169: ED_OVE2102_00062
A170: ED_OVE2102_00063
A171: ED_OVE2102_00064
A172: ED_OVE2102_00065
A173: ED_OVE2102_00066

Sheet 2.11 Labour
B1: =Title -> REGULATORY REPORTING STATEMENT
B2: =TradingName -> SA Power Networks
B3: =CONCATENATE("Category Analysis RIN response ",CRY) -> Category Analysis RIN response 2013-14
B4: 2.11 LABOUR
B6: TABLE 2.11.1 - COST METRICS PER ANNUM | J6: TABLE 2.11.2 - EXTRA DESCRIPTOR METRICS FOR CURRENT YEAR
B7: <<<GROUP-ROW>>>
E10: ASL (0'S) | F10: TOTAL LABOUR EXPENDITURE ($000'S) | G10: AVERAGE PRODUCTIVE WORK HOURS PER ASL (0'S) | H10: STAND-DOWN OCCURENCES PER ASL (0'S) | M10: AVERAGE PRODUCTIVE WORK HOURS ORDINARY TIME (0's) | O10: AVERAGE PRODUCTIVE WORK HOURS OVERTIME (0's)
M11: PER ASL | N11: HOURLY RATE PER ASL | O11: PER ASL | P11: HOURLY RATE PER ASL
E12: =CRY -> 2013-14 | F12: =CRY -> 2013-14 | G12: =CRY -> 2013-14 | H12: =CRY -> 2013-14 | M12: =CRY -> 2013-14 | N12: =CRY -> 2013-14 | O12: =CRY -> 2013-14 | P12: =CRY -> 2013-14
A13: ED_LAB2111_00001 | B13: CORPORATE OVERHEADS INTERNAL LABOUR COSTS | C13: LABOUR CLASSIFICATION LEVEL | D13: Executive manager | E13: =E14+E15 -> 25 | F13: =F14+F15 -> 8618.7 | G13: =ROUND(IF($E13=0,0,((G14*$E14)+(G15*$E15))/$E13),1) -> 1854.9 | H13: =ROUND(IF($E13=0,0,((H14*$E14)+(H15*$E15))/$E13),1) -> 0 | I13: ED_LAB2112_00001 | J13: CORPORATE OVERHEADS INTERNAL LABOUR COSTS | K13: LABOUR CLASSIFICATION LEVEL | L13: Executive manager | M13: =ROUND(IF($E13=0,0,((M14*$E14)+(M15*$E15))/$E13),1) -> 1854.9 | N13: =ROUND(IF($E13=0,0,((N14*$E14)+(N15*$E15))/$E13),1) -> 185.7 | O13: =ROUND(IF($E13=0,0,((O14*$E14)+(O15*$E15))/$E13),1) -> 0 | P13: =ROUND(IF($E13=0,0,((P14*$E14)+(P15*$E15))/$E13),1) -> 0
A14: ED_LAB2111_00002 | D14: Employee (optional) | E14: 25 | F14: 8618.7 | G14: 1854.9 | H14: 0 | I14: ED_LAB2112_00002 | L14: Employee (optional) | M14: 1854.9 | N14: 185.7 | O14: 0 | P14: 0
A15: ED_LAB2111_00003 | D15: Labour hire (optional) | E15: 0 | F15: 0 | G15: 0 | H15: 0 | I15: ED_LAB2112_00003 | L15: Labour hire (optional) | M15: 0 | N15: 0 | O15: 0 | P15: 0
A16: ED_LAB2111_00004 | D16: Senior manager | E16: =E17+E18 -> 13.6 | F16: =F17+F18 -> 2710.6 | G16: =ROUND(IF($E16=0,0,((G17*$E17)+(G18*$E18))/$E16),1) -> 1808.5 | H16: =ROUND(IF($E16=0,0,((H17*$E17)+(H18*$E18))/$E16),1) -> 0 | I16: ED_LAB2112_00004 | L16: Senior manager | M16: =ROUND(IF($E16=0,0,((M17*$E17)+(M18*$E18))/$E16),1) -> 1774.1 | N16: =ROUND(IF($E16=0,0,((N17*$E17)+(N18*$E18))/$E16),1) -> 110.3 | O16: =ROUND(IF($E16=0,0,((O17*$E17)+(O18*$E18))/$E16),1) -> 34.4 | P16: =ROUND(IF($E16=0,0,((P17*$E17)+(P18*$E18))/$E16),1) -> 114.1
A17: ED_LAB2111_00005 | D17: Employee (optional) | E17: 13.6 | F17: 2710.6 | G17: 1808.5 | H17: 0 | I17: ED_LAB2112_00005 | L17: Employee (optional) | M17: 1774.1 | N17: 110.3 | O17: 34.4 | P17: 114.1
A18: ED_LAB2111_00006 | D18: Labour hire (optional) | E18: 0 | F18: 0 | G18: 0 | H18: 0 | I18: ED_LAB2112_00006 | L18: Labour hire (optional) | M18: 0 | N18: 0 | O18: 0 | P18: 0
A19: ED_LAB2111_00007 | D19: Manager | E19: =E20+E21 -> 28.2 | F19: =F20+F21 -> 4348.5 | G19: =ROUND(IF($E19=0,0,((G20*$E20)+(G21*$E21))/$E19),1) -> 1645.2 | H19: =ROUND(IF($E19=0,0,((H20*$E20)+(H21*$E21))/$E19),1) -> 0.2 | I19: ED_LAB2112_00007 | L19: Manager | M19: =ROUND(IF($E19=0,0,((M20*$E20)+(M21*$E21))/$E19),1) -> 1590.9 | N19: =ROUND(IF($E19=0,0,((N20*$E20)+(N21*$E21))/$E19),1) -> 94.1 | O19: =ROUND(IF($E19=0,0,((O20*$E20)+(O21*$E21))/$E19),1) -> 54.3 | P19: =ROUND(IF($E19=0,0,((P20*$E20)+(P21*$E21))/$E19),1) -> 88.3
A20: ED_LAB2111_00008 | D20: Employee (optional) | E20: 27.1 | F20: 4101.1 | G20: 1635.1 | H20: 0.2 | I20: ED_LAB2112_00008 | L20: Employee (optional) | M20: 1578.6 | N20: 92.9 | O20: 56.5 | P20: 86.2
A21: ED_LAB2111_00009 | D21: Labour hire (optional) | E21: 1.1 | F21: 247.4 | G21: 1895.3 | H21: 0 | I21: ED_LAB2112_00009 | L21: Labour hire (optional) | M21: 1894.3 | N21: 124 | O21: 1 | P21: 141.1
A22: ED_LAB2111_00010 | D22: Professional | E22: =E23+E24 -> 44.2 | F22: =F23+F24 -> 7313.3 | G22: =ROUND(IF($E22=0,0,((G23*$E23)+(G24*$E24))/$E22),1) -> 1651.4 | H22: =ROUND(IF($E22=0,0,((H23*$E23)+(H24*$E24))/$E22),1) -> 0 | I22: ED_LAB2112_00010 | L22: Professional | M22: =ROUND(IF($E22=0,0,((M23*$E23)+(M24*$E24))/$E22),1) -> 1628 | N22: =ROUND(IF($E22=0,0,((N23*$E23)+(N24*$E24))/$E22),1) -> 99.4 | O22: =ROUND(IF($E22=0,0,((O23*$E23)+(O24*$E24))/$E22),1) -> 23.4 | P22: =ROUND(IF($E22=0,0,((P23*$E23)+(P24*$E24))/$E22),1) -> 95.7
A23: ED_LAB2111_00011 | D23: Employee (optional) | E23: 35.1 | F23: 5209.5 | G23: 1593 | H23: 0 | I23: ED_LAB2112_00011 | L23: Employee (optional) | M23: 1563.6 | N23: 93.3 | O23: 29.4 | P23: 84.4
A24: ED_LAB2111_00012 | D24: Labour hire (optional) | E24: 9.1 | F24: 2103.8 | G24: 1876.8 | H24: 0 | I24: ED_LAB2112_00012 | L24: Labour hire (optional) | M24: 1876.3 | N24: 122.7 | O24: 0.4 | P24: 139.5
A25: ED_LAB2111_00013 | D25: Semi professional | E25: =E26+E27 -> 143.1 | F25: =F26+F27 -> 20956 | G25: =ROUND(IF($E25=0,0,((G26*$E26)+(G27*$E27))/$E25),1) -> 1635 | H25: =ROUND(IF($E25=0,0,((H26*$E26)+(H27*$E27))/$E25),1) -> 0 | I25: ED_LAB2112_00013 | L25: Semi professional | M25: =ROUND(IF($E25=0,0,((M26*$E26)+(M27*$E27))/$E25),1) -> 1634.7 | N25: =ROUND(IF($E25=0,0,((N26*$E26)+(N27*$E27))/$E25),1) -> 88.6 | O25: =ROUND(IF($E25=0,0,((O26*$E26)+(O27*$E27))/$E25),1) -> 0.3 | P25: =ROUND(IF($E25=0,0,((P26*$E26)+(P27*$E27))/$E25),1) -> 85.8
A26: ED_LAB2111_00014 | D26: Employee (optional) | E26: 99.5 | F26: 12495.7 | G26: 1541.1 | H26: 0 | I26: ED_LAB2112_00014 | L26: Employee (optional) | M26: 1540.8 | N26: 81.5 | O26: 0.2 | P26: 71.1
A27: ED_LAB2111_00015 | D27: Labour hire (optional) | E27: 43.6 | F27: 8460.3 | G27: 1849.3 | H27: 0 | I27: ED_LAB2112_00015 | L27: Labour hire (optional) | M27: 1849 | N27: 104.9 | O27: 0.4 | P27: 119.4
A28: ED_LAB2111_00016 | D28: Support staff | E28: =E29+E30 -> 157.5 | F28: =F29+F30 -> 18010.7 | G28: =ROUND(IF($E28=0,0,((G29*$E29)+(G30*$E30))/$E28),1) -> 1600.5 | H28: =ROUND(IF($E28=0,0,((H29*$E29)+(H30*$E30))/$E28),1) -> 0.1 | I28: ED_LAB2112_00016 | L28: Support staff | M28: =ROUND(IF($E28=0,0,((M29*$E29)+(M30*$E30))/$E28),1) -> 1572.9 | N28: =ROUND(IF($E28=0,0,((N29*$E29)+(N30*$E30))/$E28),1) -> 71.1 | O28: =ROUND(IF($E28=0,0,((O29*$E29)+(O30*$E30))/$E28),1) -> 27.6 | P28: =ROUND(IF($E28=0,0,((P29*$E29)+(P30*$E30))/$E28),1) -> 65.3
A29: ED_LAB2111_00017 | D29: Employee (optional) | E29: 136.5 | F29: 14562.5 | G29: 1555.7 | H29: 0.1 | I29: ED_LAB2112_00017 | L29: Employee (optional) | M29: 1532 | N29: 68.7 | O29: 23.7 | P29: 60.2
A30: ED_LAB2111_00018 | D30: Labour hire (optional) | E30: 21 | F30: 3448.2 | G30: 1891.7 | H30: 0 | I30: ED_LAB2112_00018 | L30: Labour hire (optional) | M30: 1838.4 | N30: 86.5 | O30: 53.3 | P30: 98.8
A31: ED_LAB2111_00019 | D31: Intern, junior staff, apprentice | E31: =E32+E33 -> 0 | F31: =F32+F33 -> 0 | G31: =ROUND(IF($E31=0,0,((G32*$E32)+(G33*$E33))/$E31),1) -> 0 | H31: =ROUND(IF($E31=0,0,((H32*$E32)+(H33*$E33))/$E31),1) -> 0 | I31: ED_LAB2112_00019 | L31: Intern, junior staff, apprentice | M31: =ROUND(IF($E31=0,0,((M32*$E32)+(M33*$E33))/$E31),1) -> 0 | N31: =ROUND(IF($E31=0,0,((N32*$E32)+(N33*$E33))/$E31),1) -> 0 | O31: =ROUND(IF($E31=0,0,((O32*$E32)+(O33*$E33))/$E31),1) -> 0 | P31: =ROUND(IF($E31=0,0,((P32*$E32)+(P33*$E33))/$E31),1) -> 0
A32: ED_LAB2111_00020 | D32: Employee (optional) | E32: 0 | F32: 0 | G32: 0 | H32: 0 | I32: ED_LAB2112_00020 | L32: Employee (optional) | M32: 0 | N32: 0 | O32: 0 | P32: 0
A33: ED_LAB2111_00021 | D33: Labour hire (optional) | E33: 0 | F33: 0 | G33: 0 | H33: 0 | I33: ED_LAB2112_00021 | L33: Labour hire (optional) | M33: 0 | N33: 0 | O33: 0 | P33: 0
A34: ED_LAB2111_00022 | B34: NETWORK OVERHEADS INTERNAL LABOUR COSTS | C34: LABOUR CLASSIFICATION LEVEL | D34: Executive manager | E34: =E35+E36 -> 20.8 | F34: =F35+F36 -> 6288.5 | G34: =ROUND(IF($E34=0,0,((G35*$E35)+(G36*$E36))/$E34),1) -> 1901.7 | H34: =ROUND(IF($E34=0,0,((H35*$E35)+(H36*$E36))/$E34),1) -> 0 | I34: ED_LAB2112_00022 | J34: NETWORK OVERHEADS INTERNAL LABOUR COSTS | K34: LABOUR CLASSIFICATION LEVEL | L34: Executive manager | M34: =ROUND(IF($E34=0,0,((M35*$E35)+(M36*$E36))/$E34),1) -> 1886.8 | N34: =ROUND(IF($E34=0,0,((N35*$E35)+(N36*$E36))/$E34),1) -> 158.8 | O34: =ROUND(IF($E34=0,0,((O35*$E35)+(O36*$E36))/$E34),1) -> 14.9 | P34: =ROUND(IF($E34=0,0,((P35*$E35)+(P36*$E36))/$E34),1) -> 174.7
A35: ED_LAB2111_00023 | D35: Employee (optional) | E35: 20.8 | F35: 6288.5 | G35: 1901.7 | H35: 0 | I35: ED_LAB2112_00023 | L35: Employee (optional) | M35: 1886.8 | N35: 158.8 | O35: 14.9 | P35: 174.7
A36: ED_LAB2111_00024 | D36: Labour hire (optional) | E36: 0 | F36: 0 | G36: 0 | H36: 0 | I36: ED_LAB2112_00024 | L36: Labour hire (optional) | M36: 0 | N36: 0 | O36: 0 | P36: 0
A37: ED_LAB2111_00025 | D37: Senior manager | E37: =E38+E39 -> 29.5 | F37: =F38+F39 -> 5647.8 | G37: =ROUND(IF($E37=0,0,((G38*$E38)+(G39*$E39))/$E37),1) -> 1741.7 | H37: =ROUND(IF($E37=0,0,((H38*$E38)+(H39*$E39))/$E37),1) -> 0 | I37: ED_LAB2112_00025 | L37: Senior manager | M37: =ROUND(IF($E37=0,0,((M38*$E38)+(M39*$E39))/$E37),1) -> 1739.5 | N37: =ROUND(IF($E37=0,0,((N38*$E38)+(N39*$E39))/$E37),1) -> 110 | O37: =ROUND(IF($E37=0,0,((O38*$E38)+(O39*$E39))/$E37),1) -> 2.2 | P37: =ROUND(IF($E37=0,0,((P38*$E38)+(P39*$E39))/$E37),1) -> 110.1
A38: ED_LAB2111_00026 | D38: Employee (optional) | E38: 29.5 | F38: 5647.8 | G38: 1741.7 | H38: 0 | I38: ED_LAB2112_00026 | L38: Employee (optional) | M38: 1739.5 | N38: 110 | O38: 2.2 | P38: 110.1
A39: ED_LAB2111_00027 | D39: Labour hire (optional) | E39: 0 | F39: 0 | G39: 0 | H39: 0 | I39: ED_LAB2112_00027 | L39: Labour hire (optional) | M39: 0 | N39: 0 | O39: 0 | P39: 0
A40: ED_LAB2111_00028 | D40: Manager | E40: =E41+E42 -> 92.6 | F40: =F41+F42 -> 13012.4 | G40: =ROUND(IF($E40=0,0,((G41*$E41)+(G42*$E42))/$E40),1) -> 1657.6 | H40: =ROUND(IF($E40=0,0,((H41*$E41)+(H42*$E42))/$E40),1) -> 7.2 | I40: ED_LAB2112_00028 | L40: Manager | M40: =ROUND(IF($E40=0,0,((M41*$E41)+(M42*$E42))/$E40),1) -> 1551.2 | N40: =ROUND(IF($E40=0,0,((N41*$E41)+(N42*$E42))/$E40),1) -> 85 | O40: =ROUND(IF($E40=0,0,((O41*$E41)+(O42*$E42))/$E40),1) -> 106.3 | P40: =ROUND(IF($E40=0,0,((P41*$E41)+(P42*$E42))/$E40),1) -> 80.3
A41: ED_LAB2111_00029 | D41: Employee (optional) | E41: 92.6 | F41: 13012.4 | G41: 1657.6 | H41: 7.2 | I41: ED_LAB2112_00029 | L41: Employee (optional) | M41: 1551.2 | N41: 85 | O41: 106.3 | P41: 80.3
A42: ED_LAB2111_00030 | D42: Labour hire (optional) | E42: 0 | F42: 0 | G42: 0 | H42: 0 | I42: ED_LAB2112_00030 | L42: Labour hire (optional) | M42: 0 | N42: 0 | O42: 0 | P42: 0
A43: ED_LAB2111_00031 | D43: Professional | E43: =E44+E45 -> 97.5 | F43: =F44+F45 -> 12160.7 | G43: =ROUND(IF($E43=0,0,((G44*$E44)+(G45*$E45))/$E43),1) -> 1572.4 | H43: =ROUND(IF($E43=0,0,((H44*$E44)+(H45*$E45))/$E43),1) -> 0.3 | I43: ED_LAB2112_00031 | L43: Professional | M43: =ROUND(IF($E43=0,0,((M44*$E44)+(M45*$E45))/$E43),1) -> 1549.4 | N43: =ROUND(IF($E43=0,0,((N44*$E44)+(N45*$E45))/$E43),1) -> 79.2 | O43: =ROUND(IF($E43=0,0,((O44*$E44)+(O45*$E45))/$E43),1) -> 23 | P43: =ROUND(IF($E43=0,0,((P44*$E44)+(P45*$E45))/$E43),1) -> 71.6
A44: ED_LAB2111_00032 | D44: Employee (optional) | E44: 90.8 | F44: 10915.7 | G44: 1551 | H44: 0.3 | I44: ED_LAB2112_00032 | L44: Employee (optional) | M44: 1528.4 | N44: 77.7 | O44: 22.6 | P44: 68.5
A45: ED_LAB2111_00033 | D45: Labour hire (optional) | E45: 6.7 | F45: 1245 | G45: 1862.7 | H45: 0 | I45: ED_LAB2112_00033 | L45: Labour hire (optional) | M45: 1834.1 | N45: 100.1 | O45: 28.6 | P45: 114.1
A46: ED_LAB2111_00034 | D46: Semi professional | E46: =E47+E48 -> 319.3 | F46: =F47+F48 -> 44756.9 | G46: =ROUND(IF($E46=0,0,((G47*$E47)+(G48*$E48))/$E46),1) -> 1646.5 | H46: =ROUND(IF($E46=0,0,((H47*$E47)+(H48*$E48))/$E46),1) -> 5.8 | I46: ED_LAB2112_00034 | L46: Semi professional | M46: =ROUND(IF($E46=0,0,((M47*$E47)+(M48*$E48))/$E46),1) -> 1562.3 | N46: =ROUND(IF($E46=0,0,((N47*$E47)+(N48*$E48))/$E46),1) -> 85.1 | O46: =ROUND(IF($E46=0,0,((O47*$E47)+(O48*$E48))/$E46),1) -> 84.2 | P46: =ROUND(IF($E46=0,0,((P47*$E47)+(P48*$E48))/$E46),1) -> 80.6
A47: ED_LAB2111_00035 | D47: Employee (optional) | E47: 291.6 | F47: 38985.4 | G47: 1624.2 | H47: 6.3 | I47: ED_LAB2112_00035 | L47: Employee (optional) | M47: 1535.7 | N47: 82.7 | O47: 88.6 | P47: 76.3
A48: ED_LAB2111_00036 | D48: Labour hire (optional) | E48: 27.7 | F48: 5771.5 | G48: 1881.2 | H48: 0.1 | I48: ED_LAB2112_00036 | L48: Labour hire (optional) | M48: 1842.8 | N48: 110.4 | O48: 38.4 | P48: 125.9
A49: ED_LAB2111_00037 | D49: Support staff | E49: =E50+E51 -> 159.2 | F49: =F50+F51 -> 18845.3 | G49: =ROUND(IF($E49=0,0,((G50*$E50)+(G51*$E51))/$E49),1) -> 1644.5 | H49: =ROUND(IF($E49=0,0,((H50*$E50)+(H51*$E51))/$E49),1) -> 2.7 | I49: ED_LAB2112_00037 | L49: Support staff | M49: =ROUND(IF($E49=0,0,((M50*$E50)+(M51*$E51))/$E49),1) -> 1582 | N49: =ROUND(IF($E49=0,0,((N50*$E50)+(N51*$E51))/$E49),1) -> 71.7 | O49: =ROUND(IF($E49=0,0,((O50*$E50)+(O51*$E51))/$E49),1) -> 62.5 | P49: =ROUND(IF($E49=0,0,((P50*$E50)+(P51*$E51))/$E49),1) -> 68.5
A50: ED_LAB2111_00038 | D50: Employee (optional) | E50: 131.3 | F50: 14180.8 | G50: 1599.5 | H50: 3.2 | I50: ED_LAB2112_00038 | L50: Employee (optional) | M50: 1528.4 | N50: 67.8 | O50: 71.1 | P50: 61.3
A51: ED_LAB2111_00039 | D51: Labour hire (optional) | E51: 27.9 | F51: 4664.5 | G51: 1856.3 | H51: 0.1 | I51: ED_LAB2112_00039 | L51: Labour hire (optional) | M51: 1834.1 | N51: 89.9 | O51: 22.2 | P51: 102.5
A52: ED_LAB2111_00040 | D52: Intern, junior staff, apprentice | E52: =E53+E54 -> 19.8 | F52: =F53+F54 -> 1625.1 | G52: =ROUND(IF($E52=0,0,((G53*$E53)+(G54*$E54))/$E52),1) -> 1586.1 | H52: =ROUND(IF($E52=0,0,((H53*$E53)+(H54*$E54))/$E52),1) -> 5.4 | I52: ED_LAB2112_00040 | L52: Intern, junior staff, apprentice | M52: =ROUND(IF($E52=0,0,((M53*$E53)+(M54*$E54))/$E52),1) -> 1545.4 | N52: =ROUND(IF($E52=0,0,((N53*$E53)+(N54*$E54))/$E52),1) -> 51.8 | O52: =ROUND(IF($E52=0,0,((O53*$E53)+(O54*$E54))/$E52),1) -> 40.7 | P52: =ROUND(IF($E52=0,0,((P53*$E53)+(P54*$E54))/$E52),1) -> 46.4
A53: ED_LAB2111_00041 | D53: Employee (optional) | E53: 18.7 | F53: 1487.9 | G53: 1568.9 | H53: 4.9 | I53: ED_LAB2112_00041 | L53: Employee (optional) | M53: 1528.4 | N53: 51 | O53: 40.5 | P53: 44.8
A54: ED_LAB2111_00042 | D54: Labour hire (optional) | E54: 1.1 | F54: 137.2 | G54: 1877.7 | H54: 13.4 | I54: ED_LAB2112_00042 | L54: Labour hire (optional) | M54: 1834.1 | N54: 64.9 | O54: 43.6 | P54: 74
A55: ED_LAB2111_00043 | B55: TOTAL DIRECT NETWORK LABOUR INTERNAL LABOUR COSTS | C55: LABOUR CLASSIFICATION LEVEL | D55: Skilled electrical worker | E55: =E56+E57 -> 534.2 | F55: =F56+F57 -> 70834.1 | G55: =ROUND(IF($E55=0,0,((G56*$E56)+(G57*$E57))/$E55),1) -> 1944.6 | H55: =ROUND(IF($E55=0,0,((H56*$E56)+(H57*$E57))/$E55),1) -> 80.8 | I55: ED_LAB2112_00043 | J55: TOTAL DIRECT NETWORK LABOUR INTERNAL LABOUR COSTS | K55: LABOUR CLASSIFICATION LEVEL | L55: Skilled electrical worker | M55: =ROUND(IF($E55=0,0,((M56*$E56)+(M57*$E57))/$E55),1) -> 1538.6 | N55: =ROUND(IF($E55=0,0,((N56*$E56)+(N57*$E57))/$E55),1) -> 66.1 | O55: =ROUND(IF($E55=0,0,((O56*$E56)+(O57*$E57))/$E55),1) -> 406 | P55: =ROUND(IF($E55=0,0,((P56*$E56)+(P57*$E57))/$E55),1) -> 75.5
A56: ED_LAB2111_00044 | D56: Employee (optional) | E56: 516.4 | F56: 67233.1 | G56: 1940.6 | H56: 83 | I56: ED_LAB2112_00044 | L56: Employee (optional) | M56: 1528.4 | N56: 65.1 | O56: 412.2 | P56: 74.3
A57: ED_LAB2111_00045 | D57: Labour hire (optional) | E57: 17.8 | F57: 3601 | G57: 2060.9 | H57: 17.2 | I57: ED_LAB2112_00045 | L57: Labour hire (optional) | M57: 1834.1 | N57: 96.6 | O57: 226.8 | P57: 111.8
A58: ED_LAB2111_00046 | D58: Skilled non electical worker | E58: =E59+E60 -> 27.9 | F58: =F59+F60 -> 2823.6 | G58: =ROUND(IF($E58=0,0,((G59*$E59)+(G60*$E60))/$E58),1) -> 1701.6 | H58: =ROUND(IF($E58=0,0,((H59*$E59)+(H60*$E60))/$E58),1) -> 7.1 | I58: ED_LAB2112_00046 | L58: Skilled non electical worker | M58: =ROUND(IF($E58=0,0,((M59*$E59)+(M60*$E60))/$E58),1) -> 1563.5 | N58: =ROUND(IF($E58=0,0,((N59*$E59)+(N60*$E60))/$E58),1) -> 59.2 | O58: =ROUND(IF($E58=0,0,((O59*$E59)+(O60*$E60))/$E58),1) -> 138.2 | P58: =ROUND(IF($E58=0,0,((P59*$E59)+(P60*$E60))/$E58),1) -> 57
A59: ED_LAB2111_00047 | D59: Employee (optional) | E59: 24.7 | F59: 2354.1 | G59: 1657.1 | H59: 7.8 | I59: ED_LAB2112_00047 | L59: Employee (optional) | M59: 1528.4 | N59: 57.7 | O59: 128.7 | P59: 53.8
A60: ED_LAB2111_00048 | D60: Labour hire (optional) | E60: 3.2 | F60: 469.5 | G60: 2045.5 | H60: 1.8 | I60: ED_LAB2112_00048 | L60: Labour hire (optional) | M60: 1834.1 | N60: 70.6 | O60: 211.5 | P60: 81.6
A61: ED_LAB2111_00049 | D61: Apprentice | E61: =E62+E63 -> 131.4 | F61: =F62+F63 -> 7781.2 | G61: =ROUND(IF($E61=0,0,((G62*$E62)+(G63*$E63))/$E61),1) -> 1747.6 | H61: =ROUND(IF($E61=0,0,((H62*$E62)+(H63*$E63))/$E61),1) -> 37.7 | I61: ED_LAB2112_00049 | L61: Apprentice | M61: =ROUND(IF($E61=0,0,((M62*$E62)+(M63*$E63))/$E61),1) -> 1541.8 | N61: =ROUND(IF($E61=0,0,((N62*$E62)+(N63*$E63))/$E61),1) -> 34 | O61: =ROUND(IF($E61=0,0,((O62*$E62)+(O63*$E63))/$E61),1) -> 205.8 | P61: =ROUND(IF($E61=0,0,((P62*$E62)+(P63*$E63))/$E61),1) -> 32.8
A62: ED_LAB2111_00050 | D62: Employee (optional) | E62: 129.9 | F62: 7649 | G62: 1744 | H62: 38.1 | I62: ED_LAB2112_00050 | L62: Employee (optional) | M62: 1538.3 | N62: 33.9 | O62: 205.7 | P62: 32.6
A63: ED_LAB2111_00051 | D63: Labour hire (optional) | E63: 1.5 | F63: 132.2 | G63: 2063.5 | H63: 0 | I63: ED_LAB2112_00051 | L63: Labour hire (optional) | M63: 1846 | N63: 42.4 | O63: 217.6 | P63: 49.1
A64: ED_LAB2111_00052 | D64: Unskilled worker | E64: =E65+E66 -> 60.9 | F64: =F65+F66 -> 6251.3 | G64: =ROUND(IF($E64=0,0,((G65*$E65)+(G66*$E66))/$E64),1) -> 1698 | H64: =ROUND(IF($E64=0,0,((H65*$E65)+(H66*$E66))/$E64),1) -> 10.5 | I64: ED_LAB2112_00052 | L64: Unskilled worker | M64: =ROUND(IF($E64=0,0,((M65*$E65)+(M66*$E66))/$E64),1) -> 1575.1 | N64: =ROUND(IF($E64=0,0,((N65*$E65)+(N66*$E66))/$E64),1) -> 60.2 | O64: =ROUND(IF($E64=0,0,((O65*$E65)+(O66*$E66))/$E64),1) -> 122.9 | P64: =ROUND(IF($E64=0,0,((P65*$E65)+(P66*$E66))/$E64),1) -> 58.5
A65: ED_LAB2111_00053 | D65: Employee (optional) | E65: 51.6 | F65: 4895 | G65: 1654.1 | H65: 12.4 | I65: ED_LAB2112_00053 | L65: Employee (optional) | M65: 1528.4 | N65: 57.6 | O65: 125.7 | P65: 53.6
A66: ED_LAB2111_00054 | D66: Labour hire (optional) | E66: 9.3 | F66: 1356.3 | G66: 1941.5 | H66: 0 | I66: ED_LAB2112_00054 | L66: Labour hire (optional) | M66: 1834.1 | N66: 74.7 | O66: 107.4 | P66: 85.7

Sheet 2.12 Input tables
B1: =Title -> REGULATORY REPORTING STATEMENT
B2: =TradingName -> SA Power Networks
B3: =CONCATENATE("Category Analysis RIN response ",CRY) -> Category Analysis RIN response 2013-14
B4: 2.12 INPUT TABLES
E5: 1
M7: DIRECT MATERIAL EXPENDITURE | N7: DIRECT LABOUR EXPENDITURE | O7: CONTRACT EXPENDITURE | P7: OTHER EXPENDITURE | Q7: RELATED PARTY CONTRACT EXPENDITURE | R7: RELATED PARTY CONTRACT MARGIN EXPENDITURE
E8: DNSP NAME | F8: SERVICE | G8: SERVICE SUBCATEGORY | H8: DATA CATEGORY | I8: DATA SUBCATEGORY | J8: MEASUREMENT | K8: DENOMINATION | M8: =CRY -> 2013-14 | N8: 2013-14 | O8: 2013-14 | P8: 2013-14 | Q8: 2013-14 | R8: 2013-14
A9: ED_INP212_00001 | B9: VEGETATION MANAGEMENT | C9: South Australia | E9: DNSP NAME | F9: INPUT COSTS | G9: VEGETATION MANAGEMENT | H9: DIRECT MATERIAL COST | I9: =$C$9 -> South Australia | J9: EXPENDITURE | K9: $000'S
A10: ED_INP212_00002 | C10: Zone - DNSP to nominate | E10: DNSP NAME | F10: INPUT COSTS | G10: VEGETATION MANAGEMENT | H10: DIRECT MATERIAL COST | I10: =$C$10 -> Zone - DNSP to nominate | J10: EXPENDITURE | K10: $000'S
A11: ED_INP212_00003 | C11: Zone - DNSP to nominate | E11: DNSP NAME | F11: INPUT COSTS | G11: VEGETATION MANAGEMENT | H11: DIRECT MATERIAL COST | I11: =$C$11 -> Zone - DNSP to nominate | J11: EXPENDITURE | K11: $000'S
A12: ED_INP212_00004 | C12: Zone - DNSP to nominate | E12: DNSP NAME | F12: INPUT COSTS | G12: VEGETATION MANAGEMENT | H12: DIRECT MATERIAL COST | I12: =$C$12 -> Zone - DNSP to nominate | J12: EXPENDITURE | K12: $000'S
A13: ED_INP212_00005 | C13: Zone - DNSP to nominate | E13: DNSP NAME | F13: INPUT COSTS | G13: VEGETATION MANAGEMENT | H13: DIRECT MATERIAL COST | I13: =$C$13 -> Zone - DNSP to nominate | J13: EXPENDITURE | K13: $000'S
A14: ED_INP212_00006 | C14: Zone - DNSP to nominate | E14: DNSP NAME | F14: INPUT COSTS | G14: VEGETATION MANAGEMENT | H14: DIRECT MATERIAL COST | I14: =$C$14 -> Zone - DNSP to nominate | J14: EXPENDITURE | K14: $000'S
A15: ED_INP212_00007 | C15: Zone - DNSP to nominate | E15: DNSP NAME | F15: INPUT COSTS | G15: VEGETATION MANAGEMENT | H15: DIRECT MATERIAL COST | I15: =$C$15 -> Zone - DNSP to nominate | J15: EXPENDITURE | K15: $000'S
A16: ED_INP212_00008 | C16: Zone - DNSP to nominate | E16: DNSP NAME | F16: INPUT COSTS | G16: VEGETATION MANAGEMENT | H16: DIRECT MATERIAL COST | I16: =$C$16 -> Zone - DNSP to nominate | J16: EXPENDITURE | K16: $000'S
A17: ED_INP212_00009 | C17: Zone - DNSP to nominate | E17: DNSP NAME | F17: INPUT COSTS | G17: VEGETATION MANAGEMENT | H17: DIRECT MATERIAL COST | I17: =$C$17 -> Zone - DNSP to nominate | J17: EXPENDITURE | K17: $000'S
A18: ED_INP212_00010 | C18: Zone - DNSP to nominate | E18: DNSP NAME | F18: INPUT COSTS | G18: VEGETATION MANAGEMENT | H18: DIRECT MATERIAL COST | I18: =$C$18 -> Zone - DNSP to nominate | J18: EXPENDITURE | K18: $000'S
A19: ED_INP212_00011 | C19: Zone - DNSP to nominate | E19: DNSP NAME | F19: INPUT COSTS | G19: VEGETATION MANAGEMENT | H19: DIRECT MATERIAL COST | I19: =$C$19 -> Zone - DNSP to nominate | J19: EXPENDITURE | K19: $000'S
A20: ED_INP212_00012 | C20: Zone - DNSP to nominate | E20: DNSP NAME | F20: INPUT COSTS | G20: VEGETATION MANAGEMENT | H20: DIRECT MATERIAL COST | I20: =$C$20 -> Zone - DNSP to nominate | J20: EXPENDITURE | K20: $000'S
A21: ED_INP212_00013 | C21: Zone - DNSP to nominate | E21: DNSP NAME | F21: INPUT COSTS | G21: VEGETATION MANAGEMENT | H21: DIRECT MATERIAL COST | I21: =$C$21 -> Zone - DNSP to nominate | J21: EXPENDITURE | K21: $000'S
A22: ED_INP212_00014 | C22: Zone - DNSP to nominate | E22: DNSP NAME | F22: INPUT COSTS | G22: VEGETATION MANAGEMENT | H22: DIRECT MATERIAL COST | I22: =$C$22 -> Zone - DNSP to nominate | J22: EXPENDITURE | K22: $000'S
A23: ED_INP212_00015 | C23: Zone - DNSP to nominate | E23: DNSP NAME | F23: INPUT COSTS | G23: VEGETATION MANAGEMENT | H23: DIRECT MATERIAL COST | I23: =$C$23 -> Zone - DNSP to nominate | J23: EXPENDITURE | K23: $000'S
A24: ED_INP212_00016 | C24: Zone - DNSP to nominate | E24: DNSP NAME | F24: INPUT COSTS | G24: VEGETATION MANAGEMENT | H24: DIRECT MATERIAL COST | I24: =$C$24 -> Zone - DNSP to nominate | J24: EXPENDITURE | K24: $000'S
A25: ED_INP212_00017 | C25: Zone - DNSP to nominate | E25: DNSP NAME | F25: INPUT COSTS | G25: VEGETATION MANAGEMENT | H25: DIRECT MATERIAL COST | I25: =$C$25 -> Zone - DNSP to nominate | J25: EXPENDITURE | K25: $000'S
A26: ED_INP212_00018 | C26: Zone - DNSP to nominate | E26: DNSP NAME | F26: INPUT COSTS | G26: VEGETATION MANAGEMENT | H26: DIRECT MATERIAL COST | I26: =$C$26 -> Zone - DNSP to nominate | J26: EXPENDITURE | K26: $000'S
A27: ED_INP212_00019 | B27: ROUTINE MAINTENANCE | C27: Pole top, overhead line & service line maintenance | E27: DNSP NAME | F27: INPUT COSTS | G27: ROUTINE MAINTENANCE | H27: DIRECT MATERIAL COST | I27: =$C$27 -> Pole top, overhead line & service line maintenance | J27: EXPENDITURE | K27: $000'S | M27: 619.160667 | N27: 13337.79082 | O27: 23690.26141 | P27: 1608.87107
A28: ED_INP212_00020 | C28: Pole inspection and treatment | E28: DNSP NAME | F28: INPUT COSTS | G28: ROUTINE MAINTENANCE | H28: DIRECT MATERIAL COST | I28: =$C$28 -> Pole inspection and treatment | J28: EXPENDITURE | K28: $000'S | M28: 295.2101898 | N28: 451935.3055 | O28: 3988818.956 | P28: 82.22147321
A29: ED_INP212_00021 | C29: Overhead asset inspection | E29: DNSP NAME | F29: INPUT COSTS | G29: ROUTINE MAINTENANCE | H29: DIRECT MATERIAL COST | I29: =$C$29 -> Overhead asset inspection | J29: EXPENDITURE | K29: $000'S | M29: 29441.77578 | N29: 1047204.529 | O29: 4289769.215 | P29: 28721.34336
A30: ED_INP212_00022 | C30: Network underground cable maintenance | E30: DNSP NAME | F30: INPUT COSTS | G30: ROUTINE MAINTENANCE | H30: DIRECT MATERIAL COST | I30: =$C$30 -> Network underground cable maintenance | J30: EXPENDITURE | K30: $000'S | M30: 10310.92375 | N30: 74847.66429 | O30: 0 | P30: 5199.992302
A31: ED_INP212_00023 | C31: Distribution substation equipment & property maintenance | E31: DNSP NAME | F31: INPUT COSTS | G31: ROUTINE MAINTENANCE | H31: DIRECT MATERIAL COST | I31: =$C$31 -> Distribution substation equipment & property maintenance | J31: EXPENDITURE | K31: $000'S | M31: 3709.315929 | N31: 197392.8455 | O31: 2348.694142 | P31: 215.1905077
A32: ED_INP212_00024 | C32: Zone substation equipment maintenance | E32: DNSP NAME | F32: INPUT COSTS | G32: ROUTINE MAINTENANCE | H32: DIRECT MATERIAL COST | I32: =$C$32 -> Zone substation equipment maintenance | J32: EXPENDITURE | K32: $000'S | M32: 116713.75 | N32: 699202.69 | O32: 154206.48 | P32: 47288.4
A33: ED_INP212_00025 | C33: Zone substation property maintenance | E33: DNSP NAME | F33: INPUT COSTS | G33: ROUTINE MAINTENANCE | H33: DIRECT MATERIAL COST | I33: =$C$33 -> Zone substation property maintenance | J33: EXPENDITURE | K33: $000'S | M33: 35093.40117 | N33: 327570.094 | O33: 700989.2215 | P33: 14281.9869
A34: ED_INP212_00026 | C34: Public lighting maintenance | E34: DNSP NAME | F34: INPUT COSTS | G34: ROUTINE MAINTENANCE | H34: DIRECT MATERIAL COST | I34: =$C$34 -> Public lighting maintenance | J34: EXPENDITURE | K34: $000'S | M34: 0 | N34: 0 | O34: 0 | P34: 0
A35: ED_INP212_00027 | C35: Scada & network control maintenance | E35: DNSP NAME | F35: INPUT COSTS | G35: ROUTINE MAINTENANCE | H35: DIRECT MATERIAL COST | I35: =$C$35 -> Scada & network control maintenance | J35: EXPENDITURE | K35: $000'S | M35: 0 | N35: 0 | O35: 0 | P35: 0
A36: ED_INP212_00028 | C36: Protection systems maintenance | E36: DNSP NAME | F36: INPUT COSTS | G36: ROUTINE MAINTENANCE | H36: DIRECT MATERIAL COST | I36: =$C$36 -> Protection systems maintenance | J36: EXPENDITURE | K36: $000'S | M36: 19630.30759 | N36: 911681.7998 | O36: 13061.20544 | P36: 31578.01304
A37: ED_INP212_00029 | C37: Subtransmission asset maintenance - for dnsps with dual function assets | E37: DNSP NAME | F37: INPUT COSTS | G37: ROUTINE MAINTENANCE | H37: DIRECT MATERIAL COST | I37: =$C$37 -> Subtransmission asset maintenance - for dnsps with dual function assets | J37: EXPENDITURE | K37: $000'S | M37: 0 | N37: 0 | O37: 0 | P37: 0
A38: ED_INP212_00031 | C38: Other | E38: DNSP NAME | F38: INPUT COSTS | G38: ROUTINE MAINTENANCE | H38: DIRECT MATERIAL COST | I38: =$C$38 -> Other | J38: EXPENDITURE | K38: $000'S | M38: 257506.4 | N38: 3013676.15 | O38: 1265287.73 | P38: 82370.04
A39: ED_INP212_00032 | B39: NON-ROUTINE MAINTENANCE | C39: Pole top, overhead line & service line maintenance | E39: DNSP NAME | F39: INPUT COSTS | G39: NON-ROUTINE MAINTENANCE | H39: DIRECT MATERIAL COST | I39: =$C$39 -> Pole top, overhead line & service line maintenance | J39: EXPENDITURE | K39: $000'S | M39: 31852.58808 | N39: 498900.6258 | O39: 10015.22427 | P39: 115480.1868
A40: ED_INP212_00033 | C40: Pole inspection and treatment | E40: DNSP NAME | F40: INPUT COSTS | G40: NON-ROUTINE MAINTENANCE | H40: DIRECT MATERIAL COST | I40: =$C$40 -> Pole inspection and treatment | J40: EXPENDITURE | K40: $000'S | M40: 0 | N40: 0 | O40: 0 | P40: 0
A41: ED_INP212_00034 | C41: Overhead asset inspection | E41: DNSP NAME | F41: INPUT COSTS | G41: NON-ROUTINE MAINTENANCE | H41: DIRECT MATERIAL COST | I41: =$C$41 -> Overhead asset inspection | J41: EXPENDITURE | K41: $000'S | M41: 0 | N41: 0 | O41: 0 | P41: 0
A42: ED_INP212_00035 | C42: Network underground cable maintenance | E42: DNSP NAME | F42: INPUT COSTS | G42: NON-ROUTINE MAINTENANCE | H42: DIRECT MATERIAL COST | I42: =$C$42 -> Network underground cable maintenance | J42: EXPENDITURE | K42: $000'S | M42: 41338.52093 | N42: 141264.5536 | O42: 19948.16325 | P42: 32180.09121
A43: ED_INP212_00036 | C43: Distribution substation equipment & property maintenance | E43: DNSP NAME | F43: INPUT COSTS | G43: NON-ROUTINE MAINTENANCE | H43: DIRECT MATERIAL COST | I43: =$C$43 -> Distribution substation equipment & property maintenance | J43: EXPENDITURE | K43: $000'S | M43: 96833.29 | N43: 252806.68 | O43: 149164.5 | P43: 37345.8
A44: ED_INP212_00037 | C44: Zone substation equipment maintenance | E44: DNSP NAME | F44: INPUT COSTS | G44: NON-ROUTINE MAINTENANCE | H44: DIRECT MATERIAL COST | I44: =$C$44 -> Zone substation equipment maintenance | J44: EXPENDITURE | K44: $000'S | M44: 184489.04 | N44: 1413980.7 | O44: 404745.21 | P44: 78712.75
A45: ED_INP212_00038 | C45: Zone substation property maintenance | E45: DNSP NAME | F45: INPUT COSTS | G45: NON-ROUTINE MAINTENANCE | H45: DIRECT MATERIAL COST | I45: =$C$45 -> Zone substation property maintenance | J45: EXPENDITURE | K45: $000'S | M45: 71111.34185 | N45: 340817.0795 | O45: 263002.5284 | P45: 14581.04756
A46: ED_INP212_00039 | C46: Public lighting maintenance | E46: DNSP NAME | F46: INPUT COSTS | G46: NON-ROUTINE MAINTENANCE | H46: DIRECT MATERIAL COST | I46: =$C$46 -> Public lighting maintenance | J46: EXPENDITURE | K46: $000'S | M46: 0 | N46: 0 | O46: 0 | P46: 0
A47: ED_INP212_00040 | C47: SCADA & network control maintenance | E47: DNSP NAME | F47: INPUT COSTS | G47: NON-ROUTINE MAINTENANCE | H47: DIRECT MATERIAL COST | I47: =$C$47 -> SCADA & network control maintenance | J47: EXPENDITURE | K47: $000'S | M47: 128882.6698 | N47: 563119.3724 | O47: 24192.32295 | P47: 25008.5386
A48: ED_INP212_00041 | C48: Protection systems maintenance | E48: DNSP NAME | F48: INPUT COSTS | G48: NON-ROUTINE MAINTENANCE | H48: DIRECT MATERIAL COST | I48: =$C$48 -> Protection systems maintenance | J48: EXPENDITURE | K48: $000'S | M48: 77426.11054 | N48: 328235.5561 | O48: 6966.073382 | P48: 12423.72842
A49: ED_INP212_00042 | C49: Subtransmission asset maintenance - for DNSP with dual function assets | E49: DNSP NAME | F49: INPUT COSTS | G49: NON-ROUTINE MAINTENANCE | H49: DIRECT MATERIAL COST | I49: =$C$49 -> Subtransmission asset maintenance - for DNSP with dual function assets | J49: EXPENDITURE | K49: $000'S | M49: 0 | N49: 0 | O49: 0 | P49: 0
A50: ED_INP212_00044 | C50: Other | E50: DNSP NAME | F50: INPUT COSTS | G50: NON-ROUTINE MAINTENANCE | H50: DIRECT MATERIAL COST | I50: =$C$50 -> Other | J50: EXPENDITURE | K50: $000'S | M50: 187036.52 | N50: 1737506.94 | O50: 513941.35 | P50: 184008.94
A51: ED_INP212_00045 | B51: OVERHEADS | C51: Network overheads | E51: DNSP NAME | F51: INPUT COSTS | G51: OVERHEADS | H51: DIRECT MATERIAL COST | I51: =$C$51 -> Network overheads | J51: EXPENDITURE | K51: $000'S | M51: =[7]SUMMARY!$G$45 -> 4312 | N51: =[7]SUMMARY!$M$45 -> 38724 | O51: =[7]SUMMARY!$S$45-Q51 -> 8399 | P51: =[7]SUMMARY!$Y$45 -> 30759 | Q51: 14806 | R51: 0
A52: ED_INP212_00046 | C52: Corporate overheads | E52: DNSP NAME | F52: INPUT COSTS | G52: OVERHEADS | H52: DIRECT MATERIAL COST | I52: =$C$52 -> Corporate overheads | J52: EXPENDITURE | K52: $000'S | M52: =ROUND([7]SUMMARY!$G$85,0) -> 1056 | N52: =ROUND([7]SUMMARY!$M$85,0) -> 27095 | O52: =ROUND([7]SUMMARY!$S$85,0) -> -54 | P52: =ROUND([7]SUMMARY!$Y$85,0)-Q52 -> 28177 | Q52: 143 | R52: 0
A53: ED_INP212_00047 | B53: AUGMENTATION | C53: Subtransmission substations, switching stations, zone substations | E53: DNSP NAME | F53: INPUT COSTS | G53: AUGMENTATION | H53: DIRECT MATERIAL COST | I53: =$C$53 -> Subtransmission substations, switching stations, zone substations | J53: EXPENDITURE | K53: $000'S | M53: 11350.20761 | N53: 19992.25417 | O53: 27992.33969 | P53: -1493.56 | Q53: 0 | R53: 0
A54: ED_INP212_00048 | C54: Subtransmission lines | E54: DNSP NAME | F54: INPUT COSTS | G54: AUGMENTATION | H54: DIRECT MATERIAL COST | I54: =$C$54 -> Subtransmission lines | J54: EXPENDITURE | K54: $000'S | M54: 1226.849388 | N54: 5012.182477 | O54: 3585.067317 | P54: 599.9 | Q54: 0 | R54: 0
A55: ED_INP212_00049 | C55: HV feeders | E55: DNSP NAME | F55: INPUT COSTS | G55: AUGMENTATION | H55: DIRECT MATERIAL COST | I55: =$C$55 -> HV feeders | J55: EXPENDITURE | K55: $000'S | M55: 1398.530868 | N55: 1620.997363 | O55: 1498.416449 | P55: 142.3 | Q55: 0 | R55: 0
A56: ED_INP212_00050 | C56: Distribution substations | E56: DNSP NAME | F56: INPUT COSTS | G56: AUGMENTATION | H56: DIRECT MATERIAL COST | I56: =$C$56 -> Distribution substations | J56: EXPENDITURE | K56: $000'S | M56: 1515.128863 | N56: 1173.208713 | O56: 906.3232933 | P56: 283.83 | Q56: 0 | R56: 0
A57: ED_INP212_00051 | C57: LV feeders | E57: DNSP NAME | F57: INPUT COSTS | G57: AUGMENTATION | H57: DIRECT MATERIAL COST | I57: =$C$57 -> LV feeders | J57: EXPENDITURE | K57: $000'S | M57: 546.4854894 | N57: 1723.776948 | O57: 373.0671608 | P57: 61.92 | Q57: 0 | R57: 0
A58: ED_INP212_00052 | C58: Other assets | E58: DNSP NAME | F58: INPUT COSTS | G58: AUGMENTATION | H58: DIRECT MATERIAL COST | I58: =$C$58 -> Other assets | J58: EXPENDITURE | K58: $000'S | M58: 1201.012464 | N58: 1838.572238 | O58: 159.1508774 | P58: 300.13 | Q58: 0 | R58: 0
A59: ED_INP212_00053 | B59: CONNECTIONS | C59: Simple and complex customer connections | E59: DNSP NAME | F59: INPUT COSTS | G59: CONNECTIONS | H59: DIRECT MATERIAL COST | I59: =$C$59 -> Simple and complex customer connections | J59: EXPENDITURE | K59: $000'S | M59: 18770.62 | N59: 36714.76 | O59: 14362.67 | P59: 3019.79
A60: ED_INP212_00054 | B60: EMERGENCY RESPONSE | C60: Major storms | E60: DNSP NAME | F60: INPUT COSTS | G60: EMERGENCY RESPONSE | H60: DIRECT MATERIAL COST | I60: =$C$60 -> Major storms | J60: EXPENDITURE | K60: $000'S
A61: ED_INP212_00055 | C61: Major event days | E61: DNSP NAME | F61: INPUT COSTS | G61: EMERGENCY RESPONSE | H61: DIRECT MATERIAL COST | I61: =$C$61 -> Major event days | J61: EXPENDITURE | K61: $000'S | M61: -1563 | N61: 25609 | O61: 3276 | P61: 3742 | Q61: 0 | R61: 0
A62: ED_INP212_00056 | B62: PUBLIC LIGHTING | C62: All public lighting services | E62: DNSP NAME | F62: INPUT COSTS | G62: PUBLIC LIGHTING | H62: DIRECT MATERIAL COST | I62: =$C$62 -> All public lighting services | J62: EXPENDITURE | K62: $000'S
A63: ED_INP212_00057 | B63: METERING | C63: All metering services | E63: DNSP NAME | F63: INPUT COSTS | G63: METERING | H63: DIRECT MATERIAL COST | I63: =$C$63 -> All metering services | J63: EXPENDITURE | K63: $000'S | M63: =[8]Summary!$H$6 -> 7373.68312 | N63: =[8]Summary!$N$6 -> 5034.645305 | O63: =[8]Summary!$T$6 -> 4430.2498 | P63: =[8]Summary!$Z$6 -> 1080.421775 | Q63: 0 | R63: 0
A64: ED_INP212_00058 | B64: FEE-BASED SERVICES | C64: All fee-based services | E64: DNSP NAME | F64: INPUT COSTS | G64: FEE-BASED SERVICES | H64: DIRECT MATERIAL COST | I64: =$C$64 -> All fee-based services | J64: EXPENDITURE | K64: $000'S
A65: ED_INP212_00059 | B65: QUOTED SERVICES | C65: All quoted services | E65: DNSP NAME | F65: INPUT COSTS | G65: QUOTED SERVICES | H65: DIRECT MATERIAL COST | I65: =$C$65 -> All quoted services | J65: EXPENDITURE | K65: $000'S
A66: ED_INP212_00060 | B66: REPLACEMENT | C66: Poles | E66: DNSP NAME | F66: INPUT COSTS | G66: REPLACEMENT | H66: DIRECT MATERIAL COST | I66: =$C$66 -> Poles | J66: EXPENDITURE | K66: $000'S | M66: 3262.089652 | N66: 4498.497388 | O66: 8868.23259 | P66: 1073.950239 | Q66: 0 | R66: 0
A67: ED_INP212_00061 | C67: Pole top structures | E67: DNSP NAME | F67: INPUT COSTS | G67: REPLACEMENT | H67: DIRECT MATERIAL COST | I67: =$C$67 -> Pole top structures | J67: EXPENDITURE | K67: $000'S | M67: 2998.071342 | N67: 7913.408171 | O67: 2402.548452 | P67: 1538.812963 | Q67: 0 | R67: 0
A68: ED_INP212_00062 | C68: Overhead conductors | E68: DNSP NAME | F68: INPUT COSTS | G68: REPLACEMENT | H68: DIRECT MATERIAL COST | I68: =$C$68 -> Overhead conductors | J68: EXPENDITURE | K68: $000'S | M68: 2439.471802 | N68: 2737.466779 | O68: 911.496441 | P68: 540.3864858 | Q68: 0 | R68: 0
A69: ED_INP212_00063 | C69: Underground cables | E69: DNSP NAME | F69: INPUT COSTS | G69: REPLACEMENT | H69: DIRECT MATERIAL COST | I69: =$C$69 -> Underground cables | J69: EXPENDITURE | K69: $000'S | M69: 1930.565661 | N69: 3353.154593 | O69: 3121.209894 | P69: 542.0848479 | Q69: 0 | R69: 0
A70: ED_INP212_00064 | C70: Service lines | E70: DNSP NAME | F70: INPUT COSTS | G70: REPLACEMENT | H70: DIRECT MATERIAL COST | I70: =$C$70 -> Service lines | J70: EXPENDITURE | K70: $000'S | M70: 176.6391695 | N70: 3577.446253 | O70: 146.0818217 | P70: 662.4799944 | Q70: 0 | R70: 0
A71: ED_INP212_00065 | C71: Transformers | E71: DNSP NAME | F71: INPUT COSTS | G71: REPLACEMENT | H71: DIRECT MATERIAL COST | I71: =$C$71 -> Transformers | J71: EXPENDITURE | K71: $000'S | M71: 3292.265689 | N71: 2227.44858 | O71: 908.287961 | P71: 390.83921 | Q71: 0 | R71: 0
A72: ED_INP212_00066 | C72: Switchgear | E72: DNSP NAME | F72: INPUT COSTS | G72: REPLACEMENT | H72: DIRECT MATERIAL COST | I72: =$C$72 -> Switchgear | J72: EXPENDITURE | K72: $000'S | M72: 2938.923514 | N72: 5292.252336 | O72: 2375.743943 | P72: 494.9710296 | Q72: 0 | R72: 0
A73: ED_INP212_00067 | C73: Public lighting | E73: DNSP NAME | F73: INPUT COSTS | G73: REPLACEMENT | H73: DIRECT MATERIAL COST | I73: =$C$73 -> Public lighting | J73: EXPENDITURE | K73: $000'S | M73: 0 | N73: 0 | O73: 0 | P73: 0 | Q73: 0 | R73: 0
A74: ED_INP212_00068 | C74: Other | E74: DNSP NAME | F74: INPUT COSTS | G74: REPLACEMENT | H74: DIRECT MATERIAL COST | I74: =$C$74 -> Other | J74: EXPENDITURE | K74: $000'S | M74: 3138.774206 | N74: 6223.139113 | O74: 2353.048493 | P74: 205.5644763 | Q74: 0 | R74: 0
A75: ED_INP212_00069 | B75: NON-NETWORK EXPENDITURE | C75: IT and communications | E75: DNSP NAME | F75: INPUT COSTS | G75: NON-NETWORK | H75: DIRECT MATERIAL COST | I75: =$C$75 -> IT and communications | J75: EXPENDITURE | K75: $000'S | M75: 3930 | N75: 23513 | O75: 185 | P75: 15313 | Q75: 382 | R75: 0
A76: ED_INP212_00070 | C76: Motor vehicles | E76: DNSP NAME | F76: INPUT COSTS | G76: NON-NETWORK | H76: DIRECT MATERIAL COST | I76: =$C$76 -> Motor vehicles | J76: EXPENDITURE | K76: $000'S | M76: 22229 | N76: 3033 | O76: 231 | P76: 4829 | Q76: 0 | R76: 0
A77: ED_INP212_00071 | C77: Buildings and property | E77: DNSP NAME | F77: INPUT COSTS | G77: NON-NETWORK | H77: DIRECT MATERIAL COST | I77: =$C$77 -> Buildings and property | J77: EXPENDITURE | K77: $000'S | M77: 1471 | N77: 2297 | O77: 208 | P77: 10277 | Q77: 0 | R77: 0
A78: ED_INP212_00072 | C78: Other | E78: DNSP NAME | F78: INPUT COSTS | G78: NON-NETWORK | H78: DIRECT MATERIAL COST | I78: =$C$78 -> Other | J78: EXPENDITURE | K78: $000'S | M78: 11152 | N78: 16106 | O78: 9985 | P78: 8 | Q78: 0 | R78: 0

Sheet 4.1 Public lighting
B1: =Title -> REGULATORY REPORTING STATEMENT
B2: =TradingName -> SA Power Networks
B3: =CONCATENATE("Category Analysis RIN response ",CRY) -> Category Analysis RIN response 2013-14
B4: 4.1 PUBLIC LIGHTING
B6: TABLE 4.1.1 - DESCRIPTOR METRICS OVER 2013-14 YEAR
B7: <<<GROUP-ROW>>>
C9: LIGHT TYPE | D9: VOLUME (000'S)
A10: PUB411 | C10: =Years -> 2013-14 | D10: =CRY -> 2013-14
A11: ED_PUB411_00001 | B11: POPULATION OF LIGHTS | C11: DNSP to enter description
A12: ED_PUB411_00002
A13: ED_PUB411_00003
A14: ED_PUB411_00004
A15: ED_PUB411_00005
A16: ED_PUB411_00006
A17: ED_PUB411_00007
A18: ED_PUB411_00008
A19: ED_PUB411_00009
A20: ED_PUB411_00010
A21: ED_PUB411_00011
A22: ED_PUB411_00012
A23: ED_PUB411_00013
A24: ED_PUB411_00014
A25: ED_PUB411_00015
A26: ED_PUB411_00016
A27: ED_PUB411_00017
A28: ED_PUB411_00018
A29: ED_PUB411_00019
A30: ED_PUB411_00020
A31: ED_PUB411_00021
A32: ED_PUB411_00022
A33: ED_PUB411_00023
A34: ED_PUB411_00024
A35: ED_PUB411_00025
A36: ED_PUB411_00026
A37: ED_PUB411_00027
A38: ED_PUB411_00028
A39: ED_PUB411_00029
A40: ED_PUB411_00030
A41: ED_PUB411_00031
A42: ED_PUB411_00032
A43: ED_PUB411_00033
A44: ED_PUB411_00034
A45: ED_PUB411_00035
A46: ED_PUB411_00036
A47: ED_PUB411_00037
A48: ED_PUB411_00038
A49: ED_PUB411_00039
A50: ED_PUB411_00040
A51: ED_PUB411_00041
A52: ED_PUB411_00042
A53: ED_PUB411_00043
A54: ED_PUB411_00044
A55: ED_PUB411_00045
A56: ED_PUB411_00046
A57: ED_PUB411_00047
A58: ED_PUB411_00048
A59: ED_PUB411_00049
A60: ED_PUB411_00050
A61: ED_PUB411_00051
A62: ED_PUB411_00052
A63: ED_PUB411_00053
A64: ED_PUB411_00054
A65: ED_PUB411_00055
A66: ED_PUB411_00056
A67: ED_PUB411_00057
A68: ED_PUB411_00058
A69: ED_PUB411_00059
A70: ED_PUB411_00060
A71: ED_PUB411_00061
A72: ED_PUB411_00062
A73: ED_PUB411_00063
A74: ED_PUB411_00064
A75: ED_PUB411_00065
A76: ED_PUB411_00066
A77: ED_PUB411_00067
A78: ED_PUB411_00068
A79: ED_PUB411_00069
A80: ED_PUB411_00070
A81: ED_PUB411_00071
A82: ED_PUB411_00072
A83: ED_PUB411_00073
A84: ED_PUB411_00074
A85: ED_PUB411_00075
A86: ED_PUB411_00076
A87: ED_PUB411_00077
A88: ED_PUB411_00078
A89: ED_PUB411_00079
A90: ED_PUB411_00080
A91: ED_PUB411_00081
A92: ED_PUB411_00082
A93: ED_PUB411_00083
A94: ED_PUB411_00084
A95: ED_PUB411_00085
A96: ED_PUB411_00086
A97: ED_PUB411_00087
A98: ED_PUB411_00088
A99: ED_PUB411_00089
A100: ED_PUB411_00090
A101: ED_PUB411_00091
A102: ED_PUB411_00092
A103: ED_PUB411_00093
A104: ED_PUB411_00094
A105: ED_PUB411_00095
A106: ED_PUB411_00096
A107: ED_PUB411_00097
A108: ED_PUB411_00098
A109: ED_PUB411_00099
A110: ED_PUB411_00100
A111: ED_PUB411_00101
A112: ED_PUB411_00102
B117: TABLE 4.1.2 - DESCRIPTOR METRICS ANNUALLY
B118: <<<GROUP-ROW>>>
D120: VOLUMES & EXPENDITURE
A121: PUB412 | B121: SERVICE/SERVICE QUALITY - Volumes and Expenditure | C121: DESCRIPTOR METRIC | D121: =CRY -> 2013-14
A122: ED_PUB412_00001 | B122: LIGHT INSTALLATION | C122: Major road light installation (volume)
A123: ED_PUB412_00002 | C123: Minor road light installation (volume)
A124: ED_PUB412_00003 | C124: Number of poles installed
A125: ED_PUB412_00004 | C125: Total cost ($000's)
A126: ED_PUB412_00005 | B126: LIGHT REPLACEMENT | C126: Major road light installation (volume)
A127: ED_PUB412_00006 | C127: Minor road light installation (volume)
A128: ED_PUB412_00007 | C128: Number of poles installed
A129: ED_PUB412_00008 | C129: Total cost ($000's)
A130: ED_PUB412_00009 | B130: LIGHT MAINTENANCE | C130: Major road light installation (volume)
A131: ED_PUB412_00010 | C131: Minor road light installation (volume)
A132: ED_PUB412_00011 | C132: Number of poles installed
A133: ED_PUB412_00012 | C133: Total cost ($000's)
A134: ED_PUB412_00013 | B134: QUALITY OF SUPPLY | C134: Mean days to rectify/replace public lighting assets (days)
A135: ED_PUB412_00014 | C135: GSO breaches (volume 0's)
A136: ED_PUB412_00015 | C136: GSL payments ($000's)
A137: ED_PUB412_00016 | C137: Customer complaints (volume 0's)
B143: TABLE 4.1.3 - COST METRICS
B144: <<<GROUP-ROW>>>
D146: AVERAGE UNIT COST ($)
A147: PUB413 | B147: ROAD TYPE | C147: LIGHT TYPE | D147: =CRY -> 2013-14
A148: PUB413_00001 | B148: LIGHT INSTALLATION - Major Road | C148: DNSP to enter description
A149: PUB413_00002
A150: PUB413_00003
A151: PUB413_00004
A152: PUB413_00005
A153: PUB413_00006
A154: PUB413_00007
A155: PUB413_00008
A156: PUB413_00009
A157: PUB413_00010
A158: PUB413_00011
A159: PUB413_00012
A160: PUB413_00013
A161: PUB413_00014
A162: PUB413_00015
A163: PUB413_00010 | B163: LIGHT INSTALLATION - Minor Road | C163: DNSP to enter description
A164: PUB413_00011
A165: PUB413_00012
A166: PUB413_00013
A167: PUB413_00014
A168: PUB413_00014
A169: PUB413_00015
A170: PUB413_00016
A171: PUB413_00017
A172: PUB413_00018
A173: PUB413_00019
A174: PUB413_00020
A175: PUB413_00021
A176: PUB413_00022
A177: PUB413_00023
A178: PUB413_00024 | B178: LIGHT REPLACEMENT - Major Road | C178: DNSP to enter description
A179: PUB413_00025
A180: PUB413_00026
A181: PUB413_00027
A182: PUB413_00028
A183: PUB413_00029
A184: PUB413_00030
A185: PUB413_00025
A186: PUB413_00026
A187: PUB413_00027
A188: PUB413_00028
A189: PUB413_00029
A190: PUB413_00030
A191: PUB413_00025
A192: PUB413_00031
A193: PUB413_00032 | B193: LIGHT REPLACEMENT - Minor Road | C193: DNSP to enter description
A194: PUB413_00033
A195: PUB413_00034
A196: PUB413_00035
A197: PUB413_00036
A198: PUB413_00036
A199: PUB413_00033
A200: PUB413_00034
A201: PUB413_00035
A202: PUB413_00036
A203: PUB413_00033
A204: PUB413_00034
A205: PUB413_00035
A206: PUB413_00036
A207: PUB413_00037
A208: PUB413_00038 | B208: LIGHT MAINTENANCE - Major Road | C208: DNSP to enter description
A209: PUB413_00039
A210: PUB413_00040
A211: PUB413_00041
A212: PUB413_00042
A213: PUB413_00043
... 24 more rows

Sheet 4.2 Metering
B1: =Title -> REGULATORY REPORTING STATEMENT
B2: =TradingName -> SA Power Networks
B3: =CONCATENATE("Category Analysis RIN response ",CRY) -> Category Analysis RIN response 2013-14
B4: 4.2 METERING
B7: TABLE 4.2.1 - METERING DESCRIPTOR METRIC | F7: TABLE 4.2.2 - COST METRICS
B8: <<<GROUP-ROW>>>
D10: VOLUMES (000s) | H10: EXPENDITURE ($000s) | J10: VOLUMES (000s)
B11: ASSET CATEGORY | C11: ASSET SUBCATEGORY | D11: =CRY -> 2013-14 | F11: SERVICE SUBCATEGORY | G11: METER TYPE | H11: =CRY -> 2013-14 | J11: =CRY -> 2013-14
A12: ED_MET421_00001 | B12: Meter Type 4 | C12: Single phase meter population | D12: ='[9]Adjusted 4.2'!$D$12 -> 0 | E12: ED_MET422_00001 | F12: Meter purchase | G12: Meter Type 4 | H12: ='[9]Adjusted 4.2'!$H$12 -> 9 | I12: ED_MET422_00001 | J12: ='[9]Adjusted 4.2'!$J$12 -> 0.03
A13: ED_MET421_00002 | C13: Multi phase meter population | D13: ='[9]Adjusted 4.2'!$D$13 -> 0.589 | E13: ED_MET422_00002 | G13: Meter Type 5 | H13: ='[9]Adjusted 4.2'!$H$13 -> 313 | I13: ED_MET422_00002 | J13: ='[9]Adjusted 4.2'!$J$13 -> 1.02
A14: ED_MET421_00003 | C14: Current transformer connected meter population | D14: ='[9]Adjusted 4.2'!$D$14 -> 0.511 | E14: ED_MET422_00003 | G14: Meter Type 6 | H14: ='[9]Adjusted 4.2'!$H$14 -> 4395 | I14: ED_MET422_00003 | J14: ='[9]Adjusted 4.2'!$J$14 -> 53.064
A15: ED_MET421_00004 | C15: Direct connect meter population | D15: ='[9]Adjusted 4.2'!$D$15 -> 0.078 | E15: ED_MET422_00004 | F15: Meter testing | G15: Meter Type 4 | H15: ='[9]Adjusted 4.2'!$H$15 -> 19.21973747 | I15: ED_MET422_00004 | J15: ='[9]Adjusted 4.2'!$J$15 -> 0.057
A16: ED_MET421_00005 | B16: Meter Type 5 | C16: Single phase meter population | D16: ='[9]Adjusted 4.2'!$D$16 -> 0.134 | E16: ED_MET422_00005 | G16: Meter Type 5 | H16: ='[9]Adjusted 4.2'!$H$16 -> 68.68068398 | I16: ED_MET422_00005 | J16: ='[9]Adjusted 4.2'!$J$16 -> 0.067
A17: ED_MET421_00006 | C17: Multi phase meter population | D17: ='[9]Adjusted 4.2'!$D$17 -> 4.323 | E17: ED_MET422_00006 | G17: Meter Type 6 | H17: ='[9]Adjusted 4.2'!$H$17 -> 587.3018307 | I17: ED_MET422_00006 | J17: ='[9]Adjusted 4.2'!$J$17 -> 3.336
A18: ED_MET421_00007 | C18: Current transformer connected meter population | D18: ='[9]Adjusted 4.2'!$D$18 -> 3.955 | E18: ED_MET422_00007 | F18: Meter investigation | G18: Meter Type 4 | H18: ='[9]Adjusted 4.2'!$H$18 -> 0 | I18: ED_MET422_00007 | J18: ='[9]Adjusted 4.2'!$J$18 -> 0.002
A19: ED_MET421_00008 | C19: Direct connect meter population | D19: ='[9]Adjusted 4.2'!$D$19 -> 0.502 | E19: ED_MET422_00008 | G19: Meter Type 5 | H19: ='[9]Adjusted 4.2'!$H$19 -> 119.8779886 | I19: ED_MET422_00008 | J19: ='[9]Adjusted 4.2'!$J$19 -> 2.438
A20: ED_MET421_00009 | B20: Meter Type 6 | C20: Single phase meter population | D20: ='[9]Adjusted 4.2'!$D$20 -> 910.235 | E20: ED_MET422_00009 | G20: Meter Type 6 | H20: ='[9]Adjusted 4.2'!$H$20 -> 888.7324385 | I20: ED_MET422_00009 | J20: ='[9]Adjusted 4.2'!$J$20 -> 8.914
A21: ED_MET421_00010 | C21: Multi phase meter population | D21: ='[9]Adjusted 4.2'!$D$21 -> 199.235 | E21: ED_MET422_00010 | F21: Scheduled meter reading | G21: Meter Type 4
A22: ED_MET421_00011 | C22: Current transformer connected meter population | D22: ='[9]Adjusted 4.2'!$D$22 -> 1.41 | E22: ED_MET422_00011 | G22: Meter Type 5
A23: ED_MET421_00012 | C23: Direct connect meter population | D23: ='[9]Adjusted 4.2'!$D$23 -> 1108.06 | E23: ED_MET422_00012 | G23: Meter Type 6
E24: ED_MET422_00013 | F24: Special meter reading | G24: Meter Type 4
E25: ED_MET422_00014 | G25: Meter Type 5
E26: ED_MET422_00015 | G26: Meter Type 6
E27: ED_MET422_00016 | F27: New meter installation | G27: Meter Type 4 | H27: ='[9]Adjusted 4.2'!$H$27 -> 12.15843957 | I27: ED_MET422_00016 | J27: ='[9]Adjusted 4.2'!$J$27 -> 0.138
E28: ED_MET422_00017 | G28: Meter Type 5 | H28: ='[9]Adjusted 4.2'!$H$28 -> 72.19073494 | I28: ED_MET422_00017 | J28: ='[9]Adjusted 4.2'!$J$28 -> 0.088
E29: ED_MET422_00018 | G29: Meter Type 6 | H29: ='[9]Adjusted 4.2'!$H$29 -> 3073.805504 | I29: ED_MET422_00018 | J29: ='[9]Adjusted 4.2'!$J$29 -> 10.208
E30: ED_MET422_00019 | F30: Meter replacement | G30: Meter Type 4 | H30: ='[9]Adjusted 4.2'!$H$30 -> 19.59484517 | I30: ED_MET422_00019 | J30: ='[9]Adjusted 4.2'!$J$30 -> 0.076
E31: ED_MET422_00020 | G31: Meter Type 5 | H31: ='[9]Adjusted 4.2'!$H$31 -> 489.0466351 | I31: ED_MET422_00020 | J31: ='[9]Adjusted 4.2'!$J$31 -> 1.219
E32: ED_MET422_00021 | G32: Meter Type 6 | H32: ='[9]Adjusted 4.2'!$H$32 -> 8168.203842 | I32: ED_MET422_00021 | J32: ='[9]Adjusted 4.2'!$J$32 -> 36.199
E33: ED_MET422_00022 | F33: Meter maintenance | G33: Meter Type 4 | H33: ='[9]Adjusted 4.2'!$H$33 -> 367.3068498 | I33: ED_MET422_00022 | J33: ='[9]Adjusted 4.2'!$J$33 -> 0.177
E34: ED_MET422_00023 | G34: Meter Type 5 | H34: ='[9]Adjusted 4.2'!$H$34 -> 47.88047095 | I34: ED_MET422_00023 | J34: ='[9]Adjusted 4.2'!$J$34 -> 0.209
E35: ED_MET422_00024 | G35: Meter Type 6 | H35: ='[9]Adjusted 4.2'!$H$35 -> 0 | I35: ED_MET422_00024 | J35: ='[9]Adjusted 4.2'!$J$35 -> 0
E36: ED_MET422_00025 | F36: Remote meter reading | G36: Meter Type 4 | H36: ='[9]Adjusted 4.2'!$H$36 -> 0 | I36: ED_MET422_00025 | J36: ='[9]Adjusted 4.2'!$J$36 -> 0
E37: ED_MET422_00026 | F37: Remote meter re-configuration | G37: Meter Type 4 | H37: ='[9]Adjusted 4.2'!$H$37 -> 0 | I37: ED_MET422_00026 | J37: ='[9]Adjusted 4.2'!$J$37 -> 0
E38: ED_MET422_00027 | F38: Other metering | G38: Meter Type 4 | H38: ='[9]Adjusted 4.2'!$H$38 -> 0
E39: ED_MET422_00028 | G39: Meter Type 5 | H39: ='[9]Adjusted 4.2'!$H$39 -> 0
E40: ED_MET422_00029 | G40: Meter Type 6 | H40: ='[9]Adjusted 4.2'!$H$40 -> 0
E41: ED_MET422_00030 | G41: Meter Type 7 | H41: ='[9]Adjusted 4.2'!$H$41 -> 0
E42: ED_MET422_00031 | F42: IT infrastructure capex | G42: Meter Type 4 | H42: ='[9]Adjusted 4.2'!$H$42 -> 0
E43: ED_MET422_00032 | F43: IT infrastructure opex | G43: Meter Type 4 | H43: ='[9]Adjusted 4.2'!$H$43 -> 0
E44: ED_MET422_00033 | F44: Communications infrastructure capex | G44: Meter Type 4 | H44: ='[9]Adjusted 4.2'!$H$44 -> 0
E45: ED_MET422_00034 | F45: Communications infrastructure opex | G45: Meter Type 4 | H45: ='[9]Adjusted 4.2'!$H$45 -> 0

Sheet 4.3 Fee-based services
B1: =Title -> REGULATORY REPORTING STATEMENT
B2: =TradingName -> SA Power Networks
B3: =CONCATENATE("Category Analysis RIN response ",CRY) -> Category Analysis RIN response 2013-14
B4: 4.3 ANCILLARY SERVICES - FEE BASED SERVICES
B6: TABLE 4.3.1 - COST METRICS FOR FEE-BASED SERVICES
D9: EXPENDITURE ($000'S) | F9: VOLUMES (000's)
B10: SERVICE | C10: SERVICE SUBCATEGORY | D10: =CRY -> 2013-14 | F10: =CRY -> 2013-14
A11: ED_FEE431_00001 | B11: Common Fee-Based Services | C11: Energisation | E11: ED_FEE431_00001
A12: ED_FEE431_00002 | B12: Common Fee-Based Services | C12: De-energisation | E12: ED_FEE431_00002
A13: ED_FEE431_00003 | B13: Common Fee-Based Services | C13: Re-energisation | E13: ED_FEE431_00003
A14: ED_FEE431_00004 | B14: Miscellaneous Fee-Based Services | C14: < Enter description for service > | E14: ED_FEE431_00004
A15: ED_FEE431_00005 | B15: Miscellaneous Fee-Based Services | E15: ED_FEE431_00005
A16: ED_FEE431_00006 | B16: Miscellaneous Fee-Based Services | E16: ED_FEE431_00006
A17: ED_FEE431_00007 | B17: Miscellaneous Fee-Based Services | E17: ED_FEE431_00007
A18: ED_FEE431_00008 | B18: Miscellaneous Fee-Based Services | E18: ED_FEE431_00008
A19: ED_FEE431_00009 | B19: Miscellaneous Fee-Based Services | E19: ED_FEE431_00009
A20: ED_FEE431_00010 | B20: Miscellaneous Fee-Based Services | E20: ED_FEE431_00010
A21: ED_FEE431_00011 | B21: Miscellaneous Fee-Based Services | E21: ED_FEE431_00011
A22: ED_FEE431_00012 | B22: Miscellaneous Fee-Based Services | E22: ED_FEE431_00012
A23: ED_FEE431_00013 | B23: Miscellaneous Fee-Based Services | E23: ED_FEE431_00013
A24: ED_FEE431_00014 | B24: Miscellaneous Fee-Based Services | E24: ED_FEE431_00014
A25: ED_FEE431_00015 | B25: Miscellaneous Fee-Based Services | E25: ED_FEE431_00015
A26: ED_FEE431_00016 | B26: Miscellaneous Fee-Based Services | E26: ED_FEE431_00016
A27: ED_FEE431_00017 | B27: Miscellaneous Fee-Based Services | E27: ED_FEE431_00017
A28: ED_FEE431_00018 | B28: Miscellaneous Fee-Based Services | E28: ED_FEE431_00018
A29: ED_FEE431_00019 | B29: Miscellaneous Fee-Based Services | E29: ED_FEE431_00019
A30: ED_FEE431_00020 | B30: Miscellaneous Fee-Based Services | E30: ED_FEE431_00020
A31: ED_FEE431_00021 | B31: Miscellaneous Fee-Based Services | E31: ED_FEE431_00021
A32: ED_FEE431_00022 | B32: Miscellaneous Fee-Based Services | E32: ED_FEE431_00022
A33: ED_FEE431_00023 | B33: Miscellaneous Fee-Based Services | E33: ED_FEE431_00023
A34: ED_FEE431_00024 | B34: Miscellaneous Fee-Based Services | E34: ED_FEE431_00024
A35: ED_FEE431_00025 | B35: Miscellaneous Fee-Based Services | E35: ED_FEE431_00025
A36: ED_FEE431_00026 | B36: Miscellaneous Fee-Based Services | E36: ED_FEE431_00026
A37: ED_FEE431_00027 | B37: Miscellaneous Fee-Based Services | E37: ED_FEE431_00027
A38: ED_FEE431_00028 | B38: Miscellaneous Fee-Based Services | E38: ED_FEE431_00028
A39: ED_FEE431_00029 | B39: Miscellaneous Fee-Based Services | E39: ED_FEE431_00029
A40: ED_FEE431_00030 | B40: Miscellaneous Fee-Based Services | E40: ED_FEE431_00030
A41: ED_FEE431_00031 | B41: Miscellaneous Fee-Based Services | E41: ED_FEE431_00031
A42: ED_FEE431_00032 | B42: Miscellaneous Fee-Based Services | E42: ED_FEE431_00032
A43: ED_FEE431_00033 | B43: Miscellaneous Fee-Based Services | E43: ED_FEE431_00033
A44: ED_FEE431_00034 | B44: Miscellaneous Fee-Based Services | E44: ED_FEE431_00034
A45: ED_FEE431_00035 | B45: Miscellaneous Fee-Based Services | E45: ED_FEE431_00035
A46: ED_FEE431_00036 | B46: Miscellaneous Fee-Based Services | E46: ED_FEE431_00036
A47: ED_FEE431_00037 | B47: Miscellaneous Fee-Based Services | E47: ED_FEE431_00037
A48: ED_FEE431_00038 | B48: Miscellaneous Fee-Based Services | E48: ED_FEE431_00038
A49: ED_FEE431_00039 | B49: Miscellaneous Fee-Based Services | E49: ED_FEE431_00039
A50: ED_FEE431_00040 | B50: Miscellaneous Fee-Based Services | E50: ED_FEE431_00040
A51: ED_FEE431_00041 | B51: Miscellaneous Fee-Based Services | E51: ED_FEE431_00041
A52: ED_FEE431_00042 | B52: Miscellaneous Fee-Based Services | E52: ED_FEE431_00042
A53: ED_FEE431_00043 | B53: Miscellaneous Fee-Based Services | E53: ED_FEE431_00043
A54: ED_FEE431_00044 | B54: Miscellaneous Fee-Based Services | E54: ED_FEE431_00044
A55: ED_FEE431_00045 | B55: Miscellaneous Fee-Based Services | E55: ED_FEE431_00045
A56: ED_FEE431_00046 | B56: Miscellaneous Fee-Based Services | E56: ED_FEE431_00046
A57: ED_FEE431_00047 | B57: Miscellaneous Fee-Based Services | E57: ED_FEE431_00047
A58: ED_FEE431_00048 | B58: Miscellaneous Fee-Based Services | E58: ED_FEE431_00048
A59: ED_FEE431_00049 | B59: Miscellaneous Fee-Based Services | E59: ED_FEE431_00049
A60: ED_FEE431_00050 | B60: Miscellaneous Fee-Based Services | E60: ED_FEE431_00050
A61: ED_FEE431_00051 | B61: Miscellaneous Fee-Based Services | E61: ED_FEE431_00051
A62: ED_FEE431_00052 | B62: Miscellaneous Fee-Based Services | E62: ED_FEE431_00052
A63: ED_FEE431_00053 | B63: Miscellaneous Fee-Based Services | E63: ED_FEE431_00053
A64: ED_FEE431_00054 | B64: Miscellaneous Fee-Based Services | E64: ED_FEE431_00054
A65: ED_FEE431_00055 | B65: Miscellaneous Fee-Based Services | E65: ED_FEE431_00055
A66: ED_FEE431_00056 | B66: Miscellaneous Fee-Based Services | E66: ED_FEE431_00056
A67: ED_FEE431_00057 | B67: Miscellaneous Fee-Based Services | E67: ED_FEE431_00057
A68: ED_FEE431_00058 | B68: Miscellaneous Fee-Based Services | E68: ED_FEE431_00058
A69: ED_FEE431_00059 | B69: Miscellaneous Fee-Based Services | E69: ED_FEE431_00059
A70: ED_FEE431_00060 | B70: Miscellaneous Fee-Based Services | E70: ED_FEE431_00060
A71: ED_FEE431_00061 | B71: Miscellaneous Fee-Based Services | E71: ED_FEE431_00061
A72: ED_FEE431_00062 | B72: Miscellaneous Fee-Based Services | E72: ED_FEE431_00062
A73: ED_FEE431_00063 | B73: Miscellaneous Fee-Based Services | E73: ED_FEE431_00063
A74: ED_FEE431_00064 | B74: Miscellaneous Fee-Based Services | E74: ED_FEE431_00064
A75: ED_FEE431_00065 | B75: Miscellaneous Fee-Based Services | E75: ED_FEE431_00065
A76: ED_FEE431_00066 | B76: Miscellaneous Fee-Based Services | E76: ED_FEE431_00066
A77: ED_FEE431_00067 | B77: Miscellaneous Fee-Based Services | E77: ED_FEE431_00067
A78: ED_FEE431_00068 | B78: Miscellaneous Fee-Based Services | E78: ED_FEE431_00068
A79: ED_FEE431_00069 | B79: Miscellaneous Fee-Based Services | E79: ED_FEE431_00069
A80: ED_FEE431_00070 | B80: Miscellaneous Fee-Based Services | E80: ED_FEE431_00070
A81: ED_FEE431_00071 | B81: Miscellaneous Fee-Based Services | E81: ED_FEE431_00071
A82: ED_FEE431_00072 | B82: Miscellaneous Fee-Based Services | E82: ED_FEE431_00072
A83: ED_FEE431_00073 | B83: Miscellaneous Fee-Based Services | E83: ED_FEE431_00073
A84: ED_FEE431_00074 | B84: Miscellaneous Fee-Based Services | E84: ED_FEE431_00074
A85: ED_FEE431_00075 | B85: Miscellaneous Fee-Based Services | E85: ED_FEE431_00075
A86: ED_FEE431_00076 | B86: Miscellaneous Fee-Based Services | E86: ED_FEE431_00076
A87: ED_FEE431_00077 | B87: Miscellaneous Fee-Based Services | E87: ED_FEE431_00077
A88: ED_FEE431_00078 | B88: Miscellaneous Fee-Based Services | E88: ED_FEE431_00078
A89: ED_FEE431_00079 | B89: Miscellaneous Fee-Based Services | E89: ED_FEE431_00079
A90: ED_FEE431_00080 | B90: Miscellaneous Fee-Based Services | E90: ED_FEE431_00080
A91: ED_FEE431_00081 | B91: Miscellaneous Fee-Based Services | E91: ED_FEE431_00081
A92: ED_FEE431_00082 | B92: Miscellaneous Fee-Based Services | E92: ED_FEE431_00082
A93: ED_FEE431_00083 | B93: Miscellaneous Fee-Based Services | E93: ED_FEE431_00083
A94: ED_FEE431_00084 | B94: Miscellaneous Fee-Based Services | E94: ED_FEE431_00084
A95: ED_FEE431_00085 | B95: Miscellaneous Fee-Based Services | E95: ED_FEE431_00085
A96: ED_FEE431_00086 | B96: Miscellaneous Fee-Based Services | E96: ED_FEE431_00086
A97: ED_FEE431_00087 | B97: Miscellaneous Fee-Based Services | E97: ED_FEE431_00087
A98: ED_FEE431_00088 | B98: Miscellaneous Fee-Based Services | E98: ED_FEE431_00088
A99: ED_FEE431_00089 | B99: Miscellaneous Fee-Based Services | E99: ED_FEE431_00089
A100: ED_FEE431_00090 | B100: Miscellaneous Fee-Based Services | E100: ED_FEE431_00090
A101: ED_FEE431_00091 | B101: Miscellaneous Fee-Based Services | E101: ED_FEE431_00091
A102: ED_FEE431_00092 | B102: Miscellaneous Fee-Based Services | E102: ED_FEE431_00092
A103: ED_FEE431_00093 | B103: Miscellaneous Fee-Based Services | E103: ED_FEE431_00093
A104: ED_FEE431_00094 | B104: Miscellaneous Fee-Based Services | E104: ED_FEE431_00094
A105: ED_FEE431_00095 | B105: Miscellaneous Fee-Based Services | E105: ED_FEE431_00095
A106: ED_FEE431_00096 | B106: Miscellaneous Fee-Based Services | E106: ED_FEE431_00096
A107: ED_FEE431_00097 | B107: Miscellaneous Fee-Based Services | E107: ED_FEE431_00097
A108: ED_FEE431_00098 | B108: Miscellaneous Fee-Based Services | E108: ED_FEE431_00098
A109: ED_FEE431_00099 | B109: Miscellaneous Fee-Based Services | E109: ED_FEE431_00099
A110: ED_FEE431_00100 | B110: Miscellaneous Fee-Based Services | E110: ED_FEE431_00100
A111: ED_FEE431_00101 | B111: Miscellaneous Fee-Based Services | E111: ED_FEE431_00101
A112: ED_FEE431_00102 | B112: Miscellaneous Fee-Based Services | E112: ED_FEE431_00102
A113: ED_FEE431_00103 | B113: Miscellaneous Fee-Based Services | E113: ED_FEE431_00103
A114: ED_FEE431_00104 | B114: Miscellaneous Fee-Based Services | E114: ED_FEE431_00104
A115: ED_FEE431_00105 | B115: Miscellaneous Fee-Based Services | E115: ED_FEE431_00105
A116: ED_FEE431_00106 | B116: Miscellaneous Fee-Based Services | E116: ED_FEE431_00106
A117: ED_FEE431_00107 | B117: Miscellaneous Fee-Based Services | E117: ED_FEE431_00107
A118: ED_FEE431_00108 | B118: Miscellaneous Fee-Based Services | E118: ED_FEE431_00108
A119: ED_FEE431_00109 | B119: Miscellaneous Fee-Based Services | E119: ED_FEE431_00109
A120: ED_FEE431_00110 | B120: Miscellaneous Fee-Based Services | E120: ED_FEE431_00110
A121: ED_FEE431_00111 | B121: Miscellaneous Fee-Based Services | E121: ED_FEE431_00111
A122: ED_FEE431_00112 | B122: Miscellaneous Fee-Based Services | E122: ED_FEE431_00112
A123: ED_FEE431_00113 | B123: Miscellaneous Fee-Based Services | E123: ED_FEE431_00113
A124: ED_FEE431_00114 | B124: Miscellaneous Fee-Based Services | E124: ED_FEE431_00114
A125: ED_FEE431_00115 | B125: Miscellaneous Fee-Based Services | E125: ED_FEE431_00115
A126: ED_FEE431_00116 | B126: Miscellaneous Fee-Based Services | E126: ED_FEE431_00116
A127: ED_FEE431_00117 | B127: Miscellaneous Fee-Based Services | E127: ED_FEE431_00117
A128: ED_FEE431_00118 | B128: Miscellaneous Fee-Based Services | E128: ED_FEE431_00118
A129: ED_FEE431_00119 | B129: Miscellaneous Fee-Based Services | E129: ED_FEE431_00119
A130: ED_FEE431_00120 | B130: Miscellaneous Fee-Based Services | E130: ED_FEE431_00120
A131: ED_FEE431_00121 | B131: Miscellaneous Fee-Based Services | E131: ED_FEE431_00121
A132: ED_FEE431_00122 | B132: Miscellaneous Fee-Based Services | E132: ED_FEE431_00122
A133: ED_FEE431_00123 | B133: Miscellaneous Fee-Based Services | E133: ED_FEE431_00123
A134: ED_FEE431_00124 | B134: Miscellaneous Fee-Based Services | E134: ED_FEE431_00124
A135: ED_FEE431_00125 | B135: Miscellaneous Fee-Based Services | E135: ED_FEE431_00125
A136: ED_FEE431_00126 | B136: Miscellaneous Fee-Based Services | E136: ED_FEE431_00126
A137: ED_FEE431_00127 | B137: Miscellaneous Fee-Based Services | E137: ED_FEE431_00127
A138: ED_FEE431_00128 | B138: Miscellaneous Fee-Based Services | E138: ED_FEE431_00128
A139: ED_FEE431_00129 | B139: Miscellaneous Fee-Based Services | E139: ED_FEE431_00129
A140: ED_FEE431_00130 | B140: Miscellaneous Fee-Based Services | E140: ED_FEE431_00130
A141: ED_FEE431_00131 | B141: Miscellaneous Fee-Based Services | E141: ED_FEE431_00131
A142: ED_FEE431_00132 | B142: Miscellaneous Fee-Based Services | E142: ED_FEE431_00132
A143: ED_FEE431_00133 | B143: Miscellaneous Fee-Based Services | E143: ED_FEE431_00133
A144: ED_FEE431_00134 | B144: Miscellaneous Fee-Based Services | E144: ED_FEE431_00134
A145: ED_FEE431_00135 | B145: Miscellaneous Fee-Based Services | E145: ED_FEE431_00135
A146: ED_FEE431_00136 | B146: Miscellaneous Fee-Based Services | E146: ED_FEE431_00136
A147: ED_FEE431_00137 | B147: Miscellaneous Fee-Based Services | E147: ED_FEE431_00137
A148: ED_FEE431_00138 | B148: Miscellaneous Fee-Based Services | E148: ED_FEE431_00138
A149: ED_FEE431_00139 | B149: Miscellaneous Fee-Based Services | E149: ED_FEE431_00139
A150: ED_FEE431_00140 | B150: Miscellaneous Fee-Based Services | E150: ED_FEE431_00140
A151: ED_FEE431_00141 | B151: Miscellaneous Fee-Based Services | E151: ED_FEE431_00141
A152: ED_FEE431_00142 | B152: Miscellaneous Fee-Based Services | E152: ED_FEE431_00142
A153: ED_FEE431_00143 | B153: Miscellaneous Fee-Based Services | E153: ED_FEE431_00143
A154: ED_FEE431_00144 | B154: Miscellaneous Fee-Based Services | E154: ED_FEE431_00144
A155: ED_FEE431_00145 | B155: Miscellaneous Fee-Based Services | E155: ED_FEE431_00145
A156: ED_FEE431_00146 | B156: Miscellaneous Fee-Based Services | E156: ED_FEE431_00146
A157: ED_FEE431_00147 | B157: Miscellaneous Fee-Based Services | E157: ED_FEE431_00147
A158: ED_FEE431_00148 | B158: Miscellaneous Fee-Based Services | E158: ED_FEE431_00148
A159: ED_FEE431_00149 | B159: Miscellaneous Fee-Based Services | E159: ED_FEE431_00149
A160: ED_FEE431_00150 | B160: Miscellaneous Fee-Based Services | E160: ED_FEE431_00150
A161: ED_FEE431_00151 | B161: Miscellaneous Fee-Based Services | E161: ED_FEE431_00151
A162: ED_FEE431_00152 | B162: Miscellaneous Fee-Based Services | E162: ED_FEE431_00152
A163: ED_FEE431_00153 | B163: Miscellaneous Fee-Based Services | E163: ED_FEE431_00153
A164: ED_FEE431_00154 | B164: Miscellaneous Fee-Based Services | E164: ED_FEE431_00154
A165: ED_FEE431_00155 | B165: Miscellaneous Fee-Based Services | E165: ED_FEE431_00155
A166: ED_FEE431_00156 | B166: Miscellaneous Fee-Based Services | E166: ED_FEE431_00156
A167: ED_FEE431_00157 | B167: Miscellaneous Fee-Based Services | E167: ED_FEE431_00157
A168: ED_FEE431_00158 | B168: Miscellaneous Fee-Based Services | E168: ED_FEE431_00158
A169: ED_FEE431_00159 | B169: Miscellaneous Fee-Based Services | E169: ED_FEE431_00159
A170: ED_FEE431_00160 | B170: Miscellaneous Fee-Based Services | E170: ED_FEE431_00160
A171: ED_FEE431_00161 | B171: Miscellaneous Fee-Based Services | E171: ED_FEE431_00161
A172: ED_FEE431_00162 | B172: Miscellaneous Fee-Based Services | E172: ED_FEE431_00162
A173: ED_FEE431_00163 | B173: Miscellaneous Fee-Based Services | E173: ED_FEE431_00163
A174: ED_FEE431_00164 | B174: Miscellaneous Fee-Based Services | E174: ED_FEE431_00164
A175: ED_FEE431_00165 | B175: Miscellaneous Fee-Based Services | E175: ED_FEE431_00165
A176: ED_FEE431_00166 | B176: Miscellaneous Fee-Based Services | E176: ED_FEE431_00166
A177: ED_FEE431_00167 | B177: Miscellaneous Fee-Based Services | E177: ED_FEE431_00167
A178: ED_FEE431_00168 | B178: Miscellaneous Fee-Based Services | E178: ED_FEE431_00168
A179: ED_FEE431_00169 | B179: Miscellaneous Fee-Based Services | E179: ED_FEE431_00169
A180: ED_FEE431_00170 | B180: Miscellaneous Fee-Based Services | E180: ED_FEE431_00170
A181: ED_FEE431_00171 | B181: Miscellaneous Fee-Based Services | E181: ED_FEE431_00171
A182: ED_FEE431_00172 | B182: Miscellaneous Fee-Based Services | E182: ED_FEE431_00172
A183: ED_FEE431_00173 | B183: Miscellaneous Fee-Based Services | E183: ED_FEE431_00173
A184: ED_FEE431_00174 | B184: Miscellaneous Fee-Based Services | E184: ED_FEE431_00174
A185: ED_FEE431_00175 | B185: Miscellaneous Fee-Based Services | E185: ED_FEE431_00175
A186: ED_FEE431_00176 | B186: Miscellaneous Fee-Based Services | E186: ED_FEE431_00176
A187: ED_FEE431_00177 | B187: Miscellaneous Fee-Based Services | E187: ED_FEE431_00177
A188: ED_FEE431_00178 | B188: Miscellaneous Fee-Based Services | E188: ED_FEE431_00178
A189: ED_FEE431_00179 | B189: Miscellaneous Fee-Based Services | E189: ED_FEE431_00179
A190: ED_FEE431_00180 | B190: Miscellaneous Fee-Based Services | E190: ED_FEE431_00180
A191: ED_FEE431_00181 | B191: Miscellaneous Fee-Based Services | E191: ED_FEE431_00181
A192: ED_FEE431_00182 | B192: Miscellaneous Fee-Based Services | E192: ED_FEE431_00182
A193: ED_FEE431_00183 | B193: Miscellaneous Fee-Based Services | E193: ED_FEE431_00183
A194: ED_FEE431_00184 | B194: Miscellaneous Fee-Based Services | E194: ED_FEE431_00184
A195: ED_FEE431_00185 | B195: Miscellaneous Fee-Based Services | E195: ED_FEE431_00185
A196: ED_FEE431_00186 | B196: Miscellaneous Fee-Based Services | E196: ED_FEE431_00186
A197: ED_FEE431_00187 | B197: Miscellaneous Fee-Based Services | E197: ED_FEE431_00187
A198: ED_FEE431_00188 | B198: Miscellaneous Fee-Based Services | E198: ED_FEE431_00188
A199: ED_FEE431_00189 | B199: Miscellaneous Fee-Based Services | E199: ED_FEE431_00189
A200: ED_FEE431_00190 | B200: Miscellaneous Fee-Based Services | E200: ED_FEE431_00190
A201: ED_FEE431_00191 | B201: Miscellaneous Fee-Based Services | E201: ED_FEE431_00191
A202: ED_FEE431_00192 | B202: Miscellaneous Fee-Based Services | E202: ED_FEE431_00192
A203: ED_FEE431_00193 | B203: Miscellaneous Fee-Based Services | E203: ED_FEE431_00193
... 278 more rows

Sheet 4.4 Quoted services.
B1: =Title -> REGULATORY REPORTING STATEMENT
B2: =TradingName -> SA Power Networks
B3: =CONCATENATE("Category Analysis RIN response ",CRY) -> Category Analysis RIN response 2013-14
B4: 4.4 ANCILLARY SERVICES - QUOTED SERVICES
B6: TABLE 4.4.1 - COST METRICS FOR QUOTED SERVICES
D9: EXPENDITURE ($000'S) | F9: VOLUMES (000'S)
B10: SERVICE | C10: SERVICE SUBCATEGORY | D10: =CRY -> 2013-14 | F10: =CRY -> 2013-14
A11: ED_QUO441_00001 | B11: Quoted Services | C11: < Enter description for service subcategory > | E11: ED_QUO441_00001
A12: ED_QUO441_00002 | B12: Quoted Services | E12: ED_QUO441_00002
A13: ED_QUO441_00003 | B13: Quoted Services | E13: ED_QUO441_00003
A14: ED_QUO441_00004 | B14: Quoted Services | E14: ED_QUO441_00004
A15: ED_QUO441_00005 | B15: Quoted Services | E15: ED_QUO441_00005
A16: ED_QUO441_00006 | B16: Quoted Services | E16: ED_QUO441_00006
A17: ED_QUO441_00007 | B17: Quoted Services | E17: ED_QUO441_00007
A18: ED_QUO441_00008 | B18: Quoted Services | E18: ED_QUO441_00008
A19: ED_QUO441_00009 | B19: Quoted Services | E19: ED_QUO441_00009
A20: ED_QUO441_00010 | B20: Quoted Services | E20: ED_QUO441_00010
A21: ED_QUO441_00011 | B21: Quoted Services | E21: ED_QUO441_00011
A22: ED_QUO441_00012 | B22: Quoted Services | E22: ED_QUO441_00012
A23: ED_QUO441_00013 | B23: Quoted Services | E23: ED_QUO441_00013
A24: ED_QUO441_00014 | B24: Quoted Services | E24: ED_QUO441_00014
A25: ED_QUO441_00015 | B25: Quoted Services | E25: ED_QUO441_00015
A26: ED_QUO441_00016 | B26: Quoted Services | E26: ED_QUO441_00016
A27: ED_QUO441_00017 | B27: Quoted Services | E27: ED_QUO441_00017
A28: ED_QUO441_00018 | B28: Quoted Services | E28: ED_QUO441_00018
A29: ED_QUO441_00019 | B29: Quoted Services | E29: ED_QUO441_00019
A30: ED_QUO441_00020 | B30: Quoted Services | E30: ED_QUO441_00020
A31: ED_QUO441_00021 | B31: Quoted Services | E31: ED_QUO441_00021
A32: ED_QUO441_00022 | B32: Quoted Services | E32: ED_QUO441_00022
A33: ED_QUO441_00023 | B33: Quoted Services | E33: ED_QUO441_00023
A34: ED_QUO441_00024 | B34: Quoted Services | E34: ED_QUO441_00024
A35: ED_QUO441_00025 | B35: Quoted Services | E35: ED_QUO441_00025
A36: ED_QUO441_00026 | B36: Quoted Services | E36: ED_QUO441_00026
A37: ED_QUO441_00027 | B37: Quoted Services | E37: ED_QUO441_00027
A38: ED_QUO441_00028 | B38: Quoted Services | E38: ED_QUO441_00028
A39: ED_QUO441_00029 | B39: Quoted Services | E39: ED_QUO441_00029
A40: ED_QUO441_00030 | B40: Quoted Services | E40: ED_QUO441_00030
A41: ED_QUO441_00031 | B41: Quoted Services | E41: ED_QUO441_00031
A42: ED_QUO441_00032 | B42: Quoted Services | E42: ED_QUO441_00032
A43: ED_QUO441_00033 | B43: Quoted Services | E43: ED_QUO441_00033
A44: ED_QUO441_00034 | B44: Quoted Services | E44: ED_QUO441_00034
A45: ED_QUO441_00035 | B45: Quoted Services | E45: ED_QUO441_00035
A46: ED_QUO441_00036 | B46: Quoted Services | E46: ED_QUO441_00036
A47: ED_QUO441_00037 | B47: Quoted Services | E47: ED_QUO441_00037
A48: ED_QUO441_00038 | B48: Quoted Services | E48: ED_QUO441_00038
A49: ED_QUO441_00039 | B49: Quoted Services | E49: ED_QUO441_00039
A50: ED_QUO441_00040 | B50: Quoted Services | E50: ED_QUO441_00040
A51: ED_QUO441_00041 | B51: Quoted Services | E51: ED_QUO441_00041
A52: ED_QUO441_00042 | B52: Quoted Services | E52: ED_QUO441_00042
A53: ED_QUO441_00043 | B53: Quoted Services | E53: ED_QUO441_00043
A54: ED_QUO441_00044 | B54: Quoted Services | E54: ED_QUO441_00044
A55: ED_QUO441_00045 | B55: Quoted Services | E55: ED_QUO441_00045
A56: ED_QUO441_00046 | B56: Quoted Services | E56: ED_QUO441_00046
A57: ED_QUO441_00047 | B57: Quoted Services | E57: ED_QUO441_00047
A58: ED_QUO441_00048 | B58: Quoted Services | E58: ED_QUO441_00048
A59: ED_QUO441_00049 | B59: Quoted Services | E59: ED_QUO441_00049
A60: ED_QUO441_00050 | B60: Quoted Services | E60: ED_QUO441_00050
A61: ED_QUO441_00051 | B61: Quoted Services | E61: ED_QUO441_00051
A62: ED_QUO441_00052 | B62: Quoted Services | E62: ED_QUO441_00052
A63: ED_QUO441_00053 | B63: Quoted Services | E63: ED_QUO441_00053
A64: ED_QUO441_00054 | B64: Quoted Services | E64: ED_QUO441_00054
A65: ED_QUO441_00055 | B65: Quoted Services | E65: ED_QUO441_00055
A66: ED_QUO441_00056 | B66: Quoted Services | E66: ED_QUO441_00056
A67: ED_QUO441_00057 | B67: Quoted Services | E67: ED_QUO441_00057
A68: ED_QUO441_00058 | B68: Quoted Services | E68: ED_QUO441_00058
A69: ED_QUO441_00059 | B69: Quoted Services | E69: ED_QUO441_00059
A70: ED_QUO441_00060 | B70: Quoted Services | E70: ED_QUO441_00060
A71: ED_QUO441_00061 | B71: Quoted Services | E71: ED_QUO441_00061
A72: ED_QUO441_00062 | B72: Quoted Services | E72: ED_QUO441_00062
A73: ED_QUO441_00063 | B73: Quoted Services | E73: ED_QUO441_00063
A74: ED_QUO441_00064 | B74: Quoted Services | E74: ED_QUO441_00064
A75: ED_QUO441_00065 | B75: Quoted Services | E75: ED_QUO441_00065
A76: ED_QUO441_00066 | B76: Quoted Services | E76: ED_QUO441_00066
A77: ED_QUO441_00067 | B77: Quoted Services | E77: ED_QUO441_00067
A78: ED_QUO441_00068 | B78: Quoted Services | E78: ED_QUO441_00068
A79: ED_QUO441_00069 | B79: Quoted Services | E79: ED_QUO441_00069
A80: ED_QUO441_00070 | B80: Quoted Services | E80: ED_QUO441_00070
A81: ED_QUO441_00071 | B81: Quoted Services | E81: ED_QUO441_00071
A82: ED_QUO441_00072 | B82: Quoted Services | E82: ED_QUO441_00072
A83: ED_QUO441_00073 | B83: Quoted Services | E83: ED_QUO441_00073
A84: ED_QUO441_00074 | B84: Quoted Services | E84: ED_QUO441_00074
A85: ED_QUO441_00075 | B85: Quoted Services | E85: ED_QUO441_00075
A86: ED_QUO441_00076 | B86: Quoted Services | E86: ED_QUO441_00076
A87: ED_QUO441_00077 | B87: Quoted Services | E87: ED_QUO441_00077
A88: ED_QUO441_00078 | B88: Quoted Services | E88: ED_QUO441_00078
A89: ED_QUO441_00079 | B89: Quoted Services | E89: ED_QUO441_00079
A90: ED_QUO441_00080 | B90: Quoted Services | E90: ED_QUO441_00080
A91: ED_QUO441_00081 | B91: Quoted Services | E91: ED_QUO441_00081
A92: ED_QUO441_00082 | B92: Quoted Services | E92: ED_QUO441_00082
A93: ED_QUO441_00083 | B93: Quoted Services | E93: ED_QUO441_00083
A94: ED_QUO441_00084 | B94: Quoted Services | E94: ED_QUO441_00084
A95: ED_QUO441_00085 | B95: Quoted Services | E95: ED_QUO441_00085
A96: ED_QUO441_00086 | B96: Quoted Services | E96: ED_QUO441_00086
A97: ED_QUO441_00087 | B97: Quoted Services | E97: ED_QUO441_00087
A98: ED_QUO441_00088 | B98: Quoted Services | E98: ED_QUO441_00088
A99: ED_QUO441_00089 | B99: Quoted Services | E99: ED_QUO441_00089
A100: ED_QUO441_00090 | B100: Quoted Services | E100: ED_QUO441_00090
A101: ED_QUO441_00091 | B101: Quoted Services | E101: ED_QUO441_00091
A102: ED_QUO441_00092 | B102: Quoted Services | E102: ED_QUO441_00092
A103: ED_QUO441_00093 | B103: Quoted Services | E103: ED_QUO441_00093
A104: ED_QUO441_00094 | B104: Quoted Services | E104: ED_QUO441_00094
A105: ED_QUO441_00095 | B105: Quoted Services | E105: ED_QUO441_00095
A106: ED_QUO441_00096 | B106: Quoted Services | E106: ED_QUO441_00096
A107: ED_QUO441_00097 | B107: Quoted Services | E107: ED_QUO441_00097
A108: ED_QUO441_00098 | B108: Quoted Services | E108: ED_QUO441_00098
A109: ED_QUO441_00099 | B109: Quoted Services | E109: ED_QUO441_00099
A110: ED_QUO441_00100 | B110: Quoted Services | E110: ED_QUO441_00100
A111: ED_QUO441_00101 | B111: Quoted Services | E111: ED_QUO441_00101
A112: ED_QUO441_00102 | B112: Quoted Services | E112: ED_QUO441_00102
A113: ED_QUO441_00103 | B113: Quoted Services | E113: ED_QUO441_00103
A114: ED_QUO441_00104 | B114: Quoted Services | E114: ED_QUO441_00104
A115: ED_QUO441_00105 | B115: Quoted Services | E115: ED_QUO441_00105
A116: ED_QUO441_00106 | B116: Quoted Services | E116: ED_QUO441_00106
A117: ED_QUO441_00107 | B117: Quoted Services | E117: ED_QUO441_00107
A118: ED_QUO441_00108 | B118: Quoted Services | E118: ED_QUO441_00108
A119: ED_QUO441_00109 | B119: Quoted Services | E119: ED_QUO441_00109
A120: ED_QUO441_00110 | B120: Quoted Services | E120: ED_QUO441_00110
A121: ED_QUO441_00111 | B121: Quoted Services | E121: ED_QUO441_00111
A122: ED_QUO441_00112 | B122: Quoted Services | E122: ED_QUO441_00112
A123: ED_QUO441_00113 | B123: Quoted Services | E123: ED_QUO441_00113
A124: ED_QUO441_00114 | B124: Quoted Services | E124: ED_QUO441_00114
A125: ED_QUO441_00115 | B125: Quoted Services | E125: ED_QUO441_00115
A126: ED_QUO441_00116 | B126: Quoted Services | E126: ED_QUO441_00116
A127: ED_QUO441_00117 | B127: Quoted Services | E127: ED_QUO441_00117
A128: ED_QUO441_00118 | B128: Quoted Services | E128: ED_QUO441_00118
A129: ED_QUO441_00119 | B129: Quoted Services | E129: ED_QUO441_00119
A130: ED_QUO441_00120 | B130: Quoted Services | E130: ED_QUO441_00120
A131: ED_QUO441_00121 | B131: Quoted Services | E131: ED_QUO441_00121
A132: ED_QUO441_00122 | B132: Quoted Services | E132: ED_QUO441_00122
A133: ED_QUO441_00123 | B133: Quoted Services | E133: ED_QUO441_00123
A134: ED_QUO441_00124 | B134: Quoted Services | E134: ED_QUO441_00124
A135: ED_QUO441_00125 | B135: Quoted Services | E135: ED_QUO441_00125
A136: ED_QUO441_00126 | B136: Quoted Services | E136: ED_QUO441_00126
A137: ED_QUO441_00127 | B137: Quoted Services | E137: ED_QUO441_00127
A138: ED_QUO441_00128 | B138: Quoted Services | E138: ED_QUO441_00128
A139: ED_QUO441_00129 | B139: Quoted Services | E139: ED_QUO441_00129
A140: ED_QUO441_00130 | B140: Quoted Services | E140: ED_QUO441_00130
A141: ED_QUO441_00131 | B141: Quoted Services | E141: ED_QUO441_00131
A142: ED_QUO441_00132 | B142: Quoted Services | E142: ED_QUO441_00132
A143: ED_QUO441_00133 | B143: Quoted Services | E143: ED_QUO441_00133
A144: ED_QUO441_00134 | B144: Quoted Services | E144: ED_QUO441_00134
A145: ED_QUO441_00135 | B145: Quoted Services | E145: ED_QUO441_00135
A146: ED_QUO441_00136 | B146: Quoted Services | E146: ED_QUO441_00136
A147: ED_QUO441_00137 | B147: Quoted Services | E147: ED_QUO441_00137
A148: ED_QUO441_00138 | B148: Quoted Services | E148: ED_QUO441_00138
A149: ED_QUO441_00139 | B149: Quoted Services | E149: ED_QUO441_00139
A150: ED_QUO441_00140 | B150: Quoted Services | E150: ED_QUO441_00140
A151: ED_QUO441_00141 | B151: Quoted Services | E151: ED_QUO441_00141
A152: ED_QUO441_00142 | B152: Quoted Services | E152: ED_QUO441_00142
A153: ED_QUO441_00143 | B153: Quoted Services | E153: ED_QUO441_00143
A154: ED_QUO441_00144 | B154: Quoted Services | E154: ED_QUO441_00144
A155: ED_QUO441_00145 | B155: Quoted Services | E155: ED_QUO441_00145
A156: ED_QUO441_00146 | B156: Quoted Services | E156: ED_QUO441_00146
A157: ED_QUO441_00147 | B157: Quoted Services | E157: ED_QUO441_00147
A158: ED_QUO441_00148 | B158: Quoted Services | E158: ED_QUO441_00148
A159: ED_QUO441_00149 | B159: Quoted Services | E159: ED_QUO441_00149
A160: ED_QUO441_00150 | B160: Quoted Services | E160: ED_QUO441_00150
A161: ED_QUO441_00151 | B161: Quoted Services | E161: ED_QUO441_00151
A162: ED_QUO441_00152 | B162: Quoted Services | E162: ED_QUO441_00152
A163: ED_QUO441_00153 | B163: Quoted Services | E163: ED_QUO441_00153
A164: ED_QUO441_00154 | B164: Quoted Services | E164: ED_QUO441_00154
A165: ED_QUO441_00155 | B165: Quoted Services | E165: ED_QUO441_00155
A166: ED_QUO441_00156 | B166: Quoted Services | E166: ED_QUO441_00156
A167: ED_QUO441_00157 | B167: Quoted Services | E167: ED_QUO441_00157
A168: ED_QUO441_00158 | B168: Quoted Services | E168: ED_QUO441_00158
A169: ED_QUO441_00159 | B169: Quoted Services | E169: ED_QUO441_00159
A170: ED_QUO441_00160 | B170: Quoted Services | E170: ED_QUO441_00160
A171: ED_QUO441_00161 | B171: Quoted Services | E171: ED_QUO441_00161
A172: ED_QUO441_00162 | B172: Quoted Services | E172: ED_QUO441_00162
A173: ED_QUO441_00163 | B173: Quoted Services | E173: ED_QUO441_00163
A174: ED_QUO441_00164 | B174: Quoted Services | E174: ED_QUO441_00164
A175: ED_QUO441_00165 | B175: Quoted Services | E175: ED_QUO441_00165
A176: ED_QUO441_00166 | B176: Quoted Services | E176: ED_QUO441_00166
A177: ED_QUO441_00167 | B177: Quoted Services | E177: ED_QUO441_00167
A178: ED_QUO441_00168 | B178: Quoted Services | E178: ED_QUO441_00168
A179: ED_QUO441_00169 | B179: Quoted Services | E179: ED_QUO441_00169
A180: ED_QUO441_00170 | B180: Quoted Services | E180: ED_QUO441_00170
A181: ED_QUO441_00171 | B181: Quoted Services | E181: ED_QUO441_00171
A182: ED_QUO441_00172 | B182: Quoted Services | E182: ED_QUO441_00172
A183: ED_QUO441_00173 | B183: Quoted Services | E183: ED_QUO441_00173
A184: ED_QUO441_00174 | B184: Quoted Services | E184: ED_QUO441_00174
A185: ED_QUO441_00175 | B185: Quoted Services | E185: ED_QUO441_00175
A186: ED_QUO441_00176 | B186: Quoted Services | E186: ED_QUO441_00176
A187: ED_QUO441_00177 | B187: Quoted Services | E187: ED_QUO441_00177
A188: ED_QUO441_00178 | B188: Quoted Services | E188: ED_QUO441_00178
A189: ED_QUO441_00179 | B189: Quoted Services | E189: ED_QUO441_00179
A190: ED_QUO441_00180 | B190: Quoted Services | E190: ED_QUO441_00180
A191: ED_QUO441_00181 | B191: Quoted Services | E191: ED_QUO441_00181
A192: ED_QUO441_00182 | B192: Quoted Services | E192: ED_QUO441_00182
A193: ED_QUO441_00183 | B193: Quoted Services | E193: ED_QUO441_00183
A194: ED_QUO441_00184 | B194: Quoted Services | E194: ED_QUO441_00184
A195: ED_QUO441_00185 | B195: Quoted Services | E195: ED_QUO441_00185
A196: ED_QUO441_00186 | B196: Quoted Services | E196: ED_QUO441_00186
A197: ED_QUO441_00187 | B197: Quoted Services | E197: ED_QUO441_00187
A198: ED_QUO441_00188 | B198: Quoted Services | E198: ED_QUO441_00188
A199: ED_QUO441_00189 | B199: Quoted Services | E199: ED_QUO441_00189
A200: ED_QUO441_00190 | B200: Quoted Services | E200: ED_QUO441_00190
A201: ED_QUO441_00191 | B201: Quoted Services | E201: ED_QUO441_00191
A202: ED_QUO441_00192 | B202: Quoted Services | E202: ED_QUO441_00192
A203: ED_QUO441_00193 | B203: Quoted Services | E203: ED_QUO441_00193
... 280 more rows

Sheet 5.2 Asset Age Profile
B1: =Title -> REGULATORY REPORTING STATEMENT
B2: =TradingName -> SA Power Networks
B3: =CONCATENATE("Category Analysis RIN response ",CRY) -> Category Analysis RIN response 2013-14
B4: 5.2 ASSET AGE PROFILE
B6: TABLE 5.2.1 - ASSET AGE PROFILE
E7: 1 | P7: 2 | AA7: 3
N9: ECONOMIC LIFE (YEARS) | AJ9: INSTALLED ASSETS -˃ QUANTITY CURRENTLY IN COMMISSION BY YEAR
B10: ASSET GROUP | C10: ASSET CATEGORY | E10: DNSP NAME | F10: SERVICE | G10: ASSET GROUP | H10: ASSET CATEGORY | I10: DATA TYPE | J10: DATA TYPE SUBCATEGORY | K10: MEASUREMENT | L10: DENOMINATION | N10: MEAN | P10: DNSP NAME | Q10: SERVICE | R10: ASSET GROUP | S10: ASSET CATEGORY | T10: DATA TYPE | U10: DATA TYPE SUBCATEGORY | V10: MEASUREMENT | W10: DENOMINATION | Y10: STANDARD DEVIATION | AA10: DNSP NAME | AB10: SERVICE | AC10: ASSET GROUP | AD10: ASSET CATEGORY | AE10: DATA TYPE | AF10: DATA TYPE SUBCATEGORY | AG10: MEASUREMENT | AH10: DENOMINATION | AJ10: 2013-14 | AK10: 2012-13 | AL10: 2011-12 | AM10: 2010-11 | AN10: 2009-10 | AO10: 2008-09 | AP10: 2007-08 | AQ10: 2006-07 | AR10: 2005-06 | AS10: 2004-05 | AT10: 2003-04 | AU10: 2002-03 | AV10: 2001-02 | AW10: 2000-01 | AX10: 1999-00 | AY10: 1998-99 | AZ10: 1997-98 | BA10: 1996-97 | BB10: 1995-96 | BC10: 1994-95 | BD10: 1993-94 | BE10: 1992-93 | BF10: 1991-92 | BG10: 1990-91 | BH10: 1989-90 | BI10: 1988-89 | BJ10: 1987-88 | BK10: 1986-87 | BL10: 1985-86 | BM10: 1984-85 | BN10: 1983-84 | BO10: 1982-83 | BP10: 1981-82 | BQ10: 1980-81 | BR10: 1979-80 | BS10: 1978-79 | BT10: 1977-78 | BU10: 1976-77 | BV10: 1975-76 | BW10: 1974-75 | BX10: 1973-74 | BY10: 1972-73 | BZ10: 1971-72 | CA10: 1970-71 | CB10: 1969-70 | CC10: 1968-69 | CD10: 1967-68 | CE10: 1966-67 | CF10: 1965-66 | CG10: 1964-65 | CH10: 1963-64 | CI10: 1962-63 | CJ10: 1961-62 | CK10: 1960-61 | CL10: 1959-60 | CM10: 1958-59 | CN10: 1957-58 | CO10: 1956-57 | CP10: 1955-56 | CQ10: 1954-55 | CR10: 1953-54 | CS10: 1952-53 | CT10: 1951-52 | CU10: 1950-51 | CV10: 1949-50 | CW10: 1948-49 | CX10: 1947-48 | CY10: 1946-47 | CZ10: 1945-46 | DA10: 1944-45 | DB10: 1943-44 | DC10: 1942-43 | DD10: 1941-42 | DE10: 1940-41 | DF10: 1939-40 | DG10: 1938-39 | DH10: 1937-38 | DI10: 1936-37 | DJ10: 1935-36 | DK10: 1934-35 | DL10: 1933-34 | DM10: 1932-33 | DN10: 1931-32 | DO10: 1930-31 | DP10: 1929-30 | DQ10: 1928-29 | DR10: 1927-28 | DS10: 1926-27 | DT10: 1925-26 | DU10: 1924-25 | DV10: 1923-24 | DW10: 1922-23 | DX10: 1921-22 | DY10: 1920-21 | DZ10: 1919-20 | EA10: 1918-19 | EB10: 1917-18 | EC10: 1916-17 | ED10: 1915-16 | EE10: 1914-15 | EF10: 1913-14 | EG10: 1912-13 | EH10: 1911-12 | EI10: 1910-11
A11: ED_ASS521_00001 | B11: POLES BY: HIGHEST OPERATING VOLTAGE ; MATERIAL TYPE; STAKING (IF WOOD) | C11: Staking of a wooden pole | E11: DNSP NAME | F11: REPEX | G11: POLES | H11: =C11 -> Staking of a wooden pole | I11: DESCRIPTOR METRIC | J11: MEAN ECONOMIC LIFE | K11: YEARS | L11: NUMBER | N11: 0 | Y11: 0 | AJ11: 0 | AK11: 0 | AL11: 0 | AM11: 0 | AN11: 0 | AO11: 0 | AP11: 0 | AQ11: 0 | AR11: 0 | AS11: 0 | AT11: 0 | AU11: 0 | AV11: 0 | AW11: 0 | AX11: 0 | AY11: 0 | AZ11: 0 | BA11: 0 | BB11: 0 | BC11: 0 | BD11: 0 | BE11: 0 | BF11: 0 | BG11: 0 | BH11: 0 | BI11: 0 | BJ11: 0 | BK11: 0 | BL11: 0 | BM11: 0 | BN11: 0 | BO11: 0 | BP11: 0 | BQ11: 0 | BR11: 0 | BS11: 0 | BT11: 0 | BU11: 0 | BV11: 0 | BW11: 0 | BX11: 0 | BY11: 0 | BZ11: 0 | CA11: 0 | CB11: 0 | CC11: 0 | CD11: 0 | CE11: 0 | CF11: 0 | CG11: 0 | CH11: 0 | CI11: 0 | CJ11: 0 | CK11: 0 | CL11: 0 | CM11: 0 | CN11: 0 | CO11: 0 | CP11: 0 | CQ11: 0 | CR11: 0 | CS11: 0 | CT11: 0 | CU11: 0 | CV11: 0 | CW11: 0 | CX11: 0 | CY11: 0 | CZ11: 0 | DA11: 0 | DB11: 0 | DC11: 0 | DD11: 0 | DE11: 0 | DF11: 0 | DG11: 0 | DH11: 0 | DI11: 0 | DJ11: 0 | DK11: 0 | DL11: 0 | DM11: 0 | DN11: 0 | DO11: 0 | DP11: 0 | DQ11: 0 | DR11: 0 | DS11: 0 | DT11: 0 | DU11: 0 | DV11: 0 | DW11: 0 | DX11: 0 | DY11: 0 | DZ11: 0 | EA11: 0 | EB11: 0 | EC11: 0 | ED11: 0 | EE11: 0 | EF11: 0 | EG11: 0 | EH11: 0 | EI11: 0
A12: ED_ASS521_00002 | C12: ˂ = 1 kV; Wood | E12: TNSP NAME | F12: REPEX | G12: POLES | H12: =C12 -> ˂ = 1 kV; Wood | I12: DESCRIPTOR METRIC | J12: MEAN ECONOMIC LIFE | K12: YEARS | L12: NUMBER | N12: 0 | Y12: 0 | AJ12: 0 | AK12: 0 | AL12: 0 | AM12: 0 | AN12: 0 | AO12: 0 | AP12: 0 | AQ12: 0 | AR12: 0 | AS12: 0 | AT12: 0 | AU12: 0 | AV12: 0 | AW12: 0 | AX12: 0 | AY12: 0 | AZ12: 0 | BA12: 0 | BB12: 0 | BC12: 0 | BD12: 0 | BE12: 0 | BF12: 0 | BG12: 0 | BH12: 0 | BI12: 0 | BJ12: 0 | BK12: 0 | BL12: 0 | BM12: 0 | BN12: 0 | BO12: 0 | BP12: 0 | BQ12: 0 | BR12: 0 | BS12: 0 | BT12: 0 | BU12: 0 | BV12: 0 | BW12: 0 | BX12: 0 | BY12: 0 | BZ12: 0 | CA12: 0 | CB12: 0 | CC12: 0 | CD12: 0 | CE12: 0 | CF12: 0 | CG12: 0 | CH12: 0 | CI12: 0 | CJ12: 0 | CK12: 0 | CL12: 0 | CM12: 0 | CN12: 0 | CO12: 0 | CP12: 0 | CQ12: 0 | CR12: 0 | CS12: 0 | CT12: 0 | CU12: 0 | CV12: 0 | CW12: 0 | CX12: 0 | CY12: 0 | CZ12: 0 | DA12: 0 | DB12: 0 | DC12: 0 | DD12: 0 | DE12: 0 | DF12: 0 | DG12: 0 | DH12: 0 | DI12: 0 | DJ12: 0 | DK12: 0 | DL12: 0 | DM12: 0 | DN12: 0 | DO12: 0 | DP12: 0 | DQ12: 0 | DR12: 0 | DS12: 0 | DT12: 0 | DU12: 0 | DV12: 0 | DW12: 0 | DX12: 0 | DY12: 0 | DZ12: 0 | EA12: 0 | EB12: 0 | EC12: 0 | ED12: 0 | EE12: 0 | EF12: 0 | EG12: 0 | EH12: 0 | EI12: 0
A13: ED_ASS521_00003 | C13: > 1 kV & < = 11 kV; Wood | E13: TNSP NAME | F13: REPEX | G13: POLES | H13: > 1 kV & < = 11 kV; Wood | I13: DESCRIPTOR METRIC | J13: MEAN ECONOMIC LIFE | K13: YEARS | L13: NUMBER | N13: 0 | Y13: 0 | AJ13: 0 | AK13: 0 | AL13: 0 | AM13: 0 | AN13: 0 | AO13: 0 | AP13: 0 | AQ13: 0 | AR13: 0 | AS13: 0 | AT13: 0 | AU13: 0 | AV13: 0 | AW13: 0 | AX13: 0 | AY13: 0 | AZ13: 0 | BA13: 0 | BB13: 0 | BC13: 0 | BD13: 0 | BE13: 0 | BF13: 0 | BG13: 0 | BH13: 0 | BI13: 0 | BJ13: 0 | BK13: 0 | BL13: 0 | BM13: 0 | BN13: 0 | BO13: 0 | BP13: 0 | BQ13: 0 | BR13: 0 | BS13: 0 | BT13: 0 | BU13: 0 | BV13: 0 | BW13: 0 | BX13: 0 | BY13: 0 | BZ13: 0 | CA13: 0 | CB13: 0 | CC13: 0 | CD13: 0 | CE13: 0 | CF13: 0 | CG13: 0 | CH13: 0 | CI13: 0 | CJ13: 0 | CK13: 0 | CL13: 0 | CM13: 0 | CN13: 0 | CO13: 0 | CP13: 0 | CQ13: 0 | CR13: 0 | CS13: 0 | CT13: 0 | CU13: 0 | CV13: 0 | CW13: 0 | CX13: 0 | CY13: 0 | CZ13: 0 | DA13: 0 | DB13: 0 | DC13: 0 | DD13: 0 | DE13: 0 | DF13: 0 | DG13: 0 | DH13: 0 | DI13: 0 | DJ13: 0 | DK13: 0 | DL13: 0 | DM13: 0 | DN13: 0 | DO13: 0 | DP13: 0 | DQ13: 0 | DR13: 0 | DS13: 0 | DT13: 0 | DU13: 0 | DV13: 0 | DW13: 0 | DX13: 0 | DY13: 0 | DZ13: 0 | EA13: 0 | EB13: 0 | EC13: 0 | ED13: 0 | EE13: 0 | EF13: 0 | EG13: 0 | EH13: 0 | EI13: 0
A14: ED_ASS521_00004 | C14: ˃ 11 kV & < = 22 kV; Wood | E14: DNSP NAME | F14: REPEX | G14: POLES | H14: ˃ 11 kV & < = 22 kV; Wood | I14: DESCRIPTOR METRIC | J14: MEAN ECONOMIC LIFE | K14: YEARS | L14: NUMBER | N14: 0 | Y14: 0 | AJ14: 0 | AK14: 0 | AL14: 0 | AM14: 0 | AN14: 0 | AO14: 0 | AP14: 0 | AQ14: 0 | AR14: 0 | AS14: 0 | AT14: 0 | AU14: 0 | AV14: 0 | AW14: 0 | AX14: 0 | AY14: 0 | AZ14: 0 | BA14: 0 | BB14: 0 | BC14: 0 | BD14: 0 | BE14: 0 | BF14: 0 | BG14: 0 | BH14: 0 | BI14: 0 | BJ14: 0 | BK14: 0 | BL14: 0 | BM14: 0 | BN14: 0 | BO14: 0 | BP14: 0 | BQ14: 0 | BR14: 0 | BS14: 0 | BT14: 0 | BU14: 0 | BV14: 0 | BW14: 0 | BX14: 0 | BY14: 0 | BZ14: 0 | CA14: 0 | CB14: 0 | CC14: 0 | CD14: 0 | CE14: 0 | CF14: 0 | CG14: 0 | CH14: 0 | CI14: 0 | CJ14: 0 | CK14: 0 | CL14: 0 | CM14: 0 | CN14: 0 | CO14: 0 | CP14: 0 | CQ14: 0 | CR14: 0 | CS14: 0 | CT14: 0 | CU14: 0 | CV14: 0 | CW14: 0 | CX14: 0 | CY14: 0 | CZ14: 0 | DA14: 0 | DB14: 0 | DC14: 0 | DD14: 0 | DE14: 0 | DF14: 0 | DG14: 0 | DH14: 0 | DI14: 0 | DJ14: 0 | DK14: 0 | DL14: 0 | DM14: 0 | DN14: 0 | DO14: 0 | DP14: 0 | DQ14: 0 | DR14: 0 | DS14: 0 | DT14: 0 | DU14: 0 | DV14: 0 | DW14: 0 | DX14: 0 | DY14: 0 | DZ14: 0 | EA14: 0 | EB14: 0 | EC14: 0 | ED14: 0 | EE14: 0 | EF14: 0 | EG14: 0 | EH14: 0 | EI14: 0
A15: ED_ASS521_00005 | C15: > 22 kV & < = 66 kV; Wood | E15: DNSP NAME | F15: REPEX | G15: POLES | H15: > 22 kV & < = 66 kV; Wood | I15: DESCRIPTOR METRIC | J15: MEAN ECONOMIC LIFE | K15: YEARS | L15: NUMBER | N15: 0 | Y15: 0 | AJ15: 0 | AK15: 0 | AL15: 0 | AM15: 0 | AN15: 0 | AO15: 0 | AP15: 0 | AQ15: 0 | AR15: 0 | AS15: 0 | AT15: 0 | AU15: 0 | AV15: 0 | AW15: 0 | AX15: 0 | AY15: 0 | AZ15: 0 | BA15: 0 | BB15: 0 | BC15: 0 | BD15: 0 | BE15: 0 | BF15: 0 | BG15: 0 | BH15: 0 | BI15: 0 | BJ15: 0 | BK15: 0 | BL15: 0 | BM15: 0 | BN15: 0 | BO15: 0 | BP15: 0 | BQ15: 0 | BR15: 0 | BS15: 0 | BT15: 0 | BU15: 0 | BV15: 0 | BW15: 0 | BX15: 0 | BY15: 0 | BZ15: 0 | CA15: 0 | CB15: 0 | CC15: 0 | CD15: 0 | CE15: 0 | CF15: 0 | CG15: 0 | CH15: 0 | CI15: 0 | CJ15: 0 | CK15: 0 | CL15: 0 | CM15: 0 | CN15: 0 | CO15: 0 | CP15: 0 | CQ15: 0 | CR15: 0 | CS15: 0 | CT15: 0 | CU15: 0 | CV15: 0 | CW15: 0 | CX15: 0 | CY15: 0 | CZ15: 0 | DA15: 0 | DB15: 0 | DC15: 0 | DD15: 0 | DE15: 0 | DF15: 0 | DG15: 0 | DH15: 0 | DI15: 0 | DJ15: 0 | DK15: 0 | DL15: 0 | DM15: 0 | DN15: 0 | DO15: 0 | DP15: 0 | DQ15: 0 | DR15: 0 | DS15: 0 | DT15: 0 | DU15: 0 | DV15: 0 | DW15: 0 | DX15: 0 | DY15: 0 | DZ15: 0 | EA15: 0 | EB15: 0 | EC15: 0 | ED15: 0 | EE15: 0 | EF15: 0 | EG15: 0 | EH15: 0 | EI15: 0
A16: ED_ASS521_00006 | C16: > 66 kV & < = 132 kV; Wood | E16: DNSP NAME | F16: REPEX | G16: POLES | H16: > 66 kV & < = 132 kV; Wood | I16: DESCRIPTOR METRIC | J16: MEAN ECONOMIC LIFE | K16: YEARS | L16: NUMBER | N16: 0 | Y16: 0 | AJ16: 0 | AK16: 0 | AL16: 0 | AM16: 0 | AN16: 0 | AO16: 0 | AP16: 0 | AQ16: 0 | AR16: 0 | AS16: 0 | AT16: 0 | AU16: 0 | AV16: 0 | AW16: 0 | AX16: 0 | AY16: 0 | AZ16: 0 | BA16: 0 | BB16: 0 | BC16: 0 | BD16: 0 | BE16: 0 | BF16: 0 | BG16: 0 | BH16: 0 | BI16: 0 | BJ16: 0 | BK16: 0 | BL16: 0 | BM16: 0 | BN16: 0 | BO16: 0 | BP16: 0 | BQ16: 0 | BR16: 0 | BS16: 0 | BT16: 0 | BU16: 0 | BV16: 0 | BW16: 0 | BX16: 0 | BY16: 0 | BZ16: 0 | CA16: 0 | CB16: 0 | CC16: 0 | CD16: 0 | CE16: 0 | CF16: 0 | CG16: 0 | CH16: 0 | CI16: 0 | CJ16: 0 | CK16: 0 | CL16: 0 | CM16: 0 | CN16: 0 | CO16: 0 | CP16: 0 | CQ16: 0 | CR16: 0 | CS16: 0 | CT16: 0 | CU16: 0 | CV16: 0 | CW16: 0 | CX16: 0 | CY16: 0 | CZ16: 0 | DA16: 0 | DB16: 0 | DC16: 0 | DD16: 0 | DE16: 0 | DF16: 0 | DG16: 0 | DH16: 0 | DI16: 0 | DJ16: 0 | DK16: 0 | DL16: 0 | DM16: 0 | DN16: 0 | DO16: 0 | DP16: 0 | DQ16: 0 | DR16: 0 | DS16: 0 | DT16: 0 | DU16: 0 | DV16: 0 | DW16: 0 | DX16: 0 | DY16: 0 | DZ16: 0 | EA16: 0 | EB16: 0 | EC16: 0 | ED16: 0 | EE16: 0 | EF16: 0 | EG16: 0 | EH16: 0 | EI16: 0
A17: ED_ASS521_00007 | C17: > 132 kV; Wood | E17: DNSP NAME | F17: REPEX | G17: POLES | H17: > 132 kV; Wood | I17: DESCRIPTOR METRIC | J17: MEAN ECONOMIC LIFE | K17: YEARS | L17: NUMBER | N17: 0 | Y17: 0 | AJ17: 0 | AK17: 0 | AL17: 0 | AM17: 0 | AN17: 0 | AO17: 0 | AP17: 0 | AQ17: 0 | AR17: 0 | AS17: 0 | AT17: 0 | AU17: 0 | AV17: 0 | AW17: 0 | AX17: 0 | AY17: 0 | AZ17: 0 | BA17: 0 | BB17: 0 | BC17: 0 | BD17: 0 | BE17: 0 | BF17: 0 | BG17: 0 | BH17: 0 | BI17: 0 | BJ17: 0 | BK17: 0 | BL17: 0 | BM17: 0 | BN17: 0 | BO17: 0 | BP17: 0 | BQ17: 0 | BR17: 0 | BS17: 0 | BT17: 0 | BU17: 0 | BV17: 0 | BW17: 0 | BX17: 0 | BY17: 0 | BZ17: 0 | CA17: 0 | CB17: 0 | CC17: 0 | CD17: 0 | CE17: 0 | CF17: 0 | CG17: 0 | CH17: 0 | CI17: 0 | CJ17: 0 | CK17: 0 | CL17: 0 | CM17: 0 | CN17: 0 | CO17: 0 | CP17: 0 | CQ17: 0 | CR17: 0 | CS17: 0 | CT17: 0 | CU17: 0 | CV17: 0 | CW17: 0 | CX17: 0 | CY17: 0 | CZ17: 0 | DA17: 0 | DB17: 0 | DC17: 0 | DD17: 0 | DE17: 0 | DF17: 0 | DG17: 0 | DH17: 0 | DI17: 0 | DJ17: 0 | DK17: 0 | DL17: 0 | DM17: 0 | DN17: 0 | DO17: 0 | DP17: 0 | DQ17: 0 | DR17: 0 | DS17: 0 | DT17: 0 | DU17: 0 | DV17: 0 | DW17: 0 | DX17: 0 | DY17: 0 | DZ17: 0 | EA17: 0 | EB17: 0 | EC17: 0 | ED17: 0 | EE17: 0 | EF17: 0 | EG17: 0 | EH17: 0 | EI17: 0
A18: ED_ASS521_00008 | C18: ˂ = 1 kV; Concrete | E18: DNSP NAME | F18: REPEX | G18: POLES | H18: ˂ = 1 kV; Concrete | I18: DESCRIPTOR METRIC | J18: MEAN ECONOMIC LIFE | K18: YEARS | L18: NUMBER | N18: 0 | Y18: 0 | AJ18: 0 | AK18: 0 | AL18: 0 | AM18: 0 | AN18: 0 | AO18: 0 | AP18: 0 | AQ18: 0 | AR18: 0 | AS18: 0 | AT18: 0 | AU18: 0 | AV18: 0 | AW18: 0 | AX18: 0 | AY18: 0 | AZ18: 0 | BA18: 0 | BB18: 0 | BC18: 0 | BD18: 0 | BE18: 0 | BF18: 0 | BG18: 0 | BH18: 0 | BI18: 0 | BJ18: 0 | BK18: 0 | BL18: 0 | BM18: 0 | BN18: 0 | BO18: 0 | BP18: 0 | BQ18: 0 | BR18: 0 | BS18: 0 | BT18: 0 | BU18: 0 | BV18: 0 | BW18: 0 | BX18: 0 | BY18: 0 | BZ18: 0 | CA18: 0 | CB18: 0 | CC18: 0 | CD18: 0 | CE18: 0 | CF18: 0 | CG18: 0 | CH18: 0 | CI18: 0 | CJ18: 0 | CK18: 0 | CL18: 0 | CM18: 0 | CN18: 0 | CO18: 0 | CP18: 0 | CQ18: 0 | CR18: 0 | CS18: 0 | CT18: 0 | CU18: 0 | CV18: 0 | CW18: 0 | CX18: 0 | CY18: 0 | CZ18: 0 | DA18: 0 | DB18: 0 | DC18: 0 | DD18: 0 | DE18: 0 | DF18: 0 | DG18: 0 | DH18: 0 | DI18: 0 | DJ18: 0 | DK18: 0 | DL18: 0 | DM18: 0 | DN18: 0 | DO18: 0 | DP18: 0 | DQ18: 0 | DR18: 0 | DS18: 0 | DT18: 0 | DU18: 0 | DV18: 0 | DW18: 0 | DX18: 0 | DY18: 0 | DZ18: 0 | EA18: 0 | EB18: 0 | EC18: 0 | ED18: 0 | EE18: 0 | EF18: 0 | EG18: 0 | EH18: 0 | EI18: 0
A19: ED_ASS521_00009 | C19: > 1 kV & < = 11 kV; Concrete | E19: DNSP NAME | F19: REPEX | G19: POLES | H19: > 1 kV & < = 11 kV; Concrete | I19: DESCRIPTOR METRIC | J19: MEAN ECONOMIC LIFE | K19: YEARS | L19: NUMBER | N19: 0 | Y19: 0 | AJ19: 0 | AK19: 0 | AL19: 0 | AM19: 0 | AN19: 0 | AO19: 0 | AP19: 0 | AQ19: 0 | AR19: 0 | AS19: 0 | AT19: 0 | AU19: 0 | AV19: 0 | AW19: 0 | AX19: 0 | AY19: 0 | AZ19: 0 | BA19: 0 | BB19: 0 | BC19: 0 | BD19: 0 | BE19: 0 | BF19: 0 | BG19: 0 | BH19: 0 | BI19: 0 | BJ19: 0 | BK19: 0 | BL19: 0 | BM19: 0 | BN19: 0 | BO19: 0 | BP19: 0 | BQ19: 0 | BR19: 0 | BS19: 0 | BT19: 0 | BU19: 0 | BV19: 0 | BW19: 0 | BX19: 0 | BY19: 0 | BZ19: 0 | CA19: 0 | CB19: 0 | CC19: 0 | CD19: 0 | CE19: 0 | CF19: 0 | CG19: 0 | CH19: 0 | CI19: 0 | CJ19: 0 | CK19: 0 | CL19: 0 | CM19: 0 | CN19: 0 | CO19: 0 | CP19: 0 | CQ19: 0 | CR19: 0 | CS19: 0 | CT19: 0 | CU19: 0 | CV19: 0 | CW19: 0 | CX19: 0 | CY19: 0 | CZ19: 0 | DA19: 0 | DB19: 0 | DC19: 0 | DD19: 0 | DE19: 0 | DF19: 0 | DG19: 0 | DH19: 0 | DI19: 0 | DJ19: 0 | DK19: 0 | DL19: 0 | DM19: 0 | DN19: 0 | DO19: 0 | DP19: 0 | DQ19: 0 | DR19: 0 | DS19: 0 | DT19: 0 | DU19: 0 | DV19: 0 | DW19: 0 | DX19: 0 | DY19: 0 | DZ19: 0 | EA19: 0 | EB19: 0 | EC19: 0 | ED19: 0 | EE19: 0 | EF19: 0 | EG19: 0 | EH19: 0 | EI19: 0
A20: ED_ASS521_00010 | C20: ˃ 11 kV & < = 22 kV; Concrete | E20: DNSP NAME | F20: REPEX | G20: POLES | H20: ˃ 11 kV & < = 22 kV; Concrete | I20: DESCRIPTOR METRIC | J20: MEAN ECONOMIC LIFE | K20: YEARS | L20: NUMBER | N20: 0 | Y20: 0 | AJ20: 0 | AK20: 0 | AL20: 0 | AM20: 0 | AN20: 0 | AO20: 0 | AP20: 0 | AQ20: 0 | AR20: 0 | AS20: 0 | AT20: 0 | AU20: 0 | AV20: 0 | AW20: 0 | AX20: 0 | AY20: 0 | AZ20: 0 | BA20: 0 | BB20: 0 | BC20: 0 | BD20: 0 | BE20: 0 | BF20: 0 | BG20: 0 | BH20: 0 | BI20: 0 | BJ20: 0 | BK20: 0 | BL20: 0 | BM20: 0 | BN20: 0 | BO20: 0 | BP20: 0 | BQ20: 0 | BR20: 0 | BS20: 0 | BT20: 0 | BU20: 0 | BV20: 0 | BW20: 0 | BX20: 0 | BY20: 0 | BZ20: 0 | CA20: 0 | CB20: 0 | CC20: 0 | CD20: 0 | CE20: 0 | CF20: 0 | CG20: 0 | CH20: 0 | CI20: 0 | CJ20: 0 | CK20: 0 | CL20: 0 | CM20: 0 | CN20: 0 | CO20: 0 | CP20: 0 | CQ20: 0 | CR20: 0 | CS20: 0 | CT20: 0 | CU20: 0 | CV20: 0 | CW20: 0 | CX20: 0 | CY20: 0 | CZ20: 0 | DA20: 0 | DB20: 0 | DC20: 0 | DD20: 0 | DE20: 0 | DF20: 0 | DG20: 0 | DH20: 0 | DI20: 0 | DJ20: 0 | DK20: 0 | DL20: 0 | DM20: 0 | DN20: 0 | DO20: 0 | DP20: 0 | DQ20: 0 | DR20: 0 | DS20: 0 | DT20: 0 | DU20: 0 | DV20: 0 | DW20: 0 | DX20: 0 | DY20: 0 | DZ20: 0 | EA20: 0 | EB20: 0 | EC20: 0 | ED20: 0 | EE20: 0 | EF20: 0 | EG20: 0 | EH20: 0 | EI20: 0
A21: ED_ASS521_00011 | C21: > 22 kV & < = 66 kV; Concrete | N21: 0 | Y21: 0 | AJ21: 0 | AK21: 0 | AL21: 0 | AM21: 0 | AN21: 0 | AO21: 0 | AP21: 0 | AQ21: 0 | AR21: 0 | AS21: 0 | AT21: 0 | AU21: 0 | AV21: 0 | AW21: 0 | AX21: 0 | AY21: 0 | AZ21: 0 | BA21: 0 | BB21: 0 | BC21: 0 | BD21: 0 | BE21: 0 | BF21: 0 | BG21: 0 | BH21: 0 | BI21: 0 | BJ21: 0 | BK21: 0 | BL21: 0 | BM21: 0 | BN21: 0 | BO21: 0 | BP21: 0 | BQ21: 0 | BR21: 0 | BS21: 0 | BT21: 0 | BU21: 0 | BV21: 0 | BW21: 0 | BX21: 0 | BY21: 0 | BZ21: 0 | CA21: 0 | CB21: 0 | CC21: 0 | CD21: 0 | CE21: 0 | CF21: 0 | CG21: 0 | CH21: 0 | CI21: 0 | CJ21: 0 | CK21: 0 | CL21: 0 | CM21: 0 | CN21: 0 | CO21: 0 | CP21: 0 | CQ21: 0 | CR21: 0 | CS21: 0 | CT21: 0 | CU21: 0 | CV21: 0 | CW21: 0 | CX21: 0 | CY21: 0 | CZ21: 0 | DA21: 0 | DB21: 0 | DC21: 0 | DD21: 0 | DE21: 0 | DF21: 0 | DG21: 0 | DH21: 0 | DI21: 0 | DJ21: 0 | DK21: 0 | DL21: 0 | DM21: 0 | DN21: 0 | DO21: 0 | DP21: 0 | DQ21: 0 | DR21: 0 | DS21: 0 | DT21: 0 | DU21: 0 | DV21: 0 | DW21: 0 | DX21: 0 | DY21: 0 | DZ21: 0 | EA21: 0 | EB21: 0 | EC21: 0 | ED21: 0 | EE21: 0 | EF21: 0 | EG21: 0 | EH21: 0 | EI21: 0
A22: ED_ASS521_00012 | C22: > 66 kV & < = 132 kV; Concrete | N22: 0 | Y22: 0 | AJ22: 0 | AK22: 0 | AL22: 0 | AM22: 0 | AN22: 0 | AO22: 0 | AP22: 0 | AQ22: 0 | AR22: 0 | AS22: 0 | AT22: 0 | AU22: 0 | AV22: 0 | AW22: 0 | AX22: 0 | AY22: 0 | AZ22: 0 | BA22: 0 | BB22: 0 | BC22: 0 | BD22: 0 | BE22: 0 | BF22: 0 | BG22: 0 | BH22: 0 | BI22: 0 | BJ22: 0 | BK22: 0 | BL22: 0 | BM22: 0 | BN22: 0 | BO22: 0 | BP22: 0 | BQ22: 0 | BR22: 0 | BS22: 0 | BT22: 0 | BU22: 0 | BV22: 0 | BW22: 0 | BX22: 0 | BY22: 0 | BZ22: 0 | CA22: 0 | CB22: 0 | CC22: 0 | CD22: 0 | CE22: 0 | CF22: 0 | CG22: 0 | CH22: 0 | CI22: 0 | CJ22: 0 | CK22: 0 | CL22: 0 | CM22: 0 | CN22: 0 | CO22: 0 | CP22: 0 | CQ22: 0 | CR22: 0 | CS22: 0 | CT22: 0 | CU22: 0 | CV22: 0 | CW22: 0 | CX22: 0 | CY22: 0 | CZ22: 0 | DA22: 0 | DB22: 0 | DC22: 0 | DD22: 0 | DE22: 0 | DF22: 0 | DG22: 0 | DH22: 0 | DI22: 0 | DJ22: 0 | DK22: 0 | DL22: 0 | DM22: 0 | DN22: 0 | DO22: 0 | DP22: 0 | DQ22: 0 | DR22: 0 | DS22: 0 | DT22: 0 | DU22: 0 | DV22: 0 | DW22: 0 | DX22: 0 | DY22: 0 | DZ22: 0 | EA22: 0 | EB22: 0 | EC22: 0 | ED22: 0 | EE22: 0 | EF22: 0 | EG22: 0 | EH22: 0 | EI22: 0
A23: ED_ASS521_00013 | C23: > 132 kV; Concrete | N23: 0 | Y23: 0 | AJ23: 0 | AK23: 0 | AL23: 0 | AM23: 0 | AN23: 0 | AO23: 0 | AP23: 0 | AQ23: 0 | AR23: 0 | AS23: 0 | AT23: 0 | AU23: 0 | AV23: 0 | AW23: 0 | AX23: 0 | AY23: 0 | AZ23: 0 | BA23: 0 | BB23: 0 | BC23: 0 | BD23: 0 | BE23: 0 | BF23: 0 | BG23: 0 | BH23: 0 | BI23: 0 | BJ23: 0 | BK23: 0 | BL23: 0 | BM23: 0 | BN23: 0 | BO23: 0 | BP23: 0 | BQ23: 0 | BR23: 0 | BS23: 0 | BT23: 0 | BU23: 0 | BV23: 0 | BW23: 0 | BX23: 0 | BY23: 0 | BZ23: 0 | CA23: 0 | CB23: 0 | CC23: 0 | CD23: 0 | CE23: 0 | CF23: 0 | CG23: 0 | CH23: 0 | CI23: 0 | CJ23: 0 | CK23: 0 | CL23: 0 | CM23: 0 | CN23: 0 | CO23: 0 | CP23: 0 | CQ23: 0 | CR23: 0 | CS23: 0 | CT23: 0 | CU23: 0 | CV23: 0 | CW23: 0 | CX23: 0 | CY23: 0 | CZ23: 0 | DA23: 0 | DB23: 0 | DC23: 0 | DD23: 0 | DE23: 0 | DF23: 0 | DG23: 0 | DH23: 0 | DI23: 0 | DJ23: 0 | DK23: 0 | DL23: 0 | DM23: 0 | DN23: 0 | DO23: 0 | DP23: 0 | DQ23: 0 | DR23: 0 | DS23: 0 | DT23: 0 | DU23: 0 | DV23: 0 | DW23: 0 | DX23: 0 | DY23: 0 | DZ23: 0 | EA23: 0 | EB23: 0 | EC23: 0 | ED23: 0 | EE23: 0 | EF23: 0 | EG23: 0 | EH23: 0 | EI23: 0
A24: ED_ASS521_00014 | C24: ˂ = 1 kV; Steel | N24: 0 | Y24: 0 | AJ24: 0 | AK24: 0 | AL24: 0 | AM24: 0 | AN24: 0 | AO24: 0 | AP24: 0 | AQ24: 0 | AR24: 0 | AS24: 0 | AT24: 0 | AU24: 0 | AV24: 0 | AW24: 0 | AX24: 0 | AY24: 0 | AZ24: 0 | BA24: 0 | BB24: 0 | BC24: 0 | BD24: 0 | BE24: 0 | BF24: 0 | BG24: 0 | BH24: 0 | BI24: 0 | BJ24: 0 | BK24: 0 | BL24: 0 | BM24: 0 | BN24: 0 | BO24: 0 | BP24: 0 | BQ24: 0 | BR24: 0 | BS24: 0 | BT24: 0 | BU24: 0 | BV24: 0 | BW24: 0 | BX24: 0 | BY24: 0 | BZ24: 0 | CA24: 0 | CB24: 0 | CC24: 0 | CD24: 0 | CE24: 0 | CF24: 0 | CG24: 0 | CH24: 0 | CI24: 0 | CJ24: 0 | CK24: 0 | CL24: 0 | CM24: 0 | CN24: 0 | CO24: 0 | CP24: 0 | CQ24: 0 | CR24: 0 | CS24: 0 | CT24: 0 | CU24: 0 | CV24: 0 | CW24: 0 | CX24: 0 | CY24: 0 | CZ24: 0 | DA24: 0 | DB24: 0 | DC24: 0 | DD24: 0 | DE24: 0 | DF24: 0 | DG24: 0 | DH24: 0 | DI24: 0 | DJ24: 0 | DK24: 0 | DL24: 0 | DM24: 0 | DN24: 0 | DO24: 0 | DP24: 0 | DQ24: 0 | DR24: 0 | DS24: 0 | DT24: 0 | DU24: 0 | DV24: 0 | DW24: 0 | DX24: 0 | DY24: 0 | DZ24: 0 | EA24: 0 | EB24: 0 | EC24: 0 | ED24: 0 | EE24: 0 | EF24: 0 | EG24: 0 | EH24: 0 | EI24: 0
A25: ED_ASS521_00015 | C25: > 1 kV & < = 11 kV; Steel | N25: 0 | Y25: 0 | AJ25: 0 | AK25: 0 | AL25: 0 | AM25: 0 | AN25: 0 | AO25: 0 | AP25: 0 | AQ25: 0 | AR25: 0 | AS25: 0 | AT25: 0 | AU25: 0 | AV25: 0 | AW25: 0 | AX25: 0 | AY25: 0 | AZ25: 0 | BA25: 0 | BB25: 0 | BC25: 0 | BD25: 0 | BE25: 0 | BF25: 0 | BG25: 0 | BH25: 0 | BI25: 0 | BJ25: 0 | BK25: 0 | BL25: 0 | BM25: 0 | BN25: 0 | BO25: 0 | BP25: 0 | BQ25: 0 | BR25: 0 | BS25: 0 | BT25: 0 | BU25: 0 | BV25: 0 | BW25: 0 | BX25: 0 | BY25: 0 | BZ25: 0 | CA25: 0 | CB25: 0 | CC25: 0 | CD25: 0 | CE25: 0 | CF25: 0 | CG25: 0 | CH25: 0 | CI25: 0 | CJ25: 0 | CK25: 0 | CL25: 0 | CM25: 0 | CN25: 0 | CO25: 0 | CP25: 0 | CQ25: 0 | CR25: 0 | CS25: 0 | CT25: 0 | CU25: 0 | CV25: 0 | CW25: 0 | CX25: 0 | CY25: 0 | CZ25: 0 | DA25: 0 | DB25: 0 | DC25: 0 | DD25: 0 | DE25: 0 | DF25: 0 | DG25: 0 | DH25: 0 | DI25: 0 | DJ25: 0 | DK25: 0 | DL25: 0 | DM25: 0 | DN25: 0 | DO25: 0 | DP25: 0 | DQ25: 0 | DR25: 0 | DS25: 0 | DT25: 0 | DU25: 0 | DV25: 0 | DW25: 0 | DX25: 0 | DY25: 0 | DZ25: 0 | EA25: 0 | EB25: 0 | EC25: 0 | ED25: 0 | EE25: 0 | EF25: 0 | EG25: 0 | EH25: 0 | EI25: 0
A26: ED_ASS521_00016 | C26: ˃ 11 kV & < = 22 kV; Steel | N26: 0 | Y26: 0 | AJ26: 0 | AK26: 0 | AL26: 0 | AM26: 0 | AN26: 0 | AO26: 0 | AP26: 0 | AQ26: 0 | AR26: 0 | AS26: 0 | AT26: 0 | AU26: 0 | AV26: 0 | AW26: 0 | AX26: 0 | AY26: 0 | AZ26: 0 | BA26: 0 | BB26: 0 | BC26: 0 | BD26: 0 | BE26: 0 | BF26: 0 | BG26: 0 | BH26: 0 | BI26: 0 | BJ26: 0 | BK26: 0 | BL26: 0 | BM26: 0 | BN26: 0 | BO26: 0 | BP26: 0 | BQ26: 0 | BR26: 0 | BS26: 0 | BT26: 0 | BU26: 0 | BV26: 0 | BW26: 0 | BX26: 0 | BY26: 0 | BZ26: 0 | CA26: 0 | CB26: 0 | CC26: 0 | CD26: 0 | CE26: 0 | CF26: 0 | CG26: 0 | CH26: 0 | CI26: 0 | CJ26: 0 | CK26: 0 | CL26: 0 | CM26: 0 | CN26: 0 | CO26: 0 | CP26: 0 | CQ26: 0 | CR26: 0 | CS26: 0 | CT26: 0 | CU26: 0 | CV26: 0 | CW26: 0 | CX26: 0 | CY26: 0 | CZ26: 0 | DA26: 0 | DB26: 0 | DC26: 0 | DD26: 0 | DE26: 0 | DF26: 0 | DG26: 0 | DH26: 0 | DI26: 0 | DJ26: 0 | DK26: 0 | DL26: 0 | DM26: 0 | DN26: 0 | DO26: 0 | DP26: 0 | DQ26: 0 | DR26: 0 | DS26: 0 | DT26: 0 | DU26: 0 | DV26: 0 | DW26: 0 | DX26: 0 | DY26: 0 | DZ26: 0 | EA26: 0 | EB26: 0 | EC26: 0 | ED26: 0 | EE26: 0 | EF26: 0 | EG26: 0 | EH26: 0 | EI26: 0
A27: ED_ASS521_00017 | C27: > 22 kV & < = 66 kV; Steel | N27: 0 | Y27: 0 | AJ27: 0 | AK27: 0 | AL27: 0 | AM27: 0 | AN27: 0 | AO27: 0 | AP27: 0 | AQ27: 0 | AR27: 0 | AS27: 0 | AT27: 0 | AU27: 0 | AV27: 0 | AW27: 0 | AX27: 0 | AY27: 0 | AZ27: 0 | BA27: 0 | BB27: 0 | BC27: 0 | BD27: 0 | BE27: 0 | BF27: 0 | BG27: 0 | BH27: 0 | BI27: 0 | BJ27: 0 | BK27: 0 | BL27: 0 | BM27: 0 | BN27: 0 | BO27: 0 | BP27: 0 | BQ27: 0 | BR27: 0 | BS27: 0 | BT27: 0 | BU27: 0 | BV27: 0 | BW27: 0 | BX27: 0 | BY27: 0 | BZ27: 0 | CA27: 0 | CB27: 0 | CC27: 0 | CD27: 0 | CE27: 0 | CF27: 0 | CG27: 0 | CH27: 0 | CI27: 0 | CJ27: 0 | CK27: 0 | CL27: 0 | CM27: 0 | CN27: 0 | CO27: 0 | CP27: 0 | CQ27: 0 | CR27: 0 | CS27: 0 | CT27: 0 | CU27: 0 | CV27: 0 | CW27: 0 | CX27: 0 | CY27: 0 | CZ27: 0 | DA27: 0 | DB27: 0 | DC27: 0 | DD27: 0 | DE27: 0 | DF27: 0 | DG27: 0 | DH27: 0 | DI27: 0 | DJ27: 0 | DK27: 0 | DL27: 0 | DM27: 0 | DN27: 0 | DO27: 0 | DP27: 0 | DQ27: 0 | DR27: 0 | DS27: 0 | DT27: 0 | DU27: 0 | DV27: 0 | DW27: 0 | DX27: 0 | DY27: 0 | DZ27: 0 | EA27: 0 | EB27: 0 | EC27: 0 | ED27: 0 | EE27: 0 | EF27: 0 | EG27: 0 | EH27: 0 | EI27: 0
A28: ED_ASS521_00018 | C28: > 66 kV & < = 132 kV; Steel | N28: 0 | Y28: 0 | AJ28: 0 | AK28: 0 | AL28: 0 | AM28: 0 | AN28: 0 | AO28: 0 | AP28: 0 | AQ28: 0 | AR28: 0 | AS28: 0 | AT28: 0 | AU28: 0 | AV28: 0 | AW28: 0 | AX28: 0 | AY28: 0 | AZ28: 0 | BA28: 0 | BB28: 0 | BC28: 0 | BD28: 0 | BE28: 0 | BF28: 0 | BG28: 0 | BH28: 0 | BI28: 0 | BJ28: 0 | BK28: 0 | BL28: 0 | BM28: 0 | BN28: 0 | BO28: 0 | BP28: 0 | BQ28: 0 | BR28: 0 | BS28: 0 | BT28: 0 | BU28: 0 | BV28: 0 | BW28: 0 | BX28: 0 | BY28: 0 | BZ28: 0 | CA28: 0 | CB28: 0 | CC28: 0 | CD28: 0 | CE28: 0 | CF28: 0 | CG28: 0 | CH28: 0 | CI28: 0 | CJ28: 0 | CK28: 0 | CL28: 0 | CM28: 0 | CN28: 0 | CO28: 0 | CP28: 0 | CQ28: 0 | CR28: 0 | CS28: 0 | CT28: 0 | CU28: 0 | CV28: 0 | CW28: 0 | CX28: 0 | CY28: 0 | CZ28: 0 | DA28: 0 | DB28: 0 | DC28: 0 | DD28: 0 | DE28: 0 | DF28: 0 | DG28: 0 | DH28: 0 | DI28: 0 | DJ28: 0 | DK28: 0 | DL28: 0 | DM28: 0 | DN28: 0 | DO28: 0 | DP28: 0 | DQ28: 0 | DR28: 0 | DS28: 0 | DT28: 0 | DU28: 0 | DV28: 0 | DW28: 0 | DX28: 0 | DY28: 0 | DZ28: 0 | EA28: 0 | EB28: 0 | EC28: 0 | ED28: 0 | EE28: 0 | EF28: 0 | EG28: 0 | EH28: 0 | EI28: 0
A29: ED_ASS521_00019 | C29: > 132 kV; Steel | N29: 0 | Y29: 0 | AJ29: 0 | AK29: 0 | AL29: 0 | AM29: 0 | AN29: 0 | AO29: 0 | AP29: 0 | AQ29: 0 | AR29: 0 | AS29: 0 | AT29: 0 | AU29: 0 | AV29: 0 | AW29: 0 | AX29: 0 | AY29: 0 | AZ29: 0 | BA29: 0 | BB29: 0 | BC29: 0 | BD29: 0 | BE29: 0 | BF29: 0 | BG29: 0 | BH29: 0 | BI29: 0 | BJ29: 0 | BK29: 0 | BL29: 0 | BM29: 0 | BN29: 0 | BO29: 0 | BP29: 0 | BQ29: 0 | BR29: 0 | BS29: 0 | BT29: 0 | BU29: 0 | BV29: 0 | BW29: 0 | BX29: 0 | BY29: 0 | BZ29: 0 | CA29: 0 | CB29: 0 | CC29: 0 | CD29: 0 | CE29: 0 | CF29: 0 | CG29: 0 | CH29: 0 | CI29: 0 | CJ29: 0 | CK29: 0 | CL29: 0 | CM29: 0 | CN29: 0 | CO29: 0 | CP29: 0 | CQ29: 0 | CR29: 0 | CS29: 0 | CT29: 0 | CU29: 0 | CV29: 0 | CW29: 0 | CX29: 0 | CY29: 0 | CZ29: 0 | DA29: 0 | DB29: 0 | DC29: 0 | DD29: 0 | DE29: 0 | DF29: 0 | DG29: 0 | DH29: 0 | DI29: 0 | DJ29: 0 | DK29: 0 | DL29: 0 | DM29: 0 | DN29: 0 | DO29: 0 | DP29: 0 | DQ29: 0 | DR29: 0 | DS29: 0 | DT29: 0 | DU29: 0 | DV29: 0 | DW29: 0 | DX29: 0 | DY29: 0 | DZ29: 0 | EA29: 0 | EB29: 0 | EC29: 0 | ED29: 0 | EE29: 0 | EF29: 0 | EG29: 0 | EH29: 0 | EI29: 0
A30: ED_ASS521_99000 | C30: Other | E30: DNSP NAME | F30: REPEX | G30: POLES | H30: Other | I30: DESCRIPTOR METRIC | J30: MEAN ECONOMIC LIFE | K30: YEARS | L30: NUMBER
A31: ED_ASS521_00021 | B31: OVERHEAD CONDUCTORS BY: HIGHEST OPERATING VOLTAGE; NUMBER OF PHASES (AT HV) | C31: ˂ = 1 kV | E31: DNSP NAME | F31: REPEX | G31: OVERHEAD CONDUCTORS | H31: ˂ = 1 kV | I31: DESCRIPTOR METRIC | J31: MEAN ECONOMIC LIFE | K31: YEARS | L31: NUMBER | N31: 60 | Y31: 8 | AJ31: 31 | AK31: 335.95908 | AL31: 374.409888 | AM31: 424.900848 | AN31: 411.307128 | AO31: 306.441288 | AP31: 0.1533325387 | AQ31: 0.1533325387 | AR31: 0 | AS31: 0 | AT31: 0 | AU31: 0 | AV31: 4.5473912 | AW31: 4.5473912 | AX31: 0 | AY31: 1.010152737 | AZ31: 1.010152737 | BA31: 0 | BB31: 0 | BC31: 0 | BD31: 0 | BE31: 99.10996736 | BF31: 99.10996736 | BG31: 6.550651744 | BH31: 118.0460487 | BI31: 317.9310255 | BJ31: 336.1682227 | BK31: 625.4093974 | BL31: 623.5137191 | BM31: 236.5126539 | BN31: 315.3215781 | BO31: 244.7832239 | BP31: 38.49397017 | BQ31: 97.665635 | BR31: 104.7436312 | BS31: 34.39115451 | BT31: 218.0323549 | BU31: 1014.70564 | BV31: 1114.954169 | BW31: 531.7700622 | BX31: 331.3747986 | BY31: 392.033657 | BZ31: 771.7775645 | CA31: 969.347159 | CB31: 1058.100747 | CC31: 1580.972676 | CD31: 1554.702746 | CE31: 4147.304937 | CF31: 4616.957031 | CG31: 2066.37721 | CH31: 1723.328015 | CI31: 1455.196007 | CJ31: 1654.776392 | CK31: 1386.085067 | CL31: 983.0299105 | CM31: 1762.536119 | CN31: 1745.635563 | CO31: 7523.625697 | CP31: 19354.10748 | CQ31: 12281.97576 | CR31: 39.82339719 | CS31: 40.65910153 | CT31: 21.790313 | CU31: 17.34437578 | CV31: 11.19169067 | CW31: 0 | CX31: 0 | CY31: 39.55838389 | CZ31: 39.55838389 | DA31: 0 | DB31: 0 | DC31: 0 | DD31: 0 | DE31: 93.08837644 | DF31: 93.08837644 | DG31: 0 | DH31: 0 | DI31: 0 | DJ31: 0 | DK31: 0 | DL31: 0 | DM31: 0 | DN31: 0 | DO31: 0 | DP31: 0 | DQ31: 0 | DR31: 0 | DS31: 0 | DT31: 0 | DU31: 0 | DV31: 0 | DW31: 0 | DX31: 0 | DY31: 0 | DZ31: 0 | EA31: 0 | EB31: 0 | EC31: 0 | ED31: 0 | EE31: 0 | EF31: 0 | EG31: 0 | EH31: 0 | EI31: 0
A32: ED_ASS521_00022 | C32: > 1 kV & < = 11 kV | E32: DNSP NAME | F32: REPEX | G32: OVERHEAD CONDUCTORS | H32: > 1 kV & < = 11 kV | I32: DESCRIPTOR METRIC | J32: MEAN ECONOMIC LIFE | K32: YEARS | L32: NUMBER | N32: 60 | Y32: 8 | AJ32: 93 | AK32: 159.618816 | AL32: 149.4773601 | AM32: 131.996289 | AN32: 178.749717 | AO32: 83.491092 | AP32: 0 | AQ32: 0 | AR32: 0 | AS32: 0.01498476941 | AT32: 0.01498476941 | AU32: 0 | AV32: 0 | AW32: 3.3028168 | AX32: 3.3028168 | AY32: 2.886149844 | AZ32: 4.392317499 | BA32: 1.506167655 | BB32: 0 | BC32: 0 | BD32: 10.88411299 | BE32: 30.81284504 | BF32: 19.92873205 | BG32: 0.03573018239 | BH32: 95.59161064 | BI32: 232.7833156 | BJ32: 282.7631546 | BK32: 500.0897044 | BL32: 415.1643656 | BM32: 334.5492351 | BN32: 364.3603875 | BO32: 96.68603968 | BP32: 7.199381084 | BQ32: 91.16816381 | BR32: 97.09892819 | BS32: 73.72517259 | BT32: 276.5290742 | BU32: 816.2883957 | BV32: 724.4051734 | BW32: 229.9607788 | BX32: 333.6625703 | BY32: 571.4783034 | BZ32: 808.4615671 | CA32: 1363.239335 | CB32: 1210.457452 | CC32: 1027.375789 | CD32: 1021.282802 | CE32: 2665.046487 | CF32: 2974.635216 | CG32: 1330.392958 | CH32: 960.151728 | CI32: 983.5382124 | CJ32: 1885.381881 | CK32: 1675.296375 | CL32: 1037.590549 | CM32: 1689.26039 | CN32: 1692.88148 | CO32: 5759.522499 | CP32: 11963.098 | CQ32: 6707.468592 | CR32: 0 | CS32: 0 | CT32: 0 | CU32: 0 | CV32: 0 | CW32: 0 | CX32: 0 | CY32: 0 | CZ32: 0 | DA32: 0 | DB32: 0 | DC32: 0 | DD32: 0 | DE32: 0 | DF32: 0 | DG32: 0 | DH32: 0 | DI32: 0 | DJ32: 0 | DK32: 0 | DL32: 0 | DM32: 0 | DN32: 0 | DO32: 0 | DP32: 0 | DQ32: 0 | DR32: 0 | DS32: 0 | DT32: 0 | DU32: 0 | DV32: 0 | DW32: 0 | DX32: 0 | DY32: 0 | DZ32: 0 | EA32: 0 | EB32: 0 | EC32: 0 | ED32: 0 | EE32: 0 | EF32: 0 | EG32: 0 | EH32: 0 | EI32: 0
A33: ED_ASS521_00023 | C33: ˃ 11 kV & < = 22 kV ; SWER | N33: 60 | Y33: 8 | AJ33: 23 | AK33: 9.951036 | AL33: 8.552296 | AM33: 33.250048 | AN33: 5.155356 | AO33: 10.79028 | AP33: 0 | AQ33: 0 | AR33: 0 | AS33: 0 | AT33: 0 | AU33: 0 | AV33: 0 | AW33: 0 | AX33: 0 | AY33: 0 | AZ33: 0 | BA33: 0 | BB33: 5.672179318 | BC33: 5.672179318 | BD33: 0 | BE33: 0 | BF33: 0 | BG33: 24.7808484 | BH33: 83.48088441 | BI33: 440.8067368 | BJ33: 388.4820417 | BK33: 20.28113779 | BL33: 51.99373795 | BM33: 56.23826398 | BN33: 157.2897338 | BO33: 139.1394109 | BP33: 12.34303133 | BQ33: 61.28926013 | BR33: 48.94622879 | BS33: 69.01491059 | BT33: 71.09919081 | BU33: 374.4124715 | BV33: 501.8513801 | BW33: 478.3333063 | BX33: 551.9019527 | BY33: 599.4923554 | BZ33: 510.8848136 | CA33: 1654.997283 | CB33: 1942.518183 | CC33: 928.1710525 | CD33: 974.1494467 | CE33: 2843.695816 | CF33: 3137.055901 | CG33: 1410.122304 | CH33: 977.0743559 | CI33: 943.9119467 | CJ33: 983.2863595 | CK33: 799.545585 | CL33: 919.0875878 | CM33: 3331.335289 | CN33: 2864.686079 | CO33: 144.9787351 | CP33: 319.62887 | CQ33: 174.6501349 | CR33: 0 | CS33: 0 | CT33: 0 | CU33: 0 | CV33: 0 | CW33: 0 | CX33: 0 | CY33: 0 | CZ33: 0 | DA33: 0 | DB33: 0 | DC33: 0 | DD33: 0 | DE33: 0 | DF33: 0 | DG33: 0 | DH33: 0 | DI33: 0 | DJ33: 0 | DK33: 0 | DL33: 0 | DM33: 0 | DN33: 0 | DO33: 0 | DP33: 0 | DQ33: 0 | DR33: 0 | DS33: 0 | DT33: 0 | DU33: 0 | DV33: 0 | DW33: 0 | DX33: 0 | DY33: 0 | DZ33: 0 | EA33: 0 | EB33: 0 | EC33: 0 | ED33: 0 | EE33: 0 | EF33: 0 | EG33: 0 | EH33: 0 | EI33: 0
A34: ED_ASS521_00024 | C34: ˃ 11 kV & < = 22 kV ; Single-Phase | N34: 0 | Y34: 0 | AJ34: 0 | AK34: 0 | AL34: 0 | AM34: 0 | AN34: 0 | AO34: 0 | AP34: 0 | AQ34: 0 | AR34: 0 | AS34: 0 | AT34: 0 | AU34: 0 | AV34: 0 | AW34: 0 | AX34: 0 | AY34: 0 | AZ34: 0 | BA34: 0 | BB34: 0 | BC34: 0 | BD34: 0 | BE34: 0 | BF34: 0 | BG34: 0 | BH34: 0 | BI34: 0 | BJ34: 0 | BK34: 0 | BL34: 0 | BM34: 0 | BN34: 0 | BO34: 0 | BP34: 0 | BQ34: 0 | BR34: 0 | BS34: 0 | BT34: 0 | BU34: 0 | BV34: 0 | BW34: 0 | BX34: 0 | BY34: 0 | BZ34: 0 | CA34: 0 | CB34: 0 | CC34: 0 | CD34: 0 | CE34: 0 | CF34: 0 | CG34: 0 | CH34: 0 | CI34: 0 | CJ34: 0 | CK34: 0 | CL34: 0 | CM34: 0 | CN34: 0 | CO34: 0 | CP34: 0 | CQ34: 0 | CR34: 0 | CS34: 0 | CT34: 0 | CU34: 0 | CV34: 0 | CW34: 0 | CX34: 0 | CY34: 0 | CZ34: 0 | DA34: 0 | DB34: 0 | DC34: 0 | DD34: 0 | DE34: 0 | DF34: 0 | DG34: 0 | DH34: 0 | DI34: 0 | DJ34: 0 | DK34: 0 | DL34: 0 | DM34: 0 | DN34: 0 | DO34: 0 | DP34: 0 | DQ34: 0 | DR34: 0 | DS34: 0 | DT34: 0 | DU34: 0 | DV34: 0 | DW34: 0 | DX34: 0 | DY34: 0 | DZ34: 0 | EA34: 0 | EB34: 0 | EC34: 0 | ED34: 0 | EE34: 0 | EF34: 0 | EG34: 0 | EH34: 0 | EI34: 0
A35: ED_ASS521_00025 | C35: ˃ 11 kV & < = 22 kV ; Multiple-Phase | N35: 0 | Y35: 0 | AJ35: 0 | AK35: 0 | AL35: 0 | AM35: 0 | AN35: 0 | AO35: 0 | AP35: 0 | AQ35: 0 | AR35: 0 | AS35: 0 | AT35: 0 | AU35: 0 | AV35: 0 | AW35: 0 | AX35: 0 | AY35: 0 | AZ35: 0 | BA35: 0 | BB35: 0 | BC35: 0 | BD35: 0 | BE35: 0 | BF35: 0 | BG35: 0 | BH35: 0 | BI35: 0 | BJ35: 0 | BK35: 0 | BL35: 0 | BM35: 0 | BN35: 0 | BO35: 0 | BP35: 0 | BQ35: 0 | BR35: 0 | BS35: 0 | BT35: 0 | BU35: 0 | BV35: 0 | BW35: 0 | BX35: 0 | BY35: 0 | BZ35: 0 | CA35: 0 | CB35: 0 | CC35: 0 | CD35: 0 | CE35: 0 | CF35: 0 | CG35: 0 | CH35: 0 | CI35: 0 | CJ35: 0 | CK35: 0 | CL35: 0 | CM35: 0 | CN35: 0 | CO35: 0 | CP35: 0 | CQ35: 0 | CR35: 0 | CS35: 0 | CT35: 0 | CU35: 0 | CV35: 0 | CW35: 0 | CX35: 0 | CY35: 0 | CZ35: 0 | DA35: 0 | DB35: 0 | DC35: 0 | DD35: 0 | DE35: 0 | DF35: 0 | DG35: 0 | DH35: 0 | DI35: 0 | DJ35: 0 | DK35: 0 | DL35: 0 | DM35: 0 | DN35: 0 | DO35: 0 | DP35: 0 | DQ35: 0 | DR35: 0 | DS35: 0 | DT35: 0 | DU35: 0 | DV35: 0 | DW35: 0 | DX35: 0 | DY35: 0 | DZ35: 0 | EA35: 0 | EB35: 0 | EC35: 0 | ED35: 0 | EE35: 0 | EF35: 0 | EG35: 0 | EH35: 0 | EI35: 0
A36: ED_ASS521_00026 | C36: > 22 kV & < = 66 kV | N36: 60 | Y36: 8 | AJ36: 89 | AK36: 0.8747775 | AL36: 75.230865 | AM36: 105.323211 | AN36: 71.031933 | AO36: 40.939587 | AP36: 10.847241 | AQ36: 11.7220185 | AR36: 42.8640975 | AS36: 64.2086685 | AT36: 24.843681 | AU36: 47.15050725 | AV36: 173.4683782 | AW36: 165.857814 | AX36: 41.0445603 | AY36: 3.2541723 | AZ36: 0 | BA36: 0 | BB36: 0 | BC36: 14.696262 | BD36: 14.696262 | BE36: 20.38231575 | BF36: 20.38231575 | BG36: 23.094126 | BH36: 48.287718 | BI36: 88.177572 | BJ36: 175.1304555 | BK36: 113.8960305 | BL36: 438.9633495 | BM36: 597.8229435 | BN36: 168.8320575 | BO36: 13.4715735 | BP36: 21.5195265 | BQ36: 169.5318795 | BR36: 160.609149 | BS36: 170.2317015 | BT36: 368.456283 | BU36: 228.6668385 | BV36: 44.088786 | BW36: 55.1109825 | BX36: 202.9833711 | BY36: 413.8047486 | BZ36: 307.221858 | CA36: 472.029939 | CB36: 621.0570339 | CC36: 425.1593605 | CD36: 449.3032195 | CE36: 721.4814909 | CF36: 842.5798561 | CG36: 539.6735671 | CH36: 415.9508694 | CI36: 475.9314466 | CJ36: 586.8882247 | CK36: 580.152438 | CL36: 323.8764158 | CM36: 171.6998222 | CN36: 181.4614364 | CO36: 182.0541059 | CP36: 325.5149725 | CQ36: 320.2158105 | CR36: 144.5067539 | CS36: 254.9640676 | CT36: 319.634762 | CU36: 636.9976245 | CV36: 506.4360339 | CW36: 0 | CX36: 70.58867309 | CY36: 205.3338127 | CZ36: 188.434018 | DA36: 53.68887841 | DB36: 0 | DC36: 34.51427897 | DD36: 34.51427897 | DE36: 211.8967552 | DF36: 315.6139066 | DG36: 103.7171515 | DH36: 51.50994665 | DI36: 51.50994665 | DJ36: 9.587299715 | DK36: 9.587299715 | DL36: 0 | DM36: 0 | DN36: 0 | DO36: 236.5448312 | DP36: 236.5448312 | DQ36: 0 | DR36: 0 | DS36: 0 | DT36: 0 | DU36: 0 | DV36: 0 | DW36: 0 | DX36: 0 | DY36: 0 | DZ36: 0 | EA36: 0 | EB36: 0 | EC36: 0 | ED36: 0 | EE36: 0 | EF36: 0 | EG36: 0 | EH36: 0 | EI36: 0
A37: ED_ASS521_00027 | C37: > 66 kV & < = 132 kV | N37: 60 | Y37: 8 | AJ37: 0 | AK37: 0 | AL37: 0 | AM37: 0 | AN37: 0 | AO37: 0 | AP37: 0 | AQ37: 33 | AR37: 0 | AS37: 0 | AT37: 0 | AU37: 0 | AV37: 0 | AW37: 0 | AX37: 0 | AY37: 0 | AZ37: 0 | BA37: 0 | BB37: 0 | BC37: 0 | BD37: 0 | BE37: 0 | BF37: 0 | BG37: 0 | BH37: 0 | BI37: 0 | BJ37: 0 | BK37: 0 | BL37: 0 | BM37: 0 | BN37: 0 | BO37: 0 | BP37: 0 | BQ37: 0 | BR37: 0 | BS37: 0 | BT37: 0 | BU37: 0 | BV37: 0 | BW37: 0 | BX37: 0 | BY37: 0 | BZ37: 0 | CA37: 0 | CB37: 0 | CC37: 0 | CD37: 0 | CE37: 0 | CF37: 0 | CG37: 0 | CH37: 0 | CI37: 0 | CJ37: 0 | CK37: 0 | CL37: 0 | CM37: 0 | CN37: 0 | CO37: 0 | CP37: 0 | CQ37: 0 | CR37: 0 | CS37: 0 | CT37: 0 | CU37: 0 | CV37: 0 | CW37: 0 | CX37: 0 | CY37: 0 | CZ37: 0 | DA37: 0 | DB37: 0 | DC37: 0 | DD37: 0 | DE37: 0 | DF37: 0 | DG37: 0 | DH37: 0 | DI37: 0 | DJ37: 0 | DK37: 0 | DL37: 0 | DM37: 0 | DN37: 0 | DO37: 0 | DP37: 0 | DQ37: 0 | DR37: 0 | DS37: 0 | DT37: 0 | DU37: 0 | DV37: 0 | DW37: 0 | DX37: 0 | DY37: 0 | DZ37: 0 | EA37: 0 | EB37: 0 | EC37: 0 | ED37: 0 | EE37: 0 | EF37: 0 | EG37: 0 | EH37: 0 | EI37: 0
A38: ED_ASS521_00028 | C38: > 132 kV | N38: 0 | Y38: 0 | AJ38: 0 | AK38: 0 | AL38: 0 | AM38: 0 | AN38: 0 | AO38: 0 | AP38: 0 | AQ38: 0 | AR38: 0 | AS38: 0 | AT38: 0 | AU38: 0 | AV38: 0 | AW38: 0 | AX38: 0 | AY38: 0 | AZ38: 0 | BA38: 0 | BB38: 0 | BC38: 0 | BD38: 0 | BE38: 0 | BF38: 0 | BG38: 0 | BH38: 0 | BI38: 0 | BJ38: 0 | BK38: 0 | BL38: 0 | BM38: 0 | BN38: 0 | BO38: 0 | BP38: 0 | BQ38: 0 | BR38: 0 | BS38: 0 | BT38: 0 | BU38: 0 | BV38: 0 | BW38: 0 | BX38: 0 | BY38: 0 | BZ38: 0 | CA38: 0 | CB38: 0 | CC38: 0 | CD38: 0 | CE38: 0 | CF38: 0 | CG38: 0 | CH38: 0 | CI38: 0 | CJ38: 0 | CK38: 0 | CL38: 0 | CM38: 0 | CN38: 0 | CO38: 0 | CP38: 0 | CQ38: 0 | CR38: 0 | CS38: 0 | CT38: 0 | CU38: 0 | CV38: 0 | CW38: 0 | CX38: 0 | CY38: 0 | CZ38: 0 | DA38: 0 | DB38: 0 | DC38: 0 | DD38: 0 | DE38: 0 | DF38: 0 | DG38: 0 | DH38: 0 | DI38: 0 | DJ38: 0 | DK38: 0 | DL38: 0 | DM38: 0 | DN38: 0 | DO38: 0 | DP38: 0 | DQ38: 0 | DR38: 0 | DS38: 0 | DT38: 0 | DU38: 0 | DV38: 0 | DW38: 0 | DX38: 0 | DY38: 0 | DZ38: 0 | EA38: 0 | EB38: 0 | EC38: 0 | ED38: 0 | EE38: 0 | EF38: 0 | EG38: 0 | EH38: 0 | EI38: 0
A39: ED_ASS521_99001 | C39: Other | E39: DNSP NAME | F39: REPEX | G39: OVERHEAD CONDUCTORS | H39: Other | I39: DESCRIPTOR METRIC | J39: MEAN ECONOMIC LIFE | K39: YEARS | L39: NUMBER
A40: ED_ASS521_00030 | B40: UNDERGROUND CABLES BY: HIGHEST OPERATING VOLTAGE | C40: ˂ = 1 kV | E40: DNSP NAME | F40: REPEX | G40: UNDERGROUND CABLES | H40: ˂ = 1 kV | I40: DESCRIPTOR METRIC | J40: MEAN ECONOMIC LIFE | K40: YEARS | L40: NUMBER | N40: 45 | Y40: 7 | AJ40: 138 | AK40: 0 | AL40: 112.0572738 | AM40: 126.0187494 | AN40: 89.96553521 | AO40: 100.2041533 | AP40: 30.8810027 | AQ40: 6.68090892 | AR40: 5.48021825 | AS40: 12.82874042 | AT40: 7.40460892 | AU40: 97.46726467 | AV40: 97.41117792 | AW40: 1.09973452 | AX40: 45.62653494 | AY40: 50.08705989 | AZ40: 51.5657961 | BA40: 47.97139531 | BB40: 2.11588169 | BC40: 0.15002301 | BD40: 14.65456315 | BE40: 14.69451139 | BF40: 0.16529308 | BG40: 445.3765592 | BH40: 450.0430492 | BI40: 34.90506418 | BJ40: 84.064992 | BK40: 70.21438718 | BL40: 55.33931264 | BM40: 196.2485514 | BN40: 210.6891889 | BO40: 112.8052177 | BP40: 65.61773426 | BQ40: 334.6213665 | BR40: 393.4311101 | BS40: 154.7627384 | BT40: 151.0194725 | BU40: 360.480253 | BV40: 532.5002692 | BW40: 302.6919396 | BX40: 218.9398755 | BY40: 576.9526733 | BZ40: 648.8386628 | CA40: 827.1787908 | CB40: 955.2026238 | CC40: 657.348186 | CD40: 584.6064842 | CE40: 454.5466125 | CF40: 482.9275628 | CG40: 501.1229681 | CH40: 356.8236982 | CI40: 233.580152 | CJ40: 174.6777134 | CK40: 314.0090315 | CL40: 328.4330574 | CM40: 124.778711 | CN40: 58.81551245 | CO40: 107.7111037 | CP40: 124.2996048 | CQ40: 67.8355095 | CR40: 0.9449059262 | CS40: 0.3261538135 | CT40: 0.5086842404 | CU40: 0.7230345515 | CV40: 0.5295841189 | CW40: 0 | CX40: 0 | CY40: 0.2417588023 | CZ40: 0.2417588023 | DA40: 0 | DB40: 0 | DC40: 0 | DD40: 0 | DE40: 1.956416656 | DF40: 4.684537822 | DG40: 2.728121166 | DH40: 0 | DI40: 0 | DJ40: 0 | DK40: 0 | DL40: 0 | DM40: 0 | DN40: 0 | DO40: 4.072438958 | DP40: 4.072438958 | DQ40: 0 | DR40: 0 | DS40: 0 | DT40: 0 | DU40: 0 | DV40: 0 | DW40: 0 | DX40: 0 | DY40: 0 | DZ40: 0 | EA40: 0 | EB40: 0 | EC40: 0 | ED40: 0 | EE40: 0 | EF40: 0 | EG40: 0 | EH40: 0 | EI40: 0
A41: ED_ASS521_00031 | C41: > 1 kV & < = 11 kV | N41: 45 | Y41: 7 | AJ41: 63 | AK41: 49.98804557 | AL41: 144.817517 | AM41: 173.3703481 | AN41: 159.016376 | AO41: 140.9460362 | AP41: 104.0810333 | AQ41: 86.6864025 | AR41: 75.03976184 | AS41: 65.98020854 | AT41: 68.66392908 | AU41: 67.51500122 | AV41: 61.45323349 | AW41: 40.41950898 | AX41: 13.23131168 | AY41: 3.088141764 | AZ41: 11.6967145 | BA41: 10.9153856 | BB41: 2.312796647 | BC41: 1.605465 | BD41: 3.761427806 | BE41: 5.175462806 | BF41: 1.618844771 | BG41: 106.2319337 | BH41: 107.0990689 | BI41: 10.73044726 | BJ41: 13.09897726 | BK41: 9.039908776 | BL41: 15.93067747 | BM41: 42.98608114 | BN41: 54.75115232 | BO41: 31.78042177 | BP41: 12.36858721 | BQ41: 75.12644682 | BR41: 85.11601626 | BS41: 37.12920899 | BT41: 38.43463478 | BU41: 72.20017685 | BV41: 104.7824119 | BW41: 65.51981159 | BX41: 46.65063644 | BY41: 87.55830193 | BZ41: 121.0542953 | CA41: 198.4109465 | CB41: 199.3592361 | CC41: 118.5558102 | CD41: 129.3995739 | CE41: 114.7327293 | CF41: 115.8987 | CG41: 110.7910771 | CH41: 66.11351703 | CI41: 48.75041465 | CJ41: 46.71749023 | CK41: 69.70428905 | CL41: 65.73660285 | CM41: 30.79650105 | CN41: 14.21057539 | CO41: 16.34207182 | CP41: 21.96265049 | CQ41: 11.97290615 | CR41: 0.07166197381 | CS41: 0 | CT41: 0 | CU41: 0 | CV41: 0 | CW41: 0.09571321643 | CX41: 0.09571321643 | CY41: 0 | CZ41: 0 | DA41: 0 | DB41: 0 | DC41: 0 | DD41: 0 | DE41: 0 | DF41: 0 | DG41: 0 | DH41: 0 | DI41: 0 | DJ41: 0 | DK41: 0 | DL41: 0 | DM41: 0 | DN41: 0 | DO41: 0 | DP41: 0 | DQ41: 0 | DR41: 0 | DS41: 0 | DT41: 0 | DU41: 0 | DV41: 0 | DW41: 0 | DX41: 0 | DY41: 0 | DZ41: 0 | EA41: 0 | EB41: 0 | EC41: 0 | ED41: 0 | EE41: 0 | EF41: 0 | EG41: 0 | EH41: 0 | EI41: 0
A42: ED_ASS521_00032 | C42: > 11 kV & < = 22 kV | N42: 45 | Y42: 7 | AJ42: 3 | AK42: 0.04715212033 | AL42: 0.1566078097 | AM42: 0.6177871454 | AN42: 0.8356117616 | AO42: 0.6403129907 | AP42: 0.5974899263 | AQ42: 0.4446158173 | AR42: 0.2228551593 | AS42: 0.6316039782 | AT42: 0.6826137108 | AU42: 0.2019027965 | AV42: 0.2719565492 | AW42: 0.3272282811 | AX42: 0.1434682127 | AY42: 0 | AZ42: 0 | BA42: 0 | BB42: 0 | BC42: 0 | BD42: 0.15292424 | BE42: 0.15292424 | BF42: 0 | BG42: 0.5744888305 | BH42: 0.5744888305 | BI42: 0.07754367814 | BJ42: 0.8765199781 | BK42: 1.812936245 | BL42: 1.042056287 | BM42: 0.02809634204 | BN42: 0 | BO42: 0 | BP42: 0 | BQ42: 0.3619999296 | BR42: 0.3619999296 | BS42: 0.048757815 | BT42: 0.1152099398 | BU42: 0.3505880001 | BV42: 0.8409020969 | BW42: 1.346624738 | BX42: 1.304254407 | BY42: 1.429076605 | BZ42: 3.458958872 | CA42: 4.147001914 | CB42: 2.150142707 | CC42: 0.6958012597 | CD42: 0.8847696943 | CE42: 0.5856773363 | CF42: 1.016327066 | CG42: 1.435443059 | CH42: 2.812476306 | CI42: 6.190267237 | CJ42: 5.08815613 | CK42: 5.082172231 | CL42: 3.839276357 | CM42: 0 | CN42: 0.4934307994 | CO42: 0.4934307994 | CP42: 0.04265244356 | CQ42: 0.1770349201 | CR42: 0.1343824766 | CS42: 0 | CT42: 0 | CU42: 0 | CV42: 0 | CW42: 0 | CX42: 0 | CY42: 0 | CZ42: 0 | DA42: 0 | DB42: 0 | DC42: 0 | DD42: 0 | DE42: 0 | DF42: 0 | DG42: 0 | DH42: 0 | DI42: 0 | DJ42: 0 | DK42: 0 | DL42: 0 | DM42: 0 | DN42: 0 | DO42: 0 | DP42: 0 | DQ42: 0 | DR42: 0 | DS42: 0 | DT42: 0 | DU42: 0 | DV42: 0 | DW42: 0 | DX42: 0 | DY42: 0 | DZ42: 0 | EA42: 0 | EB42: 0 | EC42: 0 | ED42: 0 | EE42: 0 | EF42: 0 | EG42: 0 | EH42: 0 | EI42: 0
A43: ED_ASS521_00033 | C43: > 22 kV & < = 33 kV | N43: 45 | Y43: 7 | AJ43: 3 | AK43: 1.391868232 | AL43: 4.77534661 | AM43: 3.877458322 | AN43: 1.787814683 | AO43: 7.8050184 | AP43: 8.698764205 | AQ43: 5.885994794 | AR43: 8.955090567 | AS43: 6.163668268 | AT43: 1.817996727 | AU43: 1.405324431 | AV43: 0.7478864371 | AW43: 0.5816968517 | AX43: 0.3281300709 | AY43: 0.02145597629 | AZ43: 0.2052412713 | BA43: 0.1924668395 | BB43: 0.7462605545 | BC43: 0.73757901 | BD43: 0 | BE43: 0.2218598015 | BF43: 0.7400783158 | BG43: 0.5617393984 | BH43: 0.9219594751 | BI43: 0.949180806 | BJ43: 0.6538083523 | BK43: 0.5830661373 | BL43: 0.05408371 | BM43: 0.08825060778 | BN43: 0.09899614609 | BO43: 0.1116823165 | BP43: 0.04685306816 | BQ43: 0.267032675 | BR43: 0.2839593917 | BS43: 0.190362713 | BT43: 0.1734359963 | BU43: 0 | BV43: 0.01311324691 | BW43: 0.01311324691 | BX43: 2.016943165 | BY43: 2.156308072 | BZ43: 1.266364687 | CA43: 1.12699978 | CB43: 0 | CC43: 0 | CD43: 2.486627069 | CE43: 2.486627069 | CF43: 4.691272276 | CG43: 4.710713744 | CH43: 0.01944146822 | CI43: 2.624408001 | CJ43: 2.798476572 | CK43: 3.933594804 | CL43: 4.48673433 | CM43: 0.75300094 | CN43: 1.552030516 | CO43: 2.091784376 | CP43: 0.5655467031 | CQ43: 0.04099282656 | CR43: 0.2968798997 | CS43: 0.2558870731 | CT43: 0.264767449 | CU43: 1.124574669 | CV43: 0.8598072201 | CW43: 0 | CX43: 0 | CY43: 0.61424287 | CZ43: 0.61424287 | DA43: 0 | DB43: 0 | DC43: 0 | DD43: 0 | DE43: 1.296265369 | DF43: 3.034849114 | DG43: 1.738583745 | DH43: 0 | DI43: 0 | DJ43: 0 | DK43: 0 | DL43: 0 | DM43: 0 | DN43: 0 | DO43: 0.4927794577 | DP43: 0.4927794577 | DQ43: 0 | DR43: 0 | DS43: 0 | DT43: 0 | DU43: 0 | DV43: 0 | DW43: 0 | DX43: 0 | DY43: 0 | DZ43: 0 | EA43: 0 | EB43: 0 | EC43: 0 | ED43: 0 | EE43: 0 | EF43: 0 | EG43: 0 | EH43: 0 | EI43: 0
A44: ED_ASS521_00034 | C44: > 33 kV & < = 66 kV | N44: 45 | Y44: 7 | AJ44: 0 | AK44: 0.1442326722 | AL44: 0.8950029504 | AM44: 3.313314705 | AN44: 2.622387137 | AO44: 0.5497152527 | AP44: 0.4947732266 | AQ44: 0.03602121582 | AR44: 0.03612088082 | AS44: 0.2550105554 | AT44: 0.2527250923 | AU44: 0.01617448524 | AV44: 0.09287633361 | AW44: 0.07942223299 | AX44: 5.499002865 | AY44: 0 | AZ44: 0 | BA44: 1.037351447 | BB44: 1.089242186 | BC44: 0.05189073856 | BD44: 0 | BE44: 0 | BF44: 2.205162737 | BG44: 3.545998556 | BH44: 1.398403728 | BI44: 0.09433268781 | BJ44: 0.750228935 | BK44: 1.163191392 | BL44: 0.449727235 | BM44: 0.06365495245 | BN44: 0.06550032055 | BO44: 0.001845368109 | BP44: 0.07288972 | BQ44: 0.07288972 | BR44: 5.547944493 | BS44: 6.078119157 | BT44: 0.6468806291 | BU44: 0.225960669 | BV44: 0.1167623312 | BW44: 0.4865939281 | BX44: 1.919731541 | BY44: 1.739222528 | BZ44: 0.3080683465 | CA44: 0.140103723 | CB44: 0.6413617355 | CC44: 1.227919418 | CD44: 0.7420820283 | CE44: 0.05295640597 | CF44: 0.0475693745 | CG44: 0.01434848241 | CH44: 0.08644862266 | CI44: 0.1412902541 | CJ44: 0.05484163142 | CK44: 0.005999275262 | CL44: 0.005999275262 | CM44: 0.00303956892 | CN44: 0.01565121721 | CO44: 0.01261164829 | CP44: 0.01327229525 | CQ44: 0.01327229525 | CR44: 0 | CS44: 0.3919038771 | CT44: 0.3919038771 | CU44: 0 | CV44: 0.001498686861 | CW44: 0.001498686861 | CX44: 0 | CY44: 0 | CZ44: 0 | DA44: 0 | DB44: 0 | DC44: 0 | DD44: 0 | DE44: 0 | DF44: 0 | DG44: 0.2880273352 | DH44: 0.2880273352 | DI44: 0 | DJ44: 0 | DK44: 0 | DL44: 0 | DM44: 0 | DN44: 0 | DO44: 0 | DP44: 0 | DQ44: 0 | DR44: 0 | DS44: 0 | DT44: 0 | DU44: 0 | DV44: 0 | DW44: 0 | DX44: 0 | DY44: 0 | DZ44: 0 | EA44: 0 | EB44: 0 | EC44: 0 | ED44: 0 | EE44: 0 | EF44: 0 | EG44: 0 | EH44: 0 | EI44: 0
A45: ED_ASS521_00035 | C45: > 66 kV & < = 132 kV | N45: 0 | Y45: 0 | AJ45: 0 | AK45: 0 | AL45: 0 | AM45: 0 | AN45: 0 | AO45: 0 | AP45: 0 | AQ45: 0 | AR45: 0 | AS45: 0 | AT45: 0 | AU45: 0 | AV45: 0 | AW45: 0 | AX45: 0 | AY45: 0 | AZ45: 0 | BA45: 0 | BB45: 0 | BC45: 0 | BD45: 0 | BE45: 0 | BF45: 0 | BG45: 0 | BH45: 0 | BI45: 0 | BJ45: 0 | BK45: 0 | BL45: 0 | BM45: 0 | BN45: 0 | BO45: 0 | BP45: 0 | BQ45: 0 | BR45: 0 | BS45: 0 | BT45: 0 | BU45: 0 | BV45: 0 | BW45: 0 | BX45: 0 | BY45: 0 | BZ45: 0 | CA45: 0 | CB45: 0 | CC45: 0 | CD45: 0 | CE45: 0 | CF45: 0 | CG45: 0 | CH45: 0 | CI45: 0 | CJ45: 0 | CK45: 0 | CL45: 0 | CM45: 0 | CN45: 0 | CO45: 0 | CP45: 0 | CQ45: 0 | CR45: 0 | CS45: 0 | CT45: 0 | CU45: 0 | CV45: 0 | CW45: 0 | CX45: 0 | CY45: 0 | CZ45: 0 | DA45: 0 | DB45: 0 | DC45: 0 | DD45: 0 | DE45: 0 | DF45: 0 | DG45: 0 | DH45: 0 | DI45: 0 | DJ45: 0 | DK45: 0 | DL45: 0 | DM45: 0 | DN45: 0 | DO45: 0 | DP45: 0 | DQ45: 0 | DR45: 0 | DS45: 0 | DT45: 0 | DU45: 0 | DV45: 0 | DW45: 0 | DX45: 0 | DY45: 0 | DZ45: 0 | EA45: 0 | EB45: 0 | EC45: 0 | ED45: 0 | EE45: 0 | EF45: 0 | EG45: 0 | EH45: 0 | EI45: 0
A46: ED_ASS521_00036 | C46: > 132 kV | N46: 0 | Y46: 0 | AJ46: 0 | AK46: 0 | AL46: 0 | AM46: 0 | AN46: 0 | AO46: 0 | AP46: 0 | AQ46: 0 | AR46: 0 | AS46: 0 | AT46: 0 | AU46: 0 | AV46: 0 | AW46: 0 | AX46: 0 | AY46: 0 | AZ46: 0 | BA46: 0 | BB46: 0 | BC46: 0 | BD46: 0 | BE46: 0 | BF46: 0 | BG46: 0 | BH46: 0 | BI46: 0 | BJ46: 0 | BK46: 0 | BL46: 0 | BM46: 0 | BN46: 0 | BO46: 0 | BP46: 0 | BQ46: 0 | BR46: 0 | BS46: 0 | BT46: 0 | BU46: 0 | BV46: 0 | BW46: 0 | BX46: 0 | BY46: 0 | BZ46: 0 | CA46: 0 | CB46: 0 | CC46: 0 | CD46: 0 | CE46: 0 | CF46: 0 | CG46: 0 | CH46: 0 | CI46: 0 | CJ46: 0 | CK46: 0 | CL46: 0 | CM46: 0 | CN46: 0 | CO46: 0 | CP46: 0 | CQ46: 0 | CR46: 0 | CS46: 0 | CT46: 0 | CU46: 0 | CV46: 0 | CW46: 0 | CX46: 0 | CY46: 0 | CZ46: 0 | DA46: 0 | DB46: 0 | DC46: 0 | DD46: 0 | DE46: 0 | DF46: 0 | DG46: 0 | DH46: 0 | DI46: 0 | DJ46: 0 | DK46: 0 | DL46: 0 | DM46: 0 | DN46: 0 | DO46: 0 | DP46: 0 | DQ46: 0 | DR46: 0 | DS46: 0 | DT46: 0 | DU46: 0 | DV46: 0 | DW46: 0 | DX46: 0 | DY46: 0 | DZ46: 0 | EA46: 0 | EB46: 0 | EC46: 0 | ED46: 0 | EE46: 0 | EF46: 0 | EG46: 0 | EH46: 0 | EI46: 0
A47: ED_ASS521_99002 | C47: Other | E47: DNSP NAME | F47: REPEX | G47: SERVICE LINES | H47: Other | I47: DESCRIPTOR METRIC | J47: MEAN ECONOMIC LIFE | K47: YEARS | L47: NUMBER
A48: ED_ASS521_00038 | B48: SERVICE LINES BY: CONNECTION VOLTAGE; CUSTOMER TYPE; CONNECTION COMPLEXITY | C48: ˂ = 11 kV ; Residential ; Simple Type | E48: DNSP NAME | F48: REPEX | G48: SERVICE LINES | H48: ˂ = 11 kV ; Residential ; Simple Type | I48: DESCRIPTOR METRIC | J48: MEAN ECONOMIC LIFE | K48: YEARS | L48: NUMBER | N48: 57 | Y48: 7.549 | AJ48: 13315 | AK48: 5803 | AL48: 6454 | AM48: 7928 | AN48: 8539 | AO48: 8756 | AP48: 8607 | AQ48: 8302 | AR48: 8357 | AS48: 8631 | AT48: 9607 | AU48: 11477 | AV48: 13145 | AW48: 14986 | AX48: 14238 | AY48: 11711 | AZ48: 10625 | BA48: 10196 | BB48: 11618 | BC48: 14504 | BD48: 15997 | BE48: 16273 | BF48: 16491 | BG48: 15826 | BH48: 15392 | BI48: 15612 | BJ48: 16043 | BK48: 16566 | BL48: 16276 | BM48: 16247 | BN48: 15054 | BO48: 12707 | BP48: 11648 | BQ48: 10039 | BR48: 7843 | BS48: 6923 | BT48: 7564 | BU48: 11936 | BV48: 15690 | BW48: 15583 | BX48: 17652 | BY48: 14908 | BZ48: 15049 | CA48: 10068 | CB48: 8741 | CC48: 8708 | CD48: 9871 | CE48: 9873 | CF48: 9841 | CG48: 9840 | CH48: 6875 | CI48: 6878 | CJ48: 21947 | CK48: 21950 | CL48: 4216 | CM48: 4209 | CN48: 2098 | CO48: 2098 | CP48: 483 | CQ48: 483 | CR48: 171 | CS48: 171 | CT48: 143 | CU48: 144 | CV48: 85 | CW48: 84 | CX48: 37 | CY48: 37 | CZ48: 11 | DA48: 11 | DB48: 4 | DC48: 4 | DD48: 17 | DE48: 17 | DF48: 0 | DG48: 0 | DH48: 0 | DI48: 0 | DJ48: 0 | DK48: 0 | DL48: 0 | DM48: 0 | DN48: 0 | DO48: 0 | DP48: 0 | DQ48: 0 | DR48: 0 | DS48: 0 | DT48: 0 | DU48: 0 | DV48: 0 | DW48: 0 | DX48: 0 | DY48: 0 | DZ48: 0 | EA48: 0 | EB48: 0 | EC48: 0 | ED48: 0 | EE48: 0 | EF48: 0 | EG48: 0 | EH48: 0 | EI48: 0
A49: ED_ASS521_00039 | C49: ˂ = 11 kV ; Commercial & Industrial ; Simple Type | E49: DNSP NAME | F49: REPEX | G49: SERVICE LINES | H49: ˂ = 11 kV ; Commercial & Industrial ; Simple Type | I49: DESCRIPTOR METRIC | J49: MEAN ECONOMIC LIFE | K49: YEARS | L49: NUMBER | N49: 0 | Y49: 0 | AJ49: 0 | AK49: 0 | AL49: 0 | AM49: 0 | AN49: 0 | AO49: 0 | AP49: 0 | AQ49: 0 | AR49: 0 | AS49: 0 | AT49: 0 | AU49: 0 | AV49: 0 | AW49: 0 | AX49: 0 | AY49: 0 | AZ49: 0 | BA49: 0 | BB49: 0 | BC49: 0 | BD49: 0 | BE49: 0 | BF49: 0 | BG49: 0 | BH49: 0 | BI49: 0 | BJ49: 0 | BK49: 0 | BL49: 0 | BM49: 0 | BN49: 0 | BO49: 0 | BP49: 0 | BQ49: 0 | BR49: 0 | BS49: 0 | BT49: 0 | BU49: 0 | BV49: 0 | BW49: 0 | BX49: 0 | BY49: 0 | BZ49: 0 | CA49: 0 | CB49: 0 | CC49: 0 | CD49: 0 | CE49: 0 | CF49: 0 | CG49: 0 | CH49: 0 | CI49: 0 | CJ49: 0 | CK49: 0 | CL49: 0 | CM49: 0 | CN49: 0 | CO49: 0 | CP49: 0 | CQ49: 0 | CR49: 0 | CS49: 0 | CT49: 0 | CU49: 0 | CV49: 0 | CW49: 0 | CX49: 0 | CY49: 0 | CZ49: 0 | DA49: 0 | DB49: 0 | DC49: 0 | DD49: 0 | DE49: 0 | DF49: 0 | DG49: 0 | DH49: 0 | DI49: 0 | DJ49: 0 | DK49: 0 | DL49: 0 | DM49: 0 | DN49: 0 | DO49: 0 | DP49: 0 | DQ49: 0 | DR49: 0 | DS49: 0 | DT49: 0 | DU49: 0 | DV49: 0 | DW49: 0 | DX49: 0 | DY49: 0 | DZ49: 0 | EA49: 0 | EB49: 0 | EC49: 0 | ED49: 0 | EE49: 0 | EF49: 0 | EG49: 0 | EH49: 0 | EI49: 0
A50: ED_ASS521_00040 | C50: ˂ = 11 kV ; Residential ; Complex Type | E50: DNSP NAME | F50: REPEX | G50: SERVICE LINES | H50: ˂ = 11 kV ; Residential ; Complex Type | I50: DESCRIPTOR METRIC | J50: MEAN ECONOMIC LIFE | K50: YEARS | L50: NUMBER | N50: 0 | Y50: 0 | AJ50: 0 | AK50: 0 | AL50: 0 | AM50: 0 | AN50: 0 | AO50: 0 | AP50: 0 | AQ50: 0 | AR50: 0 | AS50: 0 | AT50: 0 | AU50: 0 | AV50: 0 | AW50: 0 | AX50: 0 | AY50: 0 | AZ50: 0 | BA50: 0 | BB50: 0 | BC50: 0 | BD50: 0 | BE50: 0 | BF50: 0 | BG50: 0 | BH50: 0 | BI50: 0 | BJ50: 0 | BK50: 0 | BL50: 0 | BM50: 0 | BN50: 0 | BO50: 0 | BP50: 0 | BQ50: 0 | BR50: 0 | BS50: 0 | BT50: 0 | BU50: 0 | BV50: 0 | BW50: 0 | BX50: 0 | BY50: 0 | BZ50: 0 | CA50: 0 | CB50: 0 | CC50: 0 | CD50: 0 | CE50: 0 | CF50: 0 | CG50: 0 | CH50: 0 | CI50: 0 | CJ50: 0 | CK50: 0 | CL50: 0 | CM50: 0 | CN50: 0 | CO50: 0 | CP50: 0 | CQ50: 0 | CR50: 0 | CS50: 0 | CT50: 0 | CU50: 0 | CV50: 0 | CW50: 0 | CX50: 0 | CY50: 0 | CZ50: 0 | DA50: 0 | DB50: 0 | DC50: 0 | DD50: 0 | DE50: 0 | DF50: 0 | DG50: 0 | DH50: 0 | DI50: 0 | DJ50: 0 | DK50: 0 | DL50: 0 | DM50: 0 | DN50: 0 | DO50: 0 | DP50: 0 | DQ50: 0 | DR50: 0 | DS50: 0 | DT50: 0 | DU50: 0 | DV50: 0 | DW50: 0 | DX50: 0 | DY50: 0 | DZ50: 0 | EA50: 0 | EB50: 0 | EC50: 0 | ED50: 0 | EE50: 0 | EF50: 0 | EG50: 0 | EH50: 0 | EI50: 0
A51: ED_ASS521_00041 | C51: ˂ = 11 kV ; Commercial & Industrial ; Complex Type | N51: 56 | Y51: 7.483 | AJ51: 1709 | AK51: 901 | AL51: 864 | AM51: 844 | AN51: 831 | AO51: 868 | AP51: 891 | AQ51: 909 | AR51: 956 | AS51: 922 | AT51: 1349 | AU51: 1740 | AV51: 2211 | AW51: 2454 | AX51: 2137 | AY51: 2025 | AZ51: 1860 | BA51: 2012 | BB51: 2191 | BC51: 2126 | BD51: 1954 | BE51: 1909 | BF51: 1980 | BG51: 2048 | BH51: 2354 | BI51: 2413 | BJ51: 2354 | BK51: 2505 | BL51: 2251 | BM51: 1849 | BN51: 1836 | BO51: 1854 | BP51: 1736 | BQ51: 1608 | BR51: 1305 | BS51: 1070 | BT51: 1020 | BU51: 1111 | BV51: 1213 | BW51: 1197 | BX51: 1320 | BY51: 1181 | BZ51: 1402 | CA51: 933 | CB51: 943 | CC51: 937 | CD51: 1043 | CE51: 1045 | CF51: 1175 | CG51: 1173 | CH51: 781 | CI51: 782 | CJ51: 1481 | CK51: 1483 | CL51: 412 | CM51: 408 | CN51: 206 | CO51: 206 | CP51: 76 | CQ51: 76 | CR51: 30 | CS51: 30 | CT51: 27 | CU51: 27 | CV51: 16 | CW51: 16 | CX51: 9 | CY51: 9 | CZ51: 3 | DA51: 3 | DB51: 0 | DC51: 0 | DD51: 9 | DE51: 9 | DF51: 0 | DG51: 0 | DH51: 0 | DI51: 0 | DJ51: 0 | DK51: 0 | DL51: 0 | DM51: 0 | DN51: 0 | DO51: 0 | DP51: 0 | DQ51: 0 | DR51: 0 | DS51: 0 | DT51: 0 | DU51: 0 | DV51: 0 | DW51: 0 | DX51: 0 | DY51: 0 | DZ51: 0 | EA51: 0 | EB51: 0 | EC51: 0 | ED51: 0 | EE51: 0 | EF51: 0 | EG51: 0 | EH51: 0 | EI51: 0
A52: ED_ASS521_00042 | C52: ˂ = 11 kV ; Subdivision ; Complex Type | N52: 0 | Y52: 0 | AJ52: 0 | AK52: 0 | AL52: 0 | AM52: 0 | AN52: 0 | AO52: 0 | AP52: 0 | AQ52: 0 | AR52: 0 | AS52: 0 | AT52: 0 | AU52: 0 | AV52: 0 | AW52: 0 | AX52: 0 | AY52: 0 | AZ52: 0 | BA52: 0 | BB52: 0 | BC52: 0 | BD52: 0 | BE52: 0 | BF52: 0 | BG52: 0 | BH52: 0 | BI52: 0 | BJ52: 0 | BK52: 0 | BL52: 0 | BM52: 0 | BN52: 0 | BO52: 0 | BP52: 0 | BQ52: 0 | BR52: 0 | BS52: 0 | BT52: 0 | BU52: 0 | BV52: 0 | BW52: 0 | BX52: 0 | BY52: 0 | BZ52: 0 | CA52: 0 | CB52: 0 | CC52: 0 | CD52: 0 | CE52: 0 | CF52: 0 | CG52: 0 | CH52: 0 | CI52: 0 | CJ52: 0 | CK52: 0 | CL52: 0 | CM52: 0 | CN52: 0 | CO52: 0 | CP52: 0 | CQ52: 0 | CR52: 0 | CS52: 0 | CT52: 0 | CU52: 0 | CV52: 0 | CW52: 0 | CX52: 0 | CY52: 0 | CZ52: 0 | DA52: 0 | DB52: 0 | DC52: 0 | DD52: 0 | DE52: 0 | DF52: 0 | DG52: 0 | DH52: 0 | DI52: 0 | DJ52: 0 | DK52: 0 | DL52: 0 | DM52: 0 | DN52: 0 | DO52: 0 | DP52: 0 | DQ52: 0 | DR52: 0 | DS52: 0 | DT52: 0 | DU52: 0 | DV52: 0 | DW52: 0 | DX52: 0 | DY52: 0 | DZ52: 0 | EA52: 0 | EB52: 0 | EC52: 0 | ED52: 0 | EE52: 0 | EF52: 0 | EG52: 0 | EH52: 0 | EI52: 0
A53: ED_ASS521_00043 | C53: > 11 kV & < = 22 kV ; Commercial & Industrial | N53: 0 | Y53: 0 | AJ53: 0 | AK53: 0 | AL53: 0 | AM53: 0 | AN53: 0 | AO53: 0 | AP53: 0 | AQ53: 0 | AR53: 0 | AS53: 0 | AT53: 0 | AU53: 0 | AV53: 0 | AW53: 0 | AX53: 0 | AY53: 0 | AZ53: 0 | BA53: 0 | BB53: 0 | BC53: 0 | BD53: 0 | BE53: 0 | BF53: 0 | BG53: 0 | BH53: 0 | BI53: 0 | BJ53: 0 | BK53: 0 | BL53: 0 | BM53: 0 | BN53: 0 | BO53: 0 | BP53: 0 | BQ53: 0 | BR53: 0 | BS53: 0 | BT53: 0 | BU53: 0 | BV53: 0 | BW53: 0 | BX53: 0 | BY53: 0 | BZ53: 0 | CA53: 0 | CB53: 0 | CC53: 0 | CD53: 0 | CE53: 0 | CF53: 0 | CG53: 0 | CH53: 0 | CI53: 0 | CJ53: 0 | CK53: 0 | CL53: 0 | CM53: 0 | CN53: 0 | CO53: 0 | CP53: 0 | CQ53: 0 | CR53: 0 | CS53: 0 | CT53: 0 | CU53: 0 | CV53: 0 | CW53: 0 | CX53: 0 | CY53: 0 | CZ53: 0 | DA53: 0 | DB53: 0 | DC53: 0 | DD53: 0 | DE53: 0 | DF53: 0 | DG53: 0 | DH53: 0 | DI53: 0 | DJ53: 0 | DK53: 0 | DL53: 0 | DM53: 0 | DN53: 0 | DO53: 0 | DP53: 0 | DQ53: 0 | DR53: 0 | DS53: 0 | DT53: 0 | DU53: 0 | DV53: 0 | DW53: 0 | DX53: 0 | DY53: 0 | DZ53: 0 | EA53: 0 | EB53: 0 | EC53: 0 | ED53: 0 | EE53: 0 | EF53: 0 | EG53: 0 | EH53: 0 | EI53: 0
A54: ED_ASS521_00044 | C54: > 11 kV & < = 22 kV ; Subdivision | N54: 0 | Y54: 0 | AJ54: 0 | AK54: 0 | AL54: 0 | AM54: 0 | AN54: 0 | AO54: 0 | AP54: 0 | AQ54: 0 | AR54: 0 | AS54: 0 | AT54: 0 | AU54: 0 | AV54: 0 | AW54: 0 | AX54: 0 | AY54: 0 | AZ54: 0 | BA54: 0 | BB54: 0 | BC54: 0 | BD54: 0 | BE54: 0 | BF54: 0 | BG54: 0 | BH54: 0 | BI54: 0 | BJ54: 0 | BK54: 0 | BL54: 0 | BM54: 0 | BN54: 0 | BO54: 0 | BP54: 0 | BQ54: 0 | BR54: 0 | BS54: 0 | BT54: 0 | BU54: 0 | BV54: 0 | BW54: 0 | BX54: 0 | BY54: 0 | BZ54: 0 | CA54: 0 | CB54: 0 | CC54: 0 | CD54: 0 | CE54: 0 | CF54: 0 | CG54: 0 | CH54: 0 | CI54: 0 | CJ54: 0 | CK54: 0 | CL54: 0 | CM54: 0 | CN54: 0 | CO54: 0 | CP54: 0 | CQ54: 0 | CR54: 0 | CS54: 0 | CT54: 0 | CU54: 0 | CV54: 0 | CW54: 0 | CX54: 0 | CY54: 0 | CZ54: 0 | DA54: 0 | DB54: 0 | DC54: 0 | DD54: 0 | DE54: 0 | DF54: 0 | DG54: 0 | DH54: 0 | DI54: 0 | DJ54: 0 | DK54: 0 | DL54: 0 | DM54: 0 | DN54: 0 | DO54: 0 | DP54: 0 | DQ54: 0 | DR54: 0 | DS54: 0 | DT54: 0 | DU54: 0 | DV54: 0 | DW54: 0 | DX54: 0 | DY54: 0 | DZ54: 0 | EA54: 0 | EB54: 0 | EC54: 0 | ED54: 0 | EE54: 0 | EF54: 0 | EG54: 0 | EH54: 0 | EI54: 0
A55: ED_ASS521_00045 | C55: > 22 kV & < = 33 kV ; Commercial & Industrial | N55: 0 | Y55: 0 | AJ55: 0 | AK55: 0 | AL55: 0 | AM55: 0 | AN55: 0 | AO55: 0 | AP55: 0 | AQ55: 0 | AR55: 0 | AS55: 0 | AT55: 0 | AU55: 0 | AV55: 0 | AW55: 0 | AX55: 0 | AY55: 0 | AZ55: 0 | BA55: 0 | BB55: 0 | BC55: 0 | BD55: 0 | BE55: 0 | BF55: 0 | BG55: 0 | BH55: 0 | BI55: 0 | BJ55: 0 | BK55: 0 | BL55: 0 | BM55: 0 | BN55: 0 | BO55: 0 | BP55: 0 | BQ55: 0 | BR55: 0 | BS55: 0 | BT55: 0 | BU55: 0 | BV55: 0 | BW55: 0 | BX55: 0 | BY55: 0 | BZ55: 0 | CA55: 0 | CB55: 0 | CC55: 0 | CD55: 0 | CE55: 0 | CF55: 0 | CG55: 0 | CH55: 0 | CI55: 0 | CJ55: 0 | CK55: 0 | CL55: 0 | CM55: 0 | CN55: 0 | CO55: 0 | CP55: 0 | CQ55: 0 | CR55: 0 | CS55: 0 | CT55: 0 | CU55: 0 | CV55: 0 | CW55: 0 | CX55: 0 | CY55: 0 | CZ55: 0 | DA55: 0 | DB55: 0 | DC55: 0 | DD55: 0 | DE55: 0 | DF55: 0 | DG55: 0 | DH55: 0 | DI55: 0 | DJ55: 0 | DK55: 0 | DL55: 0 | DM55: 0 | DN55: 0 | DO55: 0 | DP55: 0 | DQ55: 0 | DR55: 0 | DS55: 0 | DT55: 0 | DU55: 0 | DV55: 0 | DW55: 0 | DX55: 0 | DY55: 0 | DZ55: 0 | EA55: 0 | EB55: 0 | EC55: 0 | ED55: 0 | EE55: 0 | EF55: 0 | EG55: 0 | EH55: 0 | EI55: 0
A56: ED_ASS521_00046 | C56: > 22 kV & < = 33 kV ; Subdivision | N56: 0 | Y56: 0 | AJ56: 0 | AK56: 0 | AL56: 0 | AM56: 0 | AN56: 0 | AO56: 0 | AP56: 0 | AQ56: 0 | AR56: 0 | AS56: 0 | AT56: 0 | AU56: 0 | AV56: 0 | AW56: 0 | AX56: 0 | AY56: 0 | AZ56: 0 | BA56: 0 | BB56: 0 | BC56: 0 | BD56: 0 | BE56: 0 | BF56: 0 | BG56: 0 | BH56: 0 | BI56: 0 | BJ56: 0 | BK56: 0 | BL56: 0 | BM56: 0 | BN56: 0 | BO56: 0 | BP56: 0 | BQ56: 0 | BR56: 0 | BS56: 0 | BT56: 0 | BU56: 0 | BV56: 0 | BW56: 0 | BX56: 0 | BY56: 0 | BZ56: 0 | CA56: 0 | CB56: 0 | CC56: 0 | CD56: 0 | CE56: 0 | CF56: 0 | CG56: 0 | CH56: 0 | CI56: 0 | CJ56: 0 | CK56: 0 | CL56: 0 | CM56: 0 | CN56: 0 | CO56: 0 | CP56: 0 | CQ56: 0 | CR56: 0 | CS56: 0 | CT56: 0 | CU56: 0 | CV56: 0 | CW56: 0 | CX56: 0 | CY56: 0 | CZ56: 0 | DA56: 0 | DB56: 0 | DC56: 0 | DD56: 0 | DE56: 0 | DF56: 0 | DG56: 0 | DH56: 0 | DI56: 0 | DJ56: 0 | DK56: 0 | DL56: 0 | DM56: 0 | DN56: 0 | DO56: 0 | DP56: 0 | DQ56: 0 | DR56: 0 | DS56: 0 | DT56: 0 | DU56: 0 | DV56: 0 | DW56: 0 | DX56: 0 | DY56: 0 | DZ56: 0 | EA56: 0 | EB56: 0 | EC56: 0 | ED56: 0 | EE56: 0 | EF56: 0 | EG56: 0 | EH56: 0 | EI56: 0
A57: ED_ASS521_00047 | C57: > 33 kV & < = 66 kV ; Commercial & Industrial | N57: 0 | Y57: 0 | AJ57: 0 | AK57: 0 | AL57: 0 | AM57: 0 | AN57: 0 | AO57: 0 | AP57: 0 | AQ57: 0 | AR57: 0 | AS57: 0 | AT57: 0 | AU57: 0 | AV57: 0 | AW57: 0 | AX57: 0 | AY57: 0 | AZ57: 0 | BA57: 0 | BB57: 0 | BC57: 0 | BD57: 0 | BE57: 0 | BF57: 0 | BG57: 0 | BH57: 0 | BI57: 0 | BJ57: 0 | BK57: 0 | BL57: 0 | BM57: 0 | BN57: 0 | BO57: 0 | BP57: 0 | BQ57: 0 | BR57: 0 | BS57: 0 | BT57: 0 | BU57: 0 | BV57: 0 | BW57: 0 | BX57: 0 | BY57: 0 | BZ57: 0 | CA57: 0 | CB57: 0 | CC57: 0 | CD57: 0 | CE57: 0 | CF57: 0 | CG57: 0 | CH57: 0 | CI57: 0 | CJ57: 0 | CK57: 0 | CL57: 0 | CM57: 0 | CN57: 0 | CO57: 0 | CP57: 0 | CQ57: 0 | CR57: 0 | CS57: 0 | CT57: 0 | CU57: 0 | CV57: 0 | CW57: 0 | CX57: 0 | CY57: 0 | CZ57: 0 | DA57: 0 | DB57: 0 | DC57: 0 | DD57: 0 | DE57: 0 | DF57: 0 | DG57: 0 | DH57: 0 | DI57: 0 | DJ57: 0 | DK57: 0 | DL57: 0 | DM57: 0 | DN57: 0 | DO57: 0 | DP57: 0 | DQ57: 0 | DR57: 0 | DS57: 0 | DT57: 0 | DU57: 0 | DV57: 0 | DW57: 0 | DX57: 0 | DY57: 0 | DZ57: 0 | EA57: 0 | EB57: 0 | EC57: 0 | ED57: 0 | EE57: 0 | EF57: 0 | EG57: 0 | EH57: 0 | EI57: 0
A58: ED_ASS521_00048 | C58: > 33 kV & < = 66 kV ; Subdivision | N58: 0 | Y58: 0 | AJ58: 0 | AK58: 0 | AL58: 0 | AM58: 0 | AN58: 0 | AO58: 0 | AP58: 0 | AQ58: 0 | AR58: 0 | AS58: 0 | AT58: 0 | AU58: 0 | AV58: 0 | AW58: 0 | AX58: 0 | AY58: 0 | AZ58: 0 | BA58: 0 | BB58: 0 | BC58: 0 | BD58: 0 | BE58: 0 | BF58: 0 | BG58: 0 | BH58: 0 | BI58: 0 | BJ58: 0 | BK58: 0 | BL58: 0 | BM58: 0 | BN58: 0 | BO58: 0 | BP58: 0 | BQ58: 0 | BR58: 0 | BS58: 0 | BT58: 0 | BU58: 0 | BV58: 0 | BW58: 0 | BX58: 0 | BY58: 0 | BZ58: 0 | CA58: 0 | CB58: 0 | CC58: 0 | CD58: 0 | CE58: 0 | CF58: 0 | CG58: 0 | CH58: 0 | CI58: 0 | CJ58: 0 | CK58: 0 | CL58: 0 | CM58: 0 | CN58: 0 | CO58: 0 | CP58: 0 | CQ58: 0 | CR58: 0 | CS58: 0 | CT58: 0 | CU58: 0 | CV58: 0 | CW58: 0 | CX58: 0 | CY58: 0 | CZ58: 0 | DA58: 0 | DB58: 0 | DC58: 0 | DD58: 0 | DE58: 0 | DF58: 0 | DG58: 0 | DH58: 0 | DI58: 0 | DJ58: 0 | DK58: 0 | DL58: 0 | DM58: 0 | DN58: 0 | DO58: 0 | DP58: 0 | DQ58: 0 | DR58: 0 | DS58: 0 | DT58: 0 | DU58: 0 | DV58: 0 | DW58: 0 | DX58: 0 | DY58: 0 | DZ58: 0 | EA58: 0 | EB58: 0 | EC58: 0 | ED58: 0 | EE58: 0 | EF58: 0 | EG58: 0 | EH58: 0 | EI58: 0
A59: ED_ASS521_00049 | C59: > 66 kV & < = 132 kV ; Commercial & Industrial | N59: 0 | Y59: 0 | AJ59: 0 | AK59: 0 | AL59: 0 | AM59: 0 | AN59: 0 | AO59: 0 | AP59: 0 | AQ59: 0 | AR59: 0 | AS59: 0 | AT59: 0 | AU59: 0 | AV59: 0 | AW59: 0 | AX59: 0 | AY59: 0 | AZ59: 0 | BA59: 0 | BB59: 0 | BC59: 0 | BD59: 0 | BE59: 0 | BF59: 0 | BG59: 0 | BH59: 0 | BI59: 0 | BJ59: 0 | BK59: 0 | BL59: 0 | BM59: 0 | BN59: 0 | BO59: 0 | BP59: 0 | BQ59: 0 | BR59: 0 | BS59: 0 | BT59: 0 | BU59: 0 | BV59: 0 | BW59: 0 | BX59: 0 | BY59: 0 | BZ59: 0 | CA59: 0 | CB59: 0 | CC59: 0 | CD59: 0 | CE59: 0 | CF59: 0 | CG59: 0 | CH59: 0 | CI59: 0 | CJ59: 0 | CK59: 0 | CL59: 0 | CM59: 0 | CN59: 0 | CO59: 0 | CP59: 0 | CQ59: 0 | CR59: 0 | CS59: 0 | CT59: 0 | CU59: 0 | CV59: 0 | CW59: 0 | CX59: 0 | CY59: 0 | CZ59: 0 | DA59: 0 | DB59: 0 | DC59: 0 | DD59: 0 | DE59: 0 | DF59: 0 | DG59: 0 | DH59: 0 | DI59: 0 | DJ59: 0 | DK59: 0 | DL59: 0 | DM59: 0 | DN59: 0 | DO59: 0 | DP59: 0 | DQ59: 0 | DR59: 0 | DS59: 0 | DT59: 0 | DU59: 0 | DV59: 0 | DW59: 0 | DX59: 0 | DY59: 0 | DZ59: 0 | EA59: 0 | EB59: 0 | EC59: 0 | ED59: 0 | EE59: 0 | EF59: 0 | EG59: 0 | EH59: 0 | EI59: 0
A60: ED_ASS521_00050 | C60: > 66 kV & < = 132 kV ; Subdivision | N60: 0 | Y60: 0 | AJ60: 0 | AK60: 0 | AL60: 0 | AM60: 0 | AN60: 0 | AO60: 0 | AP60: 0 | AQ60: 0 | AR60: 0 | AS60: 0 | AT60: 0 | AU60: 0 | AV60: 0 | AW60: 0 | AX60: 0 | AY60: 0 | AZ60: 0 | BA60: 0 | BB60: 0 | BC60: 0 | BD60: 0 | BE60: 0 | BF60: 0 | BG60: 0 | BH60: 0 | BI60: 0 | BJ60: 0 | BK60: 0 | BL60: 0 | BM60: 0 | BN60: 0 | BO60: 0 | BP60: 0 | BQ60: 0 | BR60: 0 | BS60: 0 | BT60: 0 | BU60: 0 | BV60: 0 | BW60: 0 | BX60: 0 | BY60: 0 | BZ60: 0 | CA60: 0 | CB60: 0 | CC60: 0 | CD60: 0 | CE60: 0 | CF60: 0 | CG60: 0 | CH60: 0 | CI60: 0 | CJ60: 0 | CK60: 0 | CL60: 0 | CM60: 0 | CN60: 0 | CO60: 0 | CP60: 0 | CQ60: 0 | CR60: 0 | CS60: 0 | CT60: 0 | CU60: 0 | CV60: 0 | CW60: 0 | CX60: 0 | CY60: 0 | CZ60: 0 | DA60: 0 | DB60: 0 | DC60: 0 | DD60: 0 | DE60: 0 | DF60: 0 | DG60: 0 | DH60: 0 | DI60: 0 | DJ60: 0 | DK60: 0 | DL60: 0 | DM60: 0 | DN60: 0 | DO60: 0 | DP60: 0 | DQ60: 0 | DR60: 0 | DS60: 0 | DT60: 0 | DU60: 0 | DV60: 0 | DW60: 0 | DX60: 0 | DY60: 0 | DZ60: 0 | EA60: 0 | EB60: 0 | EC60: 0 | ED60: 0 | EE60: 0 | EF60: 0 | EG60: 0 | EH60: 0 | EI60: 0
A61: ED_ASS521_00051 | C61: > 132 kV ; Commercial & Industrial | N61: 0 | Y61: 0 | AJ61: 0 | AK61: 0 | AL61: 0 | AM61: 0 | AN61: 0 | AO61: 0 | AP61: 0 | AQ61: 0 | AR61: 0 | AS61: 0 | AT61: 0 | AU61: 0 | AV61: 0 | AW61: 0 | AX61: 0 | AY61: 0 | AZ61: 0 | BA61: 0 | BB61: 0 | BC61: 0 | BD61: 0 | BE61: 0 | BF61: 0 | BG61: 0 | BH61: 0 | BI61: 0 | BJ61: 0 | BK61: 0 | BL61: 0 | BM61: 0 | BN61: 0 | BO61: 0 | BP61: 0 | BQ61: 0 | BR61: 0 | BS61: 0 | BT61: 0 | BU61: 0 | BV61: 0 | BW61: 0 | BX61: 0 | BY61: 0 | BZ61: 0 | CA61: 0 | CB61: 0 | CC61: 0 | CD61: 0 | CE61: 0 | CF61: 0 | CG61: 0 | CH61: 0 | CI61: 0 | CJ61: 0 | CK61: 0 | CL61: 0 | CM61: 0 | CN61: 0 | CO61: 0 | CP61: 0 | CQ61: 0 | CR61: 0 | CS61: 0 | CT61: 0 | CU61: 0 | CV61: 0 | CW61: 0 | CX61: 0 | CY61: 0 | CZ61: 0 | DA61: 0 | DB61: 0 | DC61: 0 | DD61: 0 | DE61: 0 | DF61: 0 | DG61: 0 | DH61: 0 | DI61: 0 | DJ61: 0 | DK61: 0 | DL61: 0 | DM61: 0 | DN61: 0 | DO61: 0 | DP61: 0 | DQ61: 0 | DR61: 0 | DS61: 0 | DT61: 0 | DU61: 0 | DV61: 0 | DW61: 0 | DX61: 0 | DY61: 0 | DZ61: 0 | EA61: 0 | EB61: 0 | EC61: 0 | ED61: 0 | EE61: 0 | EF61: 0 | EG61: 0 | EH61: 0 | EI61: 0
A62: ED_ASS521_00052 | C62: > 132 kV ; Subdivision | N62: 0 | Y62: 0 | AJ62: 0 | AK62: 0 | AL62: 0 | AM62: 0 | AN62: 0 | AO62: 0 | AP62: 0 | AQ62: 0 | AR62: 0 | AS62: 0 | AT62: 0 | AU62: 0 | AV62: 0 | AW62: 0 | AX62: 0 | AY62: 0 | AZ62: 0 | BA62: 0 | BB62: 0 | BC62: 0 | BD62: 0 | BE62: 0 | BF62: 0 | BG62: 0 | BH62: 0 | BI62: 0 | BJ62: 0 | BK62: 0 | BL62: 0 | BM62: 0 | BN62: 0 | BO62: 0 | BP62: 0 | BQ62: 0 | BR62: 0 | BS62: 0 | BT62: 0 | BU62: 0 | BV62: 0 | BW62: 0 | BX62: 0 | BY62: 0 | BZ62: 0 | CA62: 0 | CB62: 0 | CC62: 0 | CD62: 0 | CE62: 0 | CF62: 0 | CG62: 0 | CH62: 0 | CI62: 0 | CJ62: 0 | CK62: 0 | CL62: 0 | CM62: 0 | CN62: 0 | CO62: 0 | CP62: 0 | CQ62: 0 | CR62: 0 | CS62: 0 | CT62: 0 | CU62: 0 | CV62: 0 | CW62: 0 | CX62: 0 | CY62: 0 | CZ62: 0 | DA62: 0 | DB62: 0 | DC62: 0 | DD62: 0 | DE62: 0 | DF62: 0 | DG62: 0 | DH62: 0 | DI62: 0 | DJ62: 0 | DK62: 0 | DL62: 0 | DM62: 0 | DN62: 0 | DO62: 0 | DP62: 0 | DQ62: 0 | DR62: 0 | DS62: 0 | DT62: 0 | DU62: 0 | DV62: 0 | DW62: 0 | DX62: 0 | DY62: 0 | DZ62: 0 | EA62: 0 | EB62: 0 | EC62: 0 | ED62: 0 | EE62: 0 | EF62: 0 | EG62: 0 | EH62: 0 | EI62: 0
A63: ED_ASS521_99003 | C63: Other | E63: DNSP NAME | F63: REPEX | G63: SERVICE LINES | H63: Other | I63: DESCRIPTOR METRIC | J63: MEAN ECONOMIC LIFE | K63: YEARS | L63: NUMBER
A64: ED_ASS521_00054 | B64: TRANSFORMERS BY: MOUNTING TYPE; HIGHEST OPERATING VOLTAGE ; AMPERE RATING; NUMBER OF PHASES (AT LV) | C64: Pole Mounted ; < = 22kV ; < = 60 kVA ; Single Phase | E64: DNSP NAME | F64: REPEX | G64: TRANSFORMERS | H64: Pole Mounted ; < = 22kV ; < = 60 kVA ; Single Phase | I64: DESCRIPTOR METRIC | J64: MEAN ECONOMIC LIFE | K64: YEARS | L64: NUMBER | N64: 55 | Y64: 7.416198487 | AJ64: 301 | AK64: 210 | AL64: 311 | AM64: 349 | AN64: 366 | AO64: 386 | AP64: 411 | AQ64: 442 | AR64: 455 | AS64: 440 | AT64: 423 | AU64: 467 | AV64: 512 | AW64: 600 | AX64: 663 | AY64: 588 | AZ64: 556 | BA64: 600 | BB64: 739 | BC64: 1026 | BD64: 1027 | BE64: 834 | BF64: 963 | BG64: 1244 | BH64: 1166 | BI64: 928 | BJ64: 942 | BK64: 976 | BL64: 1051 | BM64: 1066 | BN64: 1041 | BO64: 1107 | BP64: 1109 | BQ64: 1006 | BR64: 884 | BS64: 794 | BT64: 699 | BU64: 711 | BV64: 942 | BW64: 878 | BX64: 616 | BY64: 585 | BZ64: 661 | CA64: 963 | CB64: 939 | CC64: 603 | CD64: 523 | CE64: 661 | CF64: 844 | CG64: 712 | CH64: 502 | CI64: 516 | CJ64: 496 | CK64: 591 | CL64: 539 | CM64: 519 | CN64: 409 | CO64: 148 | CP64: 319 | CQ64: 215 | CR64: 17 | CS64: 9 | CT64: 3 | CU64: 4 | CV64: 2 | CW64: 1 | CX64: 1 | CY64: 0 | CZ64: 0 | DA64: 0 | DB64: 0 | DC64: 0 | DD64: 0 | DE64: 0 | DF64: 1 | DG64: 1 | DH64: 1 | DI64: 0 | DJ64: 0 | DK64: 0 | DL64: 0 | DM64: 1 | DN64: 1 | DO64: 0 | DP64: 0 | DQ64: 0 | DR64: 0 | DS64: 0 | DT64: 0 | DU64: 0 | DV64: 0 | DW64: 0 | DX64: 0 | DY64: 0 | DZ64: 0 | EA64: 0 | EB64: 0 | EC64: 0 | ED64: 0 | EE64: 0 | EF64: 0 | EG64: 0 | EH64: 0 | EI64: 0
A65: ED_ASS521_00055 | C65: Pole Mounted ; < = 22kV ; > 60 kVA and < = 600 kVA ; Single Phase | E65: DNSP NAME | F65: REPEX | G65: TRANSFORMERS | H65: Pole Mounted ; < = 22kV ; > 60 kVA and < = 600 kVA ; Single Phase | I65: DESCRIPTOR METRIC | J65: MEAN ECONOMIC LIFE | K65: YEARS | L65: NUMBER | N65: 55 | Y65: 7.416198487 | AJ65: 18 | AK65: 62 | AL65: 116 | AM65: 124 | AN65: 174 | AO65: 343 | AP65: 449 | AQ65: 465 | AR65: 480 | AS65: 479 | AT65: 442 | AU65: 335 | AV65: 460 | AW65: 467 | AX65: 249 | AY65: 206 | AZ65: 179 | BA65: 137 | BB65: 141 | BC65: 188 | BD65: 198 | BE65: 173 | BF65: 175 | BG65: 231 | BH65: 258 | BI65: 232 | BJ65: 225 | BK65: 217 | BL65: 230 | BM65: 249 | BN65: 245 | BO65: 295 | BP65: 276 | BQ65: 216 | BR65: 191 | BS65: 287 | BT65: 286 | BU65: 147 | BV65: 149 | BW65: 166 | BX65: 144 | BY65: 134 | BZ65: 161 | CA65: 156 | CB65: 122 | CC65: 116 | CD65: 141 | CE65: 153 | CF65: 184 | CG65: 156 | CH65: 79 | CI65: 64 | CJ65: 50 | CK65: 145 | CL65: 135 | CM65: 36 | CN65: 56 | CO65: 101 | CP65: 293 | CQ65: 222 | CR65: 9 | CS65: 14 | CT65: 7 | CU65: 14 | CV65: 14 | CW65: 0 | CX65: 0 | CY65: 0 | CZ65: 0 | DA65: 0 | DB65: 0 | DC65: 0 | DD65: 0 | DE65: 0 | DF65: 0 | DG65: 0 | DH65: 0 | DI65: 0 | DJ65: 0 | DK65: 0 | DL65: 0 | DM65: 0 | DN65: 0 | DO65: 0 | DP65: 0 | DQ65: 0 | DR65: 0 | DS65: 0 | DT65: 0 | DU65: 0 | DV65: 0 | DW65: 0 | DX65: 0 | DY65: 0 | DZ65: 0 | EA65: 0 | EB65: 0 | EC65: 0 | ED65: 0 | EE65: 0 | EF65: 0 | EG65: 0 | EH65: 0 | EI65: 0
A66: ED_ASS521_00056 | C66: Pole Mounted ; < = 22kV ; > 600 kVA ; Single Phase | E66: DNSP NAME | F66: REPEX | G66: TRANSFORMERS | H66: Pole Mounted ; < = 22kV ; > 600 kVA ; Single Phase | I66: DESCRIPTOR METRIC | J66: MEAN ECONOMIC LIFE | K66: YEARS | L66: NUMBER | N66: 55 | Y66: 7.416198487 | AJ66: 0 | AK66: 0 | AL66: 0 | AM66: 0 | AN66: 0 | AO66: 1 | AP66: 1 | AQ66: 1 | AR66: 1 | AS66: 1 | AT66: 1 | AU66: 1 | AV66: 1 | AW66: 1 | AX66: 1 | AY66: 1 | AZ66: 1 | BA66: 0 | BB66: 0 | BC66: 0 | BD66: 1 | BE66: 1 | BF66: 0 | BG66: 0 | BH66: 1 | BI66: 2 | BJ66: 2 | BK66: 1 | BL66: 0 | BM66: 0 | BN66: 0 | BO66: 2 | BP66: 3 | BQ66: 2 | BR66: 1 | BS66: 4 | BT66: 8 | BU66: 5 | BV66: 2 | BW66: 4 | BX66: 2 | BY66: 0 | BZ66: 4 | CA66: 29 | CB66: 26 | CC66: 1 | CD66: 2 | CE66: 6 | CF66: 8 | CG66: 6 | CH66: 4 | CI66: 13 | CJ66: 11 | CK66: 6 | CL66: 6 | CM66: 6 | CN66: 8 | CO66: 7 | CP66: 13 | CQ66: 8 | CR66: 1 | CS66: 1 | CT66: 0 | CU66: 1 | CV66: 1 | CW66: 0 | CX66: 0 | CY66: 0 | CZ66: 0 | DA66: 0 | DB66: 0 | DC66: 0 | DD66: 0 | DE66: 0 | DF66: 0 | DG66: 0 | DH66: 0 | DI66: 0 | DJ66: 0 | DK66: 0 | DL66: 0 | DM66: 0 | DN66: 0 | DO66: 0 | DP66: 0 | DQ66: 0 | DR66: 0 | DS66: 0 | DT66: 0 | DU66: 0 | DV66: 0 | DW66: 0 | DX66: 0 | DY66: 0 | DZ66: 0 | EA66: 0 | EB66: 0 | EC66: 0 | ED66: 0 | EE66: 0 | EF66: 0 | EG66: 0 | EH66: 0 | EI66: 0
A67: ED_ASS521_00057 | C67: Pole Mounted ; < = 22kV ; < = 60 kVA ; Multiple Phase | E67: DNSP NAME | F67: REPEX | G67: TRANSFORMERS | H67: Pole Mounted ; < = 22kV ; < = 60 kVA ; Multiple Phase | I67: DESCRIPTOR METRIC | J67: MEAN ECONOMIC LIFE | K67: YEARS | L67: NUMBER | N67: 55 | Y67: 7.416198487 | AJ67: 60 | AK67: 23 | AL67: 29 | AM67: 26 | AN67: 23 | AO67: 12 | AP67: 2 | AQ67: 2 | AR67: 3 | AS67: 3 | AT67: 2 | AU67: 1 | AV67: 2 | AW67: 3 | AX67: 3 | AY67: 12 | AZ67: 39 | BA67: 37 | BB67: 49 | BC67: 69 | BD67: 64 | BE67: 67 | BF67: 71 | BG67: 86 | BH67: 102 | BI67: 87 | BJ67: 67 | BK67: 66 | BL67: 72 | BM67: 77 | BN67: 65 | BO67: 80 | BP67: 89 | BQ67: 82 | BR67: 71 | BS67: 59 | BT67: 59 | BU67: 60 | BV67: 56 | BW67: 54 | BX67: 54 | BY67: 51 | BZ67: 42 | CA67: 44 | CB67: 38 | CC67: 36 | CD67: 35 | CE67: 35 | CF67: 40 | CG67: 31 | CH67: 23 | CI67: 27 | CJ67: 20 | CK67: 20 | CL67: 16 | CM67: 10 | CN67: 10 | CO67: 28 | CP67: 56 | CQ67: 32 | CR67: 2 | CS67: 1 | CT67: 0 | CU67: 0 | CV67: 0 | CW67: 0 | CX67: 0 | CY67: 0 | CZ67: 0 | DA67: 0 | DB67: 0 | DC67: 0 | DD67: 0 | DE67: 0 | DF67: 0 | DG67: 0 | DH67: 0 | DI67: 0 | DJ67: 0 | DK67: 0 | DL67: 0 | DM67: 0 | DN67: 0 | DO67: 0 | DP67: 0 | DQ67: 0 | DR67: 0 | DS67: 0 | DT67: 0 | DU67: 0 | DV67: 0 | DW67: 0 | DX67: 0 | DY67: 0 | DZ67: 0 | EA67: 0 | EB67: 0 | EC67: 0 | ED67: 0 | EE67: 0 | EF67: 0 | EG67: 0 | EH67: 0 | EI67: 0
A68: ED_ASS521_00058 | C68: Pole Mounted ; < = 22kV ; > 60 kVA and < = 600 kVA ; Multiple Phase | E68: DNSP NAME | F68: REPEX | G68: TRANSFORMERS | H68: Pole Mounted ; < = 22kV ; > 60 kVA and < = 600 kVA ; Multiple Phase | I68: DESCRIPTOR METRIC | J68: MEAN ECONOMIC LIFE | K68: YEARS | L68: NUMBER | N68: 55 | Y68: 7.416198487 | AJ68: 220 | AK68: 191 | AL68: 270 | AM68: 333 | AN68: 280 | AO68: 103 | AP68: 15 | AQ68: 22 | AR68: 20 | AS68: 7 | AT68: 7 | AU68: 8 | AV68: 9 | AW68: 3 | AX68: 1 | AY68: 11 | AZ68: 38 | BA68: 38 | BB68: 49 | BC68: 63 | BD68: 46 | BE68: 54 | BF68: 58 | BG68: 67 | BH68: 66 | BI68: 68 | BJ68: 81 | BK68: 76 | BL68: 68 | BM68: 72 | BN68: 64 | BO68: 66 | BP68: 65 | BQ68: 58 | BR68: 51 | BS68: 71 | BT68: 76 | BU68: 55 | BV68: 51 | BW68: 47 | BX68: 35 | BY68: 35 | BZ68: 33 | CA68: 31 | CB68: 31 | CC68: 22 | CD68: 21 | CE68: 23 | CF68: 41 | CG68: 44 | CH68: 22 | CI68: 10 | CJ68: 7 | CK68: 36 | CL68: 34 | CM68: 6 | CN68: 8 | CO68: 32 | CP68: 77 | CQ68: 49 | CR68: 1 | CS68: 2 | CT68: 1 | CU68: 3 | CV68: 3 | CW68: 0 | CX68: 0 | CY68: 0 | CZ68: 0 | DA68: 0 | DB68: 0 | DC68: 0 | DD68: 0 | DE68: 0 | DF68: 0 | DG68: 0 | DH68: 0 | DI68: 0 | DJ68: 0 | DK68: 0 | DL68: 0 | DM68: 0 | DN68: 0 | DO68: 0 | DP68: 0 | DQ68: 0 | DR68: 0 | DS68: 0 | DT68: 0 | DU68: 0 | DV68: 0 | DW68: 0 | DX68: 0 | DY68: 0 | DZ68: 0 | EA68: 0 | EB68: 0 | EC68: 0 | ED68: 0 | EE68: 0 | EF68: 0 | EG68: 0 | EH68: 0 | EI68: 0
A69: ED_ASS521_00059 | C69: Pole Mounted ; < = 22kV ; > 600 kVA ; Multiple Phase | E69: DNSP NAME | F69: REPEX | G69: TRANSFORMERS | H69: Pole Mounted ; < = 22kV ; > 600 kVA ; Multiple Phase | I69: DESCRIPTOR METRIC | J69: MEAN ECONOMIC LIFE | K69: YEARS | L69: NUMBER | N69: 55 | Y69: 7.416198487 | AJ69: 0 | AK69: 0 | AL69: 0 | AM69: 1 | AN69: 1 | AO69: 0 | AP69: 0 | AQ69: 0 | AR69: 0 | AS69: 0 | AT69: 0 | AU69: 1 | AV69: 1 | AW69: 1 | AX69: 0 | AY69: 0 | AZ69: 0 | BA69: 0 | BB69: 0 | BC69: 0 | BD69: 0 | BE69: 0 | BF69: 0 | BG69: 0 | BH69: 0 | BI69: 0 | BJ69: 0 | BK69: 0 | BL69: 0 | BM69: 0 | BN69: 0 | BO69: 0 | BP69: 1 | BQ69: 1 | BR69: 0 | BS69: 0 | BT69: 0 | BU69: 1 | BV69: 1 | BW69: 1 | BX69: 0 | BY69: 0 | BZ69: 0 | CA69: 4 | CB69: 4 | CC69: 0 | CD69: 0 | CE69: 0 | CF69: 0 | CG69: 0 | CH69: 1 | CI69: 2 | CJ69: 1 | CK69: 1 | CL69: 1 | CM69: 0 | CN69: 0 | CO69: 1 | CP69: 2 | CQ69: 1 | CR69: 0 | CS69: 0 | CT69: 0 | CU69: 0 | CV69: 0 | CW69: 0 | CX69: 0 | CY69: 0 | CZ69: 0 | DA69: 0 | DB69: 0 | DC69: 0 | DD69: 0 | DE69: 0 | DF69: 0 | DG69: 0 | DH69: 0 | DI69: 0 | DJ69: 0 | DK69: 0 | DL69: 0 | DM69: 0 | DN69: 0 | DO69: 0 | DP69: 0 | DQ69: 0 | DR69: 0 | DS69: 0 | DT69: 0 | DU69: 0 | DV69: 0 | DW69: 0 | DX69: 0 | DY69: 0 | DZ69: 0 | EA69: 0 | EB69: 0 | EC69: 0 | ED69: 0 | EE69: 0 | EF69: 0 | EG69: 0 | EH69: 0 | EI69: 0
A70: ED_ASS521_00060 | C70: Kiosk Mounted ; < = 22kV ; < = 60 kVA ; Single Phase | N70: 50 | Y70: 7.071067812 | AJ70: 0 | AK70: 1 | AL70: 2 | AM70: 2 | AN70: 1 | AO70: 4 | AP70: 8 | AQ70: 9 | AR70: 10 | AS70: 7 | AT70: 6 | AU70: 8 | AV70: 5 | AW70: 3 | AX70: 7 | AY70: 8 | AZ70: 8 | BA70: 9 | BB70: 9 | BC70: 10 | BD70: 12 | BE70: 14 | BF70: 16 | BG70: 17 | BH70: 14 | BI70: 19 | BJ70: 31 | BK70: 25 | BL70: 8 | BM70: 4 | BN70: 2 | BO70: 1 | BP70: 1 | BQ70: 1 | BR70: 1 | BS70: 1 | BT70: 1 | BU70: 0 | BV70: 0 | BW70: 0 | BX70: 1 | BY70: 1 | BZ70: 0 | CA70: 2 | CB70: 2 | CC70: 0 | CD70: 0 | CE70: 0 | CF70: 1 | CG70: 1 | CH70: 2 | CI70: 2 | CJ70: 1 | CK70: 2 | CL70: 2 | CM70: 0 | CN70: 0 | CO70: 2 | CP70: 3 | CQ70: 2 | CR70: 1 | CS70: 0 | CT70: 0 | CU70: 0 | CV70: 0 | CW70: 0 | CX70: 0 | CY70: 0 | CZ70: 0 | DA70: 0 | DB70: 0 | DC70: 0 | DD70: 0 | DE70: 0 | DF70: 0 | DG70: 0 | DH70: 0 | DI70: 0 | DJ70: 0 | DK70: 0 | DL70: 0 | DM70: 0 | DN70: 0 | DO70: 0 | DP70: 0 | DQ70: 0 | DR70: 0 | DS70: 0 | DT70: 0 | DU70: 0 | DV70: 0 | DW70: 0 | DX70: 0 | DY70: 0 | DZ70: 0 | EA70: 0 | EB70: 0 | EC70: 0 | ED70: 0 | EE70: 0 | EF70: 0 | EG70: 0 | EH70: 0 | EI70: 0
A71: ED_ASS521_00061 | C71: Kiosk Mounted ; < = 22kV ; > 60 kVA and < = 600 kVA ; Single Phase | N71: 50 | Y71: 7.071067812 | AJ71: 0 | AK71: 13 | AL71: 27 | AM71: 41 | AN71: 134 | AO71: 263 | AP71: 245 | AQ71: 210 | AR71: 253 | AS71: 263 | AT71: 238 | AU71: 218 | AV71: 172 | AW71: 153 | AX71: 167 | AY71: 171 | AZ71: 143 | BA71: 115 | BB71: 163 | BC71: 229 | BD71: 233 | BE71: 199 | BF71: 243 | BG71: 321 | BH71: 347 | BI71: 305 | BJ71: 277 | BK71: 341 | BL71: 378 | BM71: 304 | BN71: 190 | BO71: 162 | BP71: 158 | BQ71: 132 | BR71: 134 | BS71: 201 | BT71: 268 | BU71: 230 | BV71: 188 | BW71: 153 | BX71: 86 | BY71: 48 | BZ71: 43 | CA71: 38 | CB71: 21 | CC71: 6 | CD71: 17 | CE71: 30 | CF71: 79 | CG71: 80 | CH71: 32 | CI71: 31 | CJ71: 22 | CK71: 69 | CL71: 67 | CM71: 9 | CN71: 16 | CO71: 50 | CP71: 104 | CQ71: 63 | CR71: 4 | CS71: 6 | CT71: 2 | CU71: 5 | CV71: 5 | CW71: 0 | CX71: 0 | CY71: 0 | CZ71: 0 | DA71: 0 | DB71: 0 | DC71: 0 | DD71: 0 | DE71: 0 | DF71: 0 | DG71: 0 | DH71: 0 | DI71: 0 | DJ71: 0 | DK71: 0 | DL71: 0 | DM71: 0 | DN71: 0 | DO71: 0 | DP71: 0 | DQ71: 0 | DR71: 0 | DS71: 0 | DT71: 0 | DU71: 0 | DV71: 0 | DW71: 0 | DX71: 0 | DY71: 0 | DZ71: 0 | EA71: 0 | EB71: 0 | EC71: 0 | ED71: 0 | EE71: 0 | EF71: 0 | EG71: 0 | EH71: 0 | EI71: 0
A72: ED_ASS521_00062 | C72: Kiosk Mounted ; < = 22kV ; > 600 kVA ; Single Phase | N72: 50 | Y72: 7.071067812 | AJ72: 0 | AK72: 2 | AL72: 1 | AM72: 0 | AN72: 11 | AO72: 33 | AP72: 39 | AQ72: 40 | AR72: 53 | AS72: 60 | AT72: 61 | AU72: 50 | AV72: 38 | AW72: 40 | AX72: 48 | AY72: 53 | AZ72: 36 | BA72: 20 | BB72: 23 | BC72: 27 | BD72: 31 | BE72: 25 | BF72: 18 | BG72: 28 | BH72: 35 | BI72: 34 | BJ72: 27 | BK72: 27 | BL72: 28 | BM72: 15 | BN72: 10 | BO72: 17 | BP72: 14 | BQ72: 9 | BR72: 10 | BS72: 17 | BT72: 22 | BU72: 11 | BV72: 3 | BW72: 8 | BX72: 9 | BY72: 17 | BZ72: 17 | CA72: 7 | CB72: 5 | CC72: 5 | CD72: 4 | CE72: 7 | CF72: 12 | CG72: 8 | CH72: 5 | CI72: 23 | CJ72: 23 | CK72: 19 | CL72: 17 | CM72: 4 | CN72: 5 | CO72: 21 | CP72: 33 | CQ72: 15 | CR72: 1 | CS72: 2 | CT72: 1 | CU72: 6 | CV72: 6 | CW72: 0 | CX72: 0 | CY72: 0 | CZ72: 0 | DA72: 0 | DB72: 0 | DC72: 0 | DD72: 0 | DE72: 1 | DF72: 1 | DG72: 0 | DH72: 0 | DI72: 0 | DJ72: 0 | DK72: 0 | DL72: 0 | DM72: 0 | DN72: 0 | DO72: 0 | DP72: 0 | DQ72: 0 | DR72: 0 | DS72: 0 | DT72: 0 | DU72: 0 | DV72: 0 | DW72: 0 | DX72: 0 | DY72: 0 | DZ72: 0 | EA72: 0 | EB72: 0 | EC72: 0 | ED72: 0 | EE72: 0 | EF72: 0 | EG72: 0 | EH72: 0 | EI72: 0
A73: ED_ASS521_00063 | C73: Kiosk Mounted ; < = 22kV ; < = 60 kVA ; Multiple Phase | N73: 50 | Y73: 7.071067812 | AJ73: 6 | AK73: 0 | AL73: 0 | AM73: 0 | AN73: 0 | AO73: 0 | AP73: 0 | AQ73: 0 | AR73: 0 | AS73: 0 | AT73: 0 | AU73: 0 | AV73: 0 | AW73: 0 | AX73: 0 | AY73: 0 | AZ73: 0 | BA73: 0 | BB73: 0 | BC73: 0 | BD73: 0 | BE73: 0 | BF73: 0 | BG73: 0 | BH73: 0 | BI73: 1 | BJ73: 1 | BK73: 1 | BL73: 0 | BM73: 0 | BN73: 0 | BO73: 0 | BP73: 0 | BQ73: 0 | BR73: 0 | BS73: 0 | BT73: 0 | BU73: 0 | BV73: 0 | BW73: 0 | BX73: 0 | BY73: 0 | BZ73: 0 | CA73: 0 | CB73: 0 | CC73: 0 | CD73: 0 | CE73: 0 | CF73: 0 | CG73: 0 | CH73: 0 | CI73: 1 | CJ73: 1 | CK73: 1 | CL73: 1 | CM73: 0 | CN73: 0 | CO73: 1 | CP73: 2 | CQ73: 1 | CR73: 0 | CS73: 0 | CT73: 0 | CU73: 0 | CV73: 0 | CW73: 0 | CX73: 0 | CY73: 0 | CZ73: 0 | DA73: 0 | DB73: 0 | DC73: 0 | DD73: 0 | DE73: 0 | DF73: 0 | DG73: 0 | DH73: 0 | DI73: 0 | DJ73: 0 | DK73: 0 | DL73: 0 | DM73: 0 | DN73: 0 | DO73: 0 | DP73: 0 | DQ73: 0 | DR73: 0 | DS73: 0 | DT73: 0 | DU73: 0 | DV73: 0 | DW73: 0 | DX73: 0 | DY73: 0 | DZ73: 0 | EA73: 0 | EB73: 0 | EC73: 0 | ED73: 0 | EE73: 0 | EF73: 0 | EG73: 0 | EH73: 0 | EI73: 0
A74: ED_ASS521_00064 | C74: Kiosk Mounted ; < = 22kV ; > 60 kVA and < = 600 kVA ; Multiple Phase | N74: 50 | Y74: 7.071067812 | AJ74: 193 | AK74: 82 | AL74: 163 | AM74: 237 | AN74: 174 | AO74: 46 | AP74: 23 | AQ74: 31 | AR74: 22 | AS74: 16 | AT74: 5 | AU74: 7 | AV74: 7 | AW74: 4 | AX74: 2 | AY74: 2 | AZ74: 23 | BA74: 23 | BB74: 28 | BC74: 52 | BD74: 47 | BE74: 56 | BF74: 61 | BG74: 42 | BH74: 33 | BI74: 35 | BJ74: 35 | BK74: 43 | BL74: 52 | BM74: 41 | BN74: 24 | BO74: 27 | BP74: 28 | BQ74: 25 | BR74: 24 | BS74: 21 | BT74: 23 | BU74: 24 | BV74: 25 | BW74: 20 | BX74: 16 | BY74: 9 | BZ74: 3 | CA74: 11 | CB74: 10 | CC74: 2 | CD74: 4 | CE74: 7 | CF74: 17 | CG74: 15 | CH74: 3 | CI74: 6 | CJ74: 6 | CK74: 15 | CL74: 16 | CM74: 2 | CN74: 5 | CO74: 11 | CP74: 22 | CQ74: 14 | CR74: 1 | CS74: 1 | CT74: 1 | CU74: 1 | CV74: 1 | CW74: 0 | CX74: 0 | CY74: 0 | CZ74: 0 | DA74: 0 | DB74: 0 | DC74: 0 | DD74: 0 | DE74: 0 | DF74: 0 | DG74: 0 | DH74: 0 | DI74: 0 | DJ74: 0 | DK74: 0 | DL74: 0 | DM74: 0 | DN74: 0 | DO74: 0 | DP74: 0 | DQ74: 0 | DR74: 0 | DS74: 0 | DT74: 0 | DU74: 0 | DV74: 0 | DW74: 0 | DX74: 0 | DY74: 0 | DZ74: 0 | EA74: 0 | EB74: 0 | EC74: 0 | ED74: 0 | EE74: 0 | EF74: 0 | EG74: 0 | EH74: 0 | EI74: 0
A75: ED_ASS521_00065 | C75: Kiosk Mounted ; < = 22kV ; > 600 kVA ; Multiple Phase | N75: 50 | Y75: 7.071067812 | AJ75: 38 | AK75: 23 | AL75: 33 | AM75: 41 | AN75: 28 | AO75: 7 | AP75: 7 | AQ75: 8 | AR75: 3 | AS75: 1 | AT75: 1 | AU75: 2 | AV75: 3 | AW75: 3 | AX75: 1 | AY75: 0 | AZ75: 5 | BA75: 5 | BB75: 4 | BC75: 6 | BD75: 5 | BE75: 4 | BF75: 4 | BG75: 5 | BH75: 5 | BI75: 1 | BJ75: 2 | BK75: 3 | BL75: 3 | BM75: 2 | BN75: 1 | BO75: 3 | BP75: 4 | BQ75: 4 | BR75: 3 | BS75: 2 | BT75: 3 | BU75: 2 | BV75: 0 | BW75: 0 | BX75: 0 | BY75: 2 | BZ75: 2 | CA75: 1 | CB75: 1 | CC75: 0 | CD75: 2 | CE75: 2 | CF75: 3 | CG75: 3 | CH75: 1 | CI75: 4 | CJ75: 4 | CK75: 2 | CL75: 2 | CM75: 0 | CN75: 0 | CO75: 3 | CP75: 7 | CQ75: 4 | CR75: 0 | CS75: 0 | CT75: 0 | CU75: 1 | CV75: 1 | CW75: 0 | CX75: 0 | CY75: 0 | CZ75: 0 | DA75: 0 | DB75: 0 | DC75: 0 | DD75: 0 | DE75: 0 | DF75: 0 | DG75: 0 | DH75: 0 | DI75: 0 | DJ75: 0 | DK75: 0 | DL75: 0 | DM75: 0 | DN75: 0 | DO75: 0 | DP75: 0 | DQ75: 0 | DR75: 0 | DS75: 0 | DT75: 0 | DU75: 0 | DV75: 0 | DW75: 0 | DX75: 0 | DY75: 0 | DZ75: 0 | EA75: 0 | EB75: 0 | EC75: 0 | ED75: 0 | EE75: 0 | EF75: 0 | EG75: 0 | EH75: 0 | EI75: 0
A76: ED_ASS521_00066 | C76: Ground Outdoor / Indoor Chamber Mounted; ˂ 22 kV ; < = 60 kVA ; Single Phase | N76: 50 | Y76: 7.071067812 | AJ76: 0 | AK76: 0 | AL76: 0 | AM76: 0 | AN76: 0 | AO76: 0 | AP76: 0 | AQ76: 0 | AR76: 0 | AS76: 0 | AT76: 0 | AU76: 0 | AV76: 0 | AW76: 0 | AX76: 0 | AY76: 0 | AZ76: 0 | BA76: 0 | BB76: 0 | BC76: 0 | BD76: 0 | BE76: 0 | BF76: 0 | BG76: 0 | BH76: 0 | BI76: 0 | BJ76: 1 | BK76: 2 | BL76: 1 | BM76: 0 | BN76: 0 | BO76: 0 | BP76: 0 | BQ76: 0 | BR76: 0 | BS76: 0 | BT76: 0 | BU76: 0 | BV76: 0 | BW76: 0 | BX76: 0 | BY76: 1 | BZ76: 1 | CA76: 0 | CB76: 0 | CC76: 0 | CD76: 0 | CE76: 0 | CF76: 0 | CG76: 0 | CH76: 0 | CI76: 0 | CJ76: 1 | CK76: 1 | CL76: 1 | CM76: 0 | CN76: 0 | CO76: 0 | CP76: 1 | CQ76: 1 | CR76: 0 | CS76: 0 | CT76: 0 | CU76: 0 | CV76: 0 | CW76: 0 | CX76: 0 | CY76: 0 | CZ76: 0 | DA76: 0 | DB76: 0 | DC76: 0 | DD76: 0 | DE76: 0 | DF76: 0 | DG76: 0 | DH76: 0 | DI76: 0 | DJ76: 0 | DK76: 0 | DL76: 0 | DM76: 0 | DN76: 0 | DO76: 0 | DP76: 0 | DQ76: 0 | DR76: 0 | DS76: 0 | DT76: 0 | DU76: 0 | DV76: 0 | DW76: 0 | DX76: 0 | DY76: 0 | DZ76: 0 | EA76: 0 | EB76: 0 | EC76: 0 | ED76: 0 | EE76: 0 | EF76: 0 | EG76: 0 | EH76: 0 | EI76: 0
A77: ED_ASS521_00067 | C77: Ground Outdoor / Indoor Chamber Mounted; ˂ 22 kV ; > 60 kVA and < = 600 kVA ; Single Phase | N77: 50 | Y77: 7.071067812 | AJ77: 0 | AK77: 0 | AL77: 0 | AM77: 0 | AN77: 1 | AO77: 2 | AP77: 1 | AQ77: 2 | AR77: 2 | AS77: 1 | AT77: 1 | AU77: 1 | AV77: 2 | AW77: 3 | AX77: 5 | AY77: 4 | AZ77: 4 | BA77: 2 | BB77: 1 | BC77: 1 | BD77: 1 | BE77: 2 | BF77: 3 | BG77: 2 | BH77: 2 | BI77: 3 | BJ77: 5 | BK77: 7 | BL77: 9 | BM77: 9 | BN77: 7 | BO77: 15 | BP77: 17 | BQ77: 8 | BR77: 4 | BS77: 2 | BT77: 3 | BU77: 6 | BV77: 25 | BW77: 27 | BX77: 12 | BY77: 20 | BZ77: 21 | CA77: 17 | CB77: 17 | CC77: 17 | CD77: 17 | CE77: 14 | CF77: 14 | CG77: 10 | CH77: 5 | CI77: 4 | CJ77: 3 | CK77: 5 | CL77: 4 | CM77: 1 | CN77: 3 | CO77: 5 | CP77: 6 | CQ77: 3 | CR77: 0 | CS77: 0 | CT77: 0 | CU77: 1 | CV77: 1 | CW77: 0 | CX77: 0 | CY77: 0 | CZ77: 0 | DA77: 0 | DB77: 0 | DC77: 0 | DD77: 0 | DE77: 0 | DF77: 0 | DG77: 0 | DH77: 0 | DI77: 0 | DJ77: 0 | DK77: 0 | DL77: 0 | DM77: 0 | DN77: 0 | DO77: 0 | DP77: 0 | DQ77: 0 | DR77: 0 | DS77: 0 | DT77: 0 | DU77: 0 | DV77: 0 | DW77: 0 | DX77: 0 | DY77: 0 | DZ77: 0 | EA77: 0 | EB77: 0 | EC77: 0 | ED77: 0 | EE77: 0 | EF77: 0 | EG77: 0 | EH77: 0 | EI77: 0
A78: ED_ASS521_00068 | C78: Ground Outdoor / Indoor Chamber Mounted; ˂ 22 kV ; > 600 kVA ; Single Phase | N78: 50 | Y78: 7.071067812 | AJ78: 0 | AK78: 0 | AL78: 0 | AM78: 0 | AN78: 0 | AO78: 0 | AP78: 0 | AQ78: 0 | AR78: 0 | AS78: 0 | AT78: 1 | AU78: 2 | AV78: 2 | AW78: 2 | AX78: 1 | AY78: 1 | AZ78: 2 | BA78: 2 | BB78: 4 | BC78: 5 | BD78: 4 | BE78: 3 | BF78: 3 | BG78: 2 | BH78: 5 | BI78: 5 | BJ78: 4 | BK78: 8 | BL78: 7 | BM78: 6 | BN78: 7 | BO78: 9 | BP78: 9 | BQ78: 8 | BR78: 7 | BS78: 3 | BT78: 3 | BU78: 4 | BV78: 7 | BW78: 7 | BX78: 5 | BY78: 3 | BZ78: 1 | CA78: 5 | CB78: 6 | CC78: 4 | CD78: 5 | CE78: 4 | CF78: 2 | CG78: 0 | CH78: 0 | CI78: 7 | CJ78: 8 | CK78: 2 | CL78: 2 | CM78: 0 | CN78: 0 | CO78: 2 | CP78: 2 | CQ78: 0 | CR78: 0 | CS78: 1 | CT78: 1 | CU78: 2 | CV78: 2 | CW78: 0 | CX78: 0 | CY78: 0 | CZ78: 0 | DA78: 0 | DB78: 0 | DC78: 0 | DD78: 0 | DE78: 0 | DF78: 0 | DG78: 0 | DH78: 0 | DI78: 0 | DJ78: 0 | DK78: 0 | DL78: 0 | DM78: 0 | DN78: 0 | DO78: 0 | DP78: 0 | DQ78: 0 | DR78: 0 | DS78: 0 | DT78: 0 | DU78: 0 | DV78: 0 | DW78: 0 | DX78: 0 | DY78: 0 | DZ78: 0 | EA78: 0 | EB78: 0 | EC78: 0 | ED78: 0 | EE78: 0 | EF78: 0 | EG78: 0 | EH78: 0 | EI78: 0
A79: ED_ASS521_00069 | C79: Ground Outdoor / Indoor Chamber Mounted; ˂ 22 kV ; < = 60 kVA ; Multiple Phase | N79: 50 | Y79: 7.071067812 | AJ79: 0 | AK79: 0 | AL79: 0 | AM79: 0 | AN79: 0 | AO79: 0 | AP79: 0 | AQ79: 0 | AR79: 0 | AS79: 0 | AT79: 0 | AU79: 0 | AV79: 0 | AW79: 0 | AX79: 0 | AY79: 0 | AZ79: 0 | BA79: 0 | BB79: 0 | BC79: 0 | BD79: 0 | BE79: 0 | BF79: 0 | BG79: 0 | BH79: 0 | BI79: 0 | BJ79: 0 | BK79: 0 | BL79: 0 | BM79: 0 | BN79: 0 | BO79: 0 | BP79: 0 | BQ79: 0 | BR79: 0 | BS79: 0 | BT79: 0 | BU79: 0 | BV79: 0 | BW79: 0 | BX79: 0 | BY79: 0 | BZ79: 0 | CA79: 0 | CB79: 0 | CC79: 0 | CD79: 0 | CE79: 0 | CF79: 0 | CG79: 0 | CH79: 0 | CI79: 0 | CJ79: 0 | CK79: 0 | CL79: 0 | CM79: 0 | CN79: 0 | CO79: 0 | CP79: 0 | CQ79: 0 | CR79: 0 | CS79: 0 | CT79: 0 | CU79: 0 | CV79: 0 | CW79: 0 | CX79: 0 | CY79: 0 | CZ79: 0 | DA79: 0 | DB79: 0 | DC79: 0 | DD79: 0 | DE79: 0 | DF79: 0 | DG79: 0 | DH79: 0 | DI79: 0 | DJ79: 0 | DK79: 0 | DL79: 0 | DM79: 0 | DN79: 0 | DO79: 0 | DP79: 0 | DQ79: 0 | DR79: 0 | DS79: 0 | DT79: 0 | DU79: 0 | DV79: 0 | DW79: 0 | DX79: 0 | DY79: 0 | DZ79: 0 | EA79: 0 | EB79: 0 | EC79: 0 | ED79: 0 | EE79: 0 | EF79: 0 | EG79: 0 | EH79: 0 | EI79: 0
A80: ED_ASS521_00070 | C80: Ground Outdoor / Indoor Chamber Mounted; ˂ 22 kV ; > 60 kVA and < = 600 kVA ; Multiple Phase | N80: 64 | Y80: 8 | AJ80: 0 | AK80: 0 | AL80: 0 | AM80: 0 | AN80: 0 | AO80: 0 | AP80: 1 | AQ80: 1 | AR80: 0 | AS80: 0 | AT80: 0 | AU80: 0 | AV80: 0 | AW80: 0 | AX80: 0 | AY80: 0 | AZ80: 0 | BA80: 0 | BB80: 0 | BC80: 0 | BD80: 0 | BE80: 0 | BF80: 0 | BG80: 0 | BH80: 0 | BI80: 0 | BJ80: 0 | BK80: 0 | BL80: 0 | BM80: 0 | BN80: 0 | BO80: 0 | BP80: 0 | BQ80: 0 | BR80: 0 | BS80: 0 | BT80: 0 | BU80: 0 | BV80: 0 | BW80: 0 | BX80: 0 | BY80: 0 | BZ80: 0 | CA80: 0 | CB80: 0 | CC80: 1 | CD80: 0 | CE80: 0 | CF80: 0 | CG80: 0 | CH80: 0 | CI80: 0 | CJ80: 0 | CK80: 0 | CL80: 2 | CM80: 0 | CN80: 0 | CO80: 0 | CP80: 0 | CQ80: 0 | CR80: 0 | CS80: 1 | CT80: 1 | CU80: 0 | CV80: 0 | CW80: 0 | CX80: 0 | CY80: 0 | CZ80: 0 | DA80: 0 | DB80: 0 | DC80: 0 | DD80: 0 | DE80: 0 | DF80: 0 | DG80: 0 | DH80: 0 | DI80: 0 | DJ80: 0 | DK80: 0 | DL80: 0 | DM80: 0 | DN80: 0 | DO80: 0 | DP80: 0 | DQ80: 0 | DR80: 0 | DS80: 0 | DT80: 0 | DU80: 0 | DV80: 0 | DW80: 0 | DX80: 0 | DY80: 0 | DZ80: 0 | EA80: 0 | EB80: 0 | EC80: 0 | ED80: 0 | EE80: 0 | EF80: 0 | EG80: 0 | EH80: 0 | EI80: 0
A81: ED_ASS521_00071 | C81: Ground Outdoor / Indoor Chamber Mounted; ˂ 22 kV ; > 600 kVA ; Multiple Phase | N81: 64 | Y81: 8 | AJ81: 0 | AK81: 0 | AL81: 0 | AM81: 0 | AN81: 0 | AO81: 0 | AP81: 0 | AQ81: 3 | AR81: 0 | AS81: 0 | AT81: 0 | AU81: 0 | AV81: 0 | AW81: 0 | AX81: 2 | AY81: 0 | AZ81: 0 | BA81: 0 | BB81: 0 | BC81: 0 | BD81: 0 | BE81: 0 | BF81: 2 | BG81: 0 | BH81: 0 | BI81: 4 | BJ81: 2 | BK81: 0 | BL81: 8 | BM81: 0 | BN81: 5 | BO81: 1 | BP81: 2 | BQ81: 2 | BR81: 3 | BS81: 3 | BT81: 4 | BU81: 1 | BV81: 2 | BW81: 2 | BX81: 1 | BY81: 1 | BZ81: 11 | CA81: 5 | CB81: 2 | CC81: 1 | CD81: 5 | CE81: 4 | CF81: 2 | CG81: 7 | CH81: 1 | CI81: 1 | CJ81: 1 | CK81: 0 | CL81: 0 | CM81: 0 | CN81: 0 | CO81: 0 | CP81: 0 | CQ81: 0 | CR81: 0 | CS81: 0 | CT81: 0 | CU81: 0 | CV81: 0 | CW81: 0 | CX81: 0 | CY81: 1 | CZ81: 0 | DA81: 0 | DB81: 0 | DC81: 0 | DD81: 0 | DE81: 0 | DF81: 0 | DG81: 0 | DH81: 0 | DI81: 0 | DJ81: 0 | DK81: 0 | DL81: 0 | DM81: 0 | DN81: 0 | DO81: 0 | DP81: 0 | DQ81: 0 | DR81: 0 | DS81: 0 | DT81: 0 | DU81: 0 | DV81: 0 | DW81: 0 | DX81: 0 | DY81: 0 | DZ81: 0 | EA81: 0 | EB81: 0 | EC81: 0 | ED81: 0 | EE81: 0 | EF81: 0 | EG81: 0 | EH81: 0 | EI81: 0
A82: ED_ASS521_00072 | C82: Ground Outdoor / Indoor Chamber Mounted; > = 22 kV & < = 33 kV ; < = 15 MVA | N82: 64 | Y82: 8 | AJ82: 1 | AK82: 6 | AL82: 10 | AM82: 6 | AN82: 7 | AO82: 4 | AP82: 3 | AQ82: 5 | AR82: 2 | AS82: 3 | AT82: 6 | AU82: 4 | AV82: 11 | AW82: 15 | AX82: 8 | AY82: 3 | AZ82: 5 | BA82: 3 | BB82: 5 | BC82: 2 | BD82: 2 | BE82: 1 | BF82: 15 | BG82: 5 | BH82: 5 | BI82: 11 | BJ82: 38 | BK82: 4 | BL82: 10 | BM82: 1 | BN82: 11 | BO82: 20 | BP82: 2 | BQ82: 4 | BR82: 5 | BS82: 5 | BT82: 2 | BU82: 8 | BV82: 8 | BW82: 15 | BX82: 2 | BY82: 4 | BZ82: 1 | CA82: 5 | CB82: 21 | CC82: 4 | CD82: 1 | CE82: 17 | CF82: 11 | CG82: 1 | CH82: 7 | CI82: 9 | CJ82: 7 | CK82: 3 | CL82: 1 | CM82: 5 | CN82: 6 | CO82: 16 | CP82: 13 | CQ82: 8 | CR82: 3 | CS82: 1 | CT82: 6 | CU82: 1 | CV82: 2 | CW82: 0 | CX82: 2 | CY82: 0 | CZ82: 0 | DA82: 0 | DB82: 0 | DC82: 0 | DD82: 0 | DE82: 0 | DF82: 0 | DG82: 0 | DH82: 0 | DI82: 0 | DJ82: 0 | DK82: 0 | DL82: 0 | DM82: 0 | DN82: 0 | DO82: 0 | DP82: 0 | DQ82: 0 | DR82: 0 | DS82: 0 | DT82: 0 | DU82: 0 | DV82: 0 | DW82: 0 | DX82: 0 | DY82: 0 | DZ82: 0 | EA82: 0 | EB82: 0 | EC82: 0 | ED82: 0 | EE82: 0 | EF82: 0 | EG82: 0 | EH82: 0 | EI82: 0
A83: ED_ASS521_00073 | C83: Ground Outdoor / Indoor Chamber Mounted; > = 22 kV & < = 33 kV ; > 15 MVA and < = 40 MVA | N83: 64 | Y83: 8 | AJ83: 1 | AK83: 0 | AL83: 0 | AM83: 0 | AN83: 0 | AO83: 0 | AP83: 0 | AQ83: 0 | AR83: 1 | AS83: 0 | AT83: 0 | AU83: 0 | AV83: 1 | AW83: 0 | AX83: 0 | AY83: 0 | AZ83: 0 | BA83: 0 | BB83: 0 | BC83: 0 | BD83: 0 | BE83: 0 | BF83: 0 | BG83: 0 | BH83: 0 | BI83: 0 | BJ83: 1 | BK83: 0 | BL83: 0 | BM83: 0 | BN83: 0 | BO83: 1 | BP83: 0 | BQ83: 0 | BR83: 0 | BS83: 0 | BT83: 0 | BU83: 0 | BV83: 0 | BW83: 0 | BX83: 0 | BY83: 0 | BZ83: 0 | CA83: 0 | CB83: 0 | CC83: 0 | CD83: 0 | CE83: 0 | CF83: 0 | CG83: 0 | CH83: 0 | CI83: 0 | CJ83: 0 | CK83: 0 | CL83: 0 | CM83: 0 | CN83: 0 | CO83: 0 | CP83: 0 | CQ83: 0 | CR83: 0 | CS83: 0 | CT83: 0 | CU83: 0 | CV83: 0 | CW83: 0 | CX83: 0 | CY83: 0 | CZ83: 0 | DA83: 0 | DB83: 0 | DC83: 0 | DD83: 0 | DE83: 0 | DF83: 0 | DG83: 0 | DH83: 0 | DI83: 0 | DJ83: 0 | DK83: 0 | DL83: 0 | DM83: 0 | DN83: 0 | DO83: 0 | DP83: 0 | DQ83: 0 | DR83: 0 | DS83: 0 | DT83: 0 | DU83: 0 | DV83: 0 | DW83: 0 | DX83: 0 | DY83: 0 | DZ83: 0 | EA83: 0 | EB83: 0 | EC83: 0 | ED83: 0 | EE83: 0 | EF83: 0 | EG83: 0 | EH83: 0 | EI83: 0
A84: ED_ASS521_00074 | C84: Ground Outdoor / Indoor Chamber Mounted; > = 22 kV & < = 33 kV ; > 40 MVA | N84: 0 | Y84: 0 | AJ84: 0 | AK84: 0 | AL84: 0 | AM84: 0 | AN84: 0 | AO84: 0 | AP84: 0 | AQ84: 0 | AR84: 0 | AS84: 0 | AT84: 0 | AU84: 0 | AV84: 0 | AW84: 0 | AX84: 0 | AY84: 0 | AZ84: 0 | BA84: 0 | BB84: 0 | BC84: 0 | BD84: 0 | BE84: 0 | BF84: 0 | BG84: 0 | BH84: 0 | BI84: 0 | BJ84: 0 | BK84: 0 | BL84: 0 | BM84: 0 | BN84: 0 | BO84: 0 | BP84: 0 | BQ84: 0 | BR84: 0 | BS84: 0 | BT84: 0 | BU84: 0 | BV84: 0 | BW84: 0 | BX84: 0 | BY84: 0 | BZ84: 0 | CA84: 0 | CB84: 0 | CC84: 0 | CD84: 0 | CE84: 0 | CF84: 0 | CG84: 0 | CH84: 0 | CI84: 0 | CJ84: 0 | CK84: 0 | CL84: 0 | CM84: 0 | CN84: 0 | CO84: 0 | CP84: 0 | CQ84: 0 | CR84: 0 | CS84: 0 | CT84: 0 | CU84: 0 | CV84: 0 | CW84: 0 | CX84: 0 | CY84: 0 | CZ84: 0 | DA84: 0 | DB84: 0 | DC84: 0 | DD84: 0 | DE84: 0 | DF84: 0 | DG84: 0 | DH84: 0 | DI84: 0 | DJ84: 0 | DK84: 0 | DL84: 0 | DM84: 0 | DN84: 0 | DO84: 0 | DP84: 0 | DQ84: 0 | DR84: 0 | DS84: 0 | DT84: 0 | DU84: 0 | DV84: 0 | DW84: 0 | DX84: 0 | DY84: 0 | DZ84: 0 | EA84: 0 | EB84: 0 | EC84: 0 | ED84: 0 | EE84: 0 | EF84: 0 | EG84: 0 | EH84: 0 | EI84: 0
A85: ED_ASS521_00075 | C85: Ground Outdoor / Indoor Chamber Mounted; > 33 kV & < = 66 kV ; < = 15 MVA | N85: 64 | Y85: 8 | AJ85: 1 | AK85: 0 | AL85: 0 | AM85: 4 | AN85: 3 | AO85: 0 | AP85: 4 | AQ85: 0 | AR85: 0 | AS85: 0 | AT85: 1 | AU85: 0 | AV85: 0 | AW85: 5 | AX85: 0 | AY85: 1 | AZ85: 0 | BA85: 0 | BB85: 0 | BC85: 0 | BD85: 0 | BE85: 0 | BF85: 3 | BG85: 1 | BH85: 2 | BI85: 1 | BJ85: 2 | BK85: 5 | BL85: 0 | BM85: 0 | BN85: 9 | BO85: 0 | BP85: 0 | BQ85: 1 | BR85: 0 | BS85: 5 | BT85: 5 | BU85: 0 | BV85: 0 | BW85: 3 | BX85: 0 | BY85: 0 | BZ85: 3 | CA85: 0 | CB85: 11 | CC85: 7 | CD85: 5 | CE85: 8 | CF85: 5 | CG85: 5 | CH85: 19 | CI85: 5 | CJ85: 14 | CK85: 5 | CL85: 0 | CM85: 2 | CN85: 5 | CO85: 0 | CP85: 2 | CQ85: 6 | CR85: 2 | CS85: 0 | CT85: 2 | CU85: 1 | CV85: 0 | CW85: 0 | CX85: 0 | CY85: 0 | CZ85: 0 | DA85: 0 | DB85: 0 | DC85: 1 | DD85: 0 | DE85: 0 | DF85: 0 | DG85: 0 | DH85: 0 | DI85: 0 | DJ85: 0 | DK85: 0 | DL85: 0 | DM85: 0 | DN85: 0 | DO85: 0 | DP85: 0 | DQ85: 0 | DR85: 0 | DS85: 0 | DT85: 0 | DU85: 0 | DV85: 0 | DW85: 0 | DX85: 0 | DY85: 0 | DZ85: 0 | EA85: 0 | EB85: 0 | EC85: 0 | ED85: 0 | EE85: 0 | EF85: 0 | EG85: 0 | EH85: 0 | EI85: 0
A86: ED_ASS521_00076 | C86: Ground Outdoor / Indoor Chamber Mounted; > 33 kV & < = 66 kV ; > 15 MVA and < = 40 MVA | N86: 64 | Y86: 8 | AJ86: 2 | AK86: 1 | AL86: 8 | AM86: 4 | AN86: 4 | AO86: 4 | AP86: 2 | AQ86: 4 | AR86: 2 | AS86: 5 | AT86: 2 | AU86: 5 | AV86: 4 | AW86: 4 | AX86: 0 | AY86: 1 | AZ86: 0 | BA86: 0 | BB86: 2 | BC86: 0 | BD86: 3 | BE86: 0 | BF86: 1 | BG86: 5 | BH86: 1 | BI86: 3 | BJ86: 0 | BK86: 1 | BL86: 4 | BM86: 0 | BN86: 2 | BO86: 4 | BP86: 2 | BQ86: 0 | BR86: 4 | BS86: 1 | BT86: 4 | BU86: 0 | BV86: 0 | BW86: 0 | BX86: 0 | BY86: 1 | BZ86: 4 | CA86: 0 | CB86: 5 | CC86: 6 | CD86: 4 | CE86: 3 | CF86: 0 | CG86: 0 | CH86: 0 | CI86: 0 | CJ86: 0 | CK86: 0 | CL86: 0 | CM86: 0 | CN86: 0 | CO86: 3 | CP86: 3 | CQ86: 0 | CR86: 0 | CS86: 0 | CT86: 0 | CU86: 0 | CV86: 0 | CW86: 0 | CX86: 0 | CY86: 0 | CZ86: 0 | DA86: 0 | DB86: 0 | DC86: 0 | DD86: 0 | DE86: 0 | DF86: 0 | DG86: 0 | DH86: 0 | DI86: 0 | DJ86: 0 | DK86: 0 | DL86: 0 | DM86: 0 | DN86: 0 | DO86: 0 | DP86: 0 | DQ86: 0 | DR86: 0 | DS86: 0 | DT86: 0 | DU86: 0 | DV86: 0 | DW86: 0 | DX86: 0 | DY86: 0 | DZ86: 0 | EA86: 0 | EB86: 0 | EC86: 0 | ED86: 0 | EE86: 0 | EF86: 0 | EG86: 0 | EH86: 0 | EI86: 0
A87: ED_ASS521_00077 | C87: Ground Outdoor / Indoor Chamber Mounted; > 33 kV & < = 66 kV ; > 40 MVA | N87: 0 | Y87: 0 | AJ87: 0 | AK87: 0 | AL87: 0 | AM87: 0 | AN87: 0 | AO87: 0 | AP87: 0 | AQ87: 0 | AR87: 0 | AS87: 0 | AT87: 0 | AU87: 0 | AV87: 0 | AW87: 0 | AX87: 0 | AY87: 0 | AZ87: 0 | BA87: 0 | BB87: 0 | BC87: 0 | BD87: 0 | BE87: 0 | BF87: 0 | BG87: 0 | BH87: 0 | BI87: 0 | BJ87: 0 | BK87: 0 | BL87: 0 | BM87: 0 | BN87: 0 | BO87: 0 | BP87: 0 | BQ87: 0 | BR87: 0 | BS87: 0 | BT87: 0 | BU87: 0 | BV87: 0 | BW87: 0 | BX87: 0 | BY87: 0 | BZ87: 0 | CA87: 0 | CB87: 0 | CC87: 0 | CD87: 0 | CE87: 0 | CF87: 0 | CG87: 0 | CH87: 0 | CI87: 0 | CJ87: 0 | CK87: 0 | CL87: 0 | CM87: 0 | CN87: 0 | CO87: 0 | CP87: 0 | CQ87: 0 | CR87: 0 | CS87: 0 | CT87: 0 | CU87: 0 | CV87: 0 | CW87: 0 | CX87: 0 | CY87: 0 | CZ87: 0 | DA87: 0 | DB87: 0 | DC87: 0 | DD87: 0 | DE87: 0 | DF87: 0 | DG87: 0 | DH87: 0 | DI87: 0 | DJ87: 0 | DK87: 0 | DL87: 0 | DM87: 0 | DN87: 0 | DO87: 0 | DP87: 0 | DQ87: 0 | DR87: 0 | DS87: 0 | DT87: 0 | DU87: 0 | DV87: 0 | DW87: 0 | DX87: 0 | DY87: 0 | DZ87: 0 | EA87: 0 | EB87: 0 | EC87: 0 | ED87: 0 | EE87: 0 | EF87: 0 | EG87: 0 | EH87: 0 | EI87: 0
A88: ED_ASS521_00078 | C88: Ground Outdoor / Indoor Chamber Mounted; > 66 kV & < = 132 kV ; < = 100 MVA | N88: 0 | Y88: 0 | AJ88: 0 | AK88: 0 | AL88: 0 | AM88: 0 | AN88: 0 | AO88: 0 | AP88: 0 | AQ88: 0 | AR88: 0 | AS88: 0 | AT88: 0 | AU88: 0 | AV88: 0 | AW88: 0 | AX88: 0 | AY88: 0 | AZ88: 0 | BA88: 0 | BB88: 0 | BC88: 0 | BD88: 0 | BE88: 0 | BF88: 0 | BG88: 0 | BH88: 0 | BI88: 0 | BJ88: 0 | BK88: 0 | BL88: 0 | BM88: 0 | BN88: 0 | BO88: 0 | BP88: 0 | BQ88: 0 | BR88: 0 | BS88: 0 | BT88: 0 | BU88: 0 | BV88: 0 | BW88: 0 | BX88: 0 | BY88: 0 | BZ88: 0 | CA88: 0 | CB88: 0 | CC88: 0 | CD88: 0 | CE88: 0 | CF88: 0 | CG88: 0 | CH88: 0 | CI88: 0 | CJ88: 0 | CK88: 0 | CL88: 0 | CM88: 0 | CN88: 0 | CO88: 0 | CP88: 0 | CQ88: 0 | CR88: 0 | CS88: 0 | CT88: 0 | CU88: 0 | CV88: 0 | CW88: 0 | CX88: 0 | CY88: 0 | CZ88: 0 | DA88: 0 | DB88: 0 | DC88: 0 | DD88: 0 | DE88: 0 | DF88: 0 | DG88: 0 | DH88: 0 | DI88: 0 | DJ88: 0 | DK88: 0 | DL88: 0 | DM88: 0 | DN88: 0 | DO88: 0 | DP88: 0 | DQ88: 0 | DR88: 0 | DS88: 0 | DT88: 0 | DU88: 0 | DV88: 0 | DW88: 0 | DX88: 0 | DY88: 0 | DZ88: 0 | EA88: 0 | EB88: 0 | EC88: 0 | ED88: 0 | EE88: 0 | EF88: 0 | EG88: 0 | EH88: 0 | EI88: 0
A89: ED_ASS521_00079 | C89: Ground Outdoor / Indoor Chamber Mounted; > 66 kV & < = 132 kV ; > 100 MVA | N89: 0 | Y89: 0 | AJ89: 0 | AK89: 0 | AL89: 0 | AM89: 0 | AN89: 0 | AO89: 0 | AP89: 0 | AQ89: 0 | AR89: 0 | AS89: 0 | AT89: 0 | AU89: 0 | AV89: 0 | AW89: 0 | AX89: 0 | AY89: 0 | AZ89: 0 | BA89: 0 | BB89: 0 | BC89: 0 | BD89: 0 | BE89: 0 | BF89: 0 | BG89: 0 | BH89: 0 | BI89: 0 | BJ89: 0 | BK89: 0 | BL89: 0 | BM89: 0 | BN89: 0 | BO89: 0 | BP89: 0 | BQ89: 0 | BR89: 0 | BS89: 0 | BT89: 0 | BU89: 0 | BV89: 0 | BW89: 0 | BX89: 0 | BY89: 0 | BZ89: 0 | CA89: 0 | CB89: 0 | CC89: 0 | CD89: 0 | CE89: 0 | CF89: 0 | CG89: 0 | CH89: 0 | CI89: 0 | CJ89: 0 | CK89: 0 | CL89: 0 | CM89: 0 | CN89: 0 | CO89: 0 | CP89: 0 | CQ89: 0 | CR89: 0 | CS89: 0 | CT89: 0 | CU89: 0 | CV89: 0 | CW89: 0 | CX89: 0 | CY89: 0 | CZ89: 0 | DA89: 0 | DB89: 0 | DC89: 0 | DD89: 0 | DE89: 0 | DF89: 0 | DG89: 0 | DH89: 0 | DI89: 0 | DJ89: 0 | DK89: 0 | DL89: 0 | DM89: 0 | DN89: 0 | DO89: 0 | DP89: 0 | DQ89: 0 | DR89: 0 | DS89: 0 | DT89: 0 | DU89: 0 | DV89: 0 | DW89: 0 | DX89: 0 | DY89: 0 | DZ89: 0 | EA89: 0 | EB89: 0 | EC89: 0 | ED89: 0 | EE89: 0 | EF89: 0 | EG89: 0 | EH89: 0 | EI89: 0
A90: ED_ASS521_00080 | C90: Ground Outdoor / Indoor Chamber Mounted; > 132 kV ; < = 100 MVA | N90: 0 | Y90: 0 | AJ90: 0 | AK90: 0 | AL90: 0 | AM90: 0 | AN90: 0 | AO90: 0 | AP90: 0 | AQ90: 0 | AR90: 0 | AS90: 0 | AT90: 0 | AU90: 0 | AV90: 0 | AW90: 0 | AX90: 0 | AY90: 0 | AZ90: 0 | BA90: 0 | BB90: 0 | BC90: 0 | BD90: 0 | BE90: 0 | BF90: 0 | BG90: 0 | BH90: 0 | BI90: 0 | BJ90: 0 | BK90: 0 | BL90: 0 | BM90: 0 | BN90: 0 | BO90: 0 | BP90: 0 | BQ90: 0 | BR90: 0 | BS90: 0 | BT90: 0 | BU90: 0 | BV90: 0 | BW90: 0 | BX90: 0 | BY90: 0 | BZ90: 0 | CA90: 0 | CB90: 0 | CC90: 0 | CD90: 0 | CE90: 0 | CF90: 0 | CG90: 0 | CH90: 0 | CI90: 0 | CJ90: 0 | CK90: 0 | CL90: 0 | CM90: 0 | CN90: 0 | CO90: 0 | CP90: 0 | CQ90: 0 | CR90: 0 | CS90: 0 | CT90: 0 | CU90: 0 | CV90: 0 | CW90: 0 | CX90: 0 | CY90: 0 | CZ90: 0 | DA90: 0 | DB90: 0 | DC90: 0 | DD90: 0 | DE90: 0 | DF90: 0 | DG90: 0 | DH90: 0 | DI90: 0 | DJ90: 0 | DK90: 0 | DL90: 0 | DM90: 0 | DN90: 0 | DO90: 0 | DP90: 0 | DQ90: 0 | DR90: 0 | DS90: 0 | DT90: 0 | DU90: 0 | DV90: 0 | DW90: 0 | DX90: 0 | DY90: 0 | DZ90: 0 | EA90: 0 | EB90: 0 | EC90: 0 | ED90: 0 | EE90: 0 | EF90: 0 | EG90: 0 | EH90: 0 | EI90: 0
A91: ED_ASS521_00081 | C91: Ground Outdoor / Indoor Chamber Mounted; > 132 kV ; > 100 MVA | N91: 0 | Y91: 0 | AJ91: 0 | AK91: 0 | AL91: 0 | AM91: 0 | AN91: 0 | AO91: 0 | AP91: 0 | AQ91: 0 | AR91: 0 | AS91: 0 | AT91: 0 | AU91: 0 | AV91: 0 | AW91: 0 | AX91: 0 | AY91: 0 | AZ91: 0 | BA91: 0 | BB91: 0 | BC91: 0 | BD91: 0 | BE91: 0 | BF91: 0 | BG91: 0 | BH91: 0 | BI91: 0 | BJ91: 0 | BK91: 0 | BL91: 0 | BM91: 0 | BN91: 0 | BO91: 0 | BP91: 0 | BQ91: 0 | BR91: 0 | BS91: 0 | BT91: 0 | BU91: 0 | BV91: 0 | BW91: 0 | BX91: 0 | BY91: 0 | BZ91: 0 | CA91: 0 | CB91: 0 | CC91: 0 | CD91: 0 | CE91: 0 | CF91: 0 | CG91: 0 | CH91: 0 | CI91: 0 | CJ91: 0 | CK91: 0 | CL91: 0 | CM91: 0 | CN91: 0 | CO91: 0 | CP91: 0 | CQ91: 0 | CR91: 0 | CS91: 0 | CT91: 0 | CU91: 0 | CV91: 0 | CW91: 0 | CX91: 0 | CY91: 0 | CZ91: 0 | DA91: 0 | DB91: 0 | DC91: 0 | DD91: 0 | DE91: 0 | DF91: 0 | DG91: 0 | DH91: 0 | DI91: 0 | DJ91: 0 | DK91: 0 | DL91: 0 | DM91: 0 | DN91: 0 | DO91: 0 | DP91: 0 | DQ91: 0 | DR91: 0 | DS91: 0 | DT91: 0 | DU91: 0 | DV91: 0 | DW91: 0 | DX91: 0 | DY91: 0 | DZ91: 0 | EA91: 0 | EB91: 0 | EC91: 0 | ED91: 0 | EE91: 0 | EF91: 0 | EG91: 0 | EH91: 0 | EI91: 0
A92: ED_ASS521_99004 | C92: Other | E92: DNSP NAME | F92: REPEX | G92: TRANSFORMERS | H92: =C92 -> Other | I92: DESCRIPTOR METRIC | J92: MEAN ECONOMIC LIFE | K92: YEARS | L92: NUMBER
A93: ED_ASS521_00095 | B93: SWITCHGEAR BY: HIGHEST OPERATING VOLTAGE ; SWITCH FUNCTION | C93: ˂ = 11 kV ; Fuse | E93: DNSP NAME | F93: REPEX | G93: SWITCHGEAR | H93: ˂ = 11 kV ; Fuse | I93: DESCRIPTOR METRIC | J93: MEAN ECONOMIC LIFE | K93: YEARS | L93: NUMBER
A94: ED_ASS521_00096 | C94: ˂ = 11 kV ; Switch | E94: DNSP NAME | F94: REPEX | G94: SWITCHGEAR | H94: ˂ = 11 kV ; Switch | I94: DESCRIPTOR METRIC | J94: MEAN ECONOMIC LIFE | K94: YEARS | L94: NUMBER | N94: 69 | Y94: 8 | AJ94: 22 | AK94: 37 | AL94: 16 | AM94: 3 | AN94: 5 | AO94: 5 | AP94: 16 | AQ94: 1 | AR94: 1 | AS94: 0 | AT94: 1 | AU94: 1 | AV94: 4 | AW94: 0 | AX94: 0 | AY94: 0 | AZ94: 0 | BA94: 4 | BB94: 11 | BC94: 0 | BD94: 2 | BE94: 0 | BF94: 6 | BG94: 13 | BH94: 29 | BI94: 8 | BJ94: 0 | BK94: 18 | BL94: 0 | BM94: 10 | BN94: 35 | BO94: 23 | BP94: 14 | BQ94: 26 | BR94: 24 | BS94: 2 | BT94: 46 | BU94: 21 | BV94: 31 | BW94: 7 | BX94: 6 | BY94: 74 | BZ94: 50 | CA94: 116 | CB94: 146 | CC94: 93 | CD94: 86 | CE94: 112 | CF94: 154 | CG94: 28 | CH94: 33 | CI94: 8 | CJ94: 14 | CK94: 0 | CL94: 3 | CM94: 5 | CN94: 79 | CO94: 3 | CP94: 34 | CQ94: 0 | CR94: 0 | CS94: 3 | CT94: 0 | CU94: 3 | CV94: 0 | CW94: 0 | CX94: 0 | CY94: 0 | CZ94: 0 | DA94: 0 | DB94: 11 | DC94: 0 | DD94: 8 | DE94: 0 | DF94: 0 | DG94: 0 | DH94: 0 | DI94: 0 | DJ94: 0 | DK94: 0 | DL94: 0 | DM94: 0 | DN94: 0 | DO94: 0 | DP94: 0 | DQ94: 0 | DR94: 0 | DS94: 0 | DT94: 0 | DU94: 0 | DV94: 0 | DW94: 0 | DX94: 0 | DY94: 0 | DZ94: 0 | EA94: 0 | EB94: 0 | EC94: 0 | ED94: 0 | EE94: 0 | EF94: 0 | EG94: 0 | EH94: 0 | EI94: 0
A95: ED_ASS521_00097 | C95: ˂ = 11 kV ; Circuit Breaker | N95: 66 | Y95: 8 | AJ95: 0 | AK95: 58 | AL95: 135 | AM95: 35 | AN95: 21 | AO95: 32 | AP95: 13 | AQ95: 32 | AR95: 13 | AS95: 13 | AT95: 17 | AU95: 29 | AV95: 31 | AW95: 10 | AX95: 4 | AY95: 31 | AZ95: 11 | BA95: 10 | BB95: 0 | BC95: 0 | BD95: 6 | BE95: 4 | BF95: 9 | BG95: 20 | BH95: 28 | BI95: 0 | BJ95: 26 | BK95: 0 | BL95: 30 | BM95: 0 | BN95: 0 | BO95: 4 | BP95: 0 | BQ95: 0 | BR95: 0 | BS95: 0 | BT95: 0 | BU95: 2 | BV95: 11 | BW95: 0 | BX95: 0 | BY95: 0 | BZ95: 37 | CA95: 43 | CB95: 45 | CC95: 40 | CD95: 14 | CE95: 83 | CF95: 60 | CG95: 2 | CH95: 85 | CI95: 20 | CJ95: 21 | CK95: 15 | CL95: 0 | CM95: 0 | CN95: 47 | CO95: 2 | CP95: 10 | CQ95: 0 | CR95: 9 | CS95: 20 | CT95: 0 | CU95: 18 | CV95: 0 | CW95: 0 | CX95: 0 | CY95: 0 | CZ95: 0 | DA95: 0 | DB95: 0 | DC95: 0 | DD95: 0 | DE95: 0 | DF95: 0 | DG95: 0 | DH95: 0 | DI95: 0 | DJ95: 0 | DK95: 0 | DL95: 0 | DM95: 0 | DN95: 0 | DO95: 0 | DP95: 0 | DQ95: 0 | DR95: 0 | DS95: 0 | DT95: 0 | DU95: 0 | DV95: 0 | DW95: 0 | DX95: 0 | DY95: 0 | DZ95: 0 | EA95: 0 | EB95: 0 | EC95: 0 | ED95: 0 | EE95: 0 | EF95: 0 | EG95: 0 | EH95: 0 | EI95: 0
A96: ED_ASS521_00098 | C96: > 11 kV & < = 22 kV ; Switch | N96: 66 | Y96: 8 | AJ96: 0 | AK96: 0 | AL96: 0 | AM96: 0 | AN96: 0 | AO96: 0 | AP96: 0 | AQ96: 0 | AR96: 0 | AS96: 0 | AT96: 0 | AU96: 0 | AV96: 0 | AW96: 0 | AX96: 0 | AY96: 0 | AZ96: 0 | BA96: 0 | BB96: 0 | BC96: 0 | BD96: 0 | BE96: 0 | BF96: 0 | BG96: 0 | BH96: 0 | BI96: 0 | BJ96: 0 | BK96: 0 | BL96: 0 | BM96: 0 | BN96: 0 | BO96: 0 | BP96: 0 | BQ96: 0 | BR96: 0 | BS96: 0 | BT96: 0 | BU96: 0 | BV96: 0 | BW96: 0 | BX96: 0 | BY96: 0 | BZ96: 0 | CA96: 0 | CB96: 0 | CC96: 0 | CD96: 0 | CE96: 10 | CF96: 0 | CG96: 0 | CH96: 0 | CI96: 0 | CJ96: 0 | CK96: 0 | CL96: 0 | CM96: 0 | CN96: 0 | CO96: 0 | CP96: 0 | CQ96: 0 | CR96: 0 | CS96: 0 | CT96: 0 | CU96: 0 | CV96: 0 | CW96: 0 | CX96: 0 | CY96: 0 | CZ96: 0 | DA96: 0 | DB96: 0 | DC96: 0 | DD96: 0 | DE96: 0 | DF96: 0 | DG96: 0 | DH96: 0 | DI96: 0 | DJ96: 0 | DK96: 0 | DL96: 0 | DM96: 0 | DN96: 0 | DO96: 0 | DP96: 0 | DQ96: 0 | DR96: 0 | DS96: 0 | DT96: 0 | DU96: 0 | DV96: 0 | DW96: 0 | DX96: 0 | DY96: 0 | DZ96: 0 | EA96: 0 | EB96: 0 | EC96: 0 | ED96: 0 | EE96: 0 | EF96: 0 | EG96: 0 | EH96: 0 | EI96: 0
A97: ED_ASS521_00099 | C97: > 11 kV & < = 22 kV ; Circuit Breaker
A98: ED_ASS521_00100 | C98: > 22 kV & < = 33 kV ; Switch | N98: 69 | Y98: 8 | AJ98: 47 | AK98: 43 | AL98: 34 | AM98: 33 | AN98: 34 | AO98: 1 | AP98: 1 | AQ98: 11 | AR98: 19 | AS98: 22 | AT98: 15 | AU98: 6 | AV98: 9 | AW98: 9 | AX98: 4 | AY98: 0 | AZ98: 0 | BA98: 0 | BB98: 9 | BC98: 0 | BD98: 0 | BE98: 3 | BF98: 17 | BG98: 15 | BH98: 4 | BI98: 6 | BJ98: 0 | BK98: 12 | BL98: 3 | BM98: 3 | BN98: 14 | BO98: 4 | BP98: 3 | BQ98: 12 | BR98: 8 | BS98: 7 | BT98: 7 | BU98: 7 | BV98: 13 | BW98: 2 | BX98: 17 | BY98: 51 | BZ98: 21 | CA98: 8 | CB98: 22 | CC98: 78 | CD98: 39 | CE98: 72 | CF98: 65 | CG98: 30 | CH98: 17 | CI98: 4 | CJ98: 3 | CK98: 0 | CL98: 0 | CM98: 7 | CN98: 28 | CO98: 24 | CP98: 35 | CQ98: 8 | CR98: 0 | CS98: 1 | CT98: 0 | CU98: 1 | CV98: 0 | CW98: 0 | CX98: 0 | CY98: 5 | CZ98: 0 | DA98: 0 | DB98: 4 | DC98: 0 | DD98: 4 | DE98: 4 | DF98: 0 | DG98: 0 | DH98: 0 | DI98: 0 | DJ98: 0 | DK98: 0 | DL98: 0 | DM98: 0 | DN98: 0 | DO98: 0 | DP98: 0 | DQ98: 0 | DR98: 0 | DS98: 0 | DT98: 0 | DU98: 0 | DV98: 0 | DW98: 0 | DX98: 0 | DY98: 0 | DZ98: 0 | EA98: 0 | EB98: 0 | EC98: 0 | ED98: 0 | EE98: 0 | EF98: 0 | EG98: 0 | EH98: 0 | EI98: 0
A99: ED_ASS521_00101 | C99: > 22 kV & < = 33 kV ; Circuit Breaker | N99: 66 | Y99: 8 | AJ99: 7 | AK99: 19 | AL99: 20 | AM99: 14 | AN99: 10 | AO99: 4 | AP99: 4 | AQ99: 10 | AR99: 3 | AS99: 9 | AT99: 7 | AU99: 7 | AV99: 2 | AW99: 0 | AX99: 3 | AY99: 0 | AZ99: 0 | BA99: 0 | BB99: 0 | BC99: 0 | BD99: 0 | BE99: 0 | BF99: 0 | BG99: 0 | BH99: 10 | BI99: 2 | BJ99: 0 | BK99: 0 | BL99: 0 | BM99: 0 | BN99: 0 | BO99: 0 | BP99: 0 | BQ99: 0 | BR99: 0 | BS99: 0 | BT99: 0 | BU99: 0 | BV99: 0 | BW99: 0 | BX99: 0 | BY99: 0 | BZ99: 0 | CA99: 0 | CB99: 0 | CC99: 0 | CD99: 20 | CE99: 18 | CF99: 0 | CG99: 5 | CH99: 0 | CI99: 2 | CJ99: 0 | CK99: 9 | CL99: 0 | CM99: 3 | CN99: 27 | CO99: 0 | CP99: 0 | CQ99: 0 | CR99: 20 | CS99: 0 | CT99: 0 | CU99: 6 | CV99: 0 | CW99: 0 | CX99: 0 | CY99: 7 | CZ99: 0 | DA99: 2 | DB99: 0 | DC99: 0 | DD99: 0 | DE99: 0 | DF99: 0 | DG99: 0 | DH99: 0 | DI99: 1 | DJ99: 0 | DK99: 0 | DL99: 0 | DM99: 0 | DN99: 0 | DO99: 0 | DP99: 0 | DQ99: 0 | DR99: 0 | DS99: 0 | DT99: 0 | DU99: 0 | DV99: 0 | DW99: 0 | DX99: 0 | DY99: 0 | DZ99: 0 | EA99: 0 | EB99: 0 | EC99: 0 | ED99: 0 | EE99: 0 | EF99: 0 | EG99: 0 | EH99: 0 | EI99: 0
A100: ED_ASS521_00102 | C100: > 33 kV & < = 66 kV ; Switch | N100: 69 | Y100: 8 | AJ100: 60 | AK100: 76 | AL100: 71 | AM100: 82 | AN100: 70 | AO100: 18 | AP100: 24 | AQ100: 18 | AR100: 18 | AS100: 11 | AT100: 7 | AU100: 20 | AV100: 20 | AW100: 12 | AX100: 3 | AY100: 2 | AZ100: 9 | BA100: 1 | BB100: 12 | BC100: 0 | BD100: 0 | BE100: 0 | BF100: 31 | BG100: 13 | BH100: 0 | BI100: 2 | BJ100: 25 | BK100: 10 | BL100: 4 | BM100: 0 | BN100: 0 | BO100: 5 | BP100: 0 | BQ100: 0 | BR100: 20 | BS100: 10 | BT100: 7 | BU100: 16 | BV100: 4 | BW100: 3 | BX100: 0 | BY100: 13 | BZ100: 10 | CA100: 93 | CB100: 77 | CC100: 58 | CD100: 48 | CE100: 33 | CF100: 68 | CG100: 35 | CH100: 66 | CI100: 21 | CJ100: 25 | CK100: 4 | CL100: 0 | CM100: 30 | CN100: 33 | CO100: 0 | CP100: 38 | CQ100: 15 | CR100: 9 | CS100: 12 | CT100: 0 | CU100: 0 | CV100: 0 | CW100: 0 | CX100: 0 | CY100: 0 | CZ100: 0 | DA100: 0 | DB100: 0 | DC100: 0 | DD100: 0 | DE100: 7 | DF100: 0 | DG100: 0 | DH100: 6 | DI100: 15 | DJ100: 0 | DK100: 0 | DL100: 0 | DM100: 6 | DN100: 0 | DO100: 0 | DP100: 0 | DQ100: 0 | DR100: 0 | DS100: 0 | DT100: 0 | DU100: 0 | DV100: 0 | DW100: 0 | DX100: 0 | DY100: 0 | DZ100: 0 | EA100: 0 | EB100: 0 | EC100: 0 | ED100: 0 | EE100: 0 | EF100: 0 | EG100: 0 | EH100: 0 | EI100: 0
A101: ED_ASS521_00103 | C101: > 33 kV & < = 66 kV ; Circuit Breaker | N101: 66 | Y101: 8 | AJ101: 7 | AK101: 14 | AL101: 41 | AM101: 40 | AN101: 30 | AO101: 15 | AP101: 24 | AQ101: 16 | AR101: 20 | AS101: 11 | AT101: 1 | AU101: 14 | AV101: 11 | AW101: 8 | AX101: 8 | AY101: 2 | AZ101: 7 | BA101: 1 | BB101: 1 | BC101: 1 | BD101: 0 | BE101: 0 | BF101: 2 | BG101: 8 | BH101: 0 | BI101: 13 | BJ101: 6 | BK101: 4 | BL101: 2 | BM101: 12 | BN101: 11 | BO101: 0 | BP101: 10 | BQ101: 0 | BR101: 0 | BS101: 0 | BT101: 0 | BU101: 0 | BV101: 0 | BW101: 0 | BX101: 0 | BY101: 2 | BZ101: 9 | CA101: 11 | CB101: 24 | CC101: 6 | CD101: 7 | CE101: 3 | CF101: 0 | CG101: 17 | CH101: 13 | CI101: 0 | CJ101: 0 | CK101: 0 | CL101: 0 | CM101: 2 | CN101: 7 | CO101: 0 | CP101: 0 | CQ101: 3 | CR101: 9 | CS101: 0 | CT101: 8 | CU101: 0 | CV101: 0 | CW101: 0 | CX101: 1 | CY101: 0 | CZ101: 0 | DA101: 0 | DB101: 0 | DC101: 0 | DD101: 0 | DE101: 0 | DF101: 0 | DG101: 0 | DH101: 0 | DI101: 0 | DJ101: 0 | DK101: 0 | DL101: 0 | DM101: 0 | DN101: 0 | DO101: 0 | DP101: 0 | DQ101: 0 | DR101: 0 | DS101: 0 | DT101: 0 | DU101: 0 | DV101: 0 | DW101: 0 | DX101: 0 | DY101: 0 | DZ101: 0 | EA101: 0 | EB101: 0 | EC101: 0 | ED101: 0 | EE101: 0 | EF101: 0 | EG101: 0 | EH101: 0 | EI101: 0
A102: ED_ASS521_00104 | C102: > 66 kV & < = 132 kV ; Switch | N102: 0 | Y102: 0 | AJ102: 0 | AK102: 0 | AL102: 0 | AM102: 0 | AN102: 0 | AO102: 0 | AP102: 0 | AQ102: 0 | AR102: 0 | AS102: 0 | AT102: 0 | AU102: 0 | AV102: 0 | AW102: 0 | AX102: 0 | AY102: 0 | AZ102: 0 | BA102: 0 | BB102: 0 | BC102: 0 | BD102: 0 | BE102: 0 | BF102: 0 | BG102: 0 | BH102: 0 | BI102: 0 | BJ102: 0 | BK102: 0 | BL102: 0 | BM102: 0 | BN102: 0 | BO102: 0 | BP102: 0 | BQ102: 0 | BR102: 0 | BS102: 0 | BT102: 0 | BU102: 0 | BV102: 0 | BW102: 0 | BX102: 0 | BY102: 0 | BZ102: 0 | CA102: 0 | CB102: 0 | CC102: 0 | CD102: 0 | CE102: 0 | CF102: 0 | CG102: 0 | CH102: 0 | CI102: 0 | CJ102: 0 | CK102: 0 | CL102: 0 | CM102: 0 | CN102: 0 | CO102: 0 | CP102: 0 | CQ102: 0 | CR102: 0 | CS102: 0 | CT102: 0 | CU102: 0 | CV102: 0 | CW102: 0 | CX102: 0 | CY102: 0 | CZ102: 0 | DA102: 0 | DB102: 0 | DC102: 0 | DD102: 0 | DE102: 0 | DF102: 0 | DG102: 0 | DH102: 0 | DI102: 0 | DJ102: 0 | DK102: 0 | DL102: 0 | DM102: 0 | DN102: 0 | DO102: 0 | DP102: 0 | DQ102: 0 | DR102: 0 | DS102: 0 | DT102: 0 | DU102: 0 | DV102: 0 | DW102: 0 | DX102: 0 | DY102: 0 | DZ102: 0 | EA102: 0 | EB102: 0 | EC102: 0 | ED102: 0 | EE102: 0 | EF102: 0 | EG102: 0 | EH102: 0 | EI102: 0
A103: ED_ASS521_00105 | C103: > 66 kV & < = 132 kV ; Circuit Breaker | N103: 0 | Y103: 0 | AJ103: 0 | AK103: 0 | AL103: 0 | AM103: 0 | AN103: 0 | AO103: 0 | AP103: 0 | AQ103: 0 | AR103: 0 | AS103: 0 | AT103: 0 | AU103: 0 | AV103: 0 | AW103: 0 | AX103: 0 | AY103: 0 | AZ103: 0 | BA103: 0 | BB103: 0 | BC103: 0 | BD103: 0 | BE103: 0 | BF103: 0 | BG103: 0 | BH103: 0 | BI103: 0 | BJ103: 0 | BK103: 0 | BL103: 0 | BM103: 0 | BN103: 0 | BO103: 0 | BP103: 0 | BQ103: 0 | BR103: 0 | BS103: 0 | BT103: 0 | BU103: 0 | BV103: 0 | BW103: 0 | BX103: 0 | BY103: 0 | BZ103: 0 | CA103: 0 | CB103: 0 | CC103: 0 | CD103: 0 | CE103: 0 | CF103: 0 | CG103: 0 | CH103: 0 | CI103: 0 | CJ103: 0 | CK103: 0 | CL103: 0 | CM103: 0 | CN103: 0 | CO103: 0 | CP103: 0 | CQ103: 0 | CR103: 0 | CS103: 0 | CT103: 0 | CU103: 0 | CV103: 0 | CW103: 0 | CX103: 0 | CY103: 0 | CZ103: 0 | DA103: 0 | DB103: 0 | DC103: 0 | DD103: 0 | DE103: 0 | DF103: 0 | DG103: 0 | DH103: 0 | DI103: 0 | DJ103: 0 | DK103: 0 | DL103: 0 | DM103: 0 | DN103: 0 | DO103: 0 | DP103: 0 | DQ103: 0 | DR103: 0 | DS103: 0 | DT103: 0 | DU103: 0 | DV103: 0 | DW103: 0 | DX103: 0 | DY103: 0 | DZ103: 0 | EA103: 0 | EB103: 0 | EC103: 0 | ED103: 0 | EE103: 0 | EF103: 0 | EG103: 0 | EH103: 0 | EI103: 0
A104: ED_ASS521_00106 | C104: > 132 kV ; Switch | N104: 0 | Y104: 0 | AJ104: 0 | AK104: 0 | AL104: 0 | AM104: 0 | AN104: 0 | AO104: 0 | AP104: 0 | AQ104: 0 | AR104: 0 | AS104: 0 | AT104: 0 | AU104: 0 | AV104: 0 | AW104: 0 | AX104: 0 | AY104: 0 | AZ104: 0 | BA104: 0 | BB104: 0 | BC104: 0 | BD104: 0 | BE104: 0 | BF104: 0 | BG104: 0 | BH104: 0 | BI104: 0 | BJ104: 0 | BK104: 0 | BL104: 0 | BM104: 0 | BN104: 0 | BO104: 0 | BP104: 0 | BQ104: 0 | BR104: 0 | BS104: 0 | BT104: 0 | BU104: 0 | BV104: 0 | BW104: 0 | BX104: 0 | BY104: 0 | BZ104: 0 | CA104: 0 | CB104: 0 | CC104: 0 | CD104: 0 | CE104: 0 | CF104: 0 | CG104: 0 | CH104: 0 | CI104: 0 | CJ104: 0 | CK104: 0 | CL104: 0 | CM104: 0 | CN104: 0 | CO104: 0 | CP104: 0 | CQ104: 0 | CR104: 0 | CS104: 0 | CT104: 0 | CU104: 0 | CV104: 0 | CW104: 0 | CX104: 0 | CY104: 0 | CZ104: 0 | DA104: 0 | DB104: 0 | DC104: 0 | DD104: 0 | DE104: 0 | DF104: 0 | DG104: 0 | DH104: 0 | DI104: 0 | DJ104: 0 | DK104: 0 | DL104: 0 | DM104: 0 | DN104: 0 | DO104: 0 | DP104: 0 | DQ104: 0 | DR104: 0 | DS104: 0 | DT104: 0 | DU104: 0 | DV104: 0 | DW104: 0 | DX104: 0 | DY104: 0 | DZ104: 0 | EA104: 0 | EB104: 0 | EC104: 0 | ED104: 0 | EE104: 0 | EF104: 0 | EG104: 0 | EH104: 0 | EI104: 0
A105: ED_ASS521_00107 | C105: > 132 kV ; Circuit Breaker | N105: 0 | Y105: 0 | AJ105: 0 | AK105: 0 | AL105: 0 | AM105: 0 | AN105: 0 | AO105: 0 | AP105: 0 | AQ105: 0 | AR105: 0 | AS105: 0 | AT105: 0 | AU105: 0 | AV105: 0 | AW105: 0 | AX105: 0 | AY105: 0 | AZ105: 0 | BA105: 0 | BB105: 0 | BC105: 0 | BD105: 0 | BE105: 0 | BF105: 0 | BG105: 0 | BH105: 0 | BI105: 0 | BJ105: 0 | BK105: 0 | BL105: 0 | BM105: 0 | BN105: 0 | BO105: 0 | BP105: 0 | BQ105: 0 | BR105: 0 | BS105: 0 | BT105: 0 | BU105: 0 | BV105: 0 | BW105: 0 | BX105: 0 | BY105: 0 | BZ105: 0 | CA105: 0 | CB105: 0 | CC105: 0 | CD105: 0 | CE105: 0 | CF105: 0 | CG105: 0 | CH105: 0 | CI105: 0 | CJ105: 0 | CK105: 0 | CL105: 0 | CM105: 0 | CN105: 0 | CO105: 0 | CP105: 0 | CQ105: 0 | CR105: 0 | CS105: 0 | CT105: 0 | CU105: 0 | CV105: 0 | CW105: 0 | CX105: 0 | CY105: 0 | CZ105: 0 | DA105: 0 | DB105: 0 | DC105: 0 | DD105: 0 | DE105: 0 | DF105: 0 | DG105: 0 | DH105: 0 | DI105: 0 | DJ105: 0 | DK105: 0 | DL105: 0 | DM105: 0 | DN105: 0 | DO105: 0 | DP105: 0 | DQ105: 0 | DR105: 0 | DS105: 0 | DT105: 0 | DU105: 0 | DV105: 0 | DW105: 0 | DX105: 0 | DY105: 0 | DZ105: 0 | EA105: 0 | EB105: 0 | EC105: 0 | ED105: 0 | EE105: 0 | EF105: 0 | EG105: 0 | EH105: 0 | EI105: 0
A106: ED_ASS521_99005 | C106: Other | E106: DNSP NAME | F106: REPEX | G106: SWITCHGEAR | H106: Other | I106: DESCRIPTOR METRIC | J106: MEAN ECONOMIC LIFE | K106: YEARS | L106: NUMBER
A107: ED_ASS521_00109 | B107: PUBLIC LIGHTING BY: ASSET TYPE ; LIGHTING OBLIGATION | C107: Luminaires ; Major Road | E107: DNSP NAME | F107: REPEX | G107: PUBLIC LIGHTING | H107: Luminaires ; Major Road | I107: DESCRIPTOR METRIC | J107: MEAN ECONOMIC LIFE | K107: YEARS | L107: NUMBER
A108: ED_ASS521_00110 | C108: Luminaires ; Minor Road | E108: DNSP NAME | F108: REPEX | G108: PUBLIC LIGHTING | H108: Luminaires ; Minor Road | I108: DESCRIPTOR METRIC | J108: MEAN ECONOMIC LIFE | K108: YEARS | L108: NUMBER
A109: ED_ASS521_00111 | C109: Brackets ; Major Road | E109: DNSP NAME | F109: REPEX | G109: PUBLIC LIGHTING | H109: Brackets ; Major Road | I109: DESCRIPTOR METRIC | J109: MEAN ECONOMIC LIFE | K109: YEARS | L109: NUMBER
A110: ED_ASS521_00112 | C110: Brackets ; Minor Road | E110: DNSP NAME | F110: REPEX | G110: PUBLIC LIGHTING | H110: Brackets ; Minor Road | I110: DESCRIPTOR METRIC | J110: MEAN ECONOMIC LIFE | K110: YEARS | L110: NUMBER
A111: ED_ASS521_00113 | C111: Lamps ; Major Road | E111: DNSP NAME | F111: REPEX | G111: PUBLIC LIGHTING | H111: Lamps ; Major Road | I111: DESCRIPTOR METRIC | J111: MEAN ECONOMIC LIFE | K111: YEARS | L111: NUMBER
A112: ED_ASS521_00114 | C112: Lamps ; Minor Road | E112: DNSP NAME | F112: REPEX | G112: PUBLIC LIGHTING | H112: Lamps ; Minor Road | I112: DESCRIPTOR METRIC | J112: MEAN ECONOMIC LIFE | K112: YEARS | L112: NUMBER
A113: ED_ASS521_00115 | C113: Poles / Columns ; Major Road | E113: DNSP NAME | F113: REPEX | G113: PUBLIC LIGHTING | H113: Poles / Columns ; Major Road | I113: DESCRIPTOR METRIC | J113: MEAN ECONOMIC LIFE | K113: YEARS | L113: NUMBER
A114: ED_ASS521_00116 | C114: Poles / Columns ; Minor Road | E114: DNSP NAME | F114: REPEX | G114: PUBLIC LIGHTING | H114: Poles / Columns ; Minor Road | I114: DESCRIPTOR METRIC | J114: MEAN ECONOMIC LIFE | K114: YEARS | L114: NUMBER
A115: ED_ASS521_99006 | C115: Other | E115: DNSP NAME | F115: REPEX | G115: PUBLIC LIGHTING | H115: Other | I115: DESCRIPTOR METRIC | J115: MEAN ECONOMIC LIFE | K115: YEARS | L115: NUMBER
